Workbook

Sheet Home
B8: Welcome to the Primary Care Needs Assessment (PCNA) workbook
B10: We will step you through using this tool. Please begin by choosing a view that represents your organisational perspective.
B11: Click here | C11: to view the PCNA indicator map and guide; this provides an overview of the topics within each category & shows the footprints at which data are available.
B12: It also provides detail about each indicator, such as source, limitations, and linked frameworks.
D15: CHOOSE A VIEW
B22: Release date: 11.04.19
B23: Contact: PrimaryCare.One@wales.nhs.uk
B24: Latest version downloadable from: http://www.primarycareone.wales.nhs.uk/pcna

Sheet Geography (hidden)
A1: Health boards
A2: Local authorities
A3: Regional Partnership Boards
A4: Clusters, by health board
A5: Clusters, by local authority (PSB)

Sheet PP_Data
A1: Area | B1: Outcome | C1: Title | D1: Gender | E1: Measure Type | F1: Area value | G1: Area LCL | H1: Area UCL | K1: Least deprived | N1: Next least deprived | Q1: Middle | S1: Next most deprived | W1: Most deprived | Z1: Population | AA1: Age band | AB1: <16 | AC1: 16-64 | AD1: 65-84 | AE1: 85+ | AG1: removed % | AR1: (2014) Population aged 0-25, by age, projected to 2035 | AS1: 2017 | AT1: 2020 | AU1: 2025 | AV1: 2030 | AW1: 2035 | AY1: Population aged 18 and over, by age, projected to 2035 | AZ1: 2017 | BA1: 2020 | BB1: 2025 | BC1: 2030 | BD1: 2035 | BH1: 2014 Adult projection sums | BI1: 2017 | BJ1: 2020 | BK1: 2025 | BL1: 2030 | BM1: 2035
A2: Wales | B2: Years of life and years of health | C2: Life expectancy at birth, 2013 to 2015 | D2: Males | E2: Years | F2: 78.4272245 | G2: 78.30521362 | H2: 78.54923538 | K2: Count | L2: % | N2: Count | O2: % | Q2: Count | R2: % | T2: Count | U2: % | W2: Count | X2: % | AA2: Wales | AB2: 554800 | AC2: 1922400 | AD2: 535900 | AE2: 78900 | AI2: 2014 | AJ2: <16 | AL2: 16-64 | AN2: 65-84 | AP2: 85+ | AR2: Wales: Total population aged 0-17 | AS2: 634270 | AT2: 645950 | AU2: 657050 | AV2: 645870 | AW2: 628710 | AY2: Wales: People aged 18-24 | AZ2: 286890 | BA2: 271260 | BB2: 259530 | BC2: 280070 | BD2: 287280 | BH2: Wales | BI2: 2510820 | BJ2: 2539770 | BK2: 2588720 | BL2: 2646380 | BM2: 2698770
A3: Betsi Cadwaladr UHB | B3: Years of life and years of health | C3: Life expectancy at birth, 2013 to 2015 | D3: Males | E3: Years | F3: 78.81460029 | G3: 78.55914289 | H3: 79.0700577 | J3: Betsi Cadwaladr UHB | K3: 139200 | L3: 20.04267985 | N3: 197700 | O3: 28.46402956 | Q3: 150800 | R3: 21.71920291 | T3: 124600 | U3: 17.9376304 | W3: 82200 | X3: 11.83645728 | AA3: Betsi Cadwaladr UHB | AB3: 123800 | AC3: 418100 | AD3: 132300 | AE3: 19800 | AI3: Wales | AJ3: 554800 | AK3: (18%) | AL3: 1922400 | AM3: (62%) | AN3: 535900 | AO3: (17%) | AP3: 78900 | AQ3: (3%) | AR3: Bridgend: Total population aged 0-17 | AS3: 29280 | AT3: 29760 | AU3: 30130 | AV3: 29480 | AW3: 28120 | AY3: Wales: People aged 25-34 | AZ3: 401890 | BA3: 416040 | BB3: 412610 | BC3: 379760 | BD3: 379140 | BH3: Bridgend | BI3: 114440 | BJ3: 115890 | BK3: 118100 | BL3: 120360 | BM3: 122750
A4: Powys THB | B4: Years of life and years of health | C4: Life expectancy at birth, 2013 to 2015 | D4: Males | E4: Years | F4: 80.29212733 | G4: 79.69504478 | H4: 80.88920988 | J4: Powys THB | K4: 13500 | L4: 10.17023266 | N4: 70600 | O4: 53.21240633 | Q4: 31300 | R4: 23.61393827 | T4: 12600 | U4: 9.50679272 | W4: 4600 | X4: 3.496630027 | AA4: Powys THB | AB4: 21900 | AC4: 77200 | AD4: 29100 | AE4: 4500 | AI4: Betsi Cadwaladr | AJ4: 123800 | AK4: (18%) | AL4: 418100 | AM4: (60%) | AN4: 132300 | AO4: (19%) | AP4: 19800 | AQ4: (3%) | AR4: Neath Port Talbot: Total population aged 0-17 | AS4: 28360 | AT4: 28790 | AU4: 28910 | AV4: 28040 | AW4: 26530 | AY4: Wales: People aged 35-44 | AZ4: 354990 | BA4: 360190 | BB4: 391210 | BC4: 420360 | BD4: 417050 | BH4: Neath Port Talbot | BI4: 112960 | BJ4: 113210 | BK4: 113760 | BL4: 114630 | BM4: 115700
A5: Hywel Dda UHB | B5: Years of life and years of health | C5: Life expectancy at birth, 2013 to 2015 | D5: Males | E5: Years | F5: 79.05198319 | G5: 78.69759562 | H5: 79.40637076 | J5: Hywel Dda UHB | K5: 28900 | L5: 7.529962503 | N5: 105300 | O5: 27.46399672 | Q5: 144900 | R5: 37.80611593 | T5: 75700 | U5: 19.74276477 | W5: 28600 | X5: 7.457160079 | AA5: Hywel Dda UHB | AB5: 65300 | AC5: 230600 | AD5: 76600 | AE5: 11500 | AI5: Anglesey | AJ5: 12100 | AK5: (17%) | AL5: 41100 | AM5: (59%) | AN5: 14800 | AO5: (21%) | AP5: 2200 | AQ5: (3%) | AR5: Swansea: Total population aged 0-17 | AS5: 47110 | AT5: 47860 | AU5: 49110 | AV5: 49180 | AW5: 48470 | AY5: Wales: People aged 45-54 | AZ5: 428950 | BA5: 403430 | BB5: 363590 | BC5: 361240 | BD5: 392290 | BH5: Swansea | BI5: 142550 | BJ5: 143520 | BK5: 145170 | BL5: 146970 | BM5: 148020
A6: ABM UHB | B6: Years of life and years of health | C6: Life expectancy at birth, 2013 to 2015 | D6: Males | E6: Years | F6: 77.65453859 | G6: 77.3557309 | H6: 77.95334627 | J6: Abertawe Bro Morgannwg UHB | K6: 125300 | L6: 23.83712743 | N6: 69800 | O6: 13.28649237 | Q6: 86500 | R6: 16.45320535 | T6: 111000 | U6: 21.11535285 | W6: 133000 | X6: 25.30782201 | AA6: ABM UHB | AB6: 91500 | AC6: 329800 | AD6: 88800 | AE6: 13000 | AI6: Gwynedd | AJ6: 20900 | AK6: (17%) | AL6: 74100 | AM6: (61%) | AN6: 23400 | AO6: (19%) | AP6: 3800 | AQ6: (3%) | AR6: Blaenau Gwent: Total population aged 0-17 | AS6: 13630 | AT6: 13630 | AU6: 13280 | AV6: 12290 | AW6: 11230 | AY6: Wales: People aged 55-64 | AZ6: 391130 | BA6: 411300 | BB6: 427320 | BC6: 400250 | BD6: 362700 | BH6: Blaenau Gwent | BI6: 55620 | BJ6: 55350 | BK6: 54950 | BL6: 54740 | BM6: 54300
A7: Cardiff and Vale UHB | B7: Years of life and years of health | C7: Life expectancy at birth, 2013 to 2015 | D7: Males | E7: Years | F7: 78.58836397 | G7: 78.26843067 | H7: 78.90829726 | J7: Cardiff & Vale UHB | K7: 168100 | L7: 34.67690695 | N7: 76100 | O7: 15.70555666 | Q7: 59700 | R7: 12.3062927 | T7: 63800 | U7: 13.157037 | W7: 117100 | X7: 24.15420669 | AA7: Cardiff and Vale UHB | AB7: 88900 | AC7: 318700 | AD7: 63900 | AE7: 10500 | AI7: Conwy | AJ7: 18900 | AK7: (16%) | AL7: 66900 | AM7: (58%) | AN7: 25800 | AO7: (22%) | AP7: 4600 | AQ7: (4%) | AR7: Caerphilly: Total population aged 0-17 | AS7: 38870 | AT7: 38980 | AU7: 38300 | AV7: 36440 | AW7: 34550 | AY7: Wales: People aged 65-69 | AZ7: 186970 | BA7: 176970 | BB7: 186400 | BC7: 207450 | BD7: 203420 | BH7: Caerphilly | BI7: 151900 | BJ7: 154170 | BK7: 157960 | BL7: 162150 | BM7: 165900
A8: Cwm Taf UHB | B8: Years of life and years of health | C8: Life expectancy at birth, 2013 to 2015 | D8: Males | E8: Years | F8: 76.84880884 | G8: 76.45650425 | H8: 77.24111343 | J8: Cwm Taf UHB | K8: 35200 | L8: 11.87861223 | N8: 26700 | O8: 8.991861425 | Q8: 47300 | R8: 15.9334086 | T8: 101700 | U8: 34.28446257 | W8: 85800 | X8: 28.91165518 | AA8: Cwm Taf UHB | AB8: 55200 | AC8: 186500 | AD8: 47900 | AE8: 6300 | AI8: Denbighshire | AJ8: 17100 | AK8: (18%) | AL8: 55900 | AM8: (59%) | AN8: 19100 | AO8: (20%) | AP8: 2700 | AQ8: (3%) | AR8: Monmouthshire: Total population aged 0-17 | AS8: 17390 | AT8: 17130 | AU8: 16710 | AV8: 16060 | AW8: 15360 | AY8: Wales: People aged 70-74 | AZ8: 166820 | BA8: 179960 | BB8: 164790 | BC8: 174440 | BD8: 194960 | BH8: Monmouthshire | BI8: 74710 | BJ8: 75160 | BK8: 75630 | BL8: 75750 | BM8: 75280
A9: Aneurin Bevan UHB | B9: Years of life and years of health | C9: Life expectancy at birth, 2013 to 2015 | D9: Males | E9: Years | F9: 78.28109241 | G9: 78.00313613 | H9: 78.55904869 | J9: Aneurin Bevan UHB | K9: 104600 | L9: 17.97524532 | N9: 82200 | O9: 14.13089625 | Q9: 116800 | R9: 20.07944461 | T9: 127000 | U9: 21.82251641 | W9: 151200 | X9: 25.99189741 | AA9: Aneurin Bevan UHB | AB9: 108300 | AC9: 361600 | AD9: 97300 | AE9: 13300 | AI9: Flintshire | AJ9: 28400 | AK9: (18%) | AL9: 95100 | AM9: (62%) | AN9: 26900 | AO9: (18%) | AP9: 3400 | AQ9: (2%) | AR9: Newport: Total population aged 0-17 | AS9: 34100 | AT9: 35230 | AU9: 37080 | AV9: 37590 | AW9: 37480 | AY9: Wales: People aged 75-79 | AZ9: 119120 | BA9: 132020 | BB9: 159990 | BC9: 147640 | BD9: 157410 | BH9: Newport | BI9: 117640 | BJ9: 119760 | BK9: 123260 | BL9: 127720 | BM9: 132530
A10: Isle of Anglesey | B10: Years of life and years of health | C10: Life expectancy at birth, 2013 to 2015 | D10: Males | E10: Years | F10: 78.7754007 | G10: 77.97018656 | H10: 79.58061484 | AA10: Bridgend | AB10: 25500 | AC10: 88300 | AD10: 24200 | AE10: 3200 | AI10: Wrexham | AJ10: 26300 | AK10: (19%) | AL10: 85000 | AM10: (62%) | AN10: 22300 | AO10: (16%) | AP10: 3200 | AQ10: (2%) | AR10: Torfaen: Total population aged 0-17 | AS10: 19450 | AT10: 19870 | AU10: 20110 | AV10: 19560 | AW10: 18540 | AY10: Wales: People aged 80-84 | AZ10: 87230 | BA10: 93160 | BB10: 108770 | BC10: 133620 | BD10: 124680 | BH10: Torfaen | BI10: 72720 | BJ10: 72770 | BK10: 72930 | BL10: 73310 | BM10: 73790
A11: Gwynedd | B11: Years of life and years of health | C11: Life expectancy at birth, 2013 to 2015 | D11: Males | E11: Years | F11: 79.5873989 | G11: 78.99838324 | H11: 80.17641456 | J11: Isle of Anglesey | K11: 9800 | L11: 14.05278726 | N11: 12600 | O11: 18.05255862 | Q11: 26300 | R11: 37.53697538 | T11: 10500 | U11: 14.95877335 | W11: 10800 | X11: 15.39890539 | AA11: Neath Port Talbot | AB11: 24500 | AC11: 87900 | AD11: 24500 | AE11: 3600 | AI11: Powys | AJ11: 21900 | AK11: (17%) | AL11: 77200 | AM11: (58%) | AN11: 29100 | AO11: (22%) | AP11: 4500 | AQ11: (3%) | AR11: Isle of Anglesey: Total population aged 0-17 | AS11: 13790 | AT11: 14040 | AU11: 14130 | AV11: 13370 | AW11: 12520 | AY11: Wales: People aged 85 and over | AZ11: 86820 | BA11: 95430 | BB11: 114500 | BC11: 141530 | BD11: 179830 | BH11: Anglesey | BI11: 56430 | BJ11: 56230 | BK11: 55860 | BL11: 55880 | BM11: 55750
A12: Conwy | B12: Years of life and years of health | C12: Life expectancy at birth, 2013 to 2015 | D12: Males | E12: Years | F12: 78.88994809 | G12: 78.25387178 | H12: 79.5260244 | J12: Gwynedd | K12: 12900 | L12: 10.48232192 | N12: 49500 | O12: 40.30635499 | Q12: 38900 | R12: 31.66753484 | T12: 16500 | U12: 13.43843599 | W12: 5000 | X12: 4.105352259 | AA12: Swansea | AB12: 41500 | AC12: 153500 | AD12: 40100 | AE12: 6200 | AI12: Hywel dda | AJ12: 65300 | AK12: (17%) | AL12: 230600 | AM12: (60%) | AN12: 76600 | AO12: (20%) | AP12: 11500 | AQ12: (3%) | AR12: Conwy: Total population aged 0-17 | AS12: 21700 | AT12: 21920 | AU12: 21860 | AV12: 20870 | AW12: 19570 | AY12: Wales: Total population aged 18 and over | AZ12: 2510820 | BA12: 2539770 | BB12: 2588720 | BC12: 2646380 | BD12: 2698770 | BH12: Conwy | BI12: 94520 | BJ12: 94690 | BK12: 95000 | BL12: 95590 | BM12: 95970
A13: Denbighshire | B13: Years of life and years of health | C13: Life expectancy at birth, 2013 to 2015 | D13: Males | E13: Years | F13: 77.99244961 | G13: 77.31388567 | H13: 78.67101355 | J13: Conwy | K13: 25600 | L13: 22.00433668 | N13: 35300 | O13: 30.34297613 | Q13: 18100 | R13: 15.55697052 | T13: 21100 | U13: 18.15725619 | W13: 16200 | X13: 13.93846048 | AA13: Blaenau Gwent | AB13: 12200 | AC13: 44000 | AD13: 11900 | AE13: 1500 | AI13: Ceredigion | AJ13: 11000 | AK13: (15%) | AL13: 47300 | AM13: (63%) | AN13: 14800 | AO13: (20%) | AP13: 2300 | AQ13: (3%) | AR13: Denbighshire: Total population aged 0-17 | AS13: 19560 | AT13: 20010 | AU13: 20430 | AV13: 19870 | AW13: 19150 | AY13: Blaenau Gwent: People aged 18-24 | AZ13: 5640 | BA13: 4920 | BB13: 4390 | BC13: 4850 | BD13: 4690 | BH13: Denbighshire | BI13: 76850 | BJ13: 77650 | BK13: 78990 | BL13: 80730 | BM13: 82230
A14: Flintshire | B14: Years of life and years of health | C14: Life expectancy at birth, 2013 to 2015 | D14: Males | E14: Years | F14: 79.00987716 | G14: 78.45135429 | H14: 79.56840004 | J14: Denbighshire | K14: 18900 | L14: 19.92269593 | N14: 22900 | O14: 24.22827935 | Q14: 23100 | R14: 24.37296047 | T14: 15900 | U14: 16.76505687 | W14: 13900 | X14: 14.71100738 | AA14: Caerphilly | AB14: 34200 | AC14: 113100 | AD14: 29200 | AE14: 3500 | AI14: Pembrokeshire | AJ14: 21600 | AK14: (17%) | AL14: 72600 | AM14: (59%) | AN14: 25700 | AO14: (21%) | AP14: 3800 | AQ14: (3%) | AR14: Flintshire: Total population aged 0-17 | AS14: 31940 | AT14: 32090 | AU14: 31690 | AV14: 30030 | AW14: 28620 | AY14: Blaenau Gwent: People aged 25-34 | AZ14: 9450 | BA14: 9660 | BB14: 8830 | BC14: 7330 | BD14: 7090 | BH14: Flintshire | BI14: 122840 | BJ14: 123470 | BK14: 124480 | BL14: 125810 | BM14: 126180
A15: Wrexham | B15: Years of life and years of health | C15: Life expectancy at birth, 2013 to 2015 | D15: Males | E15: Years | F15: 78.42764202 | G15: 77.8457432 | H15: 79.00954085 | J15: Flintshire | K15: 45200 | L15: 29.30410063 | N15: 44100 | O15: 28.59145605 | Q15: 17800 | R15: 11.53796228 | T15: 29400 | U15: 19.06226878 | W15: 17700 | X15: 11.50421226 | AA15: Monmouthshire | AB15: 15600 | AC15: 55500 | AD15: 18500 | AE15: 2800 | AI15: Carmarthenshire | AJ15: 32600 | AK15: (18%) | AL15: 110700 | AM15: (60%) | AN15: 36100 | AO15: (20%) | AP15: 5400 | AQ15: (3%) | AR15: Gwynedd: Total population aged 0-17 | AS15: 22850 | AT15: 22840 | AU15: 23120 | AV15: 23360 | AW15: 23900 | AY15: Blaenau Gwent: People aged 35-44 | AZ15: 7870 | BA15: 8000 | BB15: 8960 | BC15: 9530 | BD15: 8710 | BH15: Gwynedd | BI15: 100650 | BJ15: 101910 | BK15: 103960 | BL15: 106050 | BM15: 107570
A16: Powys | B16: Years of life and years of health | C16: Life expectancy at birth, 2013 to 2015 | D16: Males | E16: Years | F16: 80.29212733 | G16: 79.69504478 | H16: 80.88920988 | J16: Wrexham | K16: 26900 | L16: 19.67844153 | N16: 33300 | O16: 24.34155159 | Q16: 26700 | R16: 19.55549701 | T16: 31200 | U16: 22.86621733 | W16: 18500 | X16: 13.55829253 | AA16: Newport | AB16: 29300 | AC16: 92100 | AD16: 22200 | AE16: 3200 | AI16: ABM | AJ16: 91500 | AK16: (17%) | AL16: 329800 | AM16: (63%) | AN16: 88800 | AO16: (17%) | AP16: 13000 | AQ16: (2%) | AR16: Wrexham: Total population aged 0-17 | AS16: 30590 | AT16: 31470 | AU16: 32130 | AV16: 31660 | AW16: 31390 | AY16: Blaenau Gwent: People aged 45-54 | AZ16: 10320 | BA16: 9550 | BB16: 7960 | BC16: 7780 | BD16: 8740 | BH16: Wrexham | BI16: 112180 | BJ16: 115050 | BK16: 120170 | BL16: 125900 | BM16: 131140
A17: Ceredigion | B17: Years of life and years of health | C17: Life expectancy at birth, 2013 to 2015 | D17: Males | E17: Years | F17: 79.91693813 | G17: 79.09786144 | H17: 80.73601482 | J17: Powys | K17: 13500 | L17: 10.17023266 | N17: 70600 | O17: 53.21240633 | Q17: 31300 | R17: 23.61393827 | T17: 12600 | U17: 9.50679272 | W17: 4600 | X17: 3.496630027 | AA17: Torfaen | AB17: 16900 | AC17: 56900 | AD17: 15500 | AE17: 2300 | AI17: Swansea | AJ17: 41500 | AK17: (17%) | AL17: 153500 | AM17: (64%) | AN17: 40100 | AO17: (17%) | AP17: 6200 | AQ17: (3%) | AR17: Cardiff: Total population aged 0-17 | AS17: 76400 | AT17: 80820 | AU17: 87630 | AV17: 91180 | AW17: 93410 | AY17: Blaenau Gwent: People aged 55-64 | AZ17: 8630 | BA17: 9180 | BB17: 9890 | BC17: 9100 | BD17: 7610 | BH17: Cardiff | BI17: 294830 | BJ17: 304030 | BK17: 320490 | BL17: 340150 | BM17: 360640
A18: Pembrokeshire | B18: Years of life and years of health | C18: Life expectancy at birth, 2013 to 2015 | D18: Males | E18: Years | F18: 79.14176961 | G18: 78.51600074 | H18: 79.76753848 | J18: Ceredigion | K18: 15300 | L18: 20.53803489 | N18: 19400 | O18: 25.92508239 | Q18: 33500 | R18: 44.87419951 | T18: 5300 | U18: 7.124675116 | W18: 1100 | X18: 1.538008092 | AA18: Anglesey | AB18: 12100 | AC18: 41100 | AD18: 14800 | AE18: 2200 | AI18: Neath Port Talbot | AJ18: 24500 | AK18: (17%) | AL18: 87900 | AM18: (63%) | AN18: 24500 | AO18: (17%) | AP18: 3600 | AQ18: (3%) | AR18: The Vale of Glamorgan: Total population aged 0-17 | AS18: 26580 | AT18: 26710 | AU18: 26700 | AV18: 25920 | AW18: 25120 | AY18: Blaenau Gwent: People aged 65-69 | AZ18: 4050 | BA18: 3730 | BB18: 4000 | BC18: 4490 | BD18: 4710 | BH18: Vale of Glamorgan | BI18: 102800 | BJ18: 103890 | BK18: 105560 | BL18: 107400 | BM18: 108600
A19: Carmarthenshire | B19: Years of life and years of health | C19: Life expectancy at birth, 2013 to 2015 | D19: Males | E19: Years | F19: 78.64968456 | G19: 78.14337935 | H19: 79.15598976 | J19: Pembrokeshire | K19: 5400 | L19: 4.335676796 | N19: 43300 | O19: 35.05880257 | Q19: 42200 | R19: 34.17109441 | T19: 22700 | U19: 18.38835612 | W19: 9900 | X19: 8.04607011 | AA19: Conwy | AB19: 18900 | AC19: 66900 | AD19: 25800 | AE19: 4600 | AI19: Bridgend | AJ19: 25500 | AK19: (18%) | AL19: 88300 | AM19: (63%) | AN19: 24200 | AO19: (17%) | AP19: 3200 | AQ19: (2%) | AR19: Merthyr Tydfil: Total population aged 0-17 | AS19: 12490 | AT19: 12710 | AU19: 12770 | AV19: 12170 | AW19: 11350 | AY19: Blaenau Gwent: People aged 70-74 | AZ19: 3670 | BA19: 3820 | BB19: 3350 | BC19: 3630 | BD19: 4090 | BH19: Merthyr Tydfil | BI19: 47840 | BJ19: 48320 | BK19: 49080 | BL19: 50100 | BM19: 51070
A20: Swansea | B20: Years of life and years of health | C20: Life expectancy at birth, 2013 to 2015 | D20: Males | E20: Years | F20: 78.03139764 | G20: 77.58459193 | H20: 78.47820335 | J20: Carmarthenshire | K20: 8200 | L20: 4.415442706 | N20: 42600 | O20: 23.01928988 | Q20: 69200 | R20: 37.38055239 | T20: 47600 | U20: 25.73370138 | W20: 17500 | X20: 9.45101365 | AA20: Denbighshire | AB20: 17100 | AC20: 55900 | AD20: 19100 | AE20: 2700 | AI20: Cardiff & Vale | AJ20: 88900 | AK20: (18%) | AL20: 318700 | AM20: (66%) | AN20: 63900 | AO20: (13%) | AP20: 10500 | AQ20: (2%) | AR20: Rhondda Cynon Taf: Total population aged 0-17 | AS20: 50280 | AT20: 51070 | AU20: 50970 | AV20: 49040 | AW20: 46960 | AY20: Blaenau Gwent: People aged 75-79 | AZ20: 2620 | BA20: 2880 | BB20: 3260 | BC20: 2890 | BD20: 3160 | BH20: Rhondda Cynon Taf | BI20: 185900 | BJ20: 185870 | BK20: 186460 | BL20: 187830 | BM20: 188750
A21: Neath Port Talbot | B21: Years of life and years of health | C21: Life expectancy at birth, 2013 to 2015 | D21: Males | E21: Years | F21: 77.43220802 | G21: 76.87074607 | H21: 77.99366997 | J21: Swansea | K21: 77700 | L21: 32.03620731 | N21: 29900 | O21: 12.33177381 | Q21: 41300 | R21: 17.04086937 | T21: 31700 | U21: 13.09791981 | W21: 61800 | X21: 25.4932297 | AA21: Flintshire | AB21: 28400 | AC21: 95100 | AD21: 26900 | AE21: 3400 | AI21: Vale of glamorgan | AJ21: 23700 | AK21: (19%) | AL21: 78500 | AM21: (61%) | AN21: 22200 | AO21: (17%) | AP21: 3300 | AQ21: (3%) | AR21: Carmarthenshire: Total population aged 0-17 | AS21: 37980 | AT21: 38730 | AU21: 39480 | AV21: 38900 | AW21: 38020 | AY21: Blaenau Gwent: People aged 80-84 | AZ21: 1840 | BA21: 1920 | BB21: 2260 | BC21: 2610 | BD21: 2340 | BH21: Carmarthenshire | BI21: 199550 | BJ21: 202980 | BK21: 208470 | BL21: 214410 | BM21: 220460
A22: Bridgend | B22: Years of life and years of health | C22: Life expectancy at birth, 2013 to 2015 | D22: Males | E22: Years | F22: 77.20275979 | G22: 76.61819264 | H22: 77.78732695 | J22: Neath Port Talbot | K22: 15500 | L22: 10.98785747 | N22: 17500 | O22: 12.37871652 | Q22: 24200 | R22: 17.15629256 | T22: 42500 | U22: 30.15632093 | W22: 41300 | X22: 29.32081253 | AA22: Gwynedd | AB22: 20900 | AC22: 74100 | AD22: 23400 | AE22: 3800 | AI22: Cardiff | AJ22: 65300 | AK22: (18%) | AL22: 240200 | AM22: (68%) | AN22: 41700 | AO22: (12%) | AP22: 7100 | AQ22: (2%) | AR22: Ceredigion: Total population aged 0-17 | AS22: 12780 | AT22: 13050 | AU22: 13520 | AV22: 13760 | AW22: 13790 | AY22: Blaenau Gwent: People aged 85 and over | AZ22: 1540 | BA22: 1700 | BB22: 2040 | BC22: 2550 | BD22: 3150 | BH22: Ceredigion | BI22: 63520 | BJ22: 63850 | BK22: 64430 | BL22: 64990 | BM22: 65410
A23: Vale of Glamorgan | B23: Years of life and years of health | C23: Life expectancy at birth, 2013 to 2015 | D23: Males | E23: Years | F23: 79.13669735 | G23: 78.55711807 | H23: 79.71627663 | J23: Bridgend | K23: 32100 | L23: 22.60085015 | N23: 22500 | O23: 15.81580948 | Q23: 21000 | R23: 14.7531177 | T23: 36700 | U23: 25.82059511 | W23: 29900 | X23: 21.00962757 | AA23: Wrexham | AB23: 26300 | AC23: 85000 | AD23: 22300 | AE23: 3200 | AI23: Cwm Taf | AJ23: 55200 | AK23: (19%) | AL23: 186500 | AM23: (63%) | AN23: 47900 | AO23: (16%) | AP23: 6300 | AQ23: (2%) | AR23: Pembrokeshire: Total population aged 0-17 | AS23: 24610 | AT23: 24840 | AU23: 24830 | AV23: 23840 | AW23: 22610 | AY23: Blaenau Gwent: Total population aged 18 and over | AZ23: 55620 | BA23: 55350 | BB23: 54950 | BC23: 54740 | BD23: 54300 | BH23: Pembrokeshire | BI23: 100010 | BJ23: 100700 | BK23: 101710 | BL23: 102910 | BM23: 103760
A24: Cardiff | B24: Years of life and years of health | C24: Life expectancy at birth, 2013 to 2015 | D24: Males | E24: Years | F24: 78.32465772 | G24: 77.93864054 | H24: 78.71067489 | J24: Vale of Glamorgan | K24: 62300 | L24: 48.85886262 | N24: 16000 | O24: 12.52194495 | Q24: 13900 | R24: 10.90272117 | T24: 17100 | U24: 13.36369051 | W24: 18300 | X24: 14.35278074 | AA24: Cardiff | AB24: 65300 | AC24: 240200 | AD24: 41700 | AE24: 7100 | AI24: Rhondda Cynon Taf | AJ24: 44200 | AK24: (19%) | AL24: 149100 | AM24: (63%) | AN24: 38500 | AO24: (16%) | AP24: 5100 | AQ24: (2%) | AR24: Powys: Total population aged 0-17 | AS24: 24540 | AT24: 24400 | AU24: 24150 | AV24: 23240 | AW24: 22020 | AY24: Bridgend: People aged 18-24 | AZ24: 10520 | BA24: 9950 | BB24: 9380 | BC24: 9950 | BD24: 10920 | BH24: Powys | BI24: 110350 | BJ24: 111280 | BK24: 112300 | BL24: 112990 | BM24: 112960
A25: Rhondda Cynon Taf | B25: Years of life and years of health | C25: Life expectancy at birth, 2013 to 2015 | D25: Males | E25: Years | F25: 76.92885402 | G25: 76.50035205 | H25: 77.35735598 | J25: Cardiff | K25: 105800 | L25: 29.61053869 | N25: 60200 | O25: 16.84287154 | Q25: 45700 | R25: 12.80770523 | T25: 46700 | U25: 13.08321201 | W25: 98800 | X25: 27.65567253 | AA25: Vale of Glamorgan | AB25: 23700 | AC25: 78500 | AD25: 22200 | AE25: 3300 | AI25: Merthyr Tydfil | AJ25: 11000 | AK25: (19%) | AL25: 37500 | AM25: (63%) | AN25: 9300 | AO25: (16%) | AP25: 1200 | AQ25: (2%) | AY25: Bridgend: People aged 25-34 | AZ25: 18120 | BA25: 18170 | BB25: 17410 | BC25: 16030 | BD25: 15600
A26: Merthyr Tydfil | B26: Years of life and years of health | C26: Life expectancy at birth, 2013 to 2015 | D26: Males | E26: Years | F26: 76.60064636 | G26: 75.64681962 | H26: 77.5544731 | J26: Rhondda Cynon Taf | K26: 31800 | L26: 13.3826992 | N26: 22200 | O26: 9.343290749 | Q26: 34200 | R26: 14.41424365 | T26: 80900 | U26: 34.07508498 | W26: 68300 | X26: 28.78468142 | AA26: Merthyr Tydfil | AB26: 11000 | AC26: 37500 | AD26: 9300 | AE26: 1200 | AI26: Aneurin Bevan | AJ26: 108300 | AK26: (19%) | AL26: 361600 | AM26: (62%) | AN26: 97300 | AO26: (17%) | AP26: 13300 | AQ26: (2%) | AY26: Bridgend: People aged 35-44 | AZ26: 17300 | BA26: 17350 | BB26: 18470 | BC26: 18940 | BD26: 18200
A27: Caerphilly | B27: Years of life and years of health | C27: Life expectancy at birth, 2013 to 2015 | D27: Males | E27: Years | F27: 77.78281912 | G27: 77.29230942 | H27: 78.27332881 | J27: Merthyr Tydfil | K27: 3500 | L27: 5.859348662 | N27: 4500 | O27: 7.585462882 | Q27: 13100 | R27: 22.01301328 | T27: 20800 | U27: 35.1223788 | W27: 17500 | X27: 29.41979637 | AA27: Rhondda Cynon Taf | AB27: 44200 | AC27: 149100 | AD27: 38500 | AE27: 5100 | AI27: Caerphilly | AJ27: 34200 | AK27: (19%) | AL27: 113100 | AM27: (63%) | AN27: 29200 | AO27: (16%) | AP27: 3500 | AQ27: (2%) | AY27: Bridgend: People aged 45-54 | AZ27: 21160 | BA27: 20210 | BB27: 18290 | BC27: 17750 | BD27: 18860
A28: Blaenau Gwent | B28: Years of life and years of health | C28: Life expectancy at birth, 2013 to 2015 | D28: Males | E28: Years | F28: 76.4739071 | G28: 75.65074288 | H28: 77.29707132 | J28: Caerphilly | K28: 21100 | L28: 11.7004507 | N28: 21700 | O28: 12.0645634 | Q28: 41100 | R28: 22.83364046 | T28: 46600 | U28: 25.8819742 | W28: 49600 | X28: 27.51937124 | AA28: Carmarthenshire | AB28: 32600 | AC28: 110700 | AD28: 36100 | AE28: 5400 | AI28: Blaenau Gwent | AJ28: 12200 | AK28: (18%) | AL28: 44000 | AM28: (63%) | AN28: 11900 | AO28: (17%) | AP28: 1500 | AQ28: (2%) | AY28: Bridgend: People aged 55-64 | AZ28: 18230 | BA28: 19510 | BB28: 20800 | BC28: 20100 | BD28: 18280
A29: Torfaen | B29: Years of life and years of health | C29: Life expectancy at birth, 2013 to 2015 | D29: Males | E29: Years | F29: 78.22295958 | G29: 77.4959014 | H29: 78.95001777 | J29: Blaenau Gwent | K29: 0 | L29: 0 | N29: 1200 | O29: 1.755722996 | Q29: 16600 | R29: 23.91867019 | T29: 19200 | U29: 27.65012079 | W29: 32500 | X29: 46.67548602 | AA29: Ceredigion | AB29: 11000 | AC29: 47300 | AD29: 14800 | AE29: 2300 | AI29: Torfaen | AJ29: 16900 | AK29: (18%) | AL29: 56900 | AM29: (62%) | AN29: 15500 | AO29: (17%) | AP29: 2300 | AQ29: (2%) | AY29: Bridgend: People aged 65-69 | AZ29: 8520 | BA29: 8170 | BB29: 8800 | BC29: 10050 | BD29: 10100
A30: Monmouthshire | B30: Years of life and years of health | C30: Life expectancy at birth, 2013 to 2015 | D30: Males | E30: Years | F30: 80.7234922 | G30: 79.99312762 | H30: 81.45385679 | J30: Torfaen | K30: 10800 | L30: 11.71762707 | N30: 19000 | O30: 20.70974346 | Q30: 16000 | R30: 17.46591751 | T30: 23400 | U30: 25.47367046 | W30: 22600 | X30: 24.63304151 | AA30: Pembrokeshire | AB30: 21600 | AC30: 72600 | AD30: 25700 | AE30: 3800 | AI30: Monmouthshire | AJ30: 15600 | AK30: (17%) | AL30: 55500 | AM30: (60%) | AN30: 18500 | AO30: (20%) | AP30: 2800 | AQ30: (3%) | AY30: Bridgend: People aged 70-74 | AZ30: 7540 | BA30: 8140 | BB30: 7680 | BC30: 8300 | BD30: 9510
A31: Newport | B31: Years of life and years of health | C31: Life expectancy at birth, 2013 to 2015 | D31: Males | E31: Years | F31: 78.07165552 | G31: 77.53452592 | H31: 78.60878511 | J31: Monmouthshire | K31: 35300 | L31: 38.16882218 | N31: 25200 | O31: 27.19840824 | Q31: 21800 | R31: 23.54340586 | T31: 10300 | U31: 11.08936373 | W31: 0 | X31: 0 | AA31: Powys | AB31: 21900 | AC31: 77200 | AD31: 29100 | AE31: 4500 | AI31: Newport | AJ31: 29300 | AK31: (20%) | AL31: 92100 | AM31: (63%) | AN31: 22200 | AO31: (15%) | AP31: 3200 | AQ31: (2%) | AY31: Bridgend: People aged 75-79 | AZ31: 5550 | BA31: 6070 | BB31: 7260 | BC31: 6900 | BD31: 7510
A32: Wales | B32: Years of life and years of health | C32: Life expectancy at birth, 2013 to 2015 | D32: Females | E32: Years | F32: 82.26551251 | G32: 82.15297059 | H32: 82.37805443 | J32: Newport | K32: 37400 | L32: 25.33684332 | N32: 15100 | O32: 10.20782437 | Q32: 21200 | R32: 14.37107918 | T32: 27500 | U32: 18.57832157 | W32: 46600 | X32: 31.50593156 | AY32: Bridgend: People aged 80-84 | AZ32: 3880 | BA32: 4290 | BB32: 4980 | BC32: 6040 | BD32: 5790
A33: Betsi Cadwaladr UHB | B33: Years of life and years of health | C33: Life expectancy at birth, 2013 to 2015 | D33: Females | E33: Years | F33: 82.46854685 | G33: 82.23465456 | H33: 82.70243913 | J33: Wales | K33: 614700 | L33: 19.8354289 | N33: 628400 | O33: 20.27533279 | Q33: 637300 | R33: 20.56254651 | T33: 616300 | U33: 19.88554045 | W33: 602500 | X33: 19.44115136 | AY33: Bridgend: People aged 85 and over | AZ33: 3620 | BA33: 4030 | BB33: 5040 | BC33: 6310 | BD33: 7970
A34: Powys THB | B34: Years of life and years of health | C34: Life expectancy at birth, 2013 to 2015 | D34: Females | E34: Years | F34: 83.52014348 | G34: 82.96470123 | H34: 84.07558574 | AY34: Bridgend: Total population aged 18 and over | AZ34: 114440 | BA34: 115890 | BB34: 118100 | BC34: 120360 | BD34: 122750
A35: Hywel Dda UHB | B35: Years of life and years of health | C35: Life expectancy at birth, 2013 to 2015 | D35: Females | E35: Years | F35: 82.8240225 | G35: 82.50987299 | H35: 83.13817201 | AY35: Caerphilly: People aged 18-24 | AZ35: 14560 | BA35: 13540 | BB35: 12940 | BC35: 13850 | BD35: 13620
A36: ABM UHB | B36: Years of life and years of health | C36: Life expectancy at birth, 2013 to 2015 | D36: Females | E36: Years | F36: 81.92364805 | G36: 81.65687449 | H36: 82.19042161 | AY36: Caerphilly: People aged 25-34 | AZ36: 23140 | BA36: 23320 | BB36: 22460 | BC36: 20690 | BD36: 20680
A37: Cardiff and Vale UHB | B37: Years of life and years of health | C37: Life expectancy at birth, 2013 to 2015 | D37: Females | E37: Years | F37: 82.86062276 | G37: 82.56096714 | H37: 83.16027837 | AY37: Caerphilly: People aged 35-44 | AZ37: 21730 | BA37: 21930 | BB37: 22990 | BC37: 23330 | BD37: 22490
A38: Cwm Taf UHB | B38: Years of life and years of health | C38: Life expectancy at birth, 2013 to 2015 | D38: Females | E38: Years | F38: 80.61972631 | G38: 80.24225872 | H38: 80.99719389 | AY38: Caerphilly: People aged 45-54 | AZ38: 25870 | BA38: 24510 | BB38: 21800 | BC38: 21450 | BD38: 22510
A39: Aneurin Bevan UHB | B39: Years of life and years of health | C39: Life expectancy at birth, 2013 to 2015 | D39: Females | E39: Years | F39: 81.97276242 | G39: 81.71205519 | H39: 82.23346965 | AY39: Caerphilly: People aged 55-64 | AZ39: 22610 | BA39: 23810 | BB39: 25260 | BC39: 23940 | BD39: 21400
A40: Isle of Anglesey | B40: Years of life and years of health | C40: Life expectancy at birth, 2013 to 2015 | D40: Females | E40: Years | F40: 82.62592048 | G40: 81.89496165 | H40: 83.35687932 | AY40: Caerphilly: People aged 65-69 | AZ40: 10690 | BA40: 9980 | BB40: 10590 | BC40: 11830 | BD40: 12080
A41: Gwynedd | B41: Years of life and years of health | C41: Life expectancy at birth, 2013 to 2015 | D41: Females | E41: Years | F41: 83.66797338 | G41: 83.11216601 | H41: 84.22378075 | AY41: Caerphilly: People aged 70-74 | AZ41: 9120 | BA41: 10090 | BB41: 9190 | BC41: 9800 | BD41: 11000
A42: Conwy | B42: Years of life and years of health | C42: Life expectancy at birth, 2013 to 2015 | D42: Females | E42: Years | F42: 82.54252343 | G42: 81.9400385 | H42: 83.14500836 | AY42: Caerphilly: People aged 75-79 | AZ42: 6530 | BA42: 7140 | BB42: 8810 | BC42: 8090 | BD42: 8700
A43: Denbighshire | B43: Years of life and years of health | C43: Life expectancy at birth, 2013 to 2015 | D43: Females | E43: Years | F43: 81.82476695 | G43: 81.22905443 | H43: 82.42047948 | AY43: Caerphilly: People aged 80-84 | AZ43: 4420 | BA43: 4840 | BB43: 5710 | BC43: 7160 | BD43: 6650
A44: Flintshire | B44: Years of life and years of health | C44: Life expectancy at birth, 2013 to 2015 | D44: Females | E44: Years | F44: 82.44487111 | G44: 81.93534066 | H44: 82.95440157 | AY44: Caerphilly: People aged 85 and over | AZ44: 3870 | BA44: 4360 | BB44: 5420 | BC44: 6840 | BD44: 8900
A45: Wrexham | B45: Years of life and years of health | C45: Life expectancy at birth, 2013 to 2015 | D45: Females | E45: Years | F45: 81.63830611 | G45: 81.12486399 | H45: 82.15174823 | AY45: Caerphilly: Total population aged 18 and over | AZ45: 142550 | BA45: 143520 | BB45: 145170 | BC45: 146970 | BD45: 148020
A46: Powys | B46: Years of life and years of health | C46: Life expectancy at birth, 2013 to 2015 | D46: Females | E46: Years | F46: 83.52014348 | G46: 82.96470123 | H46: 84.07558574 | AY46: Cardiff: People aged 18-24 | AZ46: 52940 | BA46: 51590 | BB46: 51280 | BC46: 56310 | BD46: 59070
A47: Ceredigion | B47: Years of life and years of health | C47: Life expectancy at birth, 2013 to 2015 | D47: Females | E47: Years | F47: 83.71218893 | G47: 82.95518981 | H47: 84.46918804 | AY47: Cardiff: People aged 25-34 | AZ47: 64020 | BA47: 66900 | BB47: 69660 | BC47: 66780 | BD47: 69080
A48: Pembrokeshire | B48: Years of life and years of health | C48: Life expectancy at birth, 2013 to 2015 | D48: Females | E48: Years | F48: 83.15040031 | G48: 82.60235798 | H48: 83.69844265 | AY48: Cardiff: People aged 35-44 | AZ48: 46330 | BA48: 49760 | BB48: 55690 | BC48: 61770 | BD48: 64480
A49: Carmarthenshire | B49: Years of life and years of health | C49: Life expectancy at birth, 2013 to 2015 | D49: Females | E49: Years | F49: 82.30282374 | G49: 81.85734162 | H49: 82.74830585 | AY49: Cardiff: People aged 45-54 | AZ49: 43150 | BA49: 42050 | BB49: 42150 | BC49: 46940 | BD49: 52830
A50: Swansea | B50: Years of life and years of health | C50: Life expectancy at birth, 2013 to 2015 | D50: Females | E50: Years | F50: 82.46800663 | G50: 82.07688974 | H50: 82.85912352 | AY50: Cardiff: People aged 55-64 | AZ50: 36930 | BA50: 39240 | BB50: 40770 | BC50: 39440 | BD50: 39650
A51: Neath Port Talbot | B51: Years of life and years of health | C51: Life expectancy at birth, 2013 to 2015 | D51: Females | E51: Years | F51: 81.13800495 | G51: 80.5956866 | H51: 81.68032329 | AY51: Cardiff: People aged 65-69 | AZ51: 15160 | BA51: 15310 | BB51: 17050 | BC51: 19140 | BD51: 18690
A52: Bridgend | B52: Years of life and years of health | C52: Life expectancy at birth, 2013 to 2015 | D52: Females | E52: Years | F52: 81.81699159 | G52: 81.32912277 | H52: 82.30486041 | AY52: Cardiff: People aged 70-74 | AZ52: 12310 | BA52: 13810 | BB52: 14160 | BC52: 15860 | BD52: 17890
A53: Vale of Glamorgan | B53: Years of life and years of health | C53: Life expectancy at birth, 2013 to 2015 | D53: Females | E53: Years | F53: 83.24310981 | G53: 82.67918401 | H53: 83.80703562 | AY53: Cardiff: People aged 75-79 | AZ53: 9050 | BA53: 9670 | BB53: 12260 | BC53: 12660 | BD53: 14290
A54: Cardiff | B54: Years of life and years of health | C54: Life expectancy at birth, 2013 to 2015 | D54: Females | E54: Years | F54: 82.62710753 | G54: 82.26885009 | H54: 82.98536497 | AY54: Cardiff: People aged 80-84 | AZ54: 7180 | BA54: 7370 | BB54: 7980 | BC54: 10240 | BD54: 10700
A55: Rhondda Cynon Taf | B55: Years of life and years of health | C55: Life expectancy at birth, 2013 to 2015 | D55: Females | E55: Years | F55: 80.64428048 | G55: 80.22513785 | H55: 81.06342312 | AY55: Cardiff: People aged 85 and over | AZ55: 7770 | BA55: 8330 | BB55: 9490 | BC55: 11020 | BD55: 13960
A56: Merthyr Tydfil | B56: Years of life and years of health | C56: Life expectancy at birth, 2013 to 2015 | D56: Females | E56: Years | F56: 80.55068977 | G56: 79.67906228 | H56: 81.42231726 | AY56: Cardiff: Total population aged 18 and over | AZ56: 294830 | BA56: 304030 | BB56: 320490 | BC56: 340150 | BD56: 360640
A57: Caerphilly | B57: Years of life and years of health | C57: Life expectancy at birth, 2013 to 2015 | D57: Females | E57: Years | F57: 81.1517334 | G57: 80.68181901 | H57: 81.62164779 | AY57: Carmarthenshire: People aged 18-24 | AZ57: 14240 | BA57: 13500 | BB57: 12980 | BC57: 14190 | BD57: 14640
A58: Blaenau Gwent | B58: Years of life and years of health | C58: Life expectancy at birth, 2013 to 2015 | D58: Females | E58: Years | F58: 80.57922726 | G58: 79.84109066 | H58: 81.31736386 | AY58: Carmarthenshire: People aged 25-34 | AZ58: 21970 | BA58: 23050 | BB58: 22540 | BC58: 20930 | BD58: 21050
A59: Torfaen | B59: Years of life and years of health | C59: Life expectancy at birth, 2013 to 2015 | D59: Females | E59: Years | F59: 81.96432249 | G59: 81.28248601 | H59: 82.64615896 | AY59: Carmarthenshire: People aged 35-44 | AZ59: 20160 | BA59: 20290 | BB59: 22760 | BC59: 24850 | BD59: 24350
A60: Monmouthshire | B60: Years of life and years of health | C60: Life expectancy at birth, 2013 to 2015 | D60: Females | E60: Years | F60: 84.08645393 | G60: 83.45860987 | H60: 84.71429799 | AY60: Carmarthenshire: People aged 45-54 | AZ60: 26130 | BA60: 24510 | BB60: 22160 | BC60: 21830 | BD60: 24310
A61: Newport | B61: Years of life and years of health | C61: Life expectancy at birth, 2013 to 2015 | D61: Females | E61: Years | F61: 82.28563575 | G61: 81.77377893 | H61: 82.79749256 | AY61: Carmarthenshire: People aged 55-64 | AZ61: 25550 | BA61: 26720 | BB61: 27450 | BC61: 25650 | BD61: 23430
A62: Wales | B62: Years of life and years of health | C62: Healthy life expectancy at birth, 2010 to 2014 | D62: Males | E62: Years | F62: 65.25117724 | G62: 64.99406872 | H62: 65.50828576 | AY62: Carmarthenshire: People aged 65-69 | AZ62: 12460 | BA62: 11990 | BB62: 12520 | BC62: 13790 | BD62: 13330
A63: Betsi Cadwaladr UHB | B63: Years of life and years of health | C63: Healthy life expectancy at birth, 2010 to 2014 | D63: Males | E63: Years | F63: 67.56965258 | G63: 67.10897719 | H63: 68.03032796 | AY63: Carmarthenshire: People aged 70-74 | AZ63: 11470 | BA63: 12180 | BB63: 11310 | BC63: 11860 | BD63: 13110
A64: Powys THB | B64: Years of life and years of health | C64: Healthy life expectancy at birth, 2010 to 2014 | D64: Males | E64: Years | F64: 68.17285771 | G64: 66.94767915 | H64: 69.39803627 | AY64: Carmarthenshire: People aged 75-79 | AZ64: 8070 | BA64: 9210 | BB64: 10930 | BC64: 10230 | BD64: 10800
A65: Hywel Dda UHB | B65: Years of life and years of health | C65: Healthy life expectancy at birth, 2010 to 2014 | D65: Males | E65: Years | F65: 66.18500078 | G65: 65.49238133 | H65: 66.87762022 | AY65: Carmarthenshire: People aged 80-84 | AZ65: 5970 | BA65: 6300 | BB65: 7660 | BC65: 9200 | BD65: 8700
A66: ABM UHB | B66: Years of life and years of health | C66: Healthy life expectancy at birth, 2010 to 2014 | D66: Males | E66: Years | F66: 63.94520057 | G66: 63.29513087 | H66: 64.59527026 | AY66: Carmarthenshire: People aged 85 and over | AZ66: 5880 | BA66: 6430 | BB66: 7650 | BC66: 9630 | BD66: 12160
A67: Cardiff and Vale UHB | B67: Years of life and years of health | C67: Healthy life expectancy at birth, 2010 to 2014 | D67: Males | E67: Years | F67: 65.71241035 | G67: 64.96407117 | H67: 66.46074953 | AY67: Carmarthenshire: Total population aged 18 and over | AZ67: 151900 | BA67: 154170 | BB67: 157960 | BC67: 162150 | BD67: 165900
A68: Cwm Taf UHB | B68: Years of life and years of health | C68: Healthy life expectancy at birth, 2010 to 2014 | D68: Males | E68: Years | F68: 61.18665949 | G68: 60.38152481 | H68: 61.99179417 | AY68: Ceredigion: People aged 18-24 | AZ68: 12180 | BA68: 11740 | BB68: 11590 | BC68: 11800 | BD68: 11980
A69: Aneurin Bevan UHB | B69: Years of life and years of health | C69: Healthy life expectancy at birth, 2010 to 2014 | D69: Males | E69: Years | F69: 63.81544142 | G69: 63.26964409 | H69: 64.36123874 | AY69: Ceredigion: People aged 25-34 | AZ69: 7640 | BA69: 8550 | BB69: 9320 | BC69: 8340 | BD69: 8220
A70: Isle of Anglesey | B70: Years of life and years of health | C70: Healthy life expectancy at birth, 2010 to 2014 | D70: Males | E70: Years | F70: 67.73292768 | G70: 66.57600992 | H70: 68.88984544 | AY70: Ceredigion: People aged 35-44 | AZ70: 6670 | BA70: 6400 | BB70: 6310 | BC70: 7960 | BD70: 8740
A71: Gwynedd | B71: Years of life and years of health | C71: Healthy life expectancy at birth, 2010 to 2014 | D71: Males | E71: Years | F71: 68.15796099 | G71: 67.00729036 | H71: 69.30863163 | AY71: Ceredigion: People aged 45-54 | AZ71: 9110 | BA71: 8260 | BB71: 7210 | BC71: 6630 | BD71: 6540
A72: Conwy | B72: Years of life and years of health | C72: Healthy life expectancy at birth, 2010 to 2014 | D72: Males | E72: Years | F72: 67.29573592 | G72: 66.13153931 | H72: 68.45993253 | AY72: Ceredigion: People aged 55-64 | AZ72: 9830 | BA72: 9980 | BB72: 9770 | BC72: 8770 | BD72: 7770
A73: Denbighshire | B73: Years of life and years of health | C73: Healthy life expectancy at birth, 2010 to 2014 | D73: Males | E73: Years | F73: 67.49296159 | G73: 66.43146975 | H73: 68.55445342 | AY73: Ceredigion: People aged 65-69 | AZ73: 5110 | BA73: 4770 | BB73: 4840 | BC73: 4980 | BD73: 4680
A74: Flintshire | B74: Years of life and years of health | C74: Healthy life expectancy at birth, 2010 to 2014 | D74: Males | E74: Years | F74: 67.72133787 | G74: 66.62773977 | H74: 68.81493597 | AY74: Ceredigion: People aged 70-74 | AZ74: 4780 | BA74: 5040 | BB74: 4440 | BC74: 4520 | BD74: 4680
A75: Wrexham | B75: Years of life and years of health | C75: Healthy life expectancy at birth, 2010 to 2014 | D75: Males | E75: Years | F75: 66.81044114 | G75: 65.67209598 | H75: 67.94878631 | AY75: Ceredigion: People aged 75-79 | AZ75: 3290 | BA75: 3750 | BB75: 4520 | BC75: 4010 | BD75: 4110
A76: Powys | B76: Years of life and years of health | C76: Healthy life expectancy at birth, 2010 to 2014 | D76: Males | E76: Years | F76: 68.17285771 | G76: 66.94767915 | H76: 69.39803627 | AY76: Ceredigion: People aged 80-84 | AZ76: 2440 | BA76: 2660 | BB76: 3160 | BC76: 3850 | BD76: 3450
A77: Ceredigion | B77: Years of life and years of health | C77: Healthy life expectancy at birth, 2010 to 2014 | D77: Males | E77: Years | F77: 67.86423024 | G77: 66.68832052 | H77: 69.04013995 | AY77: Ceredigion: People aged 85 and over | AZ77: 2460 | BA77: 2700 | BB77: 3280 | BC77: 4120 | BD77: 5230
A78: Pembrokeshire | B78: Years of life and years of health | C78: Healthy life expectancy at birth, 2010 to 2014 | D78: Males | E78: Years | F78: 66.85549355 | G78: 65.57909873 | H78: 68.13188837 | AY78: Ceredigion: Total population aged 18 and over | AZ78: 63520 | BA78: 63850 | BB78: 64430 | BC78: 64990 | BD78: 65410
A79: Carmarthenshire | B79: Years of life and years of health | C79: Healthy life expectancy at birth, 2010 to 2014 | D79: Males | E79: Years | F79: 65.005427 | G79: 63.82178186 | H79: 66.18907213 | AY79: Conwy: People aged 18-24 | AZ79: 7280 | BA79: 6610 | BB79: 6040 | BC79: 6750 | BD79: 6920
A80: Swansea | B80: Years of life and years of health | C80: Healthy life expectancy at birth, 2010 to 2014 | D80: Males | E80: Years | F80: 65.49619903 | G80: 64.47692228 | H80: 66.51547579 | AY80: Conwy: People aged 25-34 | AZ80: 11790 | BA80: 11990 | BB80: 11080 | BC80: 9620 | BD80: 9450
A81: Neath Port Talbot | B81: Years of life and years of health | C81: Healthy life expectancy at birth, 2010 to 2014 | D81: Males | E81: Years | F81: 61.88785741 | G81: 60.70577765 | H81: 63.06993718 | AY81: Conwy: People aged 35-44 | AZ81: 11490 | BA81: 11460 | BB81: 12400 | BC81: 12820 | BD81: 11920
A82: Bridgend | B82: Years of life and years of health | C82: Healthy life expectancy at birth, 2010 to 2014 | D82: Males | E82: Years | F82: 63.42931606 | G82: 62.23239178 | H82: 64.62624033 | AY82: Conwy: People aged 45-54 | AZ82: 16310 | BA82: 14850 | BB82: 12930 | BC82: 12320 | BD82: 13280
A83: Vale of Glamorgan | B83: Years of life and years of health | C83: Healthy life expectancy at birth, 2010 to 2014 | D83: Males | E83: Years | F83: 66.62823376 | G83: 65.36912538 | H83: 67.88734213 | AY83: Conwy: People aged 55-64 | AZ83: 16050 | BA83: 16990 | BB83: 17370 | BC83: 15960 | BD83: 14140
A84: Cardiff | B84: Years of life and years of health | C84: Healthy life expectancy at birth, 2010 to 2014 | D84: Males | E84: Years | F84: 65.32116737 | G84: 64.36994411 | H84: 66.27239063 | AY84: Conwy: People aged 65-69 | AZ84: 8350 | BA84: 7850 | BB84: 8340 | BC84: 9180 | BD84: 8760
A85: Rhondda Cynon Taf | B85: Years of life and years of health | C85: Healthy life expectancy at birth, 2010 to 2014 | D85: Males | E85: Years | F85: 61.22013974 | G85: 60.15990899 | H85: 62.28037049 | AY85: Conwy: People aged 70-74 | AZ85: 7770 | BA85: 8340 | BB85: 7500 | BC85: 8000 | BD85: 8830
A86: Merthyr Tydfil | B86: Years of life and years of health | C86: Healthy life expectancy at birth, 2010 to 2014 | D86: Males | E86: Years | F86: 61.06593254 | G86: 59.81867997 | H86: 62.3131851 | AY86: Conwy: People aged 75-79 | AZ86: 5880 | BA86: 6420 | BB86: 7620 | BC86: 6910 | BD86: 7410
A87: Caerphilly | B87: Years of life and years of health | C87: Healthy life expectancy at birth, 2010 to 2014 | D87: Males | E87: Years | F87: 61.53586549 | G87: 60.32367972 | H87: 62.74805126 | AY87: Conwy: People aged 80-84 | AZ87: 4630 | BA87: 4800 | BB87: 5440 | BC87: 6530 | BD87: 5980
A88: Blaenau Gwent | B88: Years of life and years of health | C88: Healthy life expectancy at birth, 2010 to 2014 | D88: Males | E88: Years | F88: 59.64393412 | G88: 58.41780981 | H88: 60.87005844 | AY88: Conwy: People aged 85 and over | AZ88: 4980 | BA88: 5390 | BB88: 6270 | BC88: 7510 | BD88: 9280
A89: Torfaen | B89: Years of life and years of health | C89: Healthy life expectancy at birth, 2010 to 2014 | D89: Males | E89: Years | F89: 63.08565224 | G89: 61.81578939 | H89: 64.3555151 | AY89: Conwy: Total population aged 18 and over | AZ89: 94520 | BA89: 94690 | BB89: 95000 | BC89: 95590 | BD89: 95970
A90: Monmouthshire | B90: Years of life and years of health | C90: Healthy life expectancy at birth, 2010 to 2014 | D90: Males | E90: Years | F90: 69.82596268 | G90: 68.67839445 | H90: 70.97353092 | AY90: Denbighshire: People aged 18-24 | AZ90: 7200 | BA90: 6510 | BB90: 6100 | BC90: 6830 | BD90: 7190
A91: Newport | B91: Years of life and years of health | C91: Healthy life expectancy at birth, 2010 to 2014 | D91: Males | E91: Years | F91: 65.4467619 | G91: 64.27902346 | H91: 66.61450033 | AY91: Denbighshire: People aged 25-34 | AZ91: 10600 | BA91: 11350 | BB91: 10980 | BC91: 9830 | BD91: 9800
A92: Wales | B92: Years of life and years of health | C92: Healthy life expectancy at birth, 2010 to 2014 | D92: Females | E92: Years | F92: 66.71714452 | G92: 66.4483662 | H92: 66.98592283 | AY92: Denbighshire: People aged 35-44 | AZ92: 9870 | BA92: 9660 | BB92: 10700 | BC92: 12090 | BD92: 11720
A93: Betsi Cadwaladr UHB | B93: Years of life and years of health | C93: Healthy life expectancy at birth, 2010 to 2014 | D93: Females | E93: Years | F93: 69.21621801 | G93: 68.72939245 | H93: 69.70304357 | AY93: Denbighshire: People aged 45-54 | AZ93: 13590 | BA93: 12710 | BB93: 11230 | BC93: 10430 | BD93: 11470
A94: Powys THB | B94: Years of life and years of health | C94: Healthy life expectancy at birth, 2010 to 2014 | D94: Females | E94: Years | F94: 68.68262525 | G94: 67.40812659 | H94: 69.95712392 | AY94: Denbighshire: People aged 55-64 | AZ94: 12700 | BA94: 13530 | BB94: 14290 | BC94: 13350 | BD94: 11950
A95: Hywel Dda UHB | B95: Years of life and years of health | C95: Healthy life expectancy at birth, 2010 to 2014 | D95: Females | E95: Years | F95: 67.63545743 | G95: 66.91391108 | H95: 68.35700378 | AY95: Denbighshire: People aged 65-69 | AZ95: 6700 | BA95: 6120 | BB95: 6300 | BC95: 7300 | BD95: 7090
A96: ABM UHB | B96: Years of life and years of health | C96: Healthy life expectancy at birth, 2010 to 2014 | D96: Females | E96: Years | F96: 64.95507662 | G96: 64.25796976 | H96: 65.65218349 | AY96: Denbighshire: People aged 70-74 | AZ96: 5990 | BA96: 6530 | BB96: 5770 | BC96: 5970 | BD96: 6930
A97: Cardiff and Vale UHB | B97: Years of life and years of health | C97: Healthy life expectancy at birth, 2010 to 2014 | D97: Females | E97: Years | F97: 67.61895967 | G97: 66.82776046 | H97: 68.41015888 | AY97: Denbighshire: People aged 75-79 | AZ97: 4180 | BA97: 4710 | BB97: 5790 | BC97: 5160 | BD97: 5380
A98: Cwm Taf UHB | B98: Years of life and years of health | C98: Healthy life expectancy at birth, 2010 to 2014 | D98: Females | E98: Years | F98: 62.63255251 | G98: 61.77956891 | H98: 63.48553611 | AY98: Denbighshire: People aged 80-84 | AZ98: 3040 | BA98: 3300 | BB98: 3900 | BC98: 4860 | BD98: 4370
A99: Aneurin Bevan UHB | B99: Years of life and years of health | C99: Healthy life expectancy at birth, 2010 to 2014 | D99: Females | E99: Years | F99: 65.27297201 | G99: 64.70447497 | H99: 65.84146906 | AY99: Denbighshire: People aged 85 and over | AZ99: 2980 | BA99: 3230 | BB99: 3930 | BC99: 4920 | BD99: 6330
A100: Isle of Anglesey | B100: Years of life and years of health | C100: Healthy life expectancy at birth, 2010 to 2014 | D100: Females | E100: Years | F100: 70.9172907 | G100: 69.72390615 | H100: 72.11067525 | AY100: Denbighshire: Total population aged 18 and over | AZ100: 76850 | BA100: 77650 | BB100: 78990 | BC100: 80730 | BD100: 82230
A101: Gwynedd | B101: Years of life and years of health | C101: Healthy life expectancy at birth, 2010 to 2014 | D101: Females | E101: Years | F101: 71.10818175 | G101: 69.93798273 | H101: 72.27838076 | AY101: Flintshire: People aged 18-24 | AZ101: 11160 | BA101: 10200 | BB101: 9730 | BC101: 10750 | BD101: 10390
A102: Conwy | B102: Years of life and years of health | C102: Healthy life expectancy at birth, 2010 to 2014 | D102: Females | E102: Years | F102: 69.09908074 | G102: 67.90591551 | H102: 70.29224597 | AY102: Flintshire: People aged 25-34 | AZ102: 18870 | BA102: 19300 | BB102: 17980 | BC102: 16050 | BD102: 16260
A103: Denbighshire | B103: Years of life and years of health | C103: Healthy life expectancy at birth, 2010 to 2014 | D103: Females | E103: Years | F103: 67.66414758 | G103: 66.48517094 | H103: 68.84312421 | AY103: Flintshire: People aged 35-44 | AZ103: 17860 | BA103: 17530 | BB103: 18970 | BC103: 19970 | BD103: 18670
A104: Flintshire | B104: Years of life and years of health | C104: Healthy life expectancy at birth, 2010 to 2014 | D104: Females | E104: Years | F104: 68.86945143 | G104: 67.67860935 | H104: 70.06029351 | AY104: Flintshire: People aged 45-54 | AZ104: 22820 | BA104: 21290 | BB104: 18410 | BC104: 17250 | BD104: 18690
A105: Wrexham | B105: Years of life and years of health | C105: Healthy life expectancy at birth, 2010 to 2014 | D105: Females | E105: Years | F105: 67.84948309 | G105: 66.6615111 | H105: 69.03745508 | AY105: Flintshire: People aged 55-64 | AZ105: 19500 | BA105: 20800 | BB105: 22200 | BC105: 20690 | BD105: 17940
A106: Powys | B106: Years of life and years of health | C106: Healthy life expectancy at birth, 2010 to 2014 | D106: Females | E106: Years | F106: 68.68262525 | G106: 67.40812659 | H106: 69.95712392 | AY106: Flintshire: People aged 65-69 | AZ106: 9810 | BA106: 8980 | BB106: 9060 | BC106: 10660 | BD106: 10480
A107: Ceredigion | B107: Years of life and years of health | C107: Healthy life expectancy at birth, 2010 to 2014 | D107: Females | E107: Years | F107: 69.71121254 | G107: 68.45001819 | H107: 70.97240688 | AY107: Flintshire: People aged 70-74 | AZ107: 8690 | BA107: 9530 | BB107: 8310 | BC107: 8430 | BD107: 9980
A108: Pembrokeshire | B108: Years of life and years of health | C108: Healthy life expectancy at birth, 2010 to 2014 | D108: Females | E108: Years | F108: 69.04688503 | G108: 67.795598 | H108: 70.29817207 | AY108: Flintshire: People aged 75-79 | AZ108: 6070 | BA108: 6690 | BB108: 8500 | BC108: 7460 | BD108: 7630
A109: Carmarthenshire | B109: Years of life and years of health | C109: Healthy life expectancy at birth, 2010 to 2014 | D109: Females | E109: Years | F109: 65.95705584 | G109: 64.72641042 | H109: 67.18770125 | AY109: Flintshire: People aged 80-84 | AZ109: 4080 | BA109: 4700 | BB109: 5510 | BC109: 7110 | BD109: 6310
A110: Swansea | B110: Years of life and years of health | C110: Healthy life expectancy at birth, 2010 to 2014 | D110: Females | E110: Years | F110: 66.82278961 | G110: 65.71471641 | H110: 67.93086281 | AY110: Flintshire: People aged 85 and over | AZ110: 3970 | BA110: 4460 | BB110: 5810 | BC110: 7440 | BD110: 9840
A111: Neath Port Talbot | B111: Years of life and years of health | C111: Healthy life expectancy at birth, 2010 to 2014 | D111: Females | E111: Years | F111: 62.42215167 | G111: 61.13441643 | H111: 63.70988691 | AY111: Flintshire: Total population aged 18 and over | AZ111: 122840 | BA111: 123470 | BB111: 124480 | BC111: 125810 | BD111: 126180
A112: Bridgend | B112: Years of life and years of health | C112: Healthy life expectancy at birth, 2010 to 2014 | D112: Females | E112: Years | F112: 64.30939299 | G112: 63.06499935 | H112: 65.55378662 | AY112: Gwynedd: People aged 18-24 | AZ112: 14760 | BA112: 14370 | BB112: 14070 | BC112: 14430 | BD112: 13820
A113: Vale of Glamorgan | B113: Years of life and years of health | C113: Healthy life expectancy at birth, 2010 to 2014 | D113: Females | E113: Years | F113: 68.71212405 | G113: 67.46047959 | H113: 69.96376852 | AY113: Gwynedd: People aged 25-34 | AZ113: 14660 | BA113: 16500 | BB113: 18110 | BC113: 17110 | BD113: 17210
A114: Cardiff | B114: Years of life and years of health | C114: Healthy life expectancy at birth, 2010 to 2014 | D114: Females | E114: Years | F114: 67.06763077 | G114: 66.03619499 | H114: 68.09906655 | AY114: Gwynedd: People aged 35-44 | AZ114: 12320 | BA114: 11870 | BB114: 12960 | BC114: 15940 | BD114: 17550
A115: Rhondda Cynon Taf | B115: Years of life and years of health | C115: Healthy life expectancy at birth, 2010 to 2014 | D115: Females | E115: Years | F115: 62.93691553 | G115: 61.79517635 | H115: 64.07865471 | AY115: Gwynedd: People aged 45-54 | AZ115: 15830 | BA115: 14820 | BB115: 12680 | BC115: 11750 | BD115: 12840
A116: Merthyr Tydfil | B116: Years of life and years of health | C116: Healthy life expectancy at birth, 2010 to 2014 | D116: Females | E116: Years | F116: 61.47037138 | G116: 60.19737276 | H116: 62.74336999 | AY116: Gwynedd: People aged 55-64 | AZ116: 15300 | BA116: 15930 | BB116: 16220 | BC116: 15020 | BD116: 12980
A117: Caerphilly | B117: Years of life and years of health | C117: Healthy life expectancy at birth, 2010 to 2014 | D117: Females | E117: Years | F117: 63.70510412 | G117: 62.51771474 | H117: 64.8924935 | AY117: Gwynedd: People aged 65-69 | AZ117: 7560 | BA117: 6870 | BB117: 7280 | BC117: 7830 | BD117: 7630
A118: Blaenau Gwent | B118: Years of life and years of health | C118: Healthy life expectancy at birth, 2010 to 2014 | D118: Females | E118: Years | F118: 59.31279046 | G118: 57.97945049 | H118: 60.64613043 | AY118: Gwynedd: People aged 70-74 | AZ118: 7210 | BA118: 7450 | BB118: 6280 | BC118: 6690 | BD118: 7240
A119: Torfaen | B119: Years of life and years of health | C119: Healthy life expectancy at birth, 2010 to 2014 | D119: Females | E119: Years | F119: 64.37146304 | G119: 63.03993507 | H119: 65.70299102 | AY119: Gwynedd: People aged 75-79 | AZ119: 5060 | BA119: 5700 | BB119: 6580 | BC119: 5580 | BD119: 6000
A120: Monmouthshire | B120: Years of life and years of health | C120: Healthy life expectancy at birth, 2010 to 2014 | D120: Females | E120: Years | F120: 70.73351562 | G120: 69.46973636 | H120: 71.99729488 | AY120: Gwynedd: People aged 80-84 | AZ120: 3830 | BA120: 3980 | BB120: 4760 | BC120: 5550 | BD120: 4760
A121: Newport | B121: Years of life and years of health | C121: Healthy life expectancy at birth, 2010 to 2014 | D121: Females | E121: Years | F121: 67.18932473 | G121: 65.9589579 | H121: 68.41969155 | AY121: Gwynedd: People aged 85 and over | AZ121: 4110 | BA121: 4420 | BB121: 5030 | BC121: 6150 | BD121: 7560
A122: Wales | B122: A fair chance for health | C122: Gap in life expectancy at birth between the most and least deprived fifth, 2013 to 2015 | D122: Males | E122: Years | F122: 8.98035 | G122: 6.71879 | H122: 11.24191 | AY122: Gwynedd: Total population aged 18 and over | AZ122: 100650 | BA122: 101910 | BB122: 103960 | BC122: 106050 | BD122: 107570
A123: Betsi Cadwaladr UHB | B123: A fair chance for health | C123: Gap in life expectancy at birth between the most and least deprived fifth, 2013 to 2015 | D123: Males | E123: Years | F123: 8.772938 | G123: 2.961953 | H123: 14.58392 | AY123: Isle of Anglesey: People aged 18-24 | AZ123: 4400 | BA123: 4050 | BB123: 3790 | BC123: 4460 | BD123: 4690
A124: Powys THB | B124: A fair chance for health | C124: Gap in life expectancy at birth between the most and least deprived fifth, 2013 to 2015 | D124: Males | E124: Years | F124: 5.160081 | G124: 0.4924821 | H124: 9.827681 | AY124: Isle of Anglesey: People aged 25-34 | AZ124: 7830 | BA124: 7730 | BB124: 6930 | BC124: 6080 | BD124: 6170
A125: Hywel Dda UHB | B125: A fair chance for health | C125: Gap in life expectancy at birth between the most and least deprived fifth, 2013 to 2015 | D125: Males | E125: Years | F125: 4.871387 | G125: -0.7582545 | H125: 10.50103 | AY125: Isle of Anglesey: People aged 35-44 | AZ125: 7260 | BA125: 7210 | BB125: 7740 | BC125: 7740 | BD125: 6940
A126: ABM UHB | B126: A fair chance for health | C126: Gap in life expectancy at birth between the most and least deprived fifth, 2013 to 2015 | D126: Males | E126: Years | F126: 9.62741 | G126: 8.204951 | H126: 11.04987 | AY126: Isle of Anglesey: People aged 45-54 | AZ126: 9380 | BA126: 8760 | BB126: 7690 | BC126: 7300 | BD126: 7840
A127: Cardiff and Vale UHB | B127: A fair chance for health | C127: Gap in life expectancy at birth between the most and least deprived fifth, 2013 to 2015 | D127: Males | E127: Years | F127: 10.61214 | G127: 8.741655 | H127: 12.48262 | AY127: Isle of Anglesey: People aged 55-64 | AZ127: 9630 | BA127: 9830 | BB127: 9740 | BC127: 9130 | BD127: 8110
A128: Cwm Taf UHB | B128: A fair chance for health | C128: Gap in life expectancy at birth between the most and least deprived fifth, 2013 to 2015 | D128: Males | E128: Years | F128: 7.53262 | G128: 5.428317 | H128: 9.636922 | AY128: Isle of Anglesey: People aged 65-69 | AZ128: 5010 | BA128: 4650 | BB128: 4830 | BC128: 4920 | BD128: 4790
A129: Aneurin Bevan UHB | B129: A fair chance for health | C129: Gap in life expectancy at birth between the most and least deprived fifth, 2013 to 2015 | D129: Males | E129: Years | F129: 8.499183 | G129: 5.362398 | H129: 11.63597 | AY129: Isle of Anglesey: People aged 70-74 | AZ129: 4780 | BA129: 4940 | BB129: 4350 | BC129: 4540 | BD129: 4640
A130: Isle of Anglesey | B130: A fair chance for health | C130: Gap in life expectancy at birth between the most and least deprived fifth, 2013 to 2015 | D130: Males | E130: Years | F130: 7.225047 | G130: 5.967289 | H130: 8.482804 | AY130: Isle of Anglesey: People aged 75-79 | AZ130: 3370 | BA130: 3770 | BB130: 4390 | BC130: 3900 | BD130: 4100
A131: Gwynedd | B131: A fair chance for health | C131: Gap in life expectancy at birth between the most and least deprived fifth, 2013 to 2015 | D131: Males | E131: Years | F131: 3.418541 | G131: -1.230434 | H131: 8.067515 | AY131: Isle of Anglesey: People aged 80-84 | AZ131: 2370 | BA131: 2660 | BB131: 3120 | BC131: 3690 | BD131: 3300
A132: Conwy | B132: A fair chance for health | C132: Gap in life expectancy at birth between the most and least deprived fifth, 2013 to 2015 | D132: Males | E132: Years | F132: 9.676341 | G132: 1.74554 | H132: 17.60714 | AY132: Isle of Anglesey: People aged 85 and over | AZ132: 2400 | BA132: 2640 | BB132: 3280 | BC132: 4130 | BD132: 5170
A133: Denbighshire | B133: A fair chance for health | C133: Gap in life expectancy at birth between the most and least deprived fifth, 2013 to 2015 | D133: Males | E133: Years | F133: 12.13511 | G133: 1.834783 | H133: 22.43543 | AY133: Isle of Anglesey: Total population aged 18 and over | AZ133: 56430 | BA133: 56230 | BB133: 55860 | BC133: 55880 | BD133: 55750
A134: Flintshire | B134: A fair chance for health | C134: Gap in life expectancy at birth between the most and least deprived fifth, 2013 to 2015 | D134: Males | E134: Years | F134: 9.795579 | G134: 0.0422966 | H134: 19.54886 | AY134: Merthyr Tydfil: People aged 18-24 | AZ134: 4850 | BA134: 4380 | BB134: 4020 | BC134: 4510 | BD134: 4710
A135: Wrexham | B135: A fair chance for health | C135: Gap in life expectancy at birth between the most and least deprived fifth, 2013 to 2015 | D135: Males | E135: Years | F135: 8.229107 | G135: 6.623158 | H135: 9.835056 | AY135: Merthyr Tydfil: People aged 25-34 | AZ135: 8750 | BA135: 8760 | BB135: 8070 | BC135: 7110 | BD135: 7010
A136: Powys | B136: A fair chance for health | C136: Gap in life expectancy at birth between the most and least deprived fifth, 2013 to 2015 | D136: Males | E136: Years | F136: 5.160081 | G136: 0.4924821 | H136: 9.827681 | AY136: Merthyr Tydfil: People aged 35-44 | AZ136: 6880 | BA136: 7480 | BB136: 8740 | BC136: 8900 | BD136: 8220
A137: Ceredigion | B137: A fair chance for health | C137: Gap in life expectancy at birth between the most and least deprived fifth, 2013 to 2015 | D137: Males | E137: Years | F137: 1.217699 | G137: -4.673712 | H137: 7.10911 | AY137: Merthyr Tydfil: People aged 45-54 | AZ137: 8480 | BA137: 7850 | BB137: 6910 | BC137: 7510 | BD137: 8760
A138: Pembrokeshire | B138: A fair chance for health | C138: Gap in life expectancy at birth between the most and least deprived fifth, 2013 to 2015 | D138: Males | E138: Years | F138: 4.665848 | G138: -0.4398116 | H138: 9.771508 | AY138: Merthyr Tydfil: People aged 55-64 | AZ138: 7610 | BA138: 8070 | BB138: 8390 | BC138: 7670 | BD138: 6790
A139: Carmarthenshire | B139: A fair chance for health | C139: Gap in life expectancy at birth between the most and least deprived fifth, 2013 to 2015 | D139: Males | E139: Years | F139: 6.331914 | G139: 2.645962 | H139: 10.01787 | AY139: Merthyr Tydfil: People aged 65-69 | AZ139: 3470 | BA139: 3260 | BB139: 3570 | BC139: 3980 | BD139: 3910
A140: Swansea | B140: A fair chance for health | C140: Gap in life expectancy at birth between the most and least deprived fifth, 2013 to 2015 | D140: Males | E140: Years | F140: 10.71898 | G140: 7.871391 | H140: 13.56656 | AY140: Merthyr Tydfil: People aged 70-74 | AZ140: 2830 | BA140: 3120 | BB140: 2990 | BC140: 3300 | BD140: 3690
A141: Neath Port Talbot | B141: A fair chance for health | C141: Gap in life expectancy at birth between the most and least deprived fifth, 2013 to 2015 | D141: Males | E141: Years | F141: 7.375786 | G141: 4.780194 | H141: 9.971378 | AY141: Merthyr Tydfil: People aged 75-79 | AZ141: 2080 | BA141: 2240 | BB141: 2720 | BC141: 2620 | BD141: 2920
A142: Bridgend | B142: A fair chance for health | C142: Gap in life expectancy at birth between the most and least deprived fifth, 2013 to 2015 | D142: Males | E142: Years | F142: 9.228729 | G142: 5.79719 | H142: 12.66027 | AY142: Merthyr Tydfil: People aged 80-84 | AZ142: 1520 | BA142: 1630 | BB142: 1810 | BC142: 2230 | BD142: 2170
A143: Vale of Glamorgan | B143: A fair chance for health | C143: Gap in life expectancy at birth between the most and least deprived fifth, 2013 to 2015 | D143: Males | E143: Years | F143: 8.970684 | G143: 5.239927 | H143: 12.70144 | AY143: Merthyr Tydfil: People aged 85 and over | AZ143: 1370 | BA143: 1530 | BB143: 1870 | BC143: 2270 | BD143: 2880
A144: Cardiff | B144: A fair chance for health | C144: Gap in life expectancy at birth between the most and least deprived fifth, 2013 to 2015 | D144: Males | E144: Years | F144: 11.01725 | G144: 8.800396 | H144: 13.23411 | AY144: Merthyr Tydfil: Total population aged 18 and over | AZ144: 47840 | BA144: 48320 | BB144: 49080 | BC144: 50100 | BD144: 51070
A145: Rhondda Cynon Taf | B145: A fair chance for health | C145: Gap in life expectancy at birth between the most and least deprived fifth, 2013 to 2015 | D145: Males | E145: Years | F145: 7.386565 | G145: 2.111384 | H145: 12.66175 | AY145: Monmouthshire: People aged 18-24 | AZ145: 6230 | BA145: 5570 | BB145: 4870 | BC145: 4850 | BD145: 4570
A146: Merthyr Tydfil | B146: A fair chance for health | C146: Gap in life expectancy at birth between the most and least deprived fifth, 2013 to 2015 | D146: Males | E146: Years | F146: 7.991498 | G146: 4.438112 | H146: 11.54488 | AY146: Monmouthshire: People aged 25-34 | AZ146: 8850 | BA146: 9540 | BB146: 9390 | BC146: 8160 | BD146: 7490
A147: Caerphilly | B147: A fair chance for health | C147: Gap in life expectancy at birth between the most and least deprived fifth, 2013 to 2015 | D147: Males | E147: Years | F147: 7.608818 | G147: 2.991214 | H147: 12.22642 | AY147: Monmouthshire: People aged 35-44 | AZ147: 9370 | BA147: 8940 | BB147: 9530 | BC147: 10630 | BD147: 10480
A148: Blaenau Gwent | B148: A fair chance for health | C148: Gap in life expectancy at birth between the most and least deprived fifth, 2013 to 2015 | D148: Males | E148: Years | F148: 5.767316 | G148: 4.044587 | H148: 7.490044 | AY148: Monmouthshire: People aged 45-54 | AZ148: 14490 | BA148: 13110 | BB148: 10770 | BC148: 9700 | BD148: 10300
A149: Torfaen | B149: A fair chance for health | C149: Gap in life expectancy at birth between the most and least deprived fifth, 2013 to 2015 | D149: Males | E149: Years | F149: 6.934594 | G149: 4.031598 | H149: 9.83759 | AY149: Monmouthshire: People aged 55-64 | AZ149: 13000 | BA149: 13870 | BB149: 14810 | BC149: 13180 | BD149: 10930
A150: Monmouthshire | B150: A fair chance for health | C150: Gap in life expectancy at birth between the most and least deprived fifth, 2013 to 2015 | D150: Males | E150: Years | F150: 5.292898 | G150: -2.546226 | H150: 13.13202 | AY150: Monmouthshire: People aged 65-69 | AZ150: 6360 | BA150: 6050 | BB150: 6100 | BC150: 7290 | BD150: 7050
A151: Newport | B151: A fair chance for health | C151: Gap in life expectancy at birth between the most and least deprived fifth, 2013 to 2015 | D151: Males | E151: Years | F151: 9.39888 | G151: 4.510912 | H151: 14.28685 | AY151: Monmouthshire: People aged 70-74 | AZ151: 5890 | BA151: 6310 | BB151: 5800 | BC151: 5870 | BD151: 7020
A152: Wales | B152: A fair chance for health | C152: Gap in life expectancy at birth between the most and least deprived fifth, 2013 to 2015 | D152: Females | E152: Years | F152: 6.930591 | G152: 5.935326 | H152: 7.925856 | AY152: Monmouthshire: People aged 75-79 | AZ152: 4160 | BA152: 4810 | BB152: 5830 | BC152: 5390 | BD152: 5480
A153: Betsi Cadwaladr UHB | B153: A fair chance for health | C153: Gap in life expectancy at birth between the most and least deprived fifth, 2013 to 2015 | D153: Females | E153: Years | F153: 6.1919 | G153: 2.651968 | H153: 9.731832 | AY153: Monmouthshire: People aged 80-84 | AZ153: 3160 | BA153: 3340 | BB153: 4130 | BC153: 5060 | BD153: 4710
A154: Powys THB | B154: A fair chance for health | C154: Gap in life expectancy at birth between the most and least deprived fifth, 2013 to 2015 | D154: Females | E154: Years | F154: 5.208938 | G154: -1.28703 | H154: 11.70491 | AY154: Monmouthshire: People aged 85 and over | AZ154: 3190 | BA154: 3620 | BB154: 4400 | BC154: 5630 | BD154: 7230
A155: Hywel Dda UHB | B155: A fair chance for health | C155: Gap in life expectancy at birth between the most and least deprived fifth, 2013 to 2015 | D155: Females | E155: Years | F155: 4.094896 | G155: 0.7877716 | H155: 7.402021 | AY155: Monmouthshire: Total population aged 18 and over | AZ155: 74710 | BA155: 75160 | BB155: 75630 | BC155: 75750 | BD155: 75280
A156: ABM UHB | B156: A fair chance for health | C156: Gap in life expectancy at birth between the most and least deprived fifth, 2013 to 2015 | D156: Females | E156: Years | F156: 6.867588 | G156: 4.860328 | H156: 8.874848 | AY156: Neath Port Talbot: People aged 18-24 | AZ156: 10690 | BA156: 9860 | BB156: 9300 | BC156: 9970 | BD156: 10660
A157: Cardiff and Vale UHB | B157: A fair chance for health | C157: Gap in life expectancy at birth between the most and least deprived fifth, 2013 to 2015 | D157: Females | E157: Years | F157: 8.292018 | G157: 5.398305 | H157: 11.18573 | AY157: Neath Port Talbot: People aged 25-34 | AZ157: 17590 | BA157: 17530 | BB157: 16610 | BC157: 15160 | BD157: 14900
A158: Cwm Taf UHB | B158: A fair chance for health | C158: Gap in life expectancy at birth between the most and least deprived fifth, 2013 to 2015 | D158: Females | E158: Years | F158: 3.896906 | G158: -0.3005677 | H158: 8.094381 | AY158: Neath Port Talbot: People aged 35-44 | AZ158: 17150 | BA158: 17580 | BB158: 18380 | BC158: 18280 | BD158: 17380
A159: Aneurin Bevan UHB | B159: A fair chance for health | C159: Gap in life expectancy at birth between the most and least deprived fifth, 2013 to 2015 | D159: Females | E159: Years | F159: 7.25687 | G159: 5.758474 | H159: 8.755266 | AY159: Neath Port Talbot: People aged 45-54 | AZ159: 19670 | BA159: 18390 | BB159: 17140 | BC159: 17490 | BD159: 18300
A160: Isle of Anglesey | B160: A fair chance for health | C160: Gap in life expectancy at birth between the most and least deprived fifth, 2013 to 2015 | D160: Females | E160: Years | F160: 4.116653 | G160: 0.7589256 | H160: 7.474381 | AY160: Neath Port Talbot: People aged 55-64 | AZ160: 18650 | BA160: 19430 | BB160: 19390 | BC160: 17920 | BD160: 16770
A161: Gwynedd | B161: A fair chance for health | C161: Gap in life expectancy at birth between the most and least deprived fifth, 2013 to 2015 | D161: Females | E161: Years | F161: 2.664713 | G161: -0.8422164 | H161: 6.171642 | AY161: Neath Port Talbot: People aged 65-69 | AZ161: 8760 | BA161: 8460 | BB161: 8840 | BC161: 9480 | BD161: 8900
A162: Conwy | B162: A fair chance for health | C162: Gap in life expectancy at birth between the most and least deprived fifth, 2013 to 2015 | D162: Females | E162: Years | F162: 6.251151 | G162: 0.2991529 | H162: 12.20315 | AY162: Neath Port Talbot: People aged 70-74 | AZ162: 7570 | BA162: 8120 | BB162: 7790 | BC162: 8180 | BD162: 8820
A163: Denbighshire | B163: A fair chance for health | C163: Gap in life expectancy at birth between the most and least deprived fifth, 2013 to 2015 | D163: Females | E163: Years | F163: 7.267161 | G163: -0.1033129 | H163: 14.63764 | AY163: Neath Port Talbot: People aged 75-79 | AZ163: 5270 | BA163: 5810 | BB163: 6990 | BC163: 6770 | BD163: 7180
A164: Flintshire | B164: A fair chance for health | C164: Gap in life expectancy at birth between the most and least deprived fifth, 2013 to 2015 | D164: Females | E164: Years | F164: 7.134896 | G164: 3.996289 | H164: 10.2735 | AY164: Neath Port Talbot: People aged 80-84 | AZ164: 3770 | BA164: 4010 | BB164: 4620 | BC164: 5650 | BD164: 5550
A165: Wrexham | B165: A fair chance for health | C165: Gap in life expectancy at birth between the most and least deprived fifth, 2013 to 2015 | D165: Females | E165: Years | F165: 6.627221 | G165: 3.877552 | H165: 9.37689 | AY165: Neath Port Talbot: People aged 85 and over | AZ165: 3830 | BA165: 4030 | BB165: 4690 | BC165: 5710 | BD165: 7230
A166: Powys | B166: A fair chance for health | C166: Gap in life expectancy at birth between the most and least deprived fifth, 2013 to 2015 | D166: Females | E166: Years | F166: 5.208938 | G166: -1.28703 | H166: 11.70491 | AY166: Neath Port Talbot: Total population aged 18 and over | AZ166: 112960 | BA166: 113210 | BB166: 113760 | BC166: 114630 | BD166: 115700
A167: Ceredigion | B167: A fair chance for health | C167: Gap in life expectancy at birth between the most and least deprived fifth, 2013 to 2015 | D167: Females | E167: Years | F167: 3.227716 | G167: 1.533888 | H167: 4.921544 | AY167: Newport: People aged 18-24 | AZ167: 14570 | BA167: 14010 | BB167: 13150 | BC167: 14410 | BD167: 15450
A168: Pembrokeshire | B168: A fair chance for health | C168: Gap in life expectancy at birth between the most and least deprived fifth, 2013 to 2015 | D168: Females | E168: Years | F168: 3.406263 | G168: -1.841257 | H168: 8.653783 | AY168: Newport: People aged 25-34 | AZ168: 21250 | BA168: 22420 | BB168: 23470 | BC168: 21990 | BD168: 21800
A169: Carmarthenshire | B169: A fair chance for health | C169: Gap in life expectancy at birth between the most and least deprived fifth, 2013 to 2015 | D169: Females | E169: Years | F169: 4.327973 | G169: 2.284556 | H169: 6.37139 | AY169: Newport: People aged 35-44 | AZ169: 17970 | BA169: 18720 | BB169: 20410 | BC169: 22870 | BD169: 23920
A170: Swansea | B170: A fair chance for health | C170: Gap in life expectancy at birth between the most and least deprived fifth, 2013 to 2015 | D170: Females | E170: Years | F170: 7.129606 | G170: 2.926136 | H170: 11.33308 | AY170: Newport: People aged 45-54 | AZ170: 20710 | BA170: 19330 | BB170: 17460 | BC170: 18080 | BD170: 19770
A171: Neath Port Talbot | B171: A fair chance for health | C171: Gap in life expectancy at birth between the most and least deprived fifth, 2013 to 2015 | D171: Females | E171: Years | F171: 6.338759 | G171: 2.423364 | H171: 10.25415 | AY171: Newport: People aged 55-64 | AZ171: 16930 | BA171: 18300 | BB171: 19600 | BC171: 18120 | BD171: 16390
A172: Bridgend | B172: A fair chance for health | C172: Gap in life expectancy at birth between the most and least deprived fifth, 2013 to 2015 | D172: Females | E172: Years | F172: 5.35109 | G172: 4.032847 | H172: 6.669332 | AY172: Newport: People aged 65-69 | AZ172: 7400 | BA172: 6820 | BB172: 7800 | BC172: 8900 | BD172: 9110
A173: Vale of Glamorgan | B173: A fair chance for health | C173: Gap in life expectancy at birth between the most and least deprived fifth, 2013 to 2015 | D173: Females | E173: Years | F173: 6.965418 | G173: 4.546668 | H173: 9.384169 | AY173: Newport: People aged 70-74 | AZ173: 6610 | BA173: 7170 | BB173: 6260 | BC173: 7210 | BD173: 8270
A174: Cardiff | B174: A fair chance for health | C174: Gap in life expectancy at birth between the most and least deprived fifth, 2013 to 2015 | D174: Females | E174: Years | F174: 8.843637 | G174: 4.143285 | H174: 13.54399 | AY174: Newport: People aged 75-79 | AZ174: 4960 | BA174: 5260 | BB174: 6290 | BC174: 5540 | BD174: 6440
A175: Rhondda Cynon Taf | B175: A fair chance for health | C175: Gap in life expectancy at birth between the most and least deprived fifth, 2013 to 2015 | D175: Females | E175: Years | F175: 3.777052 | G175: -0.7543098 | H175: 8.308413 | AY175: Newport: People aged 80-84 | AZ175: 3660 | BA175: 3860 | BB175: 4220 | BC175: 5130 | BD175: 4570
A176: Merthyr Tydfil | B176: A fair chance for health | C176: Gap in life expectancy at birth between the most and least deprived fifth, 2013 to 2015 | D176: Females | E176: Years | F176: 4.619127 | G176: -6.273278 | H176: 15.51153 | AY176: Newport: People aged 85 and over | AZ176: 3580 | BA176: 3860 | BB176: 4590 | BC176: 5470 | BD176: 6800
A177: Caerphilly | B177: A fair chance for health | C177: Gap in life expectancy at birth between the most and least deprived fifth, 2013 to 2015 | D177: Females | E177: Years | F177: 6.555598 | G177: 4.46025 | H177: 8.650946 | AY177: Newport: Total population aged 18 and over | AZ177: 117640 | BA177: 119760 | BB177: 123260 | BC177: 127720 | BD177: 132530
A178: Blaenau Gwent | B178: A fair chance for health | C178: Gap in life expectancy at birth between the most and least deprived fifth, 2013 to 2015 | D178: Females | E178: Years | F178: 3.683035 | G178: 1.187635 | H178: 6.178434 | AY178: Pembrokeshire: People aged 18-24 | AZ178: 8530 | BA178: 7860 | BB178: 7130 | BC178: 7790 | BD178: 7920
A179: Torfaen | B179: A fair chance for health | C179: Gap in life expectancy at birth between the most and least deprived fifth, 2013 to 2015 | D179: Females | E179: Years | F179: 7.369978 | G179: 3.768031 | H179: 10.97193 | AY179: Pembrokeshire: People aged 25-34 | AZ179: 13920 | BA179: 14470 | BB179: 13810 | BC179: 12140 | BD179: 11760
A180: Monmouthshire | B180: A fair chance for health | C180: Gap in life expectancy at birth between the most and least deprived fifth, 2013 to 2015 | D180: Females | E180: Years | F180: 4.174849 | G180: -1.740238 | H180: 10.08994 | AY180: Pembrokeshire: People aged 35-44 | AZ180: 12530 | BA180: 12570 | BB180: 14310 | BC180: 15610 | BD180: 14960
A181: Newport | B181: A fair chance for health | C181: Gap in life expectancy at birth between the most and least deprived fifth, 2013 to 2015 | D181: Females | E181: Years | F181: 6.621215 | G181: 0.8100536 | H181: 12.43238 | AY181: Pembrokeshire: People aged 45-54 | AZ181: 17130 | BA181: 15770 | BB181: 13760 | BC181: 13480 | BD181: 15230
A182: Wales | B182: A fair chance for health | C182: Gap in healthy life expectancy at birth between the most and least deprived fifth, 2010 to 2014 | D182: Males | E182: Years | F182: 18.6681 | G182: 14.28963 | H182: 23.04658 | AY182: Pembrokeshire: People aged 55-64 | AZ182: 16970 | BA182: 17720 | BB182: 18240 | BC182: 16560 | BD182: 14650
A183: Betsi Cadwaladr UHB | B183: A fair chance for health | C183: Gap in healthy life expectancy at birth between the most and least deprived fifth, 2010 to 2014 | D183: Males | E183: Years | F183: 13.32647 | G183: 5.531403 | H183: 21.12155 | AY183: Pembrokeshire: People aged 65-69 | AZ183: 8800 | BA183: 8170 | BB183: 8190 | BC183: 9250 | BD183: 8760
A184: Powys THB | B184: A fair chance for health | C184: Gap in healthy life expectancy at birth between the most and least deprived fifth, 2010 to 2014 | D184: Males | E184: Years | F184: 10.40105 | G184: 3.094591 | H184: 17.70751 | AY184: Pembrokeshire: People aged 70-74 | AZ184: 7960 | BA184: 8550 | BB184: 7620 | BC184: 7670 | BD184: 8700
A185: Hywel Dda UHB | B185: A fair chance for health | C185: Gap in healthy life expectancy at birth between the most and least deprived fifth, 2010 to 2014 | D185: Males | E185: Years | F185: 12.16854 | G185: 5.749618 | H185: 18.58746 | AY185: Pembrokeshire: People aged 75-79 | AZ185: 5760 | BA185: 6320 | BB185: 7620 | BC185: 6840 | BD185: 6930
A186: ABM UHB | B186: A fair chance for health | C186: Gap in healthy life expectancy at birth between the most and least deprived fifth, 2010 to 2014 | D186: Males | E186: Years | F186: 20.82888 | G186: 18.32264 | H186: 23.33512 | AY186: Pembrokeshire: People aged 80-84 | AZ186: 4270 | BA186: 4530 | BB186: 5280 | BC186: 6450 | BD186: 5840
A187: Cardiff and Vale UHB | B187: A fair chance for health | C187: Gap in healthy life expectancy at birth between the most and least deprived fifth, 2010 to 2014 | D187: Males | E187: Years | F187: 23.18956 | G187: 16.52137 | H187: 29.85775 | AY187: Pembrokeshire: People aged 85 and over | AZ187: 4160 | BA187: 4730 | BB187: 5760 | BC187: 7120 | BD187: 9010
A188: Cwm Taf UHB | B188: A fair chance for health | C188: Gap in healthy life expectancy at birth between the most and least deprived fifth, 2010 to 2014 | D188: Males | E188: Years | F188: 14.78356 | G188: 8.638493 | H188: 20.92863 | AY188: Pembrokeshire: Total population aged 18 and over | AZ188: 100010 | BA188: 100700 | BB188: 101710 | BC188: 102910 | BD188: 103760
A189: Aneurin Bevan UHB | B189: A fair chance for health | C189: Gap in healthy life expectancy at birth between the most and least deprived fifth, 2010 to 2014 | D189: Males | E189: Years | F189: 18.29871 | G189: 14.06166 | H189: 22.53576 | AY189: Powys: People aged 18-24 | AZ189: 8760 | BA189: 7960 | BB189: 6770 | BC189: 6920 | BD189: 6840
A190: Isle of Anglesey | B190: A fair chance for health | C190: Gap in healthy life expectancy at birth between the most and least deprived fifth, 2010 to 2014 | D190: Males | E190: Years | F190: 12.66687 | G190: 6.701693 | H190: 18.63205 | AY190: Powys: People aged 25-34 | AZ190: 13460 | BA190: 14050 | BB190: 13490 | BC190: 11750 | BD190: 10710
A191: Gwynedd | B191: A fair chance for health | C191: Gap in healthy life expectancy at birth between the most and least deprived fifth, 2010 to 2014 | D191: Males | E191: Years | F191: 9.17693 | G191: -7.33074 | H191: 25.6846 | AY191: Powys: People aged 35-44 | AZ191: 12810 | BA191: 12440 | BB191: 13760 | BC191: 14960 | BD191: 14400
A192: Conwy | B192: A fair chance for health | C192: Gap in healthy life expectancy at birth between the most and least deprived fifth, 2010 to 2014 | D192: Males | E192: Years | F192: 14.63977 | G192: 3.787055 | H192: 25.49248 | AY192: Powys: People aged 45-54 | AZ192: 19380 | BA192: 17730 | BB192: 14960 | BC192: 13740 | BD192: 15100
A193: Denbighshire | B193: A fair chance for health | C193: Gap in healthy life expectancy at birth between the most and least deprived fifth, 2010 to 2014 | D193: Males | E193: Years | F193: 15.95071 | G193: 3.840186 | H193: 28.06124 | AY193: Powys: People aged 55-64 | AZ193: 19810 | BA193: 20700 | BB193: 21350 | BC193: 19560 | BD193: 16870
A194: Flintshire | B194: A fair chance for health | C194: Gap in healthy life expectancy at birth between the most and least deprived fifth, 2010 to 2014 | D194: Males | E194: Years | F194: 11.63358 | G194: 1.271156 | H194: 21.996 | AY194: Powys: People aged 65-69 | AZ194: 10410 | BA194: 9910 | BB194: 10100 | BC194: 11200 | BD194: 10790
A195: Wrexham | B195: A fair chance for health | C195: Gap in healthy life expectancy at birth between the most and least deprived fifth, 2010 to 2014 | D195: Males | E195: Years | F195: 14.96532 | G195: 13.71096 | H195: 16.21967 | AY195: Powys: People aged 70-74 | AZ195: 9440 | BA195: 10140 | BB195: 9450 | BC195: 9660 | BD195: 10740
A196: Powys | B196: A fair chance for health | C196: Gap in healthy life expectancy at birth between the most and least deprived fifth, 2010 to 2014 | D196: Males | E196: Years | F196: 10.40105 | G196: 3.094591 | H196: 17.70751 | AY196: Powys: People aged 75-79 | AZ196: 6530 | BA196: 7620 | BB196: 9230 | BC196: 8660 | BD196: 8900
A197: Ceredigion | B197: A fair chance for health | C197: Gap in healthy life expectancy at birth between the most and least deprived fifth, 2010 to 2014 | D197: Males | E197: Years | F197: 9.293758 | G197: 6.956355 | H197: 11.63116 | AY197: Powys: People aged 80-84 | AZ197: 4760 | BA197: 5190 | BB197: 6400 | BC197: 7840 | BD197: 7430
A198: Pembrokeshire | B198: A fair chance for health | C198: Gap in healthy life expectancy at birth between the most and least deprived fifth, 2010 to 2014 | D198: Males | E198: Years | F198: 11.9485 | G198: -2.440747 | H198: 26.33775 | AY198: Powys: People aged 85 and over | AZ198: 5000 | BA198: 5550 | BB198: 6790 | BC198: 8690 | BD198: 11170
A199: Carmarthenshire | B199: A fair chance for health | C199: Gap in healthy life expectancy at birth between the most and least deprived fifth, 2010 to 2014 | D199: Males | E199: Years | F199: 10.60403 | G199: 3.175433 | H199: 18.03262 | AY199: Powys: Total population aged 18 and over | AZ199: 110350 | BA199: 111280 | BB199: 112300 | BC199: 112990 | BD199: 112960
A200: Swansea | B200: A fair chance for health | C200: Gap in healthy life expectancy at birth between the most and least deprived fifth, 2010 to 2014 | D200: Males | E200: Years | F200: 21.89341 | G200: 18.61403 | H200: 25.17279 | AY200: Rhondda Cynon Taf: People aged 18-24 | AZ200: 21320 | BA200: 20150 | BB200: 19470 | BC200: 21120 | BD200: 21510
... 158 more rows

Sheet HB_PP
E7: Key:
B8: ⓘ You are currently viewing the category page for population profile | F8: Primary care data exists, but no PHW access
B9: ⓘ You are currently viewing this information by health board | F9: No statistical comparison made, or no data available
C14: Compare your position to others, and use the checkbox to select indicators of interest for review.
C15: After selecting indicators, scroll right to click 'Review this indicator'; this will open a web page.
C16: When complete, click the 'Next' button at the top, for the next category page.
C19: Population
C20: Indicator | D20: Age band | E20: Wales | F20: Abertawe BM | G20: Aneurin Bevan | H20: Betsi Cadwaladr | I20: Cardiff and Vale | J20: Cwm Taf | K20: Hywel Dda | L20: Powys
C21: Population by age band, 2014 | D21: <16 | E21: 554800 | F21: 91500 | G21: 108300 | H21: 123800 | I21: 88900 | J21: 55200 | K21: 65300 | L21: 21900
D22: 16-64 | E22: 1922400 | F22: 329800 | G22: 361600 | H22: 418100 | I22: 318700 | J22: 186500 | K22: 230600 | L22: 77200
D23: 65-84 | E23: 535900 | F23: 88800 | G23: 97300 | H23: 132300 | I23: 63900 | J23: 47900 | K23: 76600 | L23: 29100
D24: 85+ | E24: 78900 | F24: 13000 | G24: 13300 | H24: 19800 | I24: 10500 | J24: 6300 | K24: 11500 | L24: 4500
C25: Population projection
C26: Indicator | D26: Projected to | E26: Wales | F26: Abertawe BM | G26: Aneurin Bevan | H26: Betsi Cadwaladr | I26: Cardiff and Vale | J26: Cwm Taf | K26: Hywel Dda | L26: Powys
C27: Population aged 0-18 | D27: 2017 | E27: 634270
D28: 2020 | E28: 645950
D29: 2025 | E29: 657050
D30: 2030 | E30: 645870
D31: 2035 | E31: 628710
D32: Projected to | E32: Wales | F32: Abertawe BM | G32: Aneurin Bevan | H32: Betsi Cadwaladr | I32: Cardiff and Vale | J32: Cwm Taf | K32: Hywel Dda | L32: Powys
C33: Population aged 18+ | D33: 2017 | E33: 2510820
D34: 2020 | E34: 2539770
D35: 2025 | E35: 2588720
D36: 2030 | E36: 2646380
D37: 2035 | E37: 2698770
C38: Life expectancy
C39: Indicator | D39: Period | E39: Wales | F39: Abertawe BM | G39: Aneurin Bevan | H39: Betsi Cadwaladr | I39: Cardiff and Vale | J39: Cwm Taf | K39: Hywel Dda | L39: Powys
C40: Life expectancy at birth (M) (years) | D40: 2013-2015 | E40: 78.4272245 | F40: 77.65453859 | G40: 78.28109241 | H40: 78.81460029 | I40: 78.58836397 | J40: 76.84880884 | K40: 79.05198319 | L40: 80.29212733
C41: Life expectancy at birth (F) (years) | D41: 2013-2015 | E41: 82.26551251 | F41: 81.92364805 | G41: 81.97276242 | H41: 82.46854685 | I41: 82.86062276 | J41: 80.61972631 | K41: 82.8240225 | L41: 83.52014348
C42: The gap in life expectancy at birth between the most and least deprived (M) (years) | D42: 2013-2015 | E42: 8.98035 | F42: 9.62741 | G42: 8.499183 | H42: 8.772938 | I42: 10.61214 | J42: 7.53262 | K42: 4.871387 | L42: 5.160081
C43: The gap in life expectancy at birth between the most and least deprived (F) (years) | D43: 2013-2015 | E43: 6.930591 | F43: 6.867588 | G43: 7.25687 | H43: 6.1919 | I43: 8.292018 | J43: 3.896906 | K43: 4.094896 | L43: 5.208938
C44: Healthy life expectancy
C45: Indicator | D45: Period | E45: Wales | F45: Abertawe BM | G45: Aneurin Bevan | H45: Betsi Cadwaladr | I45: Cardiff and Vale | J45: Cwm Taf | K45: Hywel Dda | L45: Powys
C46: Healthy life expectancy at birth (M) (years) | D46: 2010-2014 | E46: 65.25117724 | F46: 63.94520057 | G46: 63.81544142 | H46: 67.56965258 | I46: 65.71241035 | J46: 61.18665949 | K46: 66.18500078 | L46: 68.17285771
C47: Healthy life expectancy at birth (F) (years) | D47: 2010-2014 | E47: 66.71714452 | F47: 64.95507662 | G47: 65.27297201 | H47: 69.21621801 | I47: 67.61895967 | J47: 62.63255251 | K47: 67.63545743 | L47: 68.68262525
C48: The gap in healthy life expectancy at birth between the most and least deprived (M) (years) | D48: 2010-2014 | E48: 18.6681 | F48: 20.82888 | G48: 18.29871 | H48: 13.32647 | I48: 23.18956 | J48: 14.78356 | K48: 12.16854 | L48: 10.40105
C49: The gap in healthy life expectancy at birth between the most and least deprived (F) (years) | D49: 2010-2014 | E49: 18.20817 | F49: 18.29983 | G49: 18.58087 | H49: 13.80093 | I49: 21.90244 | J49: 15.0085 | K49: 12.15889 | L49: 14.40537
C50: Deprivation
C51: Indicator | D51: Deprivation level | E51: Wales | F51: Abertawe BM | G51: Aneurin Bevan | H51: Betsi Cadwaladr | I51: Cardiff and Vale | J51: Cwm Taf | K51: Hywel Dda | L51: Powys
C52: Population estimates by deprivation fifth, 2015 (%) | D52: Least deprived | E52: 19.8354289 | F52: 23.83712743 | G52: 17.97524532 | H52: 20.04267985 | I52: 34.67690695 | J52: 11.87861223 | K52: 7.529962503 | L52: 10.17023266
D53: Next least deprived | E53: 20.27533279 | F53: 13.28649237 | G53: 14.13089625 | H53: 28.46402956 | I53: 15.70555666 | J53: 8.991861425 | K53: 27.46399672 | L53: 53.21240633
D54: Middle | E54: 20.56254651 | F54: 16.45320535 | G54: 20.07944461 | H54: 21.71920291 | I54: 12.3062927 | J54: 15.9334086 | K54: 37.80611593 | L54: 23.61393827
D55: Next most deprived | E55: 19.88554045 | F55: 21.11535285 | G55: 21.82251641 | H55: 17.9376304 | I55: 13.157037 | J55: 34.28446257 | K55: 19.74276477 | L55: 9.50679272
D56: Most deprived | E56: 19.44115136 | F56: 25.30782201 | G56: 25.99189741 | H56: 11.83645728 | I56: 24.15420669 | J56: 28.91165518 | K56: 7.457160079 | L56: 3.496630027

Sheet LA_PP
E7: Key:
B8: ⓘ You are currently viewing the category page for population profile | F8: Primary care data exists, but no PHW access
B9: ⓘ You are currently viewing this information by local authority | F9: No statistical comparison made, or no data available
C14: Compare your position to others, and use the checkbox to select indicators of interest for review.
C15: After selecting indicators, scroll right to click 'Review this indicator'; this will open a web page.
C16: When complete, click the 'Next' button at the top, for the next category page.
C19: Population
C20: Indicator | D20: Age band | E20: Wales | F20: Bridgend | G20: Neath Port Talbot | H20: Swansea | I20: Blaenau Gwent | J20: Caerphilly | K20: Monmouthshire | L20: Newport | M20: Torfaen | N20: Anglesey | O20: Conwy | P20: Denbighshire | Q20: Flintshire | R20: Gwynedd | S20: Wrexham | T20: Cardiff | U20: Vale of Glamorgan | V20: Merthyr Tydfil | W20: Rhondda Cynon Taf | X20: Carmarthenshire | Y20: Ceredigion | Z20: Pembrokeshire | AA20: Powys
C21: Population by age, 2014 | D21: <16 | E21: 554800 | F21: 25500 | G21: 24500 | H21: 41500 | I21: 12200 | J21: 34200 | K21: 15600 | L21: 29300 | M21: 16900 | N21: 12100 | O21: 18900 | P21: 17100 | Q21: 28400 | R21: 20900 | S21: 26300 | T21: 65300 | U21: 23700 | V21: 11000 | W21: 44200 | X21: 32600 | Y21: 11000 | Z21: 21600 | AA21: 21900
D22: 16-64 | E22: 1922400 | F22: 88300 | G22: 87900 | H22: 153500 | I22: 44000 | J22: 113100 | K22: 55500 | L22: 92100 | M22: 56900 | N22: 41100 | O22: 66900 | P22: 55900 | Q22: 95100 | R22: 74100 | S22: 85000 | T22: 240200 | U22: 78500 | V22: 37500 | W22: 149100 | X22: 110700 | Y22: 47300 | Z22: 72600 | AA22: 77200
D23: 65-84 | E23: 535900 | F23: 24200 | G23: 24500 | H23: 40100 | I23: 11900 | J23: 29200 | K23: 18500 | L23: 22200 | M23: 15500 | N23: 14800 | O23: 25800 | P23: 19100 | Q23: 26900 | R23: 23400 | S23: 22300 | T23: 41700 | U23: 22200 | V23: 9300 | W23: 38500 | X23: 36100 | Y23: 14800 | Z23: 25700 | AA23: 29100
D24: 85+ | E24: 78900 | F24: 3200 | G24: 3600 | H24: 6200 | I24: 1500 | J24: 3500 | K24: 2800 | L24: 3200 | M24: 2300 | N24: 2200 | O24: 4600 | P24: 2700 | Q24: 3400 | R24: 3800 | S24: 3200 | T24: 7100 | U24: 3300 | V24: 1200 | W24: 5100 | X24: 5400 | Y24: 2300 | Z24: 3800 | AA24: 4500
C25: Population projection
C26: Indicator | D26: Projected to | E26: Wales | F26: Bridgend | G26: Neath Port Talbot | H26: Swansea | I26: Blaenau Gwent | J26: Caerphilly | K26: Monmouthshire | L26: Newport | M26: Torfaen | N26: Anglesey | O26: Conwy | P26: Denbighshire | Q26: Flintshire | R26: Gwynedd | S26: Wrexham | T26: Cardiff | U26: Vale of Glamorgan | V26: Merthyr Tydfil | W26: Rhondda Cynon Taf | X26: Carmarthenshire | Y26: Ceredigion | Z26: Pembrokeshire | AA26: Powys
C27: Population aged 0-18 | D27: 2017 | E27: 634270 | F27: 29280 | G27: 28360 | H27: 47110 | I27: 13630 | J27: 38870 | K27: 17390 | L27: 34100 | M27: 19450 | N27: 13790 | O27: 21700 | P27: 19560 | Q27: 31940 | R27: 22850 | S27: 30590 | T27: 76400 | U27: 26580 | V27: 12490 | W27: 50280 | X27: 37980 | Y27: 12780 | Z27: 24610 | AA27: 24540
D28: 2020 | E28: 645950 | F28: 29760 | G28: 28790 | H28: 47860 | I28: 13630 | J28: 38980 | K28: 17130 | L28: 35230 | M28: 19870 | N28: 14040 | O28: 21920 | P28: 20010 | Q28: 32090 | R28: 22840 | S28: 31470 | T28: 80820 | U28: 26710 | V28: 12710 | W28: 51070 | X28: 38730 | Y28: 13050 | Z28: 24840 | AA28: 24400
D29: 2025 | E29: 657050 | F29: 30130 | G29: 28910 | H29: 49110 | I29: 13280 | J29: 38300 | K29: 16710 | L29: 37080 | M29: 20110 | N29: 14130 | O29: 21860 | P29: 20430 | Q29: 31690 | R29: 23120 | S29: 32130 | T29: 87630 | U29: 26700 | V29: 12770 | W29: 50970 | X29: 39480 | Y29: 13520 | Z29: 24830 | AA29: 24150
D30: 2030 | E30: 645870 | F30: 29480 | G30: 28040 | H30: 49180 | I30: 12290 | J30: 36440 | K30: 16060 | L30: 37590 | M30: 19560 | N30: 13370 | O30: 20870 | P30: 19870 | Q30: 30030 | R30: 23360 | S30: 31660 | T30: 91180 | U30: 25920 | V30: 12170 | W30: 49040 | X30: 38900 | Y30: 13760 | Z30: 23840 | AA30: 23240
D31: 2035 | E31: 628710 | F31: 28120 | G31: 26530 | H31: 48470 | I31: 11230 | J31: 34550 | K31: 15360 | L31: 37480 | M31: 18540 | N31: 12520 | O31: 19570 | P31: 19150 | Q31: 28620 | R31: 23900 | S31: 31390 | T31: 93410 | U31: 25120 | V31: 11350 | W31: 46960 | X31: 38020 | Y31: 13790 | Z31: 22610 | AA31: 22020
D32: Projected to | E32: Wales | F32: Bridgend | G32: Neath Port Talbot | H32: Swansea | I32: Blaenau Gwent | J32: Caerphilly | K32: Monmouthshire | L32: Newport | M32: Torfaen | N32: Anglesey | O32: Conwy | P32: Denbighshire | Q32: Flintshire | R32: Gwynedd | S32: Wrexham | T32: Cardiff | U32: Vale of Glamorgan | V32: Merthyr Tydfil | W32: Rhondda Cynon Taf | X32: Carmarthenshire | Y32: Ceredigion | Z32: Pembrokeshire | AA32: Powys
C33: Population aged 18+ | D33: 2017 | E33: 2510820 | F33: 114440 | G33: 112960 | H33: 142550 | I33: 55620 | J33: 151900 | K33: 74710 | L33: 117640 | M33: 72720 | N33: 56430 | O33: 94520 | P33: 76850 | Q33: 122840 | R33: 100650 | S33: 112180 | T33: 294830 | U33: 102800 | V33: 47840 | W33: 185900 | X33: 199550 | Y33: 63520 | Z33: 100010 | AA33: 110350
D34: 2020 | E34: 2539770 | F34: 115890 | G34: 113210 | H34: 143520 | I34: 55350 | J34: 154170 | K34: 75160 | L34: 119760 | M34: 72770 | N34: 56230 | O34: 94690 | P34: 77650 | Q34: 123470 | R34: 101910 | S34: 115050 | T34: 304030 | U34: 103890 | V34: 48320 | W34: 185870 | X34: 202980 | Y34: 63850 | Z34: 100700 | AA34: 111280
D35: 2025 | E35: 2588720 | F35: 118100 | G35: 113760 | H35: 145170 | I35: 54950 | J35: 157960 | K35: 75630 | L35: 123260 | M35: 72930 | N35: 55860 | O35: 95000 | P35: 78990 | Q35: 124480 | R35: 103960 | S35: 120170 | T35: 320490 | U35: 105560 | V35: 49080 | W35: 186460 | X35: 208470 | Y35: 64430 | Z35: 101710 | AA35: 112300
D36: 2030 | E36: 2646380 | F36: 120360 | G36: 114630 | H36: 146970 | I36: 54740 | J36: 162150 | K36: 75750 | L36: 127720 | M36: 73310 | N36: 55880 | O36: 95590 | P36: 80730 | Q36: 125810 | R36: 106050 | S36: 125900 | T36: 340150 | U36: 107400 | V36: 50100 | W36: 187830 | X36: 214410 | Y36: 64990 | Z36: 102910 | AA36: 112990
D37: 2035 | E37: 2698770 | F37: 122750 | G37: 115700 | H37: 148020 | I37: 54300 | J37: 165900 | K37: 75280 | L37: 132530 | M37: 73790 | N37: 55750 | O37: 95970 | P37: 82230 | Q37: 126180 | R37: 107570 | S37: 131140 | T37: 360640 | U37: 108600 | V37: 51070 | W37: 188750 | X37: 220460 | Y37: 65410 | Z37: 103760 | AA37: 112960
C38: Life expectancy
C39: Indicator | D39: Period | E39: Wales | F39: Bridgend | G39: Neath Port Talbot | H39: Swansea | I39: Blaenau Gwent | J39: Caerphilly | K39: Monmouthshire | L39: Newport | M39: Torfaen | N39: Anglesey | O39: Conwy | P39: Denbighshire | Q39: Flintshire | R39: Gwynedd | S39: Wrexham | T39: Cardiff | U39: Vale of Glamorgan | V39: Merthyr Tydfil | W39: Rhondda Cynon Taf | X39: Carmarthenshire | Y39: Ceredigion | Z39: Pembrokeshire | AA39: Powys
C40: Life expectancy at birth (M) (years) | D40: 2013-2015 | E40: 78.4272245 | F40: 77.20275979 | G40: 77.43220802 | H40: 78.03139764 | I40: 76.4739071 | J40: 77.78281912 | K40: 80.7234922 | L40: 78.07165552 | M40: 78.22295958 | N40: 78.7754007 | O40: 78.88994809 | P40: 77.99244961 | Q40: 79.00987716 | R40: 79.5873989 | S40: 78.42764202 | T40: 78.32465772 | U40: 79.13669735 | V40: 76.60064636 | W40: 76.92885402 | X40: 78.64968456 | Y40: 79.91693813 | Z40: 79.14176961 | AA40: 80.29212733
C41: Life expectancy at birth (F) (years) | D41: 2013-2015 | E41: 82.26551251 | F41: 81.81699159 | G41: 81.13800495 | H41: 82.46800663 | I41: 80.57922726 | J41: 81.1517334 | K41: 84.08645393 | L41: 82.28563575 | M41: 81.96432249 | N41: 82.62592048 | O41: 82.54252343 | P41: 81.82476695 | Q41: 82.44487111 | R41: 83.66797338 | S41: 81.63830611 | T41: 82.62710753 | U41: 83.24310981 | V41: 80.55068977 | W41: 80.64428048 | X41: 82.30282374 | Y41: 83.71218893 | Z41: 83.15040031 | AA41: 83.52014348
C42: The gap in life expectancy at birth between the most and least deprived (M) (years) | D42: 2013-2015 | E42: 8.98035 | F42: 9.228729 | G42: 7.375786 | H42: 10.71898 | I42: 5.767316 | J42: 7.608818 | K42: 5.292898 | L42: 9.39888 | M42: 6.934594 | N42: 7.225047 | O42: 9.676341 | P42: 12.13511 | Q42: 9.795579 | R42: 3.418541 | S42: 8.229107 | T42: 11.01725 | U42: 8.970684 | V42: 7.991498 | W42: 7.386565 | X42: 6.331914 | Y42: 1.217699 | Z42: 4.665848 | AA42: 5.160081
C43: The gap in life expectancy at birth between the most and least deprived (F) (years) | D43: 2013-2015 | E43: 6.930591 | F43: 5.35109 | G43: 6.338759 | H43: 7.129606 | I43: 3.683035 | J43: 6.555598 | K43: 4.174849 | L43: 6.621215 | M43: 7.369978 | N43: 4.116653 | O43: 6.251151 | P43: 7.267161 | Q43: 7.134896 | R43: 2.664713 | S43: 6.627221 | T43: 8.843637 | U43: 6.965418 | V43: 4.619127 | W43: 3.777052 | X43: 4.327973 | Y43: 3.227716 | Z43: 3.406263 | AA43: 5.208938
C44: Healthy life expectancy
C45: Indicator | D45: Period | E45: Wales | F45: Bridgend | G45: Neath Port Talbot | H45: Swansea | I45: Blaenau Gwent | J45: Caerphilly | K45: Monmouthshire | L45: Newport | M45: Torfaen | N45: Anglesey | O45: Conwy | P45: Denbighshire | Q45: Flintshire | R45: Gwynedd | S45: Wrexham | T45: Cardiff | U45: Vale of Glamorgan | V45: Merthyr Tydfil | W45: Rhondda Cynon Taf | X45: Carmarthenshire | Y45: Ceredigion | Z45: Pembrokeshire | AA45: Powys
C46: Healthy life expectancy at birth (M) (years) | D46: 2010-2014 | E46: 65.25117724 | F46: 63.42931606 | G46: 61.88785741 | H46: 65.49619903 | I46: 59.64393412 | J46: 61.53586549 | K46: 69.82596268 | L46: 65.4467619 | M46: 63.08565224 | N46: 67.73292768 | O46: 67.29573592 | P46: 67.49296159 | Q46: 67.72133787 | R46: 68.15796099 | S46: 66.81044114 | T46: 65.32116737 | U46: 66.62823376 | V46: 61.06593254 | W46: 61.22013974 | X46: 65.005427 | Y46: 67.86423024 | Z46: 66.85549355 | AA46: 68.17285771
C47: Healthy life expectancy at birth (F) (years) | D47: 2010-2014 | E47: 66.71714452 | F47: 64.30939299 | G47: 62.42215167 | H47: 66.82278961 | I47: 59.31279046 | J47: 63.70510412 | K47: 70.73351562 | L47: 67.18932473 | M47: 64.37146304 | N47: 70.9172907 | O47: 69.09908074 | P47: 67.66414758 | Q47: 68.86945143 | R47: 71.10818175 | S47: 67.84948309 | T47: 67.06763077 | U47: 68.71212405 | V47: 61.47037138 | W47: 62.93691553 | X47: 65.95705584 | Y47: 69.71121254 | Z47: 69.04688503 | AA47: 68.68262525
C48: The gap in healthy life expectancy at birth between the most and least deprived (M) (years) | D48: 2010-2014 | E48: 18.6681 | F48: 21.54405 | G48: 16.89034 | H48: 21.89341 | I48: 11.79445 | J48: 13.03796 | K48: 10.067 | L48: 18.15821 | M48: 14.78548 | N48: 12.66687 | O48: 14.63977 | P48: 15.95071 | Q48: 11.63358 | R48: 9.17693 | S48: 14.96532 | T48: 24.36261 | U48: 20.88212 | V48: 15.48083 | W48: 15.12212 | X48: 10.60403 | Y48: 9.293758 | Z48: 11.9485 | AA48: 10.40105
C49: The gap in healthy life expectancy at birth between the most and least deprived (F) (years) | D49: 2010-2014 | E49: 18.20817 | F49: 16.16461 | G49: 18.4186 | H49: 16.3343 | I49: 12.34524 | J49: 14.57903 | K49: 11.14416 | L49: 18.4186 | M49: 12.47506 | N49: 6.831001 | O49: 13.51335 | P49: 20.54576 | Q49: 13.65122 | R49: 7.001942 | S49: 16.94312 | T49: 21.7765 | U49: 23.41286 | V49: 15.1825 | W49: 13.34769 | X49: 12.47506 | Y49: 6.66898 | Z49: 11.94085 | AA49: 14.40537
C50: Deprivation
C51: Indicator | D51: Deprivation level | E51: Wales | F51: Bridgend | G51: Neath Port Talbot | H51: Swansea | I51: Blaenau Gwent | J51: Caerphilly | K51: Monmouthshire | L51: Newport | M51: Torfaen | N51: Anglesey | O51: Conwy | P51: Denbighshire | Q51: Flintshire | R51: Gwynedd | S51: Wrexham | T51: Cardiff | U51: Vale of Glamorgan | V51: Merthyr Tydfil | W51: Rhondda Cynon Taf | X51: Carmarthenshire | Y51: Ceredigion | Z51: Pembrokeshire | AA51: Powys
C52: Population estimates by deprivation fifth, 2015 (%) | D52: Least deprived | E52: 19.8354289 | F52: 22.60085015 | G52: 10.98785747 | H52: 32.03620731 | I52: 0 | J52: 11.7004507 | K52: 38.16882218 | L52: 25.33684332 | M52: 11.71762707 | N52: 14.05278726 | O52: 22.00433668 | P52: 19.92269593 | Q52: 29.30410063 | R52: 10.48232192 | S52: 19.67844153 | T52: 29.61053869 | U52: 48.85886262 | V52: 5.859348662 | W52: 13.3826992 | X52: 4.415442706 | Y52: 20.53803489 | Z52: 4.335676796 | AA52: 10.17023266
D53: Next least deprived | E53: 20.27533279 | F53: 15.81580948 | G53: 12.37871652 | H53: 12.33177381 | I53: 1.755722996 | J53: 12.0645634 | K53: 27.19840824 | L53: 10.20782437 | M53: 20.70974346 | N53: 18.05255862 | O53: 30.34297613 | P53: 24.22827935 | Q53: 28.59145605 | R53: 40.30635499 | S53: 24.34155159 | T53: 16.84287154 | U53: 12.52194495 | V53: 7.585462882 | W53: 9.343290749 | X53: 23.01928988 | Y53: 25.92508239 | Z53: 35.05880257 | AA53: 53.21240633
D54: Middle | E54: 20.56254651 | F54: 14.7531177 | G54: 17.15629256 | H54: 17.04086937 | I54: 23.91867019 | J54: 22.83364046 | K54: 23.54340586 | L54: 14.37107918 | M54: 17.46591751 | N54: 37.53697538 | O54: 15.55697052 | P54: 24.37296047 | Q54: 11.53796228 | R54: 31.66753484 | S54: 19.55549701 | T54: 12.80770523 | U54: 10.90272117 | V54: 22.01301328 | W54: 14.41424365 | X54: 37.38055239 | Y54: 44.87419951 | Z54: 34.17109441 | AA54: 23.61393827
D55: Next most deprived | E55: 19.88554045 | F55: 25.82059511 | G55: 30.15632093 | H55: 13.09791981 | I55: 27.65012079 | J55: 25.8819742 | K55: 11.08936373 | L55: 18.57832157 | M55: 25.47367046 | N55: 14.95877335 | O55: 18.15725619 | P55: 16.76505687 | Q55: 19.06226878 | R55: 13.43843599 | S55: 22.86621733 | T55: 13.08321201 | U55: 13.36369051 | V55: 35.1223788 | W55: 34.07508498 | X55: 25.73370138 | Y55: 7.124675116 | Z55: 18.38835612 | AA55: 9.50679272
D56: Most deprived | E56: 19.44115136 | F56: 21.00962757 | G56: 29.32081253 | H56: 25.4932297 | I56: 46.67548602 | J56: 27.51937124 | K56: 0 | L56: 31.50593156 | M56: 24.63304151 | N56: 15.39890539 | O56: 13.93846048 | P56: 14.71100738 | Q56: 11.50421226 | R56: 4.105352259 | S56: 13.55829253 | T56: 27.65567253 | U56: 14.35278074 | V56: 29.41979637 | W56: 28.78468142 | X56: 9.45101365 | Y56: 1.538008092 | Z56: 8.04607011 | AA56: 3.496630027

Sheet RPB_PP
E7: Key:
B8: ⓘ You are currently viewing the category page for population profile | F8: Primary care data exists, but no PHW access
B9: ⓘ You are currently viewing this information by regional partnership board | F9: No statistical comparison made, or no data available
C14: Compare your position to others, and use the checkbox to select indicators of interest for review.
C15: After selecting indicators, scroll right to click 'Review this indicator'; this will open a web page.
C16: When complete, click the 'Next' button at the top, for the next category page.
C19: Population
C20: Indicator | D20: Age band | E20: Abertawe BM | F20: Bridgend | G20: Neath Port Talbot | H20: Swansea | I20: Aneurin Bevan | J20: Blaenau Gwent | K20: Caerphilly | L20: Monmouthshire | M20: Newport | N20: Torfaen | O20: Betsi Cadwaladr | P20: Anglesey | Q20: Conwy | R20: Denbighshire | S20: Flintshire | T20: Gwynedd | U20: Wrexham | V20: Cardiff & Vale | W20: Cardiff | X20: Vale of Glamorgan | Y20: Cwm Taf | Z20: Merthyr Tydfil | AA20: Rhondda Cynon Taf | AB20: Hywel Dda | AC20: Carmarthenshire | AD20: Ceredigion | AE20: Pembrokeshire | AF20: Powys
C21: Population by age band, 2014 | D21: <16 | E21: 91500 | F21: 25500 | G21: 24500 | H21: 41500 | I21: 108300 | J21: 12200 | K21: 34200 | L21: 15600 | M21: 29300 | N21: 16900 | O21: 123800 | P21: 12100 | Q21: 18900 | R21: 17100 | S21: 28400 | T21: 20900 | U21: 26300 | V21: 88900 | W21: 65300 | X21: 23700 | Y21: 55200 | Z21: 11000 | AA21: 44200 | AB21: 65300 | AC21: 32600 | AD21: 11000 | AE21: 21600 | AF21: 21900
D22: 16-64 | E22: 329800 | F22: 88300 | G22: 87900 | H22: 153500 | I22: 361600 | J22: 44000 | K22: 113100 | L22: 55500 | M22: 92100 | N22: 56900 | O22: 418100 | P22: 41100 | Q22: 66900 | R22: 55900 | S22: 95100 | T22: 74100 | U22: 85000 | V22: 318700 | W22: 240200 | X22: 78500 | Y22: 186500 | Z22: 37500 | AA22: 149100 | AB22: 230600 | AC22: 110700 | AD22: 47300 | AE22: 72600 | AF22: 77200
D23: 65-84 | E23: 88800 | F23: 24200 | G23: 24500 | H23: 40100 | I23: 97300 | J23: 11900 | K23: 29200 | L23: 18500 | M23: 22200 | N23: 15500 | O23: 132300 | P23: 14800 | Q23: 25800 | R23: 19100 | S23: 26900 | T23: 23400 | U23: 22300 | V23: 63900 | W23: 41700 | X23: 22200 | Y23: 47900 | Z23: 9300 | AA23: 38500 | AB23: 76600 | AC23: 36100 | AD23: 14800 | AE23: 25700 | AF23: 29100
D24: 85+ | E24: 13000 | F24: 3200 | G24: 3600 | H24: 6200 | I24: 13300 | J24: 1500 | K24: 3500 | L24: 2800 | M24: 3200 | N24: 2300 | O24: 19800 | P24: 2200 | Q24: 4600 | R24: 2700 | S24: 3400 | T24: 3800 | U24: 3200 | V24: 10500 | W24: 7100 | X24: 3300 | Y24: 6300 | Z24: 1200 | AA24: 5100 | AB24: 11500 | AC24: 5400 | AD24: 2300 | AE24: 3800 | AF24: 4500
C25: Population projection
C26: Indicator | D26: Projected to | E26: Abertawe BM | F26: Bridgend | G26: Neath Port Talbot | H26: Swansea | I26: Aneurin Bevan | J26: Blaenau Gwent | K26: Caerphilly | L26: Monmouthshire | M26: Newport | N26: Torfaen | O26: Betsi Cadwaladr | P26: Anglesey | Q26: Conwy | R26: Denbighshire | S26: Flintshire | T26: Gwynedd | U26: Wrexham | V26: Cardiff & Vale | W26: Cardiff | X26: Vale of Glamorgan | Y26: Cwm Taf | Z26: Merthyr Tydfil | AA26: Rhondda Cynon Taf | AB26: Hywel Dda | AC26: Carmarthenshire | AD26: Ceredigion | AE26: Pembrokeshire | AF26: Powys
C27: Population aged 0-18 | D27: 2017 | F27: 29280 | G27: 28360 | H27: 47110 | J27: 13630 | K27: 38870 | L27: 17390 | M27: 34100 | N27: 19450 | P27: 13790 | Q27: 21700 | R27: 19560 | S27: 22850 | T27: 22850 | U27: 30590 | W27: 76400 | X27: 26580 | Z27: 12490 | AA27: 50280 | AC27: 37980 | AD27: 12780 | AE27: 24610 | AF27: 24540
D28: 2020 | F28: 29760 | G28: 28790 | H28: 47860 | J28: 13630 | K28: 38980 | L28: 17130 | M28: 35230 | N28: 19870 | P28: 14040 | Q28: 21920 | R28: 20010 | S28: 22840 | T28: 22840 | U28: 31470 | W28: 80820 | X28: 26710 | Z28: 12710 | AA28: 51070 | AC28: 38730 | AD28: 13050 | AE28: 24840 | AF28: 24400
D29: 2025 | F29: 30130 | G29: 28910 | H29: 49110 | J29: 13280 | K29: 38300 | L29: 16710 | M29: 37080 | N29: 20110 | P29: 14130 | Q29: 21860 | R29: 20430 | S29: 23120 | T29: 23120 | U29: 32130 | W29: 87630 | X29: 26700 | Z29: 12770 | AA29: 50970 | AC29: 39480 | AD29: 13520 | AE29: 24830 | AF29: 24150
D30: 2030 | F30: 29480 | G30: 28040 | H30: 49180 | J30: 12290 | K30: 36440 | L30: 16060 | M30: 37590 | N30: 19560 | P30: 13370 | Q30: 20870 | R30: 19870 | S30: 23360 | T30: 23360 | U30: 31660 | W30: 91180 | X30: 25920 | Z30: 12170 | AA30: 49040 | AC30: 38900 | AD30: 13760 | AE30: 23840 | AF30: 23240
D31: 2035 | F31: 28120 | G31: 26530 | H31: 48470 | J31: 11230 | K31: 34550 | L31: 15360 | M31: 37480 | N31: 18540 | P31: 12520 | Q31: 19570 | R31: 19150 | S31: 23900 | T31: 23900 | U31: 31390 | W31: 93410 | X31: 25120 | Z31: 11350 | AA31: 46960 | AC31: 38020 | AD31: 13790 | AE31: 22610 | AF31: 22020
D32: Projected to | E32: Abertawe BM | F32: Bridgend | G32: Neath Port Talbot | H32: Swansea | I32: Aneurin Bevan | J32: Blaenau Gwent | K32: Caerphilly | L32: Monmouthshire | M32: Newport | N32: Torfaen | O32: Betsi Cadwaladr | P32: Anglesey | Q32: Conwy | R32: Denbighshire | S32: Flintshire | T32: Gwynedd | U32: Wrexham | V32: Cardiff & Vale | W32: Cardiff | X32: Vale of Glamorgan | Y32: Cwm Taf | Z32: Merthyr Tydfil | AA32: Rhondda Cynon Taf | AB32: Hywel Dda | AC32: Carmarthenshire | AD32: Ceredigion | AE32: Pembrokeshire | AF32: Powys
C33: Population aged 18+ | D33: 2017 | F33: 114440 | G33: 112960 | H33: 142550 | J33: 55620 | K33: 151900 | L33: 74710 | M33: 117640 | N33: 72720 | P33: 56430 | Q33: 94520 | R33: 76850 | S33: 100650 | T33: 100650 | U33: 112180 | W33: 294830 | X33: 102800 | Z33: 47840 | AA33: 185900 | AC33: 199550 | AD33: 63520 | AE33: 100010 | AF33: 110350
D34: 2020 | F34: 115890 | G34: 113210 | H34: 143520 | J34: 55350 | K34: 154170 | L34: 75160 | M34: 119760 | N34: 72770 | P34: 56230 | Q34: 94690 | R34: 77650 | S34: 101910 | T34: 101910 | U34: 115050 | W34: 304030 | X34: 103890 | Z34: 48320 | AA34: 185870 | AC34: 202980 | AD34: 63850 | AE34: 100700 | AF34: 111280
D35: 2025 | F35: 118100 | G35: 113760 | H35: 145170 | J35: 54950 | K35: 157960 | L35: 75630 | M35: 123260 | N35: 72930 | P35: 55860 | Q35: 95000 | R35: 78990 | S35: 103960 | T35: 103960 | U35: 120170 | W35: 320490 | X35: 105560 | Z35: 49080 | AA35: 186460 | AC35: 208470 | AD35: 64430 | AE35: 101710 | AF35: 112300
D36: 2030 | F36: 120360 | G36: 114630 | H36: 146970 | J36: 54740 | K36: 162150 | L36: 75750 | M36: 127720 | N36: 73310 | P36: 55880 | Q36: 95590 | R36: 80730 | S36: 106050 | T36: 106050 | U36: 125900 | W36: 340150 | X36: 107400 | Z36: 50100 | AA36: 187830 | AC36: 214410 | AD36: 64990 | AE36: 102910 | AF36: 112990
D37: 2035 | F37: 122750 | G37: 115700 | H37: 148020 | J37: 54300 | K37: 165900 | L37: 75280 | M37: 132530 | N37: 73790 | P37: 55750 | Q37: 95970 | R37: 82230 | S37: 107570 | T37: 107570 | U37: 131140 | W37: 360640 | X37: 108600 | Z37: 51070 | AA37: 188750 | AC37: 220460 | AD37: 65410 | AE37: 103760 | AF37: 112960
C38: Life expectancy
C39: Indicator | D39: Period | E39: Abertawe BM | F39: Bridgend | G39: Neath Port Talbot | H39: Swansea | I39: Aneurin Bevan | J39: Blaenau Gwent | K39: Caerphilly | L39: Monmouthshire | M39: Newport | N39: Torfaen | O39: Betsi Cadwaladr | P39: Anglesey | Q39: Conwy | R39: Denbighshire | S39: Flintshire | T39: Gwynedd | U39: Wrexham | V39: Cardiff & Vale | W39: Cardiff | X39: Vale of Glamorgan | Y39: Cwm Taf | Z39: Merthyr Tydfil | AA39: Rhondda Cynon Taf | AB39: Hywel Dda | AC39: Carmarthenshire | AD39: Ceredigion | AE39: Pembrokeshire | AF39: Powys
C40: Life expectancy at birth (M) (years) | D40: 2013-2015 | E40: 77.65453859 | F40: 77.20275979 | G40: 77.43220802 | H40: 78.03139764 | I40: 78.28109241 | J40: 76.4739071 | K40: 77.78281912 | L40: 80.7234922 | M40: 78.07165552 | N40: 78.22295958 | O40: 78.81460029 | P40: 78.7754007 | Q40: 78.88994809 | R40: 77.99244961 | S40: 79.00987716 | T40: 79.5873989 | U40: 78.42764202 | V40: 78.58836397 | W40: 78.32465772 | X40: 79.13669735 | Y40: 76.84880884 | Z40: 76.60064636 | AA40: 76.92885402 | AB40: 79.05198319 | AC40: 78.64968456 | AD40: 79.91693813 | AE40: 79.14176961 | AF40: 80.29212733
C41: Life expectancy at birth (F) (years) | D41: 2013-2015 | E41: 81.92364805 | F41: 81.81699159 | G41: 81.13800495 | H41: 82.46800663 | I41: 81.97276242 | J41: 80.57922726 | K41: 81.1517334 | L41: 84.08645393 | M41: 82.28563575 | N41: 81.96432249 | O41: 82.46854685 | P41: 82.62592048 | Q41: 82.54252343 | R41: 81.82476695 | S41: 82.44487111 | T41: 83.66797338 | U41: 81.63830611 | V41: 82.86062276 | W41: 82.62710753 | X41: 83.24310981 | Y41: 80.61972631 | Z41: 80.55068977 | AA41: 80.64428048 | AB41: 82.8240225 | AC41: 82.30282374 | AD41: 83.71218893 | AE41: 83.15040031 | AF41: 83.52014348
C42: The gap in life expectancy at birth between the most and least deprived (M) (years) | D42: 2013-2015 | E42: 9.62741 | F42: 9.228729 | G42: 7.375786 | H42: 10.71898 | I42: 8.499183 | J42: 5.767316 | K42: 7.608818 | L42: 5.292898 | M42: 9.39888 | N42: 6.934594 | O42: 8.772938 | P42: 7.225047 | Q42: 9.676341 | R42: 12.13511 | S42: 9.795579 | T42: 3.418541 | U42: 8.229107 | V42: 10.61214 | W42: 11.01725 | X42: 8.970684 | Y42: 7.53262 | Z42: 7.991498 | AA42: 7.386565 | AB42: 4.871387 | AC42: 6.331914 | AD42: 1.217699 | AE42: 4.665848 | AF42: 5.160081
C43: The gap in life expectancy at birth between the most and least deprived (F) (years) | D43: 2013-2015 | E43: 6.867588 | F43: 5.35109 | G43: 6.338759 | H43: 7.129606 | I43: 7.25687 | J43: 3.683035 | K43: 6.555598 | L43: 4.174849 | M43: 6.621215 | N43: 7.369978 | O43: 6.1919 | P43: 4.116653 | Q43: 6.251151 | R43: 7.267161 | S43: 7.134896 | T43: 2.664713 | U43: 6.627221 | V43: 8.292018 | W43: 8.843637 | X43: 6.965418 | Y43: 3.896906 | Z43: 4.619127 | AA43: 3.777052 | AB43: 4.094896 | AC43: 4.327973 | AD43: 3.227716 | AE43: 3.406263 | AF43: 5.208938
C44: Healthy life expectancy
C45: Indicator | D45: Period | E45: Abertawe BM | F45: Bridgend | G45: Neath Port Talbot | H45: Swansea | I45: Aneurin Bevan | J45: Blaenau Gwent | K45: Caerphilly | L45: Monmouthshire | M45: Newport | N45: Torfaen | O45: Betsi Cadwaladr | P45: Anglesey | Q45: Conwy | R45: Denbighshire | S45: Flintshire | T45: Gwynedd | U45: Wrexham | V45: Cardiff & Vale | W45: Cardiff | X45: Vale of Glamorgan | Y45: Cwm Taf | Z45: Merthyr Tydfil | AA45: Rhondda Cynon Taf | AB45: Hywel Dda | AC45: Carmarthenshire | AD45: Ceredigion | AE45: Pembrokeshire | AF45: Powys
C46: Healthy life expectancy at birth (M) (years) | D46: 2010-2014 | E46: 63.94520057 | F46: 63.42931606 | G46: 61.88785741 | H46: 65.49619903 | I46: 63.81544142 | J46: 59.64393412 | K46: 61.53586549 | L46: 69.82596268 | M46: 65.4467619 | N46: 63.08565224 | O46: 67.56965258 | P46: 67.73292768 | Q46: 67.29573592 | R46: 67.49296159 | S46: 67.72133787 | T46: 68.15796099 | U46: 66.81044114 | V46: 65.71241035 | W46: 65.32116737 | X46: 66.62823376 | Y46: 61.18665949 | Z46: 61.06593254 | AA46: 61.22013974 | AB46: 66.18500078 | AC46: 65.005427 | AD46: 67.86423024 | AE46: 66.85549355 | AF46: 68.17285771
C47: Healthy life expectancy at birth (F) (years) | D47: 2010-2014 | E47: 64.95507662 | F47: 64.30939299 | G47: 62.42215167 | H47: 66.82278961 | I47: 65.27297201 | J47: 59.31279046 | K47: 63.70510412 | L47: 70.73351562 | M47: 67.18932473 | N47: 64.37146304 | O47: 69.21621801 | P47: 70.9172907 | Q47: 69.09908074 | R47: 67.66414758 | S47: 68.86945143 | T47: 71.10818175 | U47: 67.84948309 | V47: 67.61895967 | W47: 67.06763077 | X47: 68.71212405 | Y47: 62.63255251 | Z47: 61.47037138 | AA47: 62.93691553 | AB47: 67.63545743 | AC47: 65.95705584 | AD47: 69.71121254 | AE47: 69.04688503 | AF47: 68.68262525
C48: The gap in healthy life expectancy at birth between the most and least deprived (M) (years) | D48: 2010-2014 | E48: 20.82888 | F48: 21.54405 | G48: 16.89034 | H48: 21.89341 | I48: 18.29871 | J48: 11.79445 | K48: 13.03796 | L48: 10.067 | M48: 18.15821 | N48: 14.78548 | O48: 13.32647 | P48: 12.66687 | Q48: 14.63977 | R48: 15.95071 | S48: 11.63358 | T48: 9.17693 | U48: 14.96532 | V48: 23.18956 | W48: 24.36261 | X48: 20.88212 | Y48: 14.78356 | Z48: 15.48083 | AA48: 15.12212 | AB48: 12.16854 | AC48: 10.60403 | AD48: 9.293758 | AE48: 11.9485 | AF48: 10.40105
C49: The gap in healthy life expectancy at birth between the most and least deprived (F) (years) | D49: 2010-2014 | E49: 18.29983 | F49: 16.16461 | G49: 18.4186 | H49: 16.3343 | I49: 18.58087 | J49: 12.34524 | K49: 14.57903 | L49: 11.14416 | M49: 18.4186 | N49: 12.47506 | O49: 13.80093 | P49: 6.831001 | Q49: 13.51335 | R49: 20.54576 | S49: 13.65122 | T49: 7.001942 | U49: 16.94312 | V49: 21.90244 | W49: 21.7765 | X49: 23.41286 | Y49: 15.0085 | Z49: 15.1825 | AA49: 13.34769 | AB49: 12.15889 | AC49: 12.47506 | AD49: 6.66898 | AE49: 11.94085 | AF49: 14.40537
C50: Deprivation
C51: Indicator | D51: Deprivation level | E51: Abertawe BM | F51: Bridgend | G51: Neath Port Talbot | H51: Swansea | I51: Aneurin Bevan | J51: Blaenau Gwent | K51: Caerphilly | L51: Monmouthshire | M51: Newport | N51: Torfaen | O51: Betsi Cadwaladr | P51: Anglesey | Q51: Conwy | R51: Denbighshire | S51: Flintshire | T51: Gwynedd | U51: Wrexham | V51: Cardiff & Vale | W51: Cardiff | X51: Vale of Glamorgan | Y51: Cwm Taf | Z51: Merthyr Tydfil | AA51: Rhondda Cynon Taf | AB51: Hywel Dda | AC51: Carmarthenshire | AD51: Ceredigion | AE51: Pembrokeshire | AF51: Powys
C52: Population estimates by deprivation fifth, 2015 (%) | D52: Least deprived | E52: 23.83712743 | F52: 22.60085015 | G52: 10.98785747 | H52: 32.03620731 | I52: 17.97524532 | J52: 0 | K52: 11.7004507 | L52: 38.16882218 | M52: 25.33684332 | N52: 11.71762707 | O52: 20.04267985 | P52: 14.05278726 | Q52: 22.00433668 | R52: 19.92269593 | S52: 29.30410063 | T52: 10.48232192 | U52: 19.67844153 | V52: 34.67690695 | W52: 29.61053869 | X52: 48.85886262 | Y52: 11.87861223 | Z52: 5.859348662 | AA52: 13.3826992 | AB52: 7.529962503 | AC52: 4.415442706 | AD52: 20.53803489 | AE52: 4.335676796 | AF52: 10.17023266
D53: Next least deprived | E53: 13.28649237 | F53: 15.81580948 | G53: 12.37871652 | H53: 12.33177381 | I53: 14.13089625 | J53: 1.755722996 | K53: 12.0645634 | L53: 27.19840824 | M53: 10.20782437 | N53: 20.70974346 | O53: 28.46402956 | P53: 18.05255862 | Q53: 30.34297613 | R53: 24.22827935 | S53: 28.59145605 | T53: 40.30635499 | U53: 24.34155159 | V53: 15.70555666 | W53: 16.84287154 | X53: 12.52194495 | Y53: 8.991861425 | Z53: 7.585462882 | AA53: 9.343290749 | AB53: 27.46399672 | AC53: 23.01928988 | AD53: 25.92508239 | AE53: 35.05880257 | AF53: 53.21240633
D54: Middle | E54: 16.45320535 | F54: 14.7531177 | G54: 17.15629256 | H54: 17.04086937 | I54: 20.07944461 | J54: 23.91867019 | K54: 22.83364046 | L54: 23.54340586 | M54: 14.37107918 | N54: 17.46591751 | O54: 21.71920291 | P54: 37.53697538 | Q54: 15.55697052 | R54: 24.37296047 | S54: 11.53796228 | T54: 31.66753484 | U54: 19.55549701 | V54: 12.3062927 | W54: 12.80770523 | X54: 10.90272117 | Y54: 15.9334086 | Z54: 22.01301328 | AA54: 14.41424365 | AB54: 37.80611593 | AC54: 37.38055239 | AD54: 44.87419951 | AE54: 34.17109441 | AF54: 23.61393827
D55: Next most deprived | E55: 21.11535285 | F55: 25.82059511 | G55: 30.15632093 | H55: 13.09791981 | I55: 21.82251641 | J55: 27.65012079 | K55: 25.8819742 | L55: 11.08936373 | M55: 18.57832157 | N55: 25.47367046 | O55: 17.9376304 | P55: 14.95877335 | Q55: 18.15725619 | R55: 16.76505687 | S55: 19.06226878 | T55: 13.43843599 | U55: 22.86621733 | V55: 13.157037 | W55: 13.08321201 | X55: 13.36369051 | Y55: 34.28446257 | Z55: 35.1223788 | AA55: 34.07508498 | AB55: 19.74276477 | AC55: 25.73370138 | AD55: 7.124675116 | AE55: 18.38835612 | AF55: 9.50679272
D56: Most deprived | E56: 25.30782201 | F56: 21.00962757 | G56: 29.32081253 | H56: 25.4932297 | I56: 25.99189741 | J56: 46.67548602 | K56: 27.51937124 | L56: 0 | M56: 31.50593156 | N56: 24.63304151 | O56: 11.83645728 | P56: 15.39890539 | Q56: 13.93846048 | R56: 14.71100738 | S56: 11.50421226 | T56: 4.105352259 | U56: 13.55829253 | V56: 24.15420669 | W56: 27.65567253 | X56: 14.35278074 | Y56: 28.91165518 | Z56: 29.41979637 | AA56: 28.78468142 | AB56: 7.457160079 | AC56: 9.45101365 | AD56: 1.538008092 | AE56: 8.04607011 | AF56: 3.496630027

Sheet CHB_PP
E7: Key:
B8: ⓘ You are currently viewing the category page for population profile | F8: Cluster similar to health board average
B9: ⓘ You are currently viewing this information by clusters, by health board | F9: Cluster position lower than health board average
F10: Cluster position higher than health board average
F11: Primary care data exists, but no PHW access
F12: No statistical comparison made, or no data available
C14: Compare your position to others, and use the checkbox to select indicators of interest for review.
C15: After selecting indicators, scroll right to click 'Review this indicator'; this will open a web page.
C16: When complete, click the 'Next' button at the top, for the next category page.
C19: Population
C20: Indicator | D20: Age band | E20: Abertawe BM | F20: Bridgend East Network | G20: Bridgend North Network | H20: Bridgend West Network | I20: Afan | J20: Neath | K20: Upper Valleys | L20: BayHealth | M20: CityHealth | N20: Cwmtawe | O20: Llwchwr | P20: Penderi | Q20: Aneurin Bevan | R20: Blaenau Gwent East | S20: Blaenau Gwent West | T20: Caerphilly East | U20: Caerphilly North | V20: Caerphilly South | W20: Monmouthshire North | X20: Monmouthshire South | Y20: Newport Central | Z20: Newport East | AA20: Newport West | AB20: Torfaen North | AC20: Torfaen South | AD20: Betsi Cadwaladr | AE20: Anglesey | AF20: Conwy East | AG20: Conwy West | AH20: Central - South Denbighshire | AI20: North Denbighshire | AJ20: North East Flintshire | AK20: Nort West Flintshire | AL20: South flintshire | AM20: Arfon | AN20: Dwyfor | AO20: Meirionnydd | AP20: South Wrexham | AQ20: West - North Wrexham | AR20: Wrexham Town | AS20: Cardiff & Vale | AT20: Cardiff East | AU20: Cardiff North | AV20: Cardiff South East | AW20: Cardiff South West | AX20: Cardiff West | AY20: City - Cardiff South | AZ20: Central Vale | BA20: Eastern Vale | BB20: Western Vale | BC20: Cwm Taf | BD20: North Merthyr Tydfil | BE20: South Merthyr Tydfil | BF20: North Cynon | BG20: North Rhondda | BH20: North Taf Ely | BI20: South Cynon | BJ20: South Rhondda | BK20: South Taf Ely | BL20: Hywel Dda | BM20: Amman-Gwendraeth | BN20: Llanelli | BO20: Taf - Teifi - Tywi | BP20: North Ceredigion | BQ20: South Ceredigion | BR20: North Pembrokeshire | BS20: South Pembrokeshire | BT20: Powys | BU20: Mid Powys | BV20: North Powys | BW20: South Powys
C21: Population by age band, 2014 | D21: <16 | E21: 91500 | Q21: 108300 | AD21: 123800 | AS21: 88900 | BC21: 55200 | BL21: 65300 | BT21: 21900
D22: 16-64 | E22: 329800 | Q22: 361600 | AD22: 418100 | AS22: 318700 | BC22: 186500 | BL22: 230600 | BT22: 77200
D23: 65-84 | E23: 88800 | Q23: 97300 | AD23: 132300 | AS23: 63900 | BC23: 47900 | BL23: 76600 | BT23: 29100
D24: 85+ | E24: 13000 | Q24: 13300 | AD24: 19800 | AS24: 10500 | BC24: 6300 | BL24: 11500 | BT24: 4500
C25: Population projection
C26: Indicator | D26: Projected to | E26: Abertawe BM | F26: Bridgend East Network | G26: Bridgend North Network | H26: Bridgend West Network | I26: Afan | J26: Neath | K26: Upper Valleys | L26: BayHealth | M26: CityHealth | N26: Cwmtawe | O26: Llwchwr | P26: Penderi | Q26: Aneurin Bevan | R26: Blaenau Gwent East | S26: Blaenau Gwent West | T26: Caerphilly East | U26: Caerphilly North | V26: Caerphilly South | W26: Monmouthshire North | X26: Monmouthshire South | Y26: Newport Central | Z26: Newport East | AA26: Newport West | AB26: Torfaen North | AC26: Torfaen South | AD26: Betsi Cadwaladr | AE26: Anglesey | AF26: Conwy East | AG26: Conwy West | AH26: Central - South Denbighshire | AI26: North Denbighshire | AJ26: North East Flintshire | AK26: Nort West Flintshire | AL26: South flintshire | AM26: Arfon | AN26: Dwyfor | AO26: Meirionnydd | AP26: South Wrexham | AQ26: West - North Wrexham | AR26: Wrexham Town | AS26: Cardiff & Vale | AT26: Cardiff East | AU26: Cardiff North | AV26: Cardiff South East | AW26: Cardiff South West | AX26: Cardiff West | AY26: City - Cardiff South | AZ26: Central Vale | BA26: Eastern Vale | BB26: Western Vale | BC26: Cwm Taf | BD26: North Merthyr Tydfil | BE26: South Merthyr Tydfil | BF26: North Cynon | BG26: North Rhondda | BH26: North Taf Ely | BI26: South Cynon | BJ26: South Rhondda | BK26: South Taf Ely | BL26: Hywel Dda | BM26: Amman-Gwendraeth | BN26: Llanelli | BO26: Taf - Teifi - Tywi | BP26: North Ceredigion | BQ26: South Ceredigion | BR26: North Pembrokeshire | BS26: South Pembrokeshire | BT26: Powys | BU26: Mid Powys | BV26: North Powys | BW26: South Powys
C27: Population aged 0-18 | D27: 2017
D28: 2020
D29: 2025
D30: 2030
D31: 2035
D32: Projected to | E32: Abertawe BM | F32: Bridgend East Network | G32: Bridgend North Network | H32: Bridgend West Network | I32: Afan | J32: Neath | K32: Upper Valleys | L32: BayHealth | M32: CityHealth | N32: Cwmtawe | O32: Llwchwr | P32: Penderi | Q32: Aneurin Bevan | R32: Blaenau Gwent East | S32: Blaenau Gwent West | T32: Caerphilly East | U32: Caerphilly North | V32: Caerphilly South | W32: Monmouthshire North | X32: Monmouthshire South | Y32: Newport Central | Z32: Newport East | AA32: Newport West | AB32: Torfaen North | AC32: Torfaen South | AD32: Betsi Cadwaladr | AE32: Anglesey | AF32: Conwy East | AG32: Conwy West | AH32: Central - South Denbighshire | AI32: North Denbighshire | AJ32: North East Flintshire | AK32: Nort West Flintshire | AL32: South flintshire | AM32: Arfon | AN32: Dwyfor | AO32: Meirionnydd | AP32: South Wrexham | AQ32: West - North Wrexham | AR32: Wrexham Town | AS32: Cardiff & Vale | AT32: Cardiff East | AU32: Cardiff North | AV32: Cardiff South East | AW32: Cardiff South West | AX32: Cardiff West | AY32: City - Cardiff South | AZ32: Central Vale | BA32: Eastern Vale | BB32: Western Vale | BC32: Cwm Taf | BD32: North Merthyr Tydfil | BE32: South Merthyr Tydfil | BF32: North Cynon | BG32: North Rhondda | BH32: North Taf Ely | BI32: South Cynon | BJ32: South Rhondda | BK32: South Taf Ely | BL32: Hywel Dda | BM32: Amman-Gwendraeth | BN32: Llanelli | BO32: Taf - Teifi - Tywi | BP32: North Ceredigion | BQ32: South Ceredigion | BR32: North Pembrokeshire | BS32: South Pembrokeshire | BT32: Powys | BU32: Mid Powys | BV32: North Powys | BW32: South Powys
C33: Population aged 18+ | D33: 2017
D34: 2020
D35: 2025
D36: 2030
D37: 2035
C38: Life expectancy
C39: Indicator | D39: Period | E39: Abertawe BM | F39: Bridgend East Network | G39: Bridgend North Network | H39: Bridgend West Network | I39: Afan | J39: Neath | K39: Upper Valleys | L39: BayHealth | M39: CityHealth | N39: Cwmtawe | O39: Llwchwr | P39: Penderi | Q39: Aneurin Bevan | R39: Blaenau Gwent East | S39: Blaenau Gwent West | T39: Caerphilly East | U39: Caerphilly North | V39: Caerphilly South | W39: Monmouthshire North | X39: Monmouthshire South | Y39: Newport Central | Z39: Newport East | AA39: Newport West | AB39: Torfaen North | AC39: Torfaen South | AD39: Betsi Cadwaladr | AE39: Anglesey | AF39: Conwy East | AG39: Conwy West | AH39: Central - South Denbighshire | AI39: North Denbighshire | AJ39: North East Flintshire | AK39: Nort West Flintshire | AL39: South flintshire | AM39: Arfon | AN39: Dwyfor | AO39: Meirionnydd | AP39: South Wrexham | AQ39: West - North Wrexham | AR39: Wrexham Town | AS39: Cardiff and Vale | AT39: Cardiff East | AU39: Cardiff North | AV39: Cardiff South East | AW39: Cardiff South West | AX39: Cardiff West | AY39: City - Cardiff South | AZ39: Central Vale | BA39: Eastern Vale | BB39: Western Vale | BC39: Cwm Taf | BD39: North Merthyr Tydfil | BE39: South Merthyr Tydfil | BF39: North Cynon | BG39: North Rhondda | BH39: North Taf Ely | BI39: South Cynon | BJ39: South Rhondda | BK39: South Taf Ely | BL39: Hywel Dda | BM39: Amman-Gwendraeth | BN39: Llanelli | BO39: Taf - Teifi - Tywi | BP39: North Ceredigion | BQ39: South Ceredigion | BR39: North Pembrokeshire | BS39: South Pembrokeshire | BT39: Powys | BU39: Mid Powys | BV39: North Powys | BW39: South Powys
C40: Life expectancy at birth (M) (years) | D40: 2013-2015 | E40: 77.65453859 | Q40: 78.28109241 | AD40: 78.81460029 | AS40: 78.58836397 | BC40: 76.84880884 | BL40: 79.05198319 | BT40: 80.29212733
C41: Life expectancy at birth (F) (years) | D41: 2013-2015 | E41: 81.92364805 | Q41: 81.97276242 | AD41: 82.46854685 | AS41: 82.86062276 | BC41: 80.61972631 | BL41: 82.8240225 | BT41: 83.52014348
C42: The gap in life expectancy at birth between the most and least deprived (M) (years) | D42: 2013-2015 | E42: 9.62741 | Q42: 8.499183 | AD42: 8.772938 | AS42: 10.61214 | BC42: 7.53262 | BL42: 4.871387 | BT42: 5.160081
C43: The gap in life expectancy at birth between the most and least deprived (F) (years) | D43: 2013-2015 | E43: 6.867588 | Q43: 7.25687 | AD43: 6.1919 | AS43: 8.292018 | BC43: 3.896906 | BL43: 4.094896 | BT43: 5.208938
C44: Healthy life expectancy
C45: Indicator | D45: Period | E45: Abertawe BM | F45: Bridgend East Network | G45: Bridgend North Network | H45: Bridgend West Network | I45: Afan | J45: Neath | K45: Upper Valleys | L45: BayHealth | M45: CityHealth | N45: Cwmtawe | O45: Llwchwr | P45: Penderi | Q45: Aneurin Bevan | R45: Blaenau Gwent East | S45: Blaenau Gwent West | T45: Caerphilly East | U45: Caerphilly North | V45: Caerphilly South | W45: Monmouthshire North | X45: Monmouthshire South | Y45: Newport Central | Z45: Newport East | AA45: Newport West | AB45: Torfaen North | AC45: Torfaen South | AD45: Betsi Cadwaladr | AE45: Anglesey | AF45: Conwy East | AG45: Conwy West | AH45: Central - South Denbighshire | AI45: North Denbighshire | AJ45: North East Flintshire | AK45: Nort West Flintshire | AL45: South flintshire | AM45: Arfon | AN45: Dwyfor | AO45: Meirionnydd | AP45: South Wrexham | AQ45: West - North Wrexham | AR45: Wrexham Town | AS45: Cardiff and Vale | AT45: Cardiff East | AU45: Cardiff North | AV45: Cardiff South East | AW45: Cardiff South West | AX45: Cardiff West | AY45: City - Cardiff South | AZ45: Central Vale | BA45: Eastern Vale | BB45: Western Vale | BC45: Cwm Taf | BD45: North Merthyr Tydfil | BE45: South Merthyr Tydfil | BF45: North Cynon | BG45: North Rhondda | BH45: North Taf Ely | BI45: South Cynon | BJ45: South Rhondda | BK45: South Taf Ely | BL45: Hywel Dda | BM45: Amman-Gwendraeth | BN45: Llanelli | BO45: Taf - Teifi - Tywi | BP45: North Ceredigion | BQ45: South Ceredigion | BR45: North Pembrokeshire | BS45: South Pembrokeshire | BT45: Powys | BU45: Mid Powys | BV45: North Powys | BW45: South Powys
C46: Healthy life expectancy at birth (M) (years) | D46: 2010-2014 | E46: 63.94520057 | Q46: 63.81544142 | AD46: 67.56965258 | AS46: 65.71241035 | BC46: 61.18665949 | BL46: 66.18500078 | BT46: 68.17285771
C47: Healthy life expectancy at birth (F) (years) | D47: 2010-2014 | E47: 64.95507662 | Q47: 65.27297201 | AD47: 69.21621801 | AS47: 67.61895967 | BC47: 62.63255251 | BL47: 67.63545743 | BT47: 68.68262525
C48: The gap in healthy life expectancy at birth between the most and least deprived (M) (years) | D48: 2010-2014 | E48: 20.82888 | Q48: 18.29871 | AD48: 13.32647 | AS48: 23.18956 | BC48: 14.78356 | BL48: 12.16854 | BT48: 10.40105
C49: The gap in healthy life expectancy at birth between the most and least deprived (F) (years) | D49: 2010-2014 | E49: 18.29983 | Q49: 18.58087 | AD49: 13.80093 | AS49: 21.90244 | BC49: 15.0085 | BL49: 12.15889 | BT49: 14.40537
C50: Deprivation
C51: Indicator | D51: Deprivation level | E51: Abertawe BM | F51: Bridgend East Network | G51: Bridgend North Network | H51: Bridgend West Network | I51: Afan | J51: Neath | K51: Upper Valleys | L51: BayHealth | M51: CityHealth | N51: Cwmtawe | O51: Llwchwr | P51: Penderi | Q51: Aneurin Bevan | R51: Blaenau Gwent East | S51: Blaenau Gwent West | T51: Caerphilly East | U51: Caerphilly North | V51: Caerphilly South | W51: Monmouthshire North | X51: Monmouthshire South | Y51: Newport Central | Z51: Newport East | AA51: Newport West | AB51: Torfaen North | AC51: Torfaen South | AD51: Betsi Cadwaladr | AE51: Anglesey | AF51: Conwy East | AG51: Conwy West | AH51: Central - South Denbighshire | AI51: North Denbighshire | AJ51: North East Flintshire | AK51: Nort West Flintshire | AL51: South flintshire | AM51: Arfon | AN51: Dwyfor | AO51: Meirionnydd | AP51: South Wrexham | AQ51: West - North Wrexham | AR51: Wrexham Town | AS51: Cardiff and Vale | AT51: Cardiff East | AU51: Cardiff North | AV51: Cardiff South East | AW51: Cardiff South West | AX51: Cardiff West | AY51: City - Cardiff South | AZ51: Central Vale | BA51: Eastern Vale | BB51: Western Vale | BC51: Cwm Taf | BD51: North Merthyr Tydfil | BE51: South Merthyr Tydfil | BF51: North Cynon | BG51: North Rhondda | BH51: North Taf Ely | BI51: South Cynon | BJ51: South Rhondda | BK51: South Taf Ely | BL51: Hywel Dda | BM51: Amman-Gwendraeth | BN51: Llanelli | BO51: Taf - Teifi - Tywi | BP51: North Ceredigion | BQ51: South Ceredigion | BR51: North Pembrokeshire | BS51: South Pembrokeshire | BT51: Powys | BU51: Mid Powys | BV51: North Powys | BW51: South Powys
C52: Population estimates by deprivation fifth, 2015 (%) | D52: Least deprived | E52: 23.83712743 | Q52: 17.97524532 | AD52: 20.04267985 | AS52: 34.67690695 | BC52: 11.87861223 | BL52: 7.529962503 | BT52: 10.17023266
D53: Next least deprived | E53: 13.28649237 | Q53: 14.13089625 | AD53: 28.46402956 | AS53: 15.70555666 | BC53: 8.991861425 | BL53: 27.46399672 | BT53: 53.21240633
D54: Middle | E54: 16.45320535 | Q54: 20.07944461 | AD54: 21.71920291 | AS54: 12.3062927 | BC54: 15.9334086 | BL54: 37.80611593 | BT54: 23.61393827
D55: Next most deprived | E55: 21.11535285 | Q55: 21.82251641 | AD55: 17.9376304 | AS55: 13.157037 | BC55: 34.28446257 | BL55: 19.74276477 | BT55: 9.50679272
D56: Most deprived | E56: 25.30782201 | Q56: 25.99189741 | AD56: 11.83645728 | AS56: 24.15420669 | BC56: 28.91165518 | BL56: 7.457160079 | BT56: 3.496630027

Sheet CLA_PP
E7: Key:
B8: ⓘ You are currently viewing the category page for population profile | F8: Primary care data exists, but no PHW access
B9: ⓘ You are currently viewing this information by clusters, by local authority (PSB) | F9: No statistical comparison made, or no data available
C14: Compare your position to others, and use the checkbox to select indicators of interest for review.
C15: After selecting indicators, scroll right to click 'Review this indicator'; this will open a web page.
C16: When complete, click the 'Next' button at the top, for the next category page.
C19: Population
C20: Indicator | D20: Age band | E20: Bridgend | F20: Bridgend East Network | G20: Bridgend North Network | H20: Bridgend West Network | I20: Neath Port Talbot | J20: Afan | K20: Neath | L20: Upper Valleys | M20: Swansea | N20: BayHealth | O20: CityHealth | P20: Cwmtawe | Q20: Llwchwr | R20: Penderi | S20: Blaenau Gwent | T20: Blaenau Gwent East | U20: Blaenau Gwent West | V20: Caerphilly | W20: Caerphilly East | X20: Caerphilly North | Y20: Caerphilly South | Z20: Monmouthshire | AA20: Monmouthshire North | AB20: Monmouthshire South | AC20: Newport | AD20: Newport Central | AE20: Newport East | AF20: Newport West | AG20: Torfaen | AH20: Torfaen North | AI20: Torfaen South | AJ20: Anglesey LA | AK20: Anglesey Cluster | AL20: Conwy | AM20: Conwy East | AN20: Conwy West | AO20: Denbighshire | AP20: Central - South Denbighshire | AQ20: North Denbighshire | AR20: Flintshire | AS20: North East Flintshire | AT20: Nort West Flintshire | AU20: South flintshire | AV20: Gwynedd | AW20: Arfon | AX20: Dwyfor | AY20: Meirionnydd | AZ20: Wrexham | BA20: South Wrexham | BB20: West - North Wrexham | BC20: Wrexham Town | BD20: Cardiff | BE20: Cardiff East | BF20: Cardiff North | BG20: Cardiff South East | BH20: Cardiff South West | BI20: Cardiff West | BJ20: City - Cardiff South | BK20: Vale of Glamorgan | BL20: Central Vale | BM20: Eastern Vale | BN20: Western Vale | BO20: Merthyr Tydfil | BP20: North Merthyr Tydfil | BQ20: South Merthyr Tydfil | BR20: Rhondda Cynon Taf | BS20: North Cynon | BT20: North Rhondda | BU20: North Taf Ely | BV20: South Cynon | BW20: South Rhondda | BX20: South Taf Ely | BY20: Carmarthenshire | BZ20: Amman-Gwendraeth | CA20: Llanelli | CB20: Taf - Teifi - Tywi | CC20: Ceredigion | CD20: North Ceredigion | CE20: South Ceredigion | CF20: Pembrokeshire | CG20: North Pembrokeshire | CH20: South Pembrokeshire | CI20: Powys | CJ20: Mid Powys | CK20: North Powys | CL20: South Powys
C21: Population by age band, 2014 | D21: <16 | E21: 25500 | I21: 24500 | M21: 41500 | S21: 12200 | V21: 34200 | Z21: 15600 | AC21: 29300 | AG21: 16900 | AJ21: 12100 | AL21: 18900 | AO21: 17100 | AR21: 28400 | AV21: 20900 | AZ21: 26300 | BD21: 65300 | BK21: 23700 | BO21: 11000 | BR21: 44200 | BY21: 32600 | CC21: 11000 | CF21: 21600 | CI21: 21900
D22: 16-64 | E22: 88300 | I22: 87900 | M22: 153500 | S22: 44000 | V22: 113100 | Z22: 55500 | AC22: 92100 | AG22: 56900 | AJ22: 41100 | AL22: 66900 | AO22: 55900 | AR22: 95100 | AV22: 74100 | AZ22: 85000 | BD22: 240200 | BK22: 78500 | BO22: 37500 | BR22: 149100 | BY22: 110700 | CC22: 47300 | CF22: 72600 | CI22: 77200
D23: 65-84 | E23: 24200 | I23: 24500 | M23: 40100 | S23: 11900 | V23: 29200 | Z23: 18500 | AC23: 22200 | AG23: 15500 | AJ23: 14800 | AL23: 25800 | AO23: 19100 | AR23: 26900 | AV23: 23400 | AZ23: 22300 | BD23: 41700 | BK23: 22200 | BO23: 9300 | BR23: 38500 | BY23: 36100 | CC23: 14800 | CF23: 25700 | CI23: 29100
D24: 85+ | E24: 3200 | I24: 3600 | M24: 6200 | S24: 1500 | V24: 3500 | Z24: 2800 | AC24: 3200 | AG24: 2300 | AJ24: 2200 | AL24: 4600 | AO24: 2700 | AR24: 3400 | AV24: 3800 | AZ24: 3200 | BD24: 7100 | BK24: 3300 | BO24: 1200 | BR24: 5100 | BY24: 5400 | CC24: 2300 | CF24: 3800 | CI24: 4500
C25: Population projection
C26: Indicator | D26: Projected to | E26: Bridgend | F26: Bridgend East Network | G26: Bridgend North Network | H26: Bridgend West Network | I26: Neath Port Talbot | J26: Afan | K26: Neath | L26: Upper Valleys | M26: Swansea | N26: BayHealth | O26: CityHealth | P26: Cwmtawe | Q26: Llwchwr | R26: Penderi | S26: Blaenau Gwent | T26: Blaenau Gwent East | U26: Blaenau Gwent West | V26: Caerphilly | W26: Caerphilly East | X26: Caerphilly North | Y26: Caerphilly South | Z26: Monmouthshire | AA26: Monmouthshire North | AB26: Monmouthshire South | AC26: Newport | AD26: Newport Central | AE26: Newport East | AF26: Newport West | AG26: Torfaen | AH26: Torfaen North | AI26: Torfaen South | AJ26: Anglesey LA | AK26: Anglesey Cluster | AL26: Conwy | AM26: Conwy East | AN26: Conwy West | AO26: Denbighshire | AP26: Central - South Denbighshire | AQ26: North Denbighshire | AR26: Flintshire | AS26: North East Flintshire | AT26: Nort West Flintshire | AU26: South flintshire | AV26: Gwynedd | AW26: Arfon | AX26: Dwyfor | AY26: Meirionnydd | AZ26: Wrexham | BA26: South Wrexham | BB26: West - North Wrexham | BC26: Wrexham Town | BD26: Cardiff | BE26: Cardiff East | BF26: Cardiff North | BG26: Cardiff South East | BH26: Cardiff South West | BI26: Cardiff West | BJ26: City - Cardiff South | BK26: Vale of Glamorgan | BL26: Central Vale | BM26: Eastern Vale | BN26: Western Vale | BO26: Merthyr Tydfil | BP26: North Merthyr Tydfil | BQ26: South Merthyr Tydfil | BR26: Rhondda Cynon Taf | BS26: North Cynon | BT26: North Rhondda | BU26: North Taf Ely | BV26: South Cynon | BW26: South Rhondda | BX26: South Taf Ely | BY26: Carmarthenshire | BZ26: Amman-Gwendraeth | CA26: Llanelli | CB26: Taf - Teifi - Tywi | CC26: Ceredigion | CD26: North Ceredigion | CE26: South Ceredigion | CF26: Pembrokeshire | CG26: North Pembrokeshire | CH26: South Pembrokeshire | CI26: Powys | CJ26: Mid Powys | CK26: North Powys | CL26: South Powys
C27: Population aged 0-18 | D27: 2017 | E27: 29280 | I27: 28360 | M27: 47110 | S27: 13630 | V27: 38870 | Z27: 17390 | AC27: 34100 | AG27: 19450 | AJ27: 13790 | AL27: 21700 | AO27: 19560 | AR27: 31940 | AV27: 22850 | AZ27: 30590 | BD27: 76400 | BK27: 26580 | BO27: 12490 | BR27: 50280 | BY27: 37980 | CC27: 12780 | CF27: 24610 | CI27: 24540
D28: 2020 | E28: 29760 | I28: 28790 | M28: 47860 | S28: 13630 | V28: 38980 | Z28: 17130 | AC28: 35230 | AG28: 19870 | AJ28: 14040 | AL28: 21920 | AO28: 20010 | AR28: 32090 | AV28: 22840 | AZ28: 31470 | BD28: 80820 | BK28: 26710 | BO28: 12710 | BR28: 51070 | BY28: 38730 | CC28: 13050 | CF28: 24840 | CI28: 24400
D29: 2025 | E29: 30130 | I29: 28910 | M29: 49110 | S29: 13280 | V29: 38300 | Z29: 16710 | AC29: 37080 | AG29: 20110 | AJ29: 14130 | AL29: 21860 | AO29: 20430 | AR29: 31690 | AV29: 23120 | AZ29: 32130 | BD29: 87630 | BK29: 26700 | BO29: 12770 | BR29: 50970 | BY29: 39480 | CC29: 13520 | CF29: 24830 | CI29: 24150
D30: 2030 | E30: 29480 | I30: 28040 | M30: 49180 | S30: 12290 | V30: 36440 | Z30: 16060 | AC30: 37590 | AG30: 19560 | AJ30: 13370 | AL30: 20870 | AO30: 19870 | AR30: 30030 | AV30: 23360 | AZ30: 31660 | BD30: 91180 | BK30: 25920 | BO30: 12170 | BR30: 49040 | BY30: 38900 | CC30: 13760 | CF30: 23840 | CI30: 23240
D31: 2035 | E31: 28120 | I31: 26530 | M31: 48470 | S31: 11230 | V31: 34550 | Z31: 15360 | AC31: 37480 | AG31: 18540 | AJ31: 12520 | AL31: 19570 | AO31: 19150 | AR31: 28620 | AV31: 23900 | AZ31: 31390 | BD31: 93410 | BK31: 25120 | BO31: 11350 | BR31: 46960 | BY31: 38020 | CC31: 13790 | CF31: 22610 | CI31: 22020
D32: Projected to | E32: Bridgend | F32: Bridgend East Network | G32: Bridgend North Network | H32: Bridgend West Network | I32: Neath Port Talbot | J32: Afan | K32: Neath | L32: Upper Valleys | M32: Swansea | N32: BayHealth | O32: CityHealth | P32: Cwmtawe | Q32: Llwchwr | R32: Penderi | S32: Blaenau Gwent | T32: Blaenau Gwent East | U32: Blaenau Gwent West | V32: Caerphilly | W32: Caerphilly East | X32: Caerphilly North | Y32: Caerphilly South | Z32: Monmouthshire | AA32: Monmouthshire North | AB32: Monmouthshire South | AC32: Newport | AD32: Newport Central | AE32: Newport East | AF32: Newport West | AG32: Torfaen | AH32: Torfaen North | AI32: Torfaen South | AJ32: Anglesey LA | AK32: Anglesey Cluster | AL32: Conwy | AM32: Conwy East | AN32: Conwy West | AO32: Denbighshire | AP32: Central - South Denbighshire | AQ32: North Denbighshire | AR32: Flintshire | AS32: North East Flintshire | AT32: Nort West Flintshire | AU32: South flintshire | AV32: Gwynedd | AW32: Arfon | AX32: Dwyfor | AY32: Meirionnydd | AZ32: Wrexham | BA32: South Wrexham | BB32: West - North Wrexham | BC32: Wrexham Town | BD32: Cardiff | BE32: Cardiff East | BF32: Cardiff North | BG32: Cardiff South East | BH32: Cardiff South West | BI32: Cardiff West | BJ32: City - Cardiff South | BK32: Vale of Glamorgan | BL32: Central Vale | BM32: Eastern Vale | BN32: Western Vale | BO32: Merthyr Tydfil | BP32: North Merthyr Tydfil | BQ32: South Merthyr Tydfil | BR32: Rhondda Cynon Taf | BS32: North Cynon | BT32: North Rhondda | BU32: North Taf Ely | BV32: South Cynon | BW32: South Rhondda | BX32: South Taf Ely | BY32: Carmarthenshire | BZ32: Amman-Gwendraeth | CA32: Llanelli | CB32: Taf - Teifi - Tywi | CC32: Ceredigion | CD32: North Ceredigion | CE32: South Ceredigion | CF32: Pembrokeshire | CG32: North Pembrokeshire | CH32: South Pembrokeshire | CI32: Powys | CJ32: Mid Powys | CK32: North Powys | CL32: South Powys
C33: Population aged 18+ | D33: 2017 | E33: 114440 | I33: 112960 | M33: 142550 | S33: 55620 | V33: 151900 | Z33: 74710 | AC33: 117640 | AG33: 72720 | AJ33: 56430 | AL33: 94520 | AO33: 76850 | AR33: 122840 | AV33: 100650 | AZ33: 112180 | BD33: 294830 | BK33: 102800 | BO33: 47840 | BR33: 185900 | BY33: 199550 | CC33: 63520 | CF33: 100010 | CI33: 110350
D34: 2020 | E34: 115890 | I34: 113210 | M34: 143520 | S34: 55350 | V34: 154170 | Z34: 75160 | AC34: 119760 | AG34: 72770 | AJ34: 56230 | AL34: 94690 | AO34: 77650 | AR34: 123470 | AV34: 101910 | AZ34: 115050 | BD34: 304030 | BK34: 103890 | BO34: 48320 | BR34: 185870 | BY34: 202980 | CC34: 63850 | CF34: 100700 | CI34: 111280
D35: 2025 | E35: 118100 | I35: 113760 | M35: 145170 | S35: 54950 | V35: 157960 | Z35: 75630 | AC35: 123260 | AG35: 72930 | AJ35: 55860 | AL35: 95000 | AO35: 78990 | AR35: 124480 | AV35: 103960 | AZ35: 120170 | BD35: 320490 | BK35: 105560 | BO35: 49080 | BR35: 186460 | BY35: 208470 | CC35: 64430 | CF35: 101710 | CI35: 112300
D36: 2030 | E36: 120360 | I36: 114630 | M36: 146970 | S36: 54740 | V36: 162150 | Z36: 75750 | AC36: 127720 | AG36: 73310 | AJ36: 55880 | AL36: 95590 | AO36: 80730 | AR36: 125810 | AV36: 106050 | AZ36: 125900 | BD36: 340150 | BK36: 107400 | BO36: 50100 | BR36: 187830 | BY36: 214410 | CC36: 64990 | CF36: 102910 | CI36: 112990
D37: 2035 | E37: 122750 | I37: 115700 | M37: 148020 | S37: 54300 | V37: 165900 | Z37: 75280 | AC37: 132530 | AG37: 73790 | AJ37: 55750 | AL37: 95970 | AO37: 82230 | AR37: 126180 | AV37: 107570 | AZ37: 131140 | BD37: 360640 | BK37: 108600 | BO37: 51070 | BR37: 188750 | BY37: 220460 | CC37: 65410 | CF37: 103760 | CI37: 112960
C38: Life expectancy
C39: Indicator | D39: Period | E39: Bridgend | F39: Bridgend East Network | G39: Bridgend North Network | H39: Bridgend West Network | I39: Neath Port Talbot | J39: Afan | K39: Neath | L39: Upper Valleys | M39: Swansea | N39: BayHealth | O39: CityHealth | P39: Cwmtawe | Q39: Llwchwr | R39: Penderi | S39: Blaenau Gwent | T39: Blaenau Gwent East | U39: Blaenau Gwent West | V39: Caerphilly | W39: Caerphilly East | X39: Caerphilly North | Y39: Caerphilly South | Z39: Monmouthshire | AA39: Monmouthshire North | AB39: Monmouthshire South | AC39: Newport | AD39: Newport Central | AE39: Newport East | AF39: Newport West | AG39: Torfaen | AH39: Torfaen North | AI39: Torfaen South | AJ39: Anglesey | AK39: Anglesey Cluster | AL39: Conwy | AM39: Conwy East | AN39: Conwy West | AO39: Denbighshire | AP39: Central - South Denbighshire | AQ39: North Denbighshire | AR39: Flintshire | AS39: North East Flintshire | AT39: Nort West Flintshire | AU39: South flintshire | AV39: Gwynedd | AW39: Arfon | AX39: Dwyfor | AY39: Meirionnydd | AZ39: Wrexham | BA39: South Wrexham | BB39: West - North Wrexham | BC39: Wrexham Town | BD39: Cardiff | BE39: Cardiff East | BF39: Cardiff North | BG39: Cardiff South East | BH39: Cardiff South West | BI39: Cardiff West | BJ39: City - Cardiff South | BK39: Vale of Glamorgan | BL39: Central Vale | BM39: Eastern Vale | BN39: Western Vale | BO39: Merthyr Tydfil | BP39: North Merthyr Tydfil | BQ39: South Merthyr Tydfil | BR39: Rhondda Cynon Taf | BS39: North Cynon | BT39: North Rhondda | BU39: North Taf Ely | BV39: South Cynon | BW39: South Rhondda | BX39: South Taf Ely | BY39: Carmarthenshire | BZ39: Amman-Gwendraeth | CA39: Llanelli | CB39: Taf - Teifi - Tywi | CC39: Ceredigion | CD39: North Ceredigion | CE39: South Ceredigion | CF39: Pembrokeshire | CG39: North Pembrokeshire | CH39: South Pembrokeshire | CI39: Powys | CJ39: Mid Powys | CK39: North Powys | CL39: South Powys
C40: Life expectancy at birth (M) (years) | D40: 2013-2015 | E40: 77.20275979 | I40: 77.43220802 | M40: 78.03139764 | S40: 76.4739071 | V40: 77.78281912 | Z40: 80.7234922 | AC40: 78.07165552 | AG40: 78.22295958 | AJ40: 78.7754007 | AL40: 78.88994809 | AO40: 77.99244961 | AR40: 79.00987716 | AV40: 79.5873989 | AZ40: 78.42764202 | BD40: 78.32465772 | BK40: 79.13669735 | BO40: 76.60064636 | BR40: 76.92885402 | BY40: 78.64968456 | CC40: 79.91693813 | CF40: 79.14176961 | CI40: 80.29212733
C41: Life expectancy at birth (F) (years) | D41: 2013-2015 | E41: 81.81699159 | I41: 81.13800495 | M41: 82.46800663 | S41: 80.57922726 | V41: 81.1517334 | Z41: 84.08645393 | AC41: 82.28563575 | AG41: 81.96432249 | AJ41: 82.62592048 | AL41: 82.54252343 | AO41: 81.82476695 | AR41: 82.44487111 | AV41: 83.66797338 | AZ41: 81.63830611 | BD41: 82.62710753 | BK41: 83.24310981 | BO41: 80.55068977 | BR41: 80.64428048 | BY41: 82.30282374 | CC41: 83.71218893 | CF41: 83.15040031 | CI41: 83.52014348
C42: The gap in life expectancy at birth between the most and least deprived (M) (years) | D42: 2013-2015 | E42: 9.228729 | I42: 7.375786 | M42: 10.71898 | S42: 5.767316 | V42: 7.608818 | Z42: 5.292898 | AC42: 9.39888 | AG42: 6.934594 | AJ42: 7.225047 | AL42: 9.676341 | AO42: 12.13511 | AR42: 9.795579 | AV42: 3.418541 | AZ42: 8.229107 | BD42: 11.01725 | BK42: 8.970684 | BO42: 7.991498 | BR42: 7.386565 | BY42: 6.331914 | CC42: 1.217699 | CF42: 4.665848 | CI42: 5.160081
C43: The gap in life expectancy at birth between the most and least deprived (F) (years) | D43: 2013-2015 | E43: 5.35109 | I43: 6.338759 | M43: 7.129606 | S43: 3.683035 | V43: 6.555598 | Z43: 4.174849 | AC43: 6.621215 | AG43: 7.369978 | AJ43: 4.116653 | AL43: 6.251151 | AO43: 7.267161 | AR43: 7.134896 | AV43: 2.664713 | AZ43: 6.627221 | BD43: 8.843637 | BK43: 6.965418 | BO43: 4.619127 | BR43: 3.777052 | BY43: 4.327973 | CC43: 3.227716 | CF43: 3.406263 | CI43: 5.208938
C44: Healthy life expectancy
C45: Indicator | D45: Period | E45: Bridgend | F45: Bridgend East Network | G45: Bridgend North Network | H45: Bridgend West Network | I45: Neath Port Talbot | J45: Afan | K45: Neath | L45: Upper Valleys | M45: Swansea | N45: BayHealth | O45: CityHealth | P45: Cwmtawe | Q45: Llwchwr | R45: Penderi | S45: Blaenau Gwent | T45: Blaenau Gwent East | U45: Blaenau Gwent West | V45: Caerphilly | W45: Caerphilly East | X45: Caerphilly North | Y45: Caerphilly South | Z45: Monmouthshire | AA45: Monmouthshire North | AB45: Monmouthshire South | AC45: Newport | AD45: Newport Central | AE45: Newport East | AF45: Newport West | AG45: Torfaen | AH45: Torfaen North | AI45: Torfaen South | AJ45: Anglesey | AK45: Anglesey Cluster | AL45: Conwy | AM45: Conwy East | AN45: Conwy West | AO45: Denbighshire | AP45: Central - South Denbighshire | AQ45: North Denbighshire | AR45: Flintshire | AS45: North East Flintshire | AT45: Nort West Flintshire | AU45: South flintshire | AV45: Gwynedd | AW45: Arfon | AX45: Dwyfor | AY45: Meirionnydd | AZ45: Wrexham | BA45: South Wrexham | BB45: West - North Wrexham | BC45: Wrexham Town | BD45: Cardiff | BE45: Cardiff East | BF45: Cardiff North | BG45: Cardiff South East | BH45: Cardiff South West | BI45: Cardiff West | BJ45: City - Cardiff South | BK45: Vale of Glamorgan | BL45: Central Vale | BM45: Eastern Vale | BN45: Western Vale | BO45: Merthyr Tydfil | BP45: North Merthyr Tydfil | BQ45: South Merthyr Tydfil | BR45: Rhondda Cynon Taf | BS45: North Cynon | BT45: North Rhondda | BU45: North Taf Ely | BV45: South Cynon | BW45: South Rhondda | BX45: South Taf Ely | BY45: Carmarthenshire | BZ45: Amman-Gwendraeth | CA45: Llanelli | CB45: Taf - Teifi - Tywi | CC45: Ceredigion | CD45: North Ceredigion | CE45: South Ceredigion | CF45: Pembrokeshire | CG45: North Pembrokeshire | CH45: South Pembrokeshire | CI45: Powys | CJ45: Mid Powys | CK45: North Powys | CL45: South Powys
C46: Healthy life expectancy at birth (M) (years) | D46: 2010-2014 | E46: 63.42931606 | I46: 61.88785741 | M46: 65.49619903 | S46: 59.64393412 | V46: 61.53586549 | Z46: 69.82596268 | AC46: 65.4467619 | AG46: 63.08565224 | AJ46: 67.73292768 | AL46: 67.29573592 | AO46: 67.49296159 | AR46: 67.72133787 | AV46: 68.15796099 | AZ46: 66.81044114 | BD46: 65.32116737 | BK46: 66.62823376 | BO46: 61.06593254 | BR46: 61.22013974 | BY46: 65.005427 | CC46: 67.86423024 | CF46: 66.85549355 | CI46: 68.17285771
C47: Healthy life expectancy at birth (F) (years) | D47: 2010-2014 | E47: 64.30939299 | I47: 62.42215167 | M47: 66.82278961 | S47: 59.31279046 | V47: 63.70510412 | Z47: 70.73351562 | AC47: 67.18932473 | AG47: 64.37146304 | AJ47: 70.9172907 | AL47: 69.09908074 | AO47: 67.66414758 | AR47: 68.86945143 | AV47: 71.10818175 | AZ47: 67.84948309 | BD47: 67.06763077 | BK47: 68.71212405 | BO47: 61.47037138 | BR47: 62.93691553 | BY47: 65.95705584 | CC47: 69.71121254 | CF47: 69.04688503 | CI47: 68.68262525
C48: The gap in healthy life expectancy at birth between the most and least deprived (M) (years) | D48: 2010-2014 | E48: 21.54405 | I48: 16.89034 | M48: 21.89341 | S48: 11.79445 | V48: 13.03796 | Z48: 10.067 | AC48: 18.15821 | AG48: 14.78548 | AJ48: 12.66687 | AL48: 14.63977 | AO48: 15.95071 | AR48: 11.63358 | AV48: 9.17693 | AZ48: 14.96532 | BD48: 24.36261 | BK48: 20.88212 | BO48: 15.48083 | BR48: 15.12212 | BY48: 10.60403 | CC48: 9.293758 | CF48: 11.9485 | CI48: 10.40105
C49: The gap in healthy life expectancy at birth between the most and least deprived (F) (years) | D49: 2010-2014 | E49: 16.16461 | I49: 18.4186 | M49: 16.3343 | S49: 12.34524 | V49: 14.57903 | Z49: 11.14416 | AC49: 18.4186 | AG49: 12.47506 | AJ49: 6.831001 | AL49: 13.51335 | AO49: 20.54576 | AR49: 13.65122 | AV49: 7.001942 | AZ49: 16.94312 | BD49: 21.7765 | BK49: 23.41286 | BO49: 15.1825 | BR49: 13.34769 | BY49: 12.47506 | CC49: 6.66898 | CF49: 11.94085 | CI49: 14.40537
C50: Deprivation
C51: Indicator | D51: Period | E51: Bridgend | F51: Bridgend East Network | G51: Bridgend North Network | H51: Bridgend West Network | I51: Neath Port Talbot | J51: Afan | K51: Neath | L51: Upper Valleys | M51: Swansea | N51: BayHealth | O51: CityHealth | P51: Cwmtawe | Q51: Llwchwr | R51: Penderi | S51: Blaenau Gwent | T51: Blaenau Gwent East | U51: Blaenau Gwent West | V51: Caerphilly | W51: Caerphilly East | X51: Caerphilly North | Y51: Caerphilly South | Z51: Monmouthshire | AA51: Monmouthshire North | AB51: Monmouthshire South | AC51: Newport | AD51: Newport Central | AE51: Newport East | AF51: Newport West | AG51: Torfaen | AH51: Torfaen North | AI51: Torfaen South | AJ51: Anglesey | AK51: Anglesey Cluster | AL51: Conwy | AM51: Conwy East | AN51: Conwy West | AO51: Denbighshire | AP51: Central - South Denbighshire | AQ51: North Denbighshire | AR51: Flintshire | AS51: North East Flintshire | AT51: Nort West Flintshire | AU51: South flintshire | AV51: Gwynedd | AW51: Arfon | AX51: Dwyfor | AY51: Meirionnydd | AZ51: Wrexham | BA51: South Wrexham | BB51: West - North Wrexham | BC51: Wrexham Town | BD51: Cardiff | BE51: Cardiff East | BF51: Cardiff North | BG51: Cardiff South East | BH51: Cardiff South West | BI51: Cardiff West | BJ51: City - Cardiff South | BK51: Vale of Glamorgan | BL51: Central Vale | BM51: Eastern Vale | BN51: Western Vale | BO51: Merthyr Tydfil | BP51: North Merthyr Tydfil | BQ51: South Merthyr Tydfil | BR51: Rhondda Cynon Taf | BS51: North Cynon | BT51: North Rhondda | BU51: North Taf Ely | BV51: South Cynon | BW51: South Rhondda | BX51: South Taf Ely | BY51: Carmarthenshire | BZ51: Amman-Gwendraeth | CA51: Llanelli | CB51: Taf - Teifi - Tywi | CC51: Ceredigion | CD51: North Ceredigion | CE51: South Ceredigion | CF51: Pembrokeshire | CG51: North Pembrokeshire | CH51: South Pembrokeshire | CI51: Powys | CJ51: Mid Powys | CK51: North Powys | CL51: South Powys
C52: Population estimates by deprivation fifth, 2015 (%) | D52: Least deprived | E52: 22.60085015 | I52: 10.98785747 | M52: 32.03620731 | S52: 0 | V52: 11.7004507 | Z52: 38.16882218 | AC52: 25.33684332 | AG52: 11.71762707 | AJ52: 14.05278726 | AL52: 22.00433668 | AO52: 19.92269593 | AR52: 29.30410063 | AV52: 10.48232192 | AZ52: 19.67844153 | BD52: 29.61053869 | BK52: 48.85886262 | BO52: 5.859348662 | BR52: 13.3826992 | BY52: 4.415442706 | CC52: 20.53803489 | CF52: 4.335676796 | CI52: 10.17023266
D53: Next least deprived | E53: 15.81580948 | I53: 12.37871652 | M53: 12.33177381 | S53: 1.755722996 | V53: 12.0645634 | Z53: 27.19840824 | AC53: 10.20782437 | AG53: 20.70974346 | AJ53: 18.05255862 | AL53: 30.34297613 | AO53: 24.22827935 | AR53: 28.59145605 | AV53: 40.30635499 | AZ53: 24.34155159 | BD53: 16.84287154 | BK53: 12.52194495 | BO53: 7.585462882 | BR53: 9.343290749 | BY53: 23.01928988 | CC53: 25.92508239 | CF53: 35.05880257 | CI53: 53.21240633
D54: Middle | E54: 14.7531177 | I54: 17.15629256 | M54: 17.04086937 | S54: 23.91867019 | V54: 22.83364046 | Z54: 23.54340586 | AC54: 14.37107918 | AG54: 17.46591751 | AJ54: 37.53697538 | AL54: 15.55697052 | AO54: 24.37296047 | AR54: 11.53796228 | AV54: 31.66753484 | AZ54: 19.55549701 | BD54: 12.80770523 | BK54: 10.90272117 | BO54: 22.01301328 | BR54: 14.41424365 | BY54: 37.38055239 | CC54: 44.87419951 | CF54: 34.17109441 | CI54: 23.61393827
D55: Next most deprived | E55: 25.82059511 | I55: 30.15632093 | M55: 13.09791981 | S55: 27.65012079 | V55: 25.8819742 | Z55: 11.08936373 | AC55: 18.57832157 | AG55: 25.47367046 | AJ55: 14.95877335 | AL55: 18.15725619 | AO55: 16.76505687 | AR55: 19.06226878 | AV55: 13.43843599 | AZ55: 22.86621733 | BD55: 13.08321201 | BK55: 13.36369051 | BO55: 35.1223788 | BR55: 34.07508498 | BY55: 25.73370138 | CC55: 7.124675116 | CF55: 18.38835612 | CI55: 9.50679272
D56: Most deprived | E56: 21.00962757 | I56: 29.32081253 | M56: 25.4932297 | S56: 46.67548602 | V56: 27.51937124 | Z56: 0 | AC56: 31.50593156 | AG56: 24.63304151 | AJ56: 15.39890539 | AL56: 13.93846048 | AO56: 14.71100738 | AR56: 11.50421226 | AV56: 4.105352259 | AZ56: 13.55829253 | BD56: 27.65567253 | BK56: 14.35278074 | BO56: 29.41979637 | BR56: 28.78468142 | BY56: 9.45101365 | CC56: 1.538008092 | CF56: 8.04607011 | CI56: 3.496630027

Sheet HB_LTC
H7: Key:
B8: ⓘ You are currently viewing the category page for long-term condition prevention & prevalence | I8: Primary care data exists, but no PHW access
B9: ⓘ You are currently viewing this information by health board | I9: No statistical comparison made, or no data available
C14: Compare your position to others, and use the checkbox to select indicators of interest for review.
C15: After selecting indicators, scroll right to click 'Review this indicator'; this will open a web page.
C16: When complete, click the 'Next' button at the top, for the next category page.
C19: Behavioural risk factors
C20: Indicator | D20: Period | E20: Wales | F20: Abertawe BM | G20: Aneurin Bevan | H20: Betsi Cadwaladr | I20: Cardiff and Vale | J20: Cwm Taf | K20: Hywel Dda | L20: Powys
C21: Prevalence of smoking (%) | D21: 2013/14 | E21: 20.45283989 | F21: 20.75886248 | G21: 21.73821385 | H21: 20.43805139 | I21: 19.45600846 | J21: 22.09450832 | K21: 18.94832524 | L21: 18.10863659
C22: Prevalence of healthy eating (%) | D22: 2014 | E22: 32.8107227 | F22: 32.50825799 | G22: 32.17663374 | H22: 33.55324773 | I22: 32.67992164 | J22: 31.33092512 | K22: 33.46242361 | L22: 34.77402884
C23: Prevalence of physical activity (%) | D23: 2014 | E23: 29.31281844 | F23: 29.0459883 | G23: 29.17795017 | H23: 29.15393191 | I23: 30.03398942 | J23: 29.17499106 | K23: 29.43845439 | L23: 29.06935511
C24: Prevalence of alcohol misuse (%) | D24: 2014 | E24: 26.56329473 | F24: 26.58789885 | G24: 26.62384673 | H24: 26.11850275 | I24: 28.17085318 | J24: 26.71079859 | K24: 25.57263328 | L24: 25.14862197
C25: Prevalence of substance misuse
C26: Clinical risk factors
C27: Indicator | D27: Period | E27: Wales | F27: Abertawe BM | G27: Aneurin Bevan | H27: Betsi Cadwaladr | I27: Cardiff and Vale | J27: Cwm Taf | K27: Hywel Dda | L27: Powys
C28: Prevalence of hypertension (%) | D28: 2017-2018 | E28: 15.66020913 | F28: 15.27565875 | G28: 16.10638488 | H28: 16.59399604 | I28: 12.410853 | J28: 16.83306352 | K28: 16.56405426 | L28: 17.34584104
C29: Prevalence of obesity in children (%) | D29: 2016-2017 | E29: 12.35177271 | F29: 12.2 | G29: 11.83762008 | H29: 12.7037136 | I29: 9.95646413 | J29: 14.35790725 | K29: 13.27152318 | L29: 11.34215501
C30: Prevalence of obesity in adults (%) | D30: 2017-2018 | E30: 9.66639918 | F30: 9.967963934 | G30: 11.07972354 | H30: 8.400470844 | I30: 7.779185036 | J30: 12.30077167 | K30: 9.673070527 | L30: 9.84695268
C31: Prevalence of high fasting glucose
C32: Prevalence of high cholesterol
C33: Long-term condition prevalence
C34: Indicator | D34: Period | E34: Wales | F34: Abertawe BM | G34: Aneurin Bevan | H34: Betsi Cadwaladr | I34: Cardiff and Vale | J34: Cwm Taf | K34: Hywel Dda | L34: Powys
C35: Prevalence of coronary heart disease (%) | D35: 2018 | E35: 3.656341981 | F35: 3.780908099 | G35: 3.673160367 | H35: 3.85076794 | I35: 2.734584866 | J35: 3.744987736 | K35: 4.105342531 | L35: 4.04492448
C36: Prevalence of heart failure (%) | D36: 2018 | E36: 1.02719727 | F36: 1.04896372 | G36: 0.987324666 | H36: 1.10422702 | I36: 0.8433204482 | J36: 0.8850249351 | K36: 1.196820327 | L36: 1.238578826
C37: Prevalence of stroke and TIA (%) | D37: 2018 | E37: 2.092490461 | F37: 2.286918486 | G37: 2.017795941 | H37: 2.086654966 | I37: 1.696920561 | J37: 2.040085082 | K37: 2.343878927 | L37: 2.549593356
C38: Prevalence of diabetes (%) | D38: 2018 | E38: 6.025190348 | F38: 6.210068167 | G38: 6.210068167 | H38: 5.907114109 | I38: 4.944324946 | J38: 6.3635801 | K38: 6.36594673 | L38: 6.272501685
C39: Prevalence of chronic obstructive pulmonary disease (%) | D39: 2018 | E39: 2.287674035 | F39: 2.228209858 | G39: 2.211060185 | H39: 2.635737596 | I39: 1.634660703 | J39: 2.763870657 | K39: 2.337785654 | L39: 2.314356613
C40: Prevalence of asthma (%) | D40: 2018 | E40: 7.053130349 | F40: 7.415225829 | G40: 6.914040558 | H40: 7.210251422 | I40: 6.695359216 | J40: 7.065541357 | K40: 6.940491575 | L40: 7.047061692
C41: Prevalence of dementia (%) | D41: 2018 | E41: 0.6775874976 | F41: 0.7039599332 | G41: 0.6517580208 | H41: 0.7399575677 | I41: 0.6315205564 | J41: 0.5469108819 | K41: 0.7027574598 | L41: 0.7566303771
C42: Prevalence of multi-morbidity

Sheet LA_LTC
I7: Key:
B8: ⓘ You are currently viewing the category page for long-term condition prevention & prevalence | J8: Primary care data exists, but no PHW access
B9: ⓘ You are currently viewing this information by local authority | J9: No statistical comparison made, or no data available
C14: Compare your position to others, and use the checkbox to select indicators of interest for review.
C15: After selecting indicators, scroll right to click 'Review this indicator'; this will open a web page.
C16: When complete, click the 'Next' button at the top, for the next category page.
C19: Behavioural risk factors
C20: Indicator | D20: Period | E20: Wales | F20: Bridgend | G20: Neath Port Talbot | H20: Swansea | I20: Blaenau Gwent | J20: Caerphilly | K20: Monmouthshire | L20: Newport | M20: Torfaen | N20: Anglesey | O20: Conwy | P20: Denbighshire | Q20: Flintshire | R20: Gwynedd | S20: Wrexham | T20: Cardiff | U20: Vale of Glamorgan | V20: Merthyr Tydfil | W20: Rhondda Cynon Taf | X20: Carmarthenshire | Y20: Ceredigion | Z20: Pembrokeshire | AA20: Powys
C21: Prevalence of smoking (%) | D21: 2013/14 | E21: 20.5
C22: Prevalence of healthy eating (%) | D22: 2014 | E22: 32.8
C23: Prevalence of physical activity (%) | D23: 2014 | E23: 29.3
C24: Prevalence of alcohol misuse (%) | D24: 2014 | E24: 26.6
C25: Prevalence of substance misuse
C26: Clinical risk factors
C27: Indicator | D27: Period | E27: Wales | F27: Bridgend | G27: Neath Port Talbot | H27: Swansea | I27: Blaenau Gwent | J27: Caerphilly | K27: Monmouthshire | L27: Newport | M27: Torfaen | N27: Anglesey | O27: Conwy | P27: Denbighshire | Q27: Flintshire | R27: Gwynedd | S27: Wrexham | T27: Cardiff | U27: Vale of Glamorgan | V27: Merthyr Tydfil | W27: Rhondda Cynon Taf | X27: Carmarthenshire | Y27: Ceredigion | Z27: Pembrokeshire | AA27: Powys
C28: Prevalence of hypertension (%) | D28: 2017-2018 | E28: 15.66020913
C29: Prevalence of obesity in children (%) | D29: 2016-2017 | E29: 12.35177271 | F29: 13.54292624 | G29: 11.81938911 | H29: 13.49206349 | I29: 15.13888889 | J29: 13.55498721 | K29: 7.976878613 | L29: 10.81808396 | M29: 11.36363636 | N29: 14.15584416 | O29: 14.43755536 | P29: 12.1304791 | Q29: 10.92089728 | R29: 12.99921691 | S29: 12.78287462 | T29: 10.6629695 | U29: 7.82674772 | V29: 17.49598716 | W29: 13.64465524 | X29: 14.01574803 | Y29: 10.85626911 | Z29: 13.40460526 | AA29: 11.34215501
C30: Prevalence of obesity in adults (%) | D30: 2017-2018 | E30: 9.66639918
C31: Prevalence of high fasting glucose
C32: Prevalence of high cholesterol
C33: Long-term condition prevalence
C34: Indicator | D34: Period | E34: Wales | F34: Bridgend | G34: Neath Port Talbot | H34: Swansea | I34: Blaenau Gwent | J34: Caerphilly | K34: Monmouthshire | L34: Newport | M34: Torfaen | N34: Anglesey | O34: Conwy | P34: Denbighshire | Q34: Flintshire | R34: Gwynedd | S34: Wrexham | T34: Cardiff | U34: Vale of Glamorgan | V34: Merthyr Tydfil | W34: Rhondda Cynon Taf | X34: Carmarthenshire | Y34: Ceredigion | Z34: Pembrokeshire | AA34: Powys
C35: Prevalence of coronary heart disease (%) | D35: 2018 | E35: 3.656341981
C36: Prevalence of heart failure (%) | D36: 2018 | E36: 1.02719727
C37: Prevalence of stroke and TIA (%) | D37: 2018 | E37: 2.092490461
C38: Prevalence of diabetes (%) | D38: 2018 | E38: 6.025190348
C39: Prevalence of chronic obstructive pulmonary disease (%) | D39: 2018 | E39: 2.287674035
C40: Prevalence of asthma (%) | D40: 2018 | E40: 7.053130349
C41: Prevalence of dementia (%) | D41: 2018 | E41: 0.6775874976
C42: Prevalence of multi-morbidity

Sheet RPB_LTC
I7: Key:
B8: ⓘ You are currently viewing the category page for long-term condition prevention & prevalence | J8: Primary care data exists, but no PHW access
B9: ⓘ You are currently viewing this information by regional partnership board | J9: No statistical comparison made, or no data available
C14: Compare your position to others, and use the checkbox to select indicators of interest for review.
C15: After selecting indicators, scroll right to click 'Review this indicator'; this will open a web page.
C16: When complete, click the 'Next' button at the top, for the next category page.
C19: Behavioural risk factors
C20: Indicator | D20: Period | E20: Abertawe BM | F20: Bridgend | G20: Neath Port Talbot | H20: Swansea | I20: Aneurin Bevan | J20: Blaenau Gwent | K20: Caerphilly | L20: Monmouthshire | M20: Newport | N20: Torfaen | O20: Betsi Cadwaladr | P20: Anglesey | Q20: Conwy | R20: Denbighshire | S20: Flintshire | T20: Gwynedd | U20: Wrexham | V20: Cardiff & Vale | W20: Cardiff | X20: Vale of Glamorgan | Y20: Cwm Taf | Z20: Merthyr Tydfil | AA20: Rhondda Cynon Taf | AB20: Hywel Dda | AC20: Carmarthenshire | AD20: Ceredigion | AE20: Pembrokeshire | AF20: Powys | AG20: Powys LA
C21: Prevalence of smoking (%) | D21: 2013/14 | E21: 20.75886248 | I21: 21.73821385 | O21: 20.43805139 | V21: 19.45600846 | Y21: 22.09450832 | AB21: 18.94832524 | AF21: 18.10863659
C22: Prevalence of healthy eating (%) | D22: 2014 | E22: 32.50825799 | I22: 32.17663374 | O22: 33.55324773 | V22: 32.67992164 | Y22: 31.33092512 | AB22: 33.46242361 | AF22: 34.77402884
C23: Prevalence of physical activity (%) | D23: 2014 | E23: 29.0459883 | I23: 29.17795017 | O23: 29.15393191 | V23: 30.03398942 | Y23: 29.17499106 | AB23: 29.43845439 | AF23: 29.06935511
C24: Prevalence of alcohol misuse (%) | D24: 2014 | E24: 26.58789885 | I24: 26.62384673 | O24: 26.11850275 | V24: 28.17085318 | Y24: 26.71079859 | AB24: 25.57263328 | AF24: 25.14862197
C25: Prevalence of substance misuse
C26: Clinical risk factors
C27: Indicator | D27: Period | E27: Abertawe BM | F27: Bridgend | G27: Neath Port Talbot | H27: Swansea | I27: Aneurin Bevan | J27: Blaenau Gwent | K27: Caerphilly | L27: Monmouthshire | M27: Newport | N27: Torfaen | O27: Betsi Cadwaladr | P27: Anglesey | Q27: Conwy | R27: Denbighshire | S27: Flintshire | T27: Gwynedd | U27: Wrexham | V27: Cardiff & Vale | W27: Cardiff | X27: Vale of Glamorgan | Y27: Cwm Taf | Z27: Merthyr Tydfil | AA27: Rhondda Cynon Taf | AB27: Hywel Dda | AC27: Carmarthenshire | AD27: Ceredigion | AE27: Pembrokeshire | AF27: Powys | AG27: Powys LA
C28: Prevalence of hypertension (%) | D28: 2017-2018 | E28: 15.27565875 | I28: 16.10638488 | O28: 16.59399604 | V28: 12.410853 | Y28: 16.83306352 | AB28: 16.56405426 | AF28: 17.34584104
C29: Prevalence of obesity in children (%) | D29: 2016-2017 | E29: 12.2 | F29: 13.54292624 | G29: 11.81938911 | H29: 13.49206349 | I29: 11.83762008 | J29: 15.13888889 | K29: 13.55498721 | L29: 7.976878613 | M29: 10.81808396 | N29: 11.36363636 | O29: 12.7037136 | P29: 14.15584416 | Q29: 14.43755536 | R29: 12.1304791 | S29: 10.92089728 | T29: 12.99921691 | U29: 12.78287462 | V29: 9.95646413 | W29: 10.6629695 | X29: 7.82674772 | Y29: 14.35790725 | Z29: 17.49598716 | AA29: 13.64465524 | AB29: 13.27152318 | AC29: 14.01574803 | AD29: 10.85626911 | AE29: 13.40460526 | AF29: 11.34215501 | AG29: 11.34215501
C30: Prevalence of obesity in adults (%) | D30: 2017-2018 | E30: 9.967963934 | I30: 11.07972354 | O30: 8.400470844 | V30: 7.779185036 | Y30: 12.30077167 | AB30: 9.673070527 | AF30: 9.84695268
C31: Prevalence of high fasting glucose
C32: Prevalence of high cholesterol
C33: Long-term condition prevalence
C34: Indicator | D34: Period | E34: Abertawe BM | F34: Bridgend | G34: Neath Port Talbot | H34: Swansea | I34: Aneurin Bevan | J34: Blaenau Gwent | K34: Caerphilly | L34: Monmouthshire | M34: Newport | N34: Torfaen | O34: Betsi Cadwaladr | P34: Anglesey | Q34: Conwy | R34: Denbighshire | S34: Flintshire | T34: Gwynedd | U34: Wrexham | V34: Cardiff & Vale | W34: Cardiff | X34: Vale of Glamorgan | Y34: Cwm Taf | Z34: Merthyr Tydfil | AA34: Rhondda Cynon Taf | AB34: Hywel Dda | AC34: Carmarthenshire | AD34: Ceredigion | AE34: Pembrokeshire | AF34: Powys | AG34: Powys LA
C35: Prevalence of coronary heart disease (%) | D35: 2018 | E35: 3.780908099 | I35: 3.673160367 | O35: 3.85076794 | V35: 2.734584866 | Y35: 3.744987736 | AB35: 4.105342531 | AF35: 4.04492448
C36: Prevalence of heart failure (%) | D36: 2018 | E36: 1.04896372 | I36: 0.987324666 | O36: 1.10422702 | V36: 0.8433204482 | Y36: 0.8850249351 | AB36: 1.196820327 | AF36: 1.238578826
C37: Prevalence of stroke and TIA (%) | D37: 2018 | E37: 2.286918486 | I37: 2.017795941 | O37: 2.086654966 | V37: 1.696920561 | Y37: 2.040085082 | AB37: 2.343878927 | AF37: 2.549593356
C38: Prevalence of diabetes (%) | D38: 2018 | E38: 6.210068167 | I38: 6.210068167 | O38: 5.907114109 | V38: 4.944324946 | Y38: 6.3635801 | AB38: 6.36594673 | AF38: 6.272501685
C39: Prevalence of chronic obstructive pulmonary disease (%) | D39: 2018 | E39: 2.228209858 | I39: 2.211060185 | O39: 2.635737596 | V39: 1.634660703 | Y39: 2.763870657 | AB39: 2.337785654 | AF39: 2.314356613
C40: Prevalence of asthma (%) | D40: 2018 | E40: 7.415225829 | I40: 6.914040558 | O40: 7.210251422 | V40: 6.695359216 | Y40: 7.065541357 | AB40: 6.940491575 | AF40: 7.047061692
C41: Prevalence of dementia (%) | D41: 2018 | E41: 0.7039599332 | I41: 0.6517580208 | O41: 0.7399575677 | V41: 0.6315205564 | Y41: 0.5469108819 | AB41: 0.7027574598 | AF41: 0.7566303771
C42: Prevalence of multi-morbidity

Sheet CHB_LTC
I7: Key:
B8: ⓘ You are currently viewing the category page for long-term condition prevention & prevalence | J8: Cluster similar to health board average
B9: ⓘ You are currently viewing this information by clusters, by health board | J9: Cluster position lower than health board average
J10: Cluster position higher than health board average
J11: Primary care data exists, but no PHW access
J12: No statistical comparison made, or no data available
C14: Compare your position to others, and use the checkbox to select indicators of interest for review.
C15: After selecting indicators, scroll right to click 'Review this indicator'; this will open a web page.
C16: When complete, click the 'Next' button at the top, for the next category page.
C19: Behavioural risk factors
C20: Indicator | D20: Period | E20: Abertawe BM | F20: Bridgend East Network | G20: Bridgend North Network | H20: Bridgend West Network | I20: Afan | J20: Neath | K20: Upper Valleys | L20: BayHealth | M20: CityHealth | N20: Cwmtawe | O20: Llwchwr | P20: Penderi | Q20: Aneurin Bevan | R20: Blaenau Gwent East | S20: Blaenau Gwent West | T20: Caerphilly East | U20: Caerphilly North | V20: Caerphilly South | W20: Monmouthshire North | X20: Monmouthshire South | Y20: Newport Central | Z20: Newport East | AA20: Newport West | AB20: Torfaen North | AC20: Torfaen South | AD20: Betsi Cadwaladr | AE20: Anglesey | AF20: Conwy East | AG20: Conwy West | AH20: Central - South Denbighshire | AI20: North Denbighshire | AJ20: North East Flintshire | AK20: Nort West Flintshire | AL20: South flintshire | AM20: Arfon | AN20: Dwyfor | AO20: Meirionnydd | AP20: South Wrexham | AQ20: West - North Wrexham | AR20: Wrexham Town | AS20: Cardiff & Vale | AT20: Cardiff East | AU20: Cardiff North | AV20: Cardiff South East | AW20: Cardiff South West | AX20: Cardiff West | AY20: City - Cardiff South | AZ20: Central Vale | BA20: Eastern Vale | BB20: Western Vale | BC20: Cwm Taf | BD20: North Merthyr Tydfil | BE20: South Merthyr Tydfil | BF20: North Cynon | BG20: North Rhondda | BH20: North Taf Ely | BI20: South Cynon | BJ20: South Rhondda | BK20: South Taf Ely | BL20: Hywel Dda | BM20: Amman-Gwendraeth | BN20: Llanelli | BO20: Taf - Teifi - Tywi | BP20: North Ceredigion | BQ20: South Ceredigion | BR20: North Pembrokeshire | BS20: South Pembrokeshire | BT20: Powys | BU20: Mid Powys | BV20: North Powys | BW20: South Powys
C21: Prevalence of smoking (%) | D21: 2013/14 | E21: 20.75886248 | F21: 18.50097361 | G21: 24.48228976 | H21: 21.77755161 | I21: 23.83534497 | J21: 20.3139094 | K21: 21.21983014 | L21: 13.12815265 | M21: 28.79316957 | N21: 19.81686575 | O21: 16.94811991 | P21: 25.21507614 | Q21: 21.73821385 | R21: 25.86873308 | S21: 23.7088792 | T21: 19.21496917 | U21: 23.1945066 | V21: 22.85694638 | W21: 15.26488004 | X21: 16.97139086 | Y21: 19.53420116 | Z21: 25.37013915 | AA21: 24.63291752 | AB21: 22.58318736 | AC21: 22.79616469 | AD21: 20.43805139 | AE21: 21.70069067 | AF21: 20.93014224 | AG21: 19.09400439 | AH21: 17.20368965 | AI21: 24.26032551 | AJ21: 19.16652217 | AK21: 21.23410286 | AL21: 16.47178028 | AM21: 19.76018816 | AN21: 19.79972803 | AO21: 20.0666428 | AP21: 21.1776626 | AQ21: 20.77897328 | AR21: 23.21918202 | AS21: 19.45600846 | AT21: 24.91487458 | AU21: 13.90993231 | AV21: 22.19132022 | AW21: 23.79882075 | AX21: 15.13283561 | AY21: 22.82400958 | AZ21: 23.23323421 | BA21: 14.50998779 | BB21: 14.24075475 | BC21: 22.09450832 | BD21: 25.36994107 | BE21: 21.10322464 | BF21: 22.8359397 | BG21: 23.52640841 | BH21: 20.91332351 | BI21: 25.45266072 | BJ21: 25.39777366 | BK21: 16.47405287 | BL21: 18.94832524 | BM21: 19.31485566 | BN21: 20.71308109 | BO21: 16.75294129 | BP21: 16.77520088 | BQ21: 18.62638493 | BR21: 20.30746229 | BS21: 19.44642459 | BT21: 18.10863659 | BU21: 18.14854695 | BV21: 19.03519846 | BW21: 16.77258885
C22: Prevalence of healthy eating (%) | D22: 2014 | E22: 32.50825799 | F22: 33.9238336 | G22: 30.94789335 | H22: 32.80326458 | I22: 30.38588176 | J22: 32.46786695 | K22: 32.6264803 | L22: 34.30586797 | M22: 30.87510247 | N22: 32.52076289 | O22: 34.02239566 | P22: 31.14268573 | Q22: 32.17663374 | R22: 29.74357816 | S22: 30.58873363 | T22: 32.87981278 | U22: 30.66848946 | V22: 32.21883035 | W22: 34.92154999 | X22: 35.02198524 | Y22: 33.0044083 | Z22: 31.24260022 | AA22: 31.4373767 | AB22: 31.99935666 | AC22: 32.38087475 | AD22: 33.55324773 | AE22: 33.24599845 | AF22: 32.83009385 | AG22: 34.27062293 | AH22: 34.87160694 | AI22: 32.00828632 | AJ22: 33.53335887 | AK22: 32.68550225 | AL22: 35.11504647 | AM22: 33.30542747 | AN22: 34.79374196 | AO22: 34.77839871 | AP22: 33.32744121 | AQ22: 33.57325033 | AR22: 32.80754033 | AS22: 32.67992164 | AT22: 30.74922198 | AU22: 34.4130805 | AV22: 30.84200489 | AW22: 31.10944932 | AX22: 34.23809567 | AY22: 29.95926706 | AZ22: 32.133736 | BA22: 35.71283508 | BB22: 35.58646001 | BC22: 31.33092512 | BD22: 30.72204576 | BE22: 31.43476242 | BF22: 30.72920758 | BG22: 29.95919085 | BH22: 31.93958614 | BI22: 30.08312431 | BJ22: 29.980089 | BK22: 33.9524386 | BL22: 33.46242361 | BM22: 32.9938052 | BN22: 32.1262743 | BO22: 34.2151281 | BP22: 33.65551533 | BQ22: 33.91304246 | BR22: 33.671764 | BS22: 33.80041547 | BT22: 34.77402884 | BU22: 35.00341601 | BV22: 34.60997604 | BW22: 34.86394946
C23: Prevalence of physical activity (%) | D23: 2014 | E23: 29.0459883 | F23: 29.39119037 | G23: 29.09584982 | H23: 28.3938937 | I23: 28.18026216 | J23: 28.50591177 | K23: 29.65168472 | L23: 28.99755211 | M23: 30.05762787 | N23: 28.99089923 | O23: 29.15667777 | P23: 29.0504069 | Q23: 29.17795017 | R23: 28.65612216 | S23: 28.88714894 | T23: 29.73123995 | U23: 29.03273916 | V23: 29.30080714 | W23: 28.64012001 | X23: 29.2457345 | Y23: 29.23856967 | Z23: 29.54346205 | AA23: 29.20956508 | AB23: 28.9389125 | AC23: 29.49410121 | AD23: 29.15393191 | AE23: 28.80971983 | AF23: 27.76796036 | AG23: 28.60628227 | AH23: 28.84355659 | AI23: 28.35684023 | AJ23: 29.51991207 | AK23: 29.39786259 | AL23: 28.91289628 | AM23: 30.67462647 | AN23: 28.95360329 | AO23: 28.86328056 | AP23: 29.64578789 | AQ23: 29.85392803 | AR23: 29.86415494 | AS23: 30.03398942 | AT23: 29.97558875 | AU23: 29.85098412 | AV23: 32.40441686 | AW23: 30.29023953 | AX23: 29.08011462 | AY23: 31.71219466 | AZ23: 29.20066631 | BA23: 28.46431158 | BB23: 28.34689413 | BC23: 29.17499106 | BD23: 29.2506828 | BE23: 29.67445787 | BF23: 28.73903751 | BG23: 28.3635124 | BH23: 30.24913093 | BI23: 28.89652937 | BJ23: 28.78491728 | BK23: 29.22058226 | BL23: 29.43845439 | BM23: 29.1178813 | BN23: 28.99003612 | BO23: 29.50865126 | BP23: 30.93112464 | BQ23: 29.39390145 | BR23: 29.36634314 | BS23: 29.00543267 | BT23: 29.06935511 | BU23: 28.81980978 | BV23: 29.38915235 | BW23: 28.77187079
C24: Prevalence of alcohol misuse (%) | D24: 2014 | E24: 26.58789885 | F24: 27.35493167 | G24: 26.35836189 | H24: 25.51597286 | I24: 25.84567418 | J24: 26.12445297 | K24: 25.91200531 | L24: 27.02123426 | M24: 27.5030161 | N24: 26.65345027 | O24: 26.63582594 | P24: 26.44862963 | Q24: 26.62384673 | R24: 26.27164388 | S24: 25.99245769 | T24: 26.79520217 | U24: 26.47873139 | V24: 26.84048593 | W24: 25.52002139 | X24: 27.2314749 | Y24: 27.26289073 | Z24: 26.94455942 | AA24: 27.16926714 | AB24: 26.2081868 | AC24: 26.59328421 | AD24: 26.11850275 | AE24: 25.00209121 | AF24: 24.96245879 | AG24: 25.22281126 | AH24: 26.11644576 | AI24: 25.22392874 | AJ24: 27.4480299 | AK24: 26.74185054 | AL24: 26.7041557 | AM24: 27.60918292 | AN24: 24.42037531 | AO24: 24.34561029 | AP24: 26.55080699 | AQ24: 27.15703853 | AR24: 27.18425095 | AS24: 28.17085318 | AT24: 27.49731054 | AU24: 28.45311648 | AV24: 29.76240019 | AW24: 28.39703701 | AX24: 27.72315425 | AY24: 29.84882596 | AZ24: 27.1686751 | BA24: 26.80314642 | BB24: 26.98727659 | BC24: 26.71079859 | BD24: 26.50437919 | BE24: 26.83164472 | BF24: 26.15059015 | BG24: 25.81058809 | BH24: 27.38535149 | BI24: 26.39758789 | BJ24: 26.32345233 | BK24: 27.59941106 | BL24: 25.57263328 | BM24: 25.45899836 | BN24: 25.7415515 | BO24: 25.26780447 | BP24: 27.70848756 | BQ24: 24.67453239 | BR24: 25.34644536 | BS24: 25.0214163 | BT24: 25.14862197 | BU24: 24.19147696 | BV24: 25.50145949 | BW24: 25.24201764
C25: Prevalence of substance misuse
C26: Clinical risk factors
C27: Indicator | D27: Period | E27: Abertawe BM | F27: Bridgend East Network | G27: Bridgend North Network | H27: Bridgend West Network | I27: Afan | J27: Neath | K27: Upper Valleys | L27: BayHealth | M27: CityHealth | N27: Cwmtawe | O27: Llwchwr | P27: Penderi | Q27: Aneurin Bevan | R27: Blaenau Gwent East | S27: Blaenau Gwent West | T27: Caerphilly East | U27: Caerphilly North | V27: Caerphilly South | W27: Monmouthshire North | X27: Monmouthshire South | Y27: Newport Central | Z27: Newport East | AA27: Newport West | AB27: Torfaen North | AC27: Torfaen South | AD27: Betsi Cadwaladr | AE27: Anglesey | AF27: Conwy East | AG27: Conwy West | AH27: Central - South Denbighshire | AI27: North Denbighshire | AJ27: North East Flintshire | AK27: Nort West Flintshire | AL27: South flintshire | AM27: Arfon | AN27: Dwyfor | AO27: Meirionnydd | AP27: South Wrexham | AQ27: West - North Wrexham | AR27: Wrexham Town | AS27: Cardiff & Vale | AT27: Cardiff East | AU27: Cardiff North | AV27: Cardiff South East | AW27: Cardiff South West | AX27: Cardiff West | AY27: City - Cardiff South | AZ27: Central Vale | BA27: Eastern Vale | BB27: Western Vale | BC27: Cwm Taf | BD27: North Merthyr Tydfil | BE27: South Merthyr Tydfil | BF27: North Cynon | BG27: North Rhondda | BH27: North Taf Ely | BI27: South Cynon | BJ27: South Rhondda | BK27: South Taf Ely | BL27: Hywel Dda | BM27: Amman-Gwendraeth | BN27: Llanelli | BO27: Taf - Teifi - Tywi | BP27: North Ceredigion | BQ27: South Ceredigion | BR27: North Pembrokeshire | BS27: South Pembrokeshire | BT27: Powys | BU27: Mid Powys | BV27: North Powys | BW27: South Powys
C28: Prevalence of hypertension (%) | D28: 2017-2018 | E28: 15.27565875 | F28: 15.18491579 | G28: 18.42902634 | H28: 17.26312744 | I28: 17.01211516 | J28: 15.84035697 | K28: 17.49382794 | L28: 12.29658599 | M28: 13.0011821 | N28: 14.78866654 | O28: 15.22264484 | P28: 13.88496363 | Q28: 16.10638488 | R28: 19.29915714 | S28: 17.48000313 | T28: 15.77224437 | U28: 16.64718926 | V28: 15.6539741 | W28: 17.48796482 | X28: 15.7723783 | Y28: 15.36406615 | Z28: 13.30904286 | AA28: 14.0969785 | AB28: 17.55272896 | AC28: 16.13247863 | AD28: 16.59399604 | AE28: 17.46588397 | AF28: 17.7459621 | AG28: 17.59551898 | AH28: 17.07131296 | AI28: 17.18532742 | AJ28: 15.35514816 | AK28: 16.82522769 | AL28: 16.04430875 | AM28: 13.0985566 | AN28: 19.16840584 | AO28: 18.80246401 | AP28: 17.11286973 | AQ28: 16.27001195 | AR28: 15.63084518 | AS28: 12.410853 | AT28: 13.43138447 | AU28: 12.32442096 | AV28: 8.192077204 | AW28: 12.11627275 | AX28: 13.11840501 | AY28: 9.515540893 | AZ28: 15.2648122 | BA28: 14.49523344 | BB28: 14.48983912 | BC28: 16.83306352 | BD28: 17.39682343 | BE28: 16.54744372 | BF28: 17.63462531 | BG28: 18.48800922 | BH28: 15.5889564 | BI28: 18.28908555 | BJ28: 17.53055914 | BK28: 14.54713874 | BL28: 16.56405426 | BM28: 16.13351412 | BN28: 15.57275743 | BO28: 16.1438448 | BP28: 15.1227559 | BQ28: 18.1252205 | BR28: 16.8758418 | BS28: 18.08873092 | BT28: 17.34584104 | BU28: 18.59487319 | BV28: 15.82433987 | BW28: 18.68261899
C29: Prevalence of obesity in children (%) | D29: 2016-2017 | E29: 12.2 | Q29: 11.8 | AD29: 12.7037136 | AS29: 9.95646413 | BC29: 14.35790725 | BL29: 13.27152318 | BT29: 11.34215501
C30: Prevalence of obesity in adults (%) | D30: 2017-2018 | E30: 9.967963934 | F30: 8.546410787 | G30: 10.15343047 | H30: 8.02256618 | I30: 13.30319222 | J30: 13.94928819 | K30: 10.84383111 | L30: 6.13824786 | M30: 8.813441079 | N30: 11.76828128 | O30: 9.357597663 | P30: 10.8546606 | Q30: 11.07972354 | R30: 13.16245237 | S30: 12.08410411 | T30: 11.27866269 | U30: 12.38463382 | V30: 10.3970557 | W30: 11.41541261 | X30: 10.0333249 | Y30: 9.3393557 | Z30: 10.71249825 | AA30: 10.97260882 | AB30: 12.13120058 | AC30: 9.558695273 | AD30: 8.400470844 | AE30: 9.319204086 | AF30: 7.775087945 | AG30: 7.630566073 | AH30: 6.338665143 | AI30: 7.059855658 | AJ30: 9.52051377 | AK30: 9.024025167 | AL30: 9.153358384 | AM30: 6.231848101 | AN30: 8.420292182 | AO30: 9.358143692 | AP30: 9.083085443 | AQ30: 10.00955795 | AR30: 9.774581076 | AS30: 7.779185036 | AT30: 9.586900276 | AU30: 7.238276722 | AV30: 7.38890186 | AW30: 8.021672855 | AX30: 6.834932923 | AY30: 6.662863096 | AZ30: 9.998428414 | BA30: 6.635161194 | BB30: 6.343494214 | BC30: 12.30077167 | BD30: 13.19855104 | BE30: 11.95034715 | BF30: 10.74298916 | BG30: 11.89237819 | BH30: 12.54237288 | BI30: 15.49624132 | BJ30: 15.36661612 | BK30: 8.526142445 | BL30: 9.673070527 | BM30: 11.90512061 | BN30: 10.33793014 | BO30: 10.22598287 | BP30: 8.830712541 | BQ30: 8.357025754 | BR30: 8.171605241 | BS30: 9.571078657 | BT30: 9.84695268 | BU30: 9.087210091 | BV30: 10.17323422 | BW30: 9.87816636
C31: Prevalence of high fasting glucose
C32: Prevalence of high cholesterol
C33: Long-term condition prevalence
C34: Indicator | D34: Period | E34: Abertawe BM | F34: Bridgend East Network | G34: Bridgend North Network | H34: Bridgend West Network | I34: Afan | J34: Neath | K34: Upper Valleys | L34: BayHealth | M34: CityHealth | N34: Cwmtawe | O34: Llwchwr | P34: Penderi | Q34: Aneurin Bevan | R34: Blaenau Gwent East | S34: Blaenau Gwent West | T34: Caerphilly East | U34: Caerphilly North | V34: Caerphilly South | W34: Monmouthshire North | X34: Monmouthshire South | Y34: Newport Central | Z34: Newport East | AA34: Newport West | AB34: Torfaen North | AC34: Torfaen South | AD34: Betsi Cadwaladr | AE34: Anglesey | AF34: Conwy East | AG34: Conwy West | AH34: Central - South Denbighshire | AI34: North Denbighshire | AJ34: North East Flintshire | AK34: Nort West Flintshire | AL34: South flintshire | AM34: Arfon | AN34: Dwyfor | AO34: Meirionnydd | AP34: South Wrexham | AQ34: West - North Wrexham | AR34: Wrexham Town | AS34: Cardiff & Vale | AT34: Cardiff East | AU34: Cardiff North | AV34: Cardiff South East | AW34: Cardiff South West | AX34: Cardiff West | AY34: City - Cardiff South | AZ34: Central Vale | BA34: Eastern Vale | BB34: Western Vale | BC34: Cwm Taf | BD34: North Merthyr Tydfil | BE34: South Merthyr Tydfil | BF34: North Cynon | BG34: North Rhondda | BH34: North Taf Ely | BI34: South Cynon | BJ34: South Rhondda | BK34: South Taf Ely | BL34: Hywel Dda | BM34: Amman-Gwendraeth | BN34: Llanelli | BO34: Taf - Teifi - Tywi | BP34: North Ceredigion | BQ34: South Ceredigion | BR34: North Pembrokeshire | BS34: South Pembrokeshire | BT34: Powys | BU34: Mid Powys | BV34: North Powys | BW34: South Powys
C35: Prevalence of coronary heart disease (%) | D35: 2018 | E35: 3.780908099 | F35: 3.710904717 | G35: 4.336582071 | H35: 4.903804426 | I35: 4.031863465 | J35: 3.783908209 | K35: 4.127365956 | L35: 3.122028314 | M35: 3.44359824 | N35: 3.637553768 | O35: 3.679576355 | P35: 3.545820903 | Q35: 3.673160367 | R35: 4.407689643 | S35: 3.975925588 | T35: 3.444826698 | U35: 3.947920412 | V35: 3.703376035 | W35: 3.923278117 | X35: 3.456930735 | Y35: 3.286525246 | Z35: 3.15509199 | AA35: 3.134454798 | AB35: 4.074740652 | AC35: 3.885400314 | AD35: 3.85076794 | AE35: 4.119844477 | AF35: 4.484245565 | AG35: 4.138373439 | AH35: 3.87508331 | AI35: 4.626564259 | AJ35: 3.582867904 | AK35: 3.70398559 | AL35: 3.832002505 | AM35: 2.784629081 | AN35: 4.001444855 | AO35: 4.308831509 | AP35: 3.7061982 | AQ35: 3.660692951 | AR35: 3.399602769 | AS35: 2.734584866 | AT35: 2.898122905 | AU35: 2.633440072 | AV35: 1.793135653 | AW35: 2.644209001 | AX35: 3.066617177 | AY35: 1.98447151 | AZ35: 3.323903819 | BA35: 3.356962438 | BB35: 3.38343212 | BC35: 3.744987736 | BD35: 4.170407753 | BE35: 3.187460551 | BF35: 3.9521223 | BG35: 4.408333099 | BH35: 3.394094446 | BI35: 3.929964792 | BJ35: 3.858033358 | BK35: 3.264717991 | BL35: 4.105342531 | BM35: 4.626793217 | BN35: 4.359916737 | BO35: 4.017473257 | BP35: 3.365611209 | BQ35: 4.225205968 | BR35: 3.771274642 | BS35: 4.268955229 | BT35: 4.04492448 | BU35: 4.489353045 | BV35: 3.94364445 | BW35: 3.900429485
C36: Prevalence of heart failure (%) | D36: 2018 | E36: 1.04896372 | F36: 1.00710569 | G36: 1.294991798 | H36: 1.452336178 | I36: 0.9120623177 | J36: 0.8853318224 | K36: 1.196429702 | L36: 0.9268312283 | M36: 0.9049861442 | N36: 1.166541986 | O36: 1.107445311 | P36: 0.9603810122 | Q36: 0.987324666 | R36: 1.362429281 | S36: 1.305333368 | T36: 0.7092736008 | U36: 0.9394102841 | V36: 0.8068511572 | W36: 1.641332777 | X36: 0.9765460221 | Y36: 0.8418425631 | Z36: 0.7006866729 | AA36: 0.7745370931 | AB36: 1.122323108 | AC36: 0.9658991802 | AD36: 1.10422702 | AE36: 1.228939544 | AF36: 1.072360707 | AG36: 1.361204118 | AH36: 1.280586499 | AI36: 1.118982984 | AJ36: 0.9560752628 | AK36: 0.9310703504 | AL36: 1.074448098 | AM36: 0.7997781637 | AN36: 1.288328785 | AO36: 1.480961348 | AP36: 1.055172027 | AQ36: 1.0609319 | AR36: 1.012360439 | AS36: 0.8433204482 | AT36: 0.8178645227 | AU36: 0.91055537 | AV36: 0.5603548914 | AW36: 0.7787738839 | AX36: 0.9703589798 | AY36: 0.5556520229 | AZ36: 0.9005186233 | BA36: 0.9804720389 | BB36: 1.294806661 | BC36: 0.8850249351 | BD36: 1.009319174 | BE36: 0.7574163686 | BF36: 0.9536215499 | BG36: 0.9446428069 | BH36: 0.8634473937 | BI36: 1.384527548 | BJ36: 0.8011830554 | BK36: 0.6731165089 | BL36: 1.196820327 | BM36: 1.237047825 | BN36: 1.05054316 | BO36: 1.16259072 | BP36: 1.619606667 | BQ36: 1.064602486 | BR36: 1.07903759 | BS36: 1.250483434 | BT36: 1.238578826 | BU36: 1.651295267 | BV36: 0.9983516313 | BW36: 1.310369007
C37: Prevalence of stroke and TIA (%) | D37: 2018 | E37: 2.286918486 | F37: 2.477200246 | G37: 2.487696613 | H37: 3.234485751 | I37: 2.154894017 | J37: 2.287697429 | K37: 2.323225929 | L37: 1.980900848 | M37: 2.096777319 | N37: 2.150738732 | O37: 2.14974678 | P37: 2.1248757 | Q37: 2.017795941 | R37: 2.164877035 | S37: 2.136473776 | T37: 1.712562327 | U37: 2.01366415 | V37: 2.001203199 | W37: 2.626890565 | X37: 2.149244917 | Y37: 1.854162639 | Z37: 1.6035715 | AA37: 1.847593691 | AB37: 2.173869083 | AC37: 2.106227106 | AD37: 2.086654966 | AE37: 2.499047038 | AF37: 2.331958997 | AG37: 2.465813437 | AH37: 2.199371608 | AI37: 2.118784347 | AJ37: 1.770509746 | AK37: 1.631275845 | AL37: 2.205652106 | AM37: 1.602475226 | AN37: 2.38802376 | AO37: 2.492738821 | AP37: 1.956932518 | AQ37: 1.849462366 | AR37: 1.90130932 | AS37: 1.696920561 | AT37: 1.562798451 | AU37: 1.695381412 | AV37: 1.12849249 | AW37: 1.575658788 | AX37: 1.972533008 | AY37: 1.13610994 | AZ37: 2.016344492 | BA37: 2.159211277 | BB37: 2.476714649 | BC37: 2.040085082 | BD37: 2.260131893 | BE37: 1.707693387 | BF37: 1.892496375 | BG37: 2.389721387 | BH37: 2.016842554 | BI37: 1.998287182 | BJ37: 2.208869171 | BK37: 1.811445039 | BL37: 2.343878927 | BM37: 2.219655501 | BN37: 2.38242373 | BO37: 2.569394283 | BP37: 1.814559321 | BQ37: 2.394836782 | BR37: 2.308069058 | BS37: 2.648299232 | BT37: 2.549593356 | BU37: 2.848230028 | BV37: 2.355923242 | BW37: 2.629503024
C38: Prevalence of diabetes (%) | D38: 2018 | E38: 6.210068167 | F38: 6.097185699 | G38: 7.127279745 | H38: 6.541299002 | I38: 7.456990194 | J38: 6.554996813 | K38: 6.830410838 | L38: 4.276549295 | M38: 6.199251981 | N38: 6.255844399 | O38: 5.825120306 | P38: 6.408646046 | Q38: 6.210068167 | R38: 7.666551207 | S38: 7.123316224 | T38: 6.140975706 | U38: 7.056814096 | V38: 6.118621275 | W38: 6.303779235 | X38: 5.760145111 | Y38: 5.718905429 | Z38: 6.230105503 | AA38: 6.375811852 | AB38: 7.170734667 | AC38: 6.388452817 | AD38: 5.907114109 | AE38: 6.394754898 | AF38: 6.704618527 | AG38: 5.812498044 | AH38: 5.724554889 | AI38: 6.864530226 | AJ38: 5.490189766 | AK38: 6.152167846 | AL38: 5.75974636 | AM38: 4.60164334 | AN38: 6.06838979 | AO38: 6.894130414 | AP38: 5.810929636 | AQ38: 5.596176822 | AR38: 5.486029426 | AS38: 4.944324946 | AT38: 5.429856396 | AU38: 4.283637507 | AV38: 4.098373414 | AW38: 5.342751064 | AX38: 4.644997084 | AY38: 5.412646045 | AZ38: 5.709570957 | BA38: 5.225562889 | BB38: 5.16511431 | BC38: 6.3635801 | BD38: 6.430539645 | BE38: 5.978680132 | BF38: 6.618821737 | BG38: 6.879586156 | BH38: 6.20616139 | BI38: 7.084403844 | BJ38: 6.679021359 | BK38: 5.446685879 | BL38: 6.36594673 | BM38: 6.980364586 | BN38: 6.734209328 | BO38: 6.244625598 | BP38: 5.203736235 | BQ38: 6.410442651 | BR38: 6.261479123 | BS38: 6.488148953 | BT38: 6.272501685 | BU38: 6.747592567 | BV38: 6.042981992 | BW38: 6.288894732
C39: Prevalence of chronic obstructive pulmonary disease (%) | D39: 2018 | E39: 2.228209858 | F39: 1.903709506 | G39: 3.124577825 | H39: 2.447562563 | I39: 2.763587967 | J39: 2.243430838 | K39: 2.649237197 | L39: 1.303188996 | M39: 2.540549968 | N39: 1.994108846 | O39: 1.811419085 | P39: 2.501700947 | Q39: 2.211060185 | R39: 3.394527191 | S39: 2.76438863 | T39: 2.06113696 | U39: 2.569519358 | V39: 2.096751362 | W39: 1.954057845 | X39: 1.567113811 | Y39: 1.746955131 | Z39: 1.763728454 | AA39: 2.226794143 | AB39: 2.594487472 | AC39: 2.282836211 | AD39: 2.635737596 | AE39: 2.956468705 | AF39: 2.672390967 | AG39: 2.483024064 | AH39: 2.742073693 | AI39: 3.640005297 | AJ39: 2.208308519 | AK39: 2.646066418 | AL39: 2.150853296 | AM39: 2.482523096 | AN39: 2.520468775 | AO39: 3.080016597 | AP39: 2.411554508 | AQ39: 2.690561529 | AR39: 2.283113828 | AS39: 1.634660703 | AT39: 2.17402629 | AU39: 1.146297861 | AV39: 1.483383921 | AW39: 2.073711854 | AX39: 1.51474981 | AY39: 1.131148761 | AZ39: 2.226936979 | BA39: 1.488361987 | BB39: 1.425345752 | BC39: 2.763870657 | BD39: 3.291123564 | BE39: 2.440563854 | BF39: 2.95917615 | BG39: 3.455255981 | BH39: 2.430444516 | BI39: 3.996574365 | BJ39: 2.854682615 | BK39: 1.622066694 | BL39: 2.337785654 | BM39: 2.651534174 | BN39: 2.260456645 | BO39: 1.773122829 | BP39: 1.880971764 | BQ39: 2.357482309 | BR39: 2.857536427 | BS39: 2.434667305 | BT39: 2.314356613 | BU39: 2.888919029 | BV39: 2.063571051 | BW39: 2.296432641
C40: Prevalence of asthma (%) | D40: 2018 | E40: 7.415225829 | F40: 7.335086443 | G40: 7.968734922 | H40: 8.129610878 | I40: 7.736871979 | J40: 8.058290247 | K40: 7.340001266 | L40: 6.477103786 | M40: 7.170125768 | N40: 6.842622031 | O40: 7.951751529 | P40: 6.986968127 | Q40: 6.914040558 | R40: 6.942039026 | S40: 7.508923686 | T40: 6.384977949 | U40: 6.971413161 | V40: 6.591053861 | W40: 6.912171639 | X40: 7.266092972 | Y40: 6.979033023 | Z40: 6.346219295 | AA40: 6.510952439 | AB40: 7.908839053 | AC40: 7.009855224 | AD40: 7.210251422 | AE40: 8.137531448 | AF40: 7.519763967 | AG40: 6.76064712 | AH40: 7.169380177 | AI40: 7.586241144 | AJ40: 6.729546589 | AK40: 6.971611234 | AL40: 7.223657429 | AM40: 6.766006509 | AN40: 7.396853428 | AO40: 7.044141585 | AP40: 7.548970085 | AQ40: 7.483870968 | AR40: 6.643012785 | AS40: 6.695359216 | AT40: 6.759971522 | AU40: 7.143979726 | AV40: 5.2906841 | AW40: 7.336472577 | AX40: 7.1477809 | AY40: 5.702875003 | AZ40: 6.927549898 | BA40: 6.789972569 | BB40: 6.502257973 | BC40: 7.065541357 | BD40: 6.792779962 | BE40: 6.925450593 | BF40: 6.468896699 | BG40: 6.935814895 | BH40: 7.00138578 | BI40: 7.379389095 | BJ40: 7.482076337 | BK40: 7.391930836 | BL40: 6.940491575 | BM40: 7.736989237 | BN40: 7.604241202 | BO40: 6.665978743 | BP40: 6.195638202 | BQ40: 6.904351796 | BR40: 6.236990327 | BS40: 7.125361425 | BT40: 7.047061692 | BU40: 6.740811067 | BV40: 7.073989985 | BW40: 7.207029538
C41: Prevalence of dementia (%) | D41: 2018 | E41: 0.7039599332 | F41: 0.6322385721 | G41: 0.6272314967 | H41: 0.8852885867 | I41: 0.8279020609 | J41: 0.6569162122 | K41: 0.8704184339 | L41: 0.7486974807 | M41: 0.6821308839 | N41: 0.6218440247 | O41: 0.7439006451 | P41: 0.528602083 | Q41: 0.6517580208 | R41: 0.6321440942 | S41: 0.6878403377 | T41: 0.4925511116 | U41: 0.5888169723 | V41: 0.6175242409 | W41: 0.8964785262 | X41: 0.8057031975 | Y41: 0.6731225505 | Z41: 0.4104021942 | AA41: 0.7886562588 | AB41: 0.6289053811 | AC41: 0.6715506716 | AD41: 0.7399575677 | AE41: 0.7547457498 | AF41: 1.132881946 | AG41: 0.8480145195 | AH41: 0.7212225079 | AI41: 1.079255777 | AJ41: 0.4007790243 | AK41: 0.6367810843 | AL41: 0.6184437138 | AM41: 0.6479954465 | AN41: 0.8107240328 | AO41: 0.6543040439 | AP41: 0.6042917813 | AQ41: 0.5973715651 | AR41: 0.8060317399 | AS41: 0.6315205564 | AT41: 0.7067321884 | AU41: 0.6718660983 | AV41: 0.3953615067 | AW41: 0.6006821818 | AX41: 0.6221609488 | AY41: 0.5407684866 | AZ41: 0.6050605061 | BA41: 0.9424481925 | BB41: 0.744425628 | BC41: 0.5469108819 | BD41: 0.7337688473 | BE41: 0.4593590013 | BF41: 0.4964730749 | BG41: 0.3570524895 | BH41: 0.6800980706 | BI41: 0.5186031021 | BJ41: 0.5709365231 | BK41: 0.5125566077 | BL41: 0.7027574598 | BM41: 0.6980364586 | BN41: 0.7724582059 | BO41: 0.6724452241 | BP41: 0.6448433952 | BQ41: 0.6723805176 | BR41: 0.6229337578 | BS41: 0.8342695077 | BT41: 0.7566303771 | BU41: 0.8510782585 | BV41: 0.5442726962 | BW41: 0.9948286441
C42: Prevalence of multi-morbidity

Sheet CLA_LTC
H7: Key:
B8: ⓘ You are currently viewing the category page for long-term condition prevention & prevalence | I8: Primary care data exists, but no PHW access
B9: ⓘ You are currently viewing this information by clusters, by local authority (PSB) | I9: No statistical comparison made, or no data available
C14: Compare your position to others, and use the checkbox to select indicators of interest for review.
C15: After selecting indicators, scroll right to click 'Review this indicator'; this will open a web page.
C16: When complete, click the 'Next' button at the top, for the next category page.
C19: Behavioural risk factors
C20: Indicator | D20: Period | E20: Bridgend | F20: Bridgend East Network | G20: Bridgend North Network | H20: Bridgend West Network | I20: Neath Port Talbot | J20: Afan | K20: Neath | L20: Upper Valleys | M20: Swansea | N20: BayHealth | O20: CityHealth | P20: Cwmtawe | Q20: Llwchwr | R20: Penderi | S20: Blaenau Gwent | T20: Blaenau Gwent East | U20: Blaenau Gwent West | V20: Caerphilly | W20: Caerphilly East | X20: Caerphilly North | Y20: Caerphilly South | Z20: Monmouthshire | AA20: Monmouthshire North | AB20: Monmouthshire South | AC20: Newport | AD20: Newport Central | AE20: Newport East | AF20: Newport West | AG20: Torfaen | AH20: Torfaen North | AI20: Torfaen South | AJ20: Anglesey LA | AK20: Anglesey Cluster | AL20: Conwy | AM20: Conwy East | AN20: Conwy West | AO20: Denbighshire | AP20: Central - South Denbighshire | AQ20: North Denbighshire | AR20: Flintshire | AS20: North East Flintshire | AT20: Nort West Flintshire | AU20: South flintshire | AV20: Gwynedd | AW20: Arfon | AX20: Dwyfor | AY20: Meirionnydd | AZ20: Wrexham | BA20: South Wrexham | BB20: West - North Wrexham | BC20: Wrexham Town | BD20: Cardiff | BE20: Cardiff East | BF20: Cardiff North | BG20: Cardiff South East | BH20: Cardiff South West | BI20: Cardiff West | BJ20: City - Cardiff South | BK20: Vale of Glamorgan | BL20: Central Vale | BM20: Eastern Vale | BN20: Western Vale | BO20: Merthyr Tydfil | BP20: North Merthyr Tydfil | BQ20: South Merthyr Tydfil | BR20: Rhondda Cynon Taf | BS20: North Cynon | BT20: North Rhondda | BU20: North Taf Ely | BV20: South Cynon | BW20: South Rhondda | BX20: South Taf Ely | BY20: Carmarthenshire | BZ20: Amman-Gwendraeth | CA20: Llanelli | CB20: Taf - Teifi - Tywi | CC20: Ceredigion | CD20: North Ceredigion | CE20: South Ceredigion | CF20: Pembrokeshire | CG20: North Pembrokeshire | CH20: South Pembrokeshire | CI20: Powys | CJ20: Mid Powys | CK20: North Powys | CL20: South Powys
C21: Prevalence of smoking (%) | D21: 2013/14 | F21: 18.50097361 | G21: 24.48228976 | H21: 21.77755161 | J21: 23.83534497 | K21: 20.3139094 | L21: 21.21983014 | N21: 13.12815265 | O21: 28.79316957 | P21: 19.81686575 | Q21: 16.94811991 | R21: 25.21507614 | T21: 25.86873308 | U21: 23.7088792 | W21: 19.21496917 | X21: 23.1945066 | Y21: 22.85694638 | AA21: 15.26488004 | AB21: 16.97139086 | AD21: 19.53420116 | AE21: 25.37013915 | AF21: 24.63291752 | AH21: 22.58318736 | AI21: 22.79616469 | AK21: 21.70069067 | AM21: 20.93014224 | AN21: 19.09400439 | AP21: 17.20368965 | AQ21: 24.26032551 | AS21: 19.16652217 | AT21: 21.23410286 | AU21: 16.47178028 | BE21: 24.91487458 | BF21: 13.90993231 | BG21: 22.19132022 | BH21: 23.79882075 | BI21: 15.13283561 | BJ21: 22.82400958 | BL21: 23.23323421 | BM21: 14.50998779 | BN21: 14.24075475 | BP21: 25.36994107 | BQ21: 21.10322464 | BS21: 22.8359397 | BT21: 23.52640841 | BU21: 20.91332351 | BV21: 25.45266072 | BW21: 25.39777366 | BX21: 16.47405287 | BZ21: 19.31485566 | CA21: 20.71308109 | CB21: 16.75294129 | CD21: 16.77520088 | CE21: 18.62638493 | CG21: 20.30746229 | CH21: 19.44642459 | CJ21: 18.14854695 | CK21: 19.03519846 | CL21: 16.77258885
C22: Prevalence of healthy eating (%) | D22: 2014 | F22: 33.9238336 | G22: 30.94789335 | H22: 32.80326458 | J22: 30.38588176 | K22: 32.46786695 | L22: 32.6264803 | N22: 34.30586797 | O22: 30.87510247 | P22: 32.52076289 | Q22: 34.02239566 | R22: 31.14268573 | T22: 29.74357816 | U22: 30.58873363 | W22: 32.87981278 | X22: 30.66848946 | Y22: 32.21883035 | AA22: 34.92154999 | AB22: 35.02198524 | AD22: 33.0044083 | AE22: 31.24260022 | AF22: 31.4373767 | AH22: 31.99935666 | AI22: 32.38087475 | AK22: 33.24599845 | AM22: 32.83009385 | AN22: 34.27062293 | AP22: 34.87160694 | AQ22: 32.00828632 | AS22: 33.53335887 | AT22: 32.68550225 | AU22: 35.11504647 | BE22: 30.74922198 | BF22: 34.4130805 | BG22: 30.84200489 | BH22: 31.10944932 | BI22: 34.23809567 | BJ22: 29.95926706 | BL22: 32.133736 | BM22: 35.71283508 | BN22: 35.58646001 | BP22: 30.72204576 | BQ22: 31.43476242 | BS22: 30.72920758 | BT22: 29.95919085 | BU22: 31.93958614 | BV22: 30.08312431 | BW22: 29.980089 | BX22: 33.9524386 | BZ22: 32.9938052 | CA22: 32.1262743 | CB22: 34.2151281 | CD22: 33.65551533 | CE22: 33.91304246 | CG22: 33.671764 | CH22: 33.80041547 | CJ22: 35.00341601 | CK22: 34.60997604 | CL22: 34.86394946
C23: Prevalence of physical activity (%) | D23: 2014 | F23: 29.39119037 | G23: 29.09584982 | H23: 28.3938937 | J23: 28.18026216 | K23: 28.50591177 | L23: 29.65168472 | N23: 28.99755211 | O23: 30.05762787 | P23: 28.99089923 | Q23: 29.15667777 | R23: 29.0504069 | T23: 28.65612216 | U23: 28.88714894 | W23: 29.73123995 | X23: 29.03273916 | Y23: 29.30080714 | AA23: 28.64012001 | AB23: 29.2457345 | AD23: 29.23856967 | AE23: 29.54346205 | AF23: 29.20956508 | AH23: 28.9389125 | AI23: 29.49410121 | AK23: 28.80971983 | AM23: 27.76796036 | AN23: 28.60628227 | AP23: 28.84355659 | AQ23: 28.35684023 | AS23: 29.51991207 | AT23: 29.39786259 | AU23: 28.91289628 | BE23: 29.97558875 | BF23: 29.85098412 | BG23: 32.40441686 | BH23: 30.29023953 | BI23: 29.08011462 | BJ23: 31.71219466 | BL23: 29.20066631 | BM23: 28.46431158 | BN23: 28.34689413 | BP23: 29.2506828 | BQ23: 29.67445787 | BS23: 28.73903751 | BT23: 28.3635124 | BU23: 30.24913093 | BV23: 28.89652937 | BW23: 28.78491728 | BX23: 29.22058226 | BZ23: 29.1178813 | CA23: 28.99003612 | CB23: 29.50865126 | CD23: 30.93112464 | CE23: 29.39390145 | CG23: 29.36634314 | CH23: 29.00543267 | CJ23: 28.81980978 | CK23: 29.38915235 | CL23: 28.77187079
C24: Prevalence of alcohol misuse (%) | D24: 2014 | F24: 27.35493167 | G24: 26.35836189 | H24: 25.51597286 | J24: 25.84567418 | K24: 26.12445297 | L24: 25.91200531 | N24: 27.02123426 | O24: 27.5030161 | P24: 26.65345027 | Q24: 26.63582594 | R24: 26.44862963 | T24: 26.27164388 | U24: 25.99245769 | W24: 26.79520217 | X24: 26.47873139 | Y24: 26.84048593 | AA24: 25.52002139 | AB24: 27.2314749 | AD24: 27.26289073 | AE24: 26.94455942 | AF24: 27.16926714 | AH24: 26.2081868 | AI24: 26.59328421 | AK24: 25.00209121 | AM24: 24.96245879 | AN24: 25.22281126 | AP24: 26.11644576 | AQ24: 25.22392874 | AS24: 27.4480299 | AT24: 26.74185054 | AU24: 26.7041557 | BE24: 27.49731054 | BF24: 28.45311648 | BG24: 29.76240019 | BH24: 28.39703701 | BI24: 27.72315425 | BJ24: 29.84882596 | BL24: 27.1686751 | BM24: 26.80314642 | BN24: 26.98727659 | BP24: 26.50437919 | BQ24: 26.83164472 | BS24: 26.15059015 | BT24: 25.81058809 | BU24: 27.38535149 | BV24: 26.39758789 | BW24: 26.32345233 | BX24: 27.59941106 | BZ24: 25.45899836 | CA24: 25.7415515 | CB24: 25.26780447 | CD24: 27.70848756 | CE24: 24.67453239 | CG24: 25.34644536 | CH24: 25.0214163 | CJ24: 24.19147696 | CK24: 25.50145949 | CL24: 25.24201764
C25: Prevalence of substance misuse
C26: Clinical risk factors
C27: Indicator | D27: Period | E27: Bridgend | F27: Bridgend East Network | G27: Bridgend North Network | H27: Bridgend West Network | I27: Neath Port Talbot | J27: Afan | K27: Neath | L27: Upper Valleys | M27: Swansea | N27: BayHealth | O27: CityHealth | P27: Cwmtawe | Q27: Llwchwr | R27: Penderi | S27: Blaenau Gwent | T27: Blaenau Gwent East | U27: Blaenau Gwent West | V27: Caerphilly | W27: Caerphilly East | X27: Caerphilly North | Y27: Caerphilly South | Z27: Monmouthshire | AA27: Monmouthshire North | AB27: Monmouthshire South | AC27: Newport | AD27: Newport Central | AE27: Newport East | AF27: Newport West | AG27: Torfaen | AH27: Torfaen North | AI27: Torfaen South | AJ27: Anglesey | AK27: Anglesey | AL27: Conwy | AM27: Conwy East | AN27: Conwy West | AO27: Denbighshire | AP27: Central - South Denbighshire | AQ27: North Denbighshire | AR27: Flintshire | AS27: North East Flintshire | AT27: Nort West Flintshire | AU27: South flintshire | AV27: Gwynedd | AW27: Arfon | AX27: Dwyfor | AY27: Meirionnydd | AZ27: Wrexham | BA27: South Wrexham | BB27: West - North Wrexham | BC27: Wrexham Town | BD27: Cardiff | BE27: Cardiff East | BF27: Cardiff North | BG27: Cardiff South East | BH27: Cardiff South West | BI27: Cardiff West | BJ27: City - Cardiff South | BK27: Vale of Glamorgan | BL27: Central Vale | BM27: Eastern Vale | BN27: Western Vale | BO27: Merthyr Tydfil | BP27: North Merthyr Tydfil | BQ27: South Merthyr Tydfil | BR27: Rhondda Cynon Taf | BS27: North Cynon | BT27: North Rhondda | BU27: North Taf Ely | BV27: South Cynon | BW27: South Rhondda | BX27: South Taf Ely | BY27: Carmarthenshire | BZ27: Amman-Gwendraeth | CA27: Llanelli | CB27: Taf - Teifi - Tywi | CC27: Ceredigion | CD27: North Ceredigion | CE27: South Ceredigion | CF27: Pembrokeshire | CG27: North Pembrokeshire | CH27: South Pembrokeshire | CI27: Powys | CJ27: Mid Powys | CK27: North Powys | CL27: South Powys
C28: Prevalence of hypertension (%) | D28: 2017-2018 | F28: 15.18491579 | G28: 18.42902634 | H28: 17.26312744 | J28: 17.01211516 | K28: 15.84035697 | L28: 17.49382794 | N28: 12.29658599 | O28: 13.0011821 | P28: 14.78866654 | Q28: 15.22264484 | R28: 13.88496363 | T28: 19.29915714 | U28: 17.48000313 | W28: 15.77224437 | X28: 16.64718926 | Y28: 15.6539741 | AA28: 17.48796482 | AB28: 15.7723783 | AD28: 15.36406615 | AE28: 13.30904286 | AF28: 14.0969785 | AH28: 17.55272896 | AI28: 16.13247863 | AK28: 17.46588397 | AM28: 17.7459621 | AN28: 17.59551898 | AP28: 17.07131296 | AQ28: 17.18532742 | AS28: 15.35514816 | AT28: 16.82522769 | AU28: 16.04430875 | BE28: 13.43138447 | BF28: 12.32442096 | BG28: 8.192077204 | BH28: 12.11627275 | BI28: 13.11840501 | BJ28: 9.515540893 | BL28: 15.2648122 | BM28: 14.49523344 | BN28: 14.48983912 | BP28: 17.39682343 | BQ28: 16.54744372 | BS28: 17.63462531 | BT28: 18.48800922 | BU28: 15.5889564 | BV28: 18.28908555 | BW28: 17.53055914 | BX28: 14.54713874 | BZ28: 16.13351412 | CA28: 15.57275743 | CB28: 16.1438448 | CD28: 15.1227559 | CE28: 18.1252205 | CG28: 16.8758418 | CH28: 18.08873092 | CJ28: 18.59487319 | CK28: 15.82433987 | CL28: 18.68261899
C29: Prevalence of obesity in children (%) | D29: 2016-2017 | E29: 13.54292624 | I29: 11.81938911 | M29: 13.49206349 | S29: 15.13888889 | V29: 13.55498721 | Z29: 7.976878613 | AC29: 10.81808396 | AG29: 11.36363636 | AJ29: 14.15584416 | AL29: 14.43755536 | AO29: 12.1304791 | AR29: 10.92089728 | AV29: 12.99921691 | AZ29: 12.78287462 | BD29: 10.6629695 | BK29: 7.82674772 | BO29: 17.49598716 | BR29: 13.64465524 | BY29: 14.01574803 | CC29: 10.85626911 | CF29: 13.40460526 | CI29: 11.34215501
C30: Prevalence of obesity in adults (%) | D30: 2017-2018 | F30: 8.546410787 | G30: 10.15343047 | H30: 8.02256618 | J30: 13.30319222 | K30: 13.94928819 | L30: 10.84383111 | N30: 6.13824786 | O30: 8.813441079 | P30: 11.76828128 | Q30: 9.357597663 | R30: 10.8546606 | T30: 13.16245237 | U30: 12.08410411 | W30: 11.27866269 | X30: 12.38463382 | Y30: 10.3970557 | AA30: 11.41541261 | AB30: 10.0333249 | AD30: 9.3393557 | AE30: 10.71249825 | AF30: 10.97260882 | AH30: 12.13120058 | AI30: 9.558695273 | AK30: 9.319204086 | AM30: 7.775087945 | AN30: 7.630566073 | AP30: 6.338665143 | AQ30: 7.059855658 | AS30: 9.52051377 | AT30: 9.024025167 | AU30: 9.153358384 | BE30: 9.586900276 | BF30: 7.238276722 | BG30: 7.38890186 | BH30: 8.021672855 | BI30: 6.834932923 | BJ30: 6.662863096 | BL30: 9.998428414 | BM30: 6.635161194 | BN30: 6.343494214 | BP30: 13.19855104 | BQ30: 11.95034715 | BS30: 10.74298916 | BT30: 11.89237819 | BU30: 12.54237288 | BV30: 15.49624132 | BW30: 15.36661612 | BX30: 8.526142445 | BZ30: 11.90512061 | CA30: 10.33793014 | CB30: 10.22598287 | CD30: 8.830712541 | CE30: 8.357025754 | CG30: 8.171605241 | CH30: 9.571078657 | CJ30: 9.087210091 | CK30: 10.17323422 | CL30: 9.87816636
C31: Prevalence of high fasting glucose
C32: Prevalence of high cholesterol
C33: Long-term condition prevalence
C34: Indicator | D34: Period | E34: Bridgend | F34: Bridgend East Network | G34: Bridgend North Network | H34: Bridgend West Network | I34: Neath Port Talbot | J34: Afan | K34: Neath | L34: Upper Valleys | M34: Swansea | N34: BayHealth | O34: CityHealth | P34: Cwmtawe | Q34: Llwchwr | R34: Penderi | S34: Blaenau Gwent | T34: Blaenau Gwent East | U34: Blaenau Gwent West | V34: Caerphilly | W34: Caerphilly East | X34: Caerphilly North | Y34: Caerphilly South | Z34: Monmouthshire | AA34: Monmouthshire North | AB34: Monmouthshire South | AC34: Newport | AD34: Newport Central | AE34: Newport East | AF34: Newport West | AG34: Torfaen | AH34: Torfaen North | AI34: Torfaen South | AJ34: Anglesey LA | AK34: Anglesey | AL34: Conwy | AM34: Conwy East | AN34: Conwy West | AO34: Denbighshire | AP34: Central - South Denbighshire | AQ34: North Denbighshire | AR34: Flintshire | AS34: North East Flintshire | AT34: Nort West Flintshire | AU34: South flintshire | AV34: Gwynedd | AW34: Arfon | AX34: Dwyfor | AY34: Meirionnydd | AZ34: Wrexham | BA34: South Wrexham | BB34: West - North Wrexham | BC34: Wrexham Town | BD34: Cardiff | BE34: Cardiff East | BF34: Cardiff North | BG34: Cardiff South East | BH34: Cardiff South West | BI34: Cardiff West | BJ34: City - Cardiff South | BK34: Vale of Glamorgan | BL34: Central Vale | BM34: Eastern Vale | BN34: Western Vale | BO34: Merthyr Tydfil | BP34: North Merthyr Tydfil | BQ34: South Merthyr Tydfil | BR34: Rhondda Cynon Taf | BS34: North Cynon | BT34: North Rhondda | BU34: North Taf Ely | BV34: South Cynon | BW34: South Rhondda | BX34: South Taf Ely | BY34: Carmarthenshire | BZ34: Amman-Gwendraeth | CA34: Llanelli | CB34: Taf - Teifi - Tywi | CC34: Ceredigion | CD34: North Ceredigion | CE34: South Ceredigion | CF34: Pembrokeshire | CG34: North Pembrokeshire | CH34: South Pembrokeshire | CI34: Powys | CJ34: Mid Powys | CK34: North Powys | CL34: South Powys
C35: Prevalence of coronary heart disease (%) | D35: 2018 | F35: 3.710904717 | G35: 4.336582071 | H35: 4.903804426 | J35: 4.031863465 | K35: 3.783908209 | L35: 4.127365956 | N35: 3.122028314 | O35: 3.44359824 | P35: 3.637553768 | Q35: 3.679576355 | R35: 3.545820903 | T35: 4.407689643 | U35: 3.975925588 | W35: 3.444826698 | X35: 3.947920412 | Y35: 3.703376035 | AA35: 3.923278117 | AB35: 3.456930735 | AD35: 3.286525246 | AE35: 3.15509199 | AF35: 3.134454798 | AH35: 4.074740652 | AI35: 3.885400314 | AK35: 4.119844477 | AM35: 4.484245565 | AN35: 4.138373439 | AP35: 3.87508331 | AQ35: 4.626564259 | AS35: 3.582867904 | AT35: 3.70398559 | AU35: 3.832002505 | AW35: 2.784629081 | AX35: 4.001444855 | AY35: 4.308831509 | BA35: 3.7061982 | BB35: 3.660692951 | BC35: 3.399602769 | BE35: 2.898122905 | BF35: 2.633440072 | BG35: 1.793135653 | BH35: 2.644209001 | BI35: 3.066617177 | BJ35: 1.98447151 | BL35: 3.323903819 | BM35: 3.356962438 | BN35: 3.38343212 | BP35: 4.170407753 | BQ35: 3.187460551 | BS35: 3.9521223 | BT35: 4.408333099 | BU35: 3.394094446 | BV35: 3.929964792 | BW35: 3.858033358 | BX35: 3.264717991 | BZ35: 4.626793217 | CA35: 4.359916737 | CB35: 4.017473257 | CD35: 3.365611209 | CE35: 4.225205968 | CG35: 3.771274642 | CH35: 4.268955229 | CJ35: 4.489353045 | CK35: 3.94364445 | CL35: 3.900429485
C36: Prevalence of heart failure (%) | D36: 2018 | F36: 1.00710569 | G36: 1.294991798 | H36: 1.452336178 | J36: 0.9120623177 | K36: 0.8853318224 | L36: 1.196429702 | N36: 0.9268312283 | O36: 0.9049861442 | P36: 1.166541986 | Q36: 1.107445311 | R36: 0.9603810122 | T36: 1.362429281 | U36: 1.305333368 | W36: 0.7092736008 | X36: 0.9394102841 | Y36: 0.8068511572 | AA36: 1.641332777 | AB36: 0.9765460221 | AD36: 0.8418425631 | AE36: 0.7006866729 | AF36: 0.7745370931 | AH36: 1.122323108 | AI36: 0.9658991802 | AK36: 1.228939544 | AM36: 1.072360707 | AN36: 1.361204118 | AP36: 1.280586499 | AQ36: 1.118982984 | AS36: 0.9560752628 | AT36: 0.9310703504 | AU36: 1.074448098 | AW36: 0.7997781637 | AX36: 1.288328785 | AY36: 1.480961348 | BA36: 1.055172027 | BB36: 1.0609319 | BC36: 1.012360439 | BE36: 0.8178645227 | BF36: 0.91055537 | BG36: 0.5603548914 | BH36: 0.7787738839 | BI36: 0.9703589798 | BJ36: 0.5556520229 | BL36: 0.9005186233 | BM36: 0.9804720389 | BN36: 1.294806661 | BP36: 1.009319174 | BQ36: 0.7574163686 | BS36: 0.9536215499 | BT36: 0.9446428069 | BU36: 0.8634473937 | BV36: 1.384527548 | BW36: 0.8011830554 | BX36: 0.6731165089 | BZ36: 1.237047825 | CA36: 1.05054316 | CB36: 1.16259072 | CD36: 1.619606667 | CE36: 1.064602486 | CG36: 1.07903759 | CH36: 1.250483434 | CJ36: 1.651295267 | CK36: 0.9983516313 | CL36: 1.310369007
C37: Prevalence of stroke and TIA (%) | D37: 2018 | F37: 2.477200246 | G37: 2.487696613 | H37: 3.234485751 | J37: 2.154894017 | K37: 2.287697429 | L37: 2.323225929 | N37: 1.980900848 | O37: 2.096777319 | P37: 2.150738732 | Q37: 2.14974678 | R37: 2.1248757 | T37: 2.164877035 | U37: 2.136473776 | W37: 1.712562327 | X37: 2.01366415 | Y37: 2.001203199 | AA37: 2.626890565 | AB37: 2.149244917 | AD37: 1.854162639 | AE37: 1.6035715 | AF37: 1.847593691 | AH37: 2.173869083 | AI37: 2.106227106 | AK37: 2.499047038 | AM37: 2.331958997 | AN37: 2.465813437 | AP37: 2.199371608 | AQ37: 2.118784347 | AS37: 1.770509746 | AT37: 1.631275845 | AU37: 2.205652106 | AW37: 1.602475226 | AX37: 2.38802376 | AY37: 2.492738821 | BA37: 1.956932518 | BB37: 1.849462366 | BC37: 1.90130932 | BE37: 1.562798451 | BF37: 1.695381412 | BG37: 1.12849249 | BH37: 1.575658788 | BI37: 1.972533008 | BJ37: 1.13610994 | BL37: 2.016344492 | BM37: 2.159211277 | BN37: 2.476714649 | BP37: 2.260131893 | BQ37: 1.707693387 | BS37: 1.892496375 | BT37: 2.389721387 | BU37: 2.016842554 | BV37: 1.998287182 | BW37: 2.208869171 | BX37: 1.811445039 | BZ37: 2.219655501 | CA37: 2.38242373 | CB37: 2.569394283 | CD37: 1.814559321 | CE37: 2.394836782 | CG37: 2.308069058 | CH37: 2.648299232 | CJ37: 2.848230028 | CK37: 2.355923242 | CL37: 2.629503024
C38: Prevalence of diabetes (%) | D38: 2018 | F38: 6.097185699 | G38: 7.127279745 | H38: 6.541299002 | J38: 7.456990194 | K38: 6.554996813 | L38: 6.830410838 | N38: 4.276549295 | O38: 6.199251981 | P38: 6.255844399 | Q38: 5.825120306 | R38: 6.408646046 | T38: 7.666551207 | U38: 7.123316224 | W38: 6.140975706 | X38: 7.056814096 | Y38: 6.118621275 | AA38: 6.303779235 | AB38: 5.760145111 | AD38: 5.718905429 | AE38: 6.230105503 | AF38: 6.375811852 | AH38: 7.170734667 | AI38: 6.388452817 | AK38: 6.394754898 | AM38: 6.704618527 | AN38: 5.812498044 | AP38: 5.724554889 | AQ38: 6.864530226 | AS38: 5.490189766 | AT38: 6.152167846 | AU38: 5.75974636 | AW38: 4.60164334 | AX38: 6.06838979 | AY38: 6.894130414 | BA38: 5.810929636 | BB38: 5.596176822 | BC38: 5.486029426 | BE38: 5.429856396 | BF38: 4.283637507 | BG38: 4.098373414 | BH38: 5.342751064 | BI38: 4.644997084 | BJ38: 5.412646045 | BL38: 5.709570957 | BM38: 5.225562889 | BN38: 5.16511431 | BP38: 6.430539645 | BQ38: 5.978680132 | BS38: 6.618821737 | BT38: 6.879586156 | BU38: 6.20616139 | BV38: 7.084403844 | BW38: 6.679021359 | BX38: 5.446685879 | BZ38: 6.980364586 | CA38: 6.734209328 | CB38: 6.244625598 | CD38: 5.203736235 | CE38: 6.410442651 | CG38: 6.261479123 | CH38: 6.488148953 | CJ38: 6.747592567 | CK38: 6.042981992 | CL38: 6.288894732
C39: Prevalence of chronic obstructive pulmonary disease (%) | D39: 2018 | F39: 1.903709506 | G39: 3.124577825 | H39: 2.447562563 | J39: 2.763587967 | K39: 2.243430838 | L39: 2.649237197 | N39: 1.303188996 | O39: 2.540549968 | P39: 1.994108846 | Q39: 1.811419085 | R39: 2.501700947 | T39: 3.394527191 | U39: 2.76438863 | W39: 2.06113696 | X39: 2.569519358 | Y39: 2.096751362 | AA39: 1.954057845 | AB39: 1.567113811 | AD39: 1.746955131 | AE39: 1.763728454 | AF39: 2.226794143 | AH39: 2.594487472 | AI39: 2.282836211 | AK39: 2.956468705 | AM39: 2.672390967 | AN39: 2.483024064 | AP39: 2.742073693 | AQ39: 3.640005297 | AS39: 2.208308519 | AT39: 2.646066418 | AU39: 2.150853296 | AW39: 2.482523096 | AX39: 2.520468775 | AY39: 3.080016597 | BA39: 2.411554508 | BB39: 2.690561529 | BC39: 2.283113828 | BE39: 2.17402629 | BF39: 1.146297861 | BG39: 1.483383921 | BH39: 2.073711854 | BI39: 1.51474981 | BJ39: 1.131148761 | BL39: 2.226936979 | BM39: 1.488361987 | BN39: 1.425345752 | BP39: 3.291123564 | BQ39: 2.440563854 | BS39: 2.95917615 | BT39: 3.455255981 | BU39: 2.430444516 | BV39: 3.996574365 | BW39: 2.854682615 | BX39: 1.622066694 | BZ39: 2.651534174 | CA39: 2.260456645 | CB39: 1.773122829 | CD39: 1.880971764 | CE39: 2.357482309 | CG39: 2.857536427 | CH39: 2.434667305 | CJ39: 2.888919029 | CK39: 2.063571051 | CL39: 2.296432641
C40: Prevalence of asthma (%) | D40: 2018 | F40: 7.335086443 | G40: 7.968734922 | H40: 8.129610878 | J40: 7.736871979 | K40: 8.058290247 | L40: 7.340001266 | N40: 6.477103786 | O40: 7.170125768 | P40: 6.842622031 | Q40: 7.951751529 | R40: 6.986968127 | T40: 6.942039026 | U40: 7.508923686 | W40: 6.384977949 | X40: 6.971413161 | Y40: 6.591053861 | AA40: 6.912171639 | AB40: 7.266092972 | AD40: 6.979033023 | AE40: 6.346219295 | AF40: 6.510952439 | AH40: 7.908839053 | AI40: 7.009855224 | AK40: 8.137531448 | AM40: 7.519763967 | AN40: 6.76064712 | AP40: 7.169380177 | AQ40: 7.586241144 | AS40: 6.729546589 | AT40: 6.971611234 | AU40: 7.223657429 | AW40: 6.766006509 | AX40: 7.396853428 | AY40: 7.044141585 | BA40: 7.548970085 | BB40: 7.483870968 | BC40: 6.643012785 | BE40: 6.759971522 | BF40: 7.143979726 | BG40: 5.2906841 | BH40: 7.336472577 | BI40: 7.1477809 | BJ40: 5.702875003 | BL40: 6.927549898 | BM40: 6.789972569 | BN40: 6.502257973 | BP40: 6.792779962 | BQ40: 6.925450593 | BS40: 6.468896699 | BT40: 6.935814895 | BU40: 7.00138578 | BV40: 7.379389095 | BW40: 7.482076337 | BX40: 7.391930836 | BZ40: 7.736989237 | CA40: 7.604241202 | CB40: 6.665978743 | CD40: 6.195638202 | CE40: 6.904351796 | CG40: 6.236990327 | CH40: 7.125361425 | CJ40: 6.740811067 | CK40: 7.073989985 | CL40: 7.207029538
C41: Prevalence of dementia (%) | D41: 2018 | F41: 0.6322385721 | G41: 0.6272314967 | H41: 0.8852885867 | J41: 0.8279020609 | K41: 0.6569162122 | L41: 0.8704184339 | N41: 0.7486974807 | O41: 0.6821308839 | P41: 0.6218440247 | Q41: 0.7439006451 | R41: 0.528602083 | T41: 0.6321440942 | U41: 0.6878403377 | W41: 0.4925511116 | X41: 0.5888169723 | Y41: 0.6175242409 | AA41: 0.8964785262 | AB41: 0.8057031975 | AD41: 0.6731225505 | AE41: 0.4104021942 | AF41: 0.7886562588 | AH41: 0.6289053811 | AI41: 0.6715506716 | AK41: 0.7547457498 | AM41: 1.132881946 | AN41: 0.8480145195 | AP41: 0.7212225079 | AQ41: 1.079255777 | AS41: 0.4007790243 | AT41: 0.6367810843 | AU41: 0.6184437138 | AW41: 0.6479954465 | AX41: 0.8107240328 | AY41: 0.6543040439 | BA41: 0.6042917813 | BB41: 0.5973715651 | BC41: 0.8060317399 | BE41: 0.7067321884 | BF41: 0.6718660983 | BG41: 0.3953615067 | BH41: 0.6006821818 | BI41: 0.6221609488 | BJ41: 0.5407684866 | BL41: 0.6050605061 | BM41: 0.9424481925 | BN41: 0.744425628 | BP41: 0.7337688473 | BQ41: 0.4593590013 | BS41: 0.4964730749 | BT41: 0.3570524895 | BU41: 0.6800980706 | BV41: 0.5186031021 | BW41: 0.5709365231 | BX41: 0.5125566077 | BZ41: 0.6980364586 | CA41: 0.7724582059 | CB41: 0.6724452241 | CD41: 0.6448433952 | CE41: 0.6723805176 | CG41: 0.6229337578 | CH41: 0.8342695077 | CJ41: 0.8510782585 | CK41: 0.5442726962 | CL41: 0.9948286441
C42: Prevalence of multi-morbidity

Sheet LTC data
M1: Chosen level of confidence: | N1: 1.96 | AB1: Chosen level of confidence: | AC1: 1.96 | AG1: Chosen level of confidence: | AH1: 0.95 | CL1: Year | CM1: LHB | CN1: Cluster | CO1: Practice | CP1: List size | CQ1: Asthma | CR1: Chronic obstructive pulmonary disease | CS1: Coronary heart disease | CT1: Dementia | CU1: Diabetes | CV1: Heart failure | CW1: Stroke and transient ischaemic attack | FL1: Indicator | FM1: Period | FN1: Area | FO1: GP cluster | FP1: GP practice | FQ1: Percentage
A2: Hypertension prevalence | B2: numerator | C2: denominator | D2: proportion | L2: As percentage for outputs | P2: Prevalence of adult obesity | Q2: numerator | R2: denominator | S2: proportion | AA2: As percentage for outputs | AE2: Prevalence of child obesity | AF2: n | AG2: % | AH2: LCL | AI2: UCL | CL2: 2018 | CM2: Abertawe Bro Morgannwg | CN2: Afan | CO2: W00141 | CP2: 4383 | CQ2: 360 | CR2: 128 | CS2: 164 | CT2: 21 | CU2: 293 | CV2: 22 | CW2: 61 | FL2: Smoking | FM2: 2013/14 | FN2: Abertawe Bro Morgannwg UHB | FO2: - | FP2: - | FQ2: 20.75886248
A3: Clusters | B3: r | C3: n | D3: p | E3: q | F3: A | G3: B | H3: C | I3: LCL | J3: UCL | L3: % | M3: % LCL | N3: % UCL | P3: Clusters | Q3: r | R3: n | S3: p | T3: q | U3: A | V3: B | W3: C | X3: LCL | Y3: UCL | AA3: % | AB3: % LCL | AC3: % UCL | AE3: Wales | AF3: 4104 | AG3: 12.35177271 | AH3: 12 | AI3: 12.7 | CL3: 2018 | CM3: Abertawe Bro Morgannwg | CN3: Afan | CO3: W98017 | CP3: 2752 | CQ3: 317 | CR3: 132 | CS3: 132 | CT3: 40 | CU3: 214 | CV3: 50 | CW3: 88 | FL3: Smoking | FM3: 2013/14 | FN3: Abertawe Bro Morgannwg UHB | FO3: Bay Health | FP3: - | FQ3: 13.12815265
A4: Bridgend East Network | B4: 10856 | C4: 71492 | D4: =B4/C4 -> 0.1518491579 | E4: =1-D4 -> 0.8481508421 | F4: =2*B4+$N$1^2 -> 21715.8416 | G4: =$N$1*(SQRT($N$1^2+(4*B4*E4))) -> 376.1665567 | H4: =2*(C4+$N$1^2) -> 142991.6832 | I4: =(F4-G4)/H4 -> 0.1492371764 | J4: =(F4+G4)/H4 -> 0.1544985531 | L4: =D4*100 -> 15.18491579 | M4: =I4*100 -> 14.92371764 | N4: 15.44985531 | P4: Bridgend East Network | Q4: 6110 | R4: 71492 | S4: =Q4/R4 -> 0.08546410787 | T4: =1-S4 -> 0.9145358921 | U4: =2*Q4+$AC$1^2 -> 12223.8416 | V4: =$AC$1*(SQRT($AC$1^2+(4*Q4*T4))) -> 293.0517831 | W4: =2*(R4+$AC$1^2) -> 142991.6832 | X4: =(U4-V4)/W4 -> 0.08343694927 | Y4: =(U4+V4)/W4 -> 0.08753581399 | AA4: =S4*100 -> 8.546410787 | AB4: =X4*100 -> 8.343694927 | AC4: 8.753581399 | AE4: Betsi Cadwaladr UHB | AF4: 951 | AG4: 12.7037136 | AH4: 12 | AI4: 13.5 | CL4: 2018 | CM4: Abertawe Bro Morgannwg | CN4: Afan | CO4: W98019 | CP4: 5802 | CQ4: 561 | CR4: 223 | CS4: 254 | CT4: 40 | CU4: 474 | CV4: 74 | CW4: 144 | FL4: Smoking | FM4: 2013/14 | FN4: Abertawe Bro Morgannwg UHB | FO4: City Health | FP4: - | FQ4: 28.79316957
A5: Bridgend North Network | B5: 9549 | C5: 51815 | D5: 0.1842902634 | E5: 0.8157097366 | F5: 19101.8416 | G5: 345.986863 | H5: 103637.6832 | I5: 0.1809752414 | J5: 0.1876520959 | L5: 18.42902634 | M5: 18.09752414 | N5: 18.76520959 | P5: Bridgend North Network | Q5: 5261 | R5: 51815 | S5: 0.1015343047 | T5: 0.8984656953 | U5: 10525.8416 | V5: 269.5349477 | W5: 103637.6832 | X5: 0.09896310237 | Y5: 0.1041645878 | AA5: 10.15343047 | AB5: 9.896310237 | AC5: 10.41645878 | AE5: Isle of Anglesey | AF5: 109 | AG5: 14.15584416 | AH5: 11.9 | AI5: 16.8 | CL5: 2018 | CM5: Abertawe Bro Morgannwg | CN5: Afan | CO5: W98031 | CP5: 11046 | CQ5: 795 | CR5: 210 | CS5: 462 | CT5: 132 | CU5: 785 | CV5: 129 | CW5: 245 | FL5: Smoking | FM5: 2013/14 | FN5: Abertawe Bro Morgannwg UHB | FO5: Cwmtawe | FP5: - | FQ5: 19.81686575
A6: Bridgend West Network | B6: 5967 | C6: 34565 | D6: 0.1726312744 | E6: 0.8273687256 | F6: 11937.8416 | G6: 275.4583076 | H6: 69137.6832 | I6: 0.1686834553 | J6: 0.1766518538 | L6: 17.26312744 | M6: 16.86834553 | N6: 17.66518538 | P6: Bridgend West Network | Q6: 2773 | R6: 34565 | S6: 0.0802256618 | T6: 0.9197743382 | U6: 5549.8416 | V6: 198.0083009 | W6: 69137.6832 | X6: 0.07740834016 | Y6: 0.08313628162 | AA6: 8.02256618 | AB6: 7.740834016 | AC6: 8.313628162 | AE6: Gwynedd | AF6: 166 | AG6: 12.99921691 | AH6: 11.3 | AI6: 15 | CL6: 2018 | CM6: Abertawe Bro Morgannwg | CN6: Afan | CO6: W98032 | CP6: 8720 | CQ6: 682 | CR6: 220 | CS6: 343 | CT6: 43 | CU6: 605 | CV6: 59 | CW6: 158 | FL6: Smoking | FM6: 2013/14 | FN6: Abertawe Bro Morgannwg UHB | FO6: Llwchwr | FP6: - | FQ6: 16.94811991
A7: Afan | B7: 8692 | C7: 51093 | D7: 0.1701211516 | E7: 0.8298788484 | F7: 17387.8416 | G7: 332.9524257 | H7: 102193.6832 | I7: 0.1668878999 | J7: 0.1734040057 | L7: 17.01211516 | M7: 16.68878999 | N7: 17.34040057 | P7: Afan | Q7: 6797 | R7: 51093 | S7: 0.1330319222 | T7: 0.8669680778 | U7: 13597.8416 | V7: 300.9411962 | W7: 102193.6832 | X7: 0.1301146997 | Y7: 0.136004324 | AA7: 13.30319222 | AB7: 13.01146997 | AC7: 13.6004324 | AE7: Conwy | AF7: 163 | AG7: 14.43755536 | AH7: 12.5 | AI7: 16.6 | CL7: 2018 | CM7: Abertawe Bro Morgannwg | CN7: Afan | CO7: W98035 | CP7: 9335 | CQ7: 635 | CR7: 240 | CS7: 337 | CT7: 80 | CU7: 742 | CV7: 55 | CW7: 201 | FL7: Smoking | FM7: 2013/14 | FN7: Abertawe Bro Morgannwg UHB | FO7: Penderi | FP7: - | FQ7: 25.21507614
A8: Neath | B8: 8946 | C8: 56476 | D8: 0.1584035697 | E8: 0.8415964303 | F8: 17895.8416 | G8: 340.1575808 | H8: 112959.6832 | I8: 0.1554154856 | J8: 0.1614381226 | L8: 15.84035697 | M8: 15.54154856 | N8: 16.14381226 | P8: Neath | Q8: 7878 | R8: 56476 | S8: 0.1394928819 | T8: 0.8605071181 | U8: 15759.8416 | V8: 322.7766056 | W8: 112959.6832 | X8: 0.136659953 | Y8: 0.1423748522 | AA8: 13.94928819 | AB8: 13.6659953 | AC8: 14.23748522 | AE8: Denbighshire | AF8: 119 | AG8: 12.1304791 | AH8: 10.2 | AI8: 14.3 | CL8: 2018 | CM8: Abertawe Bro Morgannwg | CN8: Afan | CO8: W98041 | CP8: 6773 | CQ8: 383 | CR8: 200 | CS8: 269 | CT8: 48 | CU8: 515 | CV8: 53 | CW8: 145 | FL8: Smoking | FM8: 2013/14 | FN8: Abertawe Bro Morgannwg UHB | FO8: Upper Valleys | FP8: - | FQ8: 21.21983014
A9: Upper Valleys | B9: 5527 | C9: 31594 | D9: 0.1749382794 | E9: 0.8250617206 | F9: 11057.8416 | G9: 264.740111 | H9: 63195.6832 | I9: 0.1707885878 | J9: 0.1791670117 | L9: 17.49382794 | M9: 17.07885878 | N9: 17.91670117 | P9: Upper Valleys | Q9: 3426 | R9: 31594 | S9: 0.1084383111 | T9: 0.8915616889 | U9: 6855.8416 | V9: 216.6824366 | W9: 63195.6832 | X9: 0.1050571626 | Y9: 0.1119146701 | AA9: 10.84383111 | AB9: 10.50571626 | AC9: 11.19146701 | AE9: Flintshire | AF9: 185 | AG9: 10.92089728 | AH9: 9.5 | AI9: 12.5 | CL9: 2018 | CM9: Abertawe Bro Morgannwg | CN9: Afan | CO9: W98627 | CP9: 2282 | CQ9: 220 | CR9: 59 | CS9: 99 | CT9: 19 | CU9: 182 | CV9: 24 | CW9: 59 | FL9: Smoking | FM9: 2013/14 | FN9: Abertawe Bro Morgannwg UHB | FO9: Afan | FP9: - | FQ9: 23.83534497
A10: BayHealth | B10: 9181 | C10: 74663 | D10: 0.1229658599 | E10: 0.8770341401 | F10: 18365.8416 | G10: 351.7751921 | H10: 149333.6832 | I10: 0.1206296264 | J10: 0.1253408902 | L10: 12.29658599 | M10: 12.06296264 | N10: 12.53408902 | P10: Bay Health | Q10: 4583 | R10: 74663 | S10: 0.0613824786 | T10: 0.9386175214 | U10: 9169.8416 | V10: 257.1306214 | W10: 149333.6832 | X10: 0.05968319262 | Y10: 0.06312689823 | AA10: 6.13824786 | AB10: 5.968319262 | AC10: 6.312689823 | AE10: Wrexham | AF10: 209 | AG10: 12.78287462 | AH10: 11.3 | AI10: 14.5 | CM10: 2018 | CN10: Abertawe Bro Morgannwg | CO10: Afan | CP10: =SUM(CP2:CP9) -> 51093 | CQ10: =SUM(CQ2:CQ9) -> 3953 | CR10: 1412 | CS10: 2060 | CT10: 423 | CU10: 3810 | CV10: 466 | CW10: 1101 | FL10: Smoking | FM10: 2013/14 | FN10: Abertawe Bro Morgannwg UHB | FO10: Neath | FP10: - | FQ10: 20.3139094
A11: CityHealth | B11: 6709 | C11: 51603 | D11: 0.130011821 | E11: 0.869988179 | F11: 13421.8416 | G11: 299.5072683 | H11: 103213.6832 | I11: 0.1271375454 | J11: 0.1329411803 | L11: 13.0011821 | M11: 12.71375454 | N11: 13.29411803 | P11: City Health | Q11: 4548 | R11: 51603 | S11: 0.08813441079 | T11: 0.9118655892 | U11: 9099.8416 | V11: 252.4712846 | W11: 103213.6832 | X11: 0.08571896711 | Y11: 0.09061117281 | AA11: 8.813441079 | AB11: 8.571896711 | AC11: 9.061117281 | AE11: Powys THB | AF11: 120 | AG11: 11.34215501 | AH11: 9.6 | AI11: 13.4 | FL11: Smoking | FM11: 2013/14 | FN11: Abertawe Bro Morgannwg UHB | FO11: Bridgend East Network | FP11: - | FQ11: 18.50097361
A12: Cwmtawe | B12: 6326 | C12: 42776 | D12: 0.1478866654 | E12: 0.8521133346 | F12: 12655.8416 | G12: 287.8313048 | H12: 85559.6832 | I12: 0.1445541852 | J12: 0.1512823847 | L12: 14.78866654 | M12: 14.45541852 | N12: 15.12823847 | P12: Cwmtawe | Q12: 5034 | R12: 42776 | S12: 0.1176828128 | T12: 0.8823171872 | U12: 10071.8416 | V12: 261.2774872 | W12: 85559.6832 | X12: 0.1146633992 | Y12: 0.12077089 | AA12: 11.76828128 | AB12: 11.46633992 | AC12: 12.077089 | AE12: Hywel Dda UHB | AF12: 501 | AG12: 13.27152318 | AH12: 12.2 | AI12: 14.4 | CL12: 2018 | CM12: Abertawe Bro Morgannwg | CN12: Bay Health | CO12: W98016 | CP12: 8849 | CQ12: 593 | CR12: 170 | CS12: 358 | CT12: 74 | CU12: 503 | CV12: 95 | CW12: 199 | FL12: Smoking | FM12: 2013/14 | FN12: Abertawe Bro Morgannwg UHB | FO12: Bridgend North Network | FP12: - | FQ12: 24.48228976
A13: Llwchwr | B13: 7244 | C13: 47587 | D13: 0.1522264484 | E13: 0.8477735516 | F13: 14491.8416 | G13: 307.2197811 | H13: 95181.6832 | I13: 0.1490268016 | J13: 0.1554822407 | L13: 15.22264484 | M13: 14.90268016 | N13: 15.54822407 | P13: Llwchwr | Q13: 4453 | R13: 47587 | S13: 0.09357597663 | T13: 0.9064240234 | U13: 8909.8416 | V13: 249.0747942 | W13: 95181.6832 | X13: 0.09099194839 | Y13: 0.09622561911 | AA13: 9.357597663 | AB13: 9.099194839 | AC13: 9.622561911 | AE13: Ceredigion | AF13: 71 | AG13: 10.85626911 | AH13: 8.7 | AI13: 13.5 | CL13: 2018 | CM13: Abertawe Bro Morgannwg | CN13: Bay Health | CO13: W98021 | CP13: 21375 | CQ13: 1593 | CR13: 290 | CS13: 710 | CT13: 171 | CU13: 994 | CV13: 214 | CW13: 446 | FL13: Smoking | FM13: 2013/14 | FN13: Abertawe Bro Morgannwg UHB | FO13: Bridgend West Network | FP13: - | FQ13: 21.77755161
A14: Penderi | B14: 5306 | C14: 38214 | D14: 0.1388496363 | E14: 0.8611503637 | F14: 10615.8416 | G14: 265.0054596 | H14: 76435.6832 | I14: 0.1354189 | J14: 0.1423529771 | L14: 13.88496363 | M14: 13.54189 | N14: 14.23529771 | P14: Penderi | Q14: 4148 | R14: 38214 | S14: 0.108546606 | T14: 0.891453394 | U14: 8299.8416 | V14: 238.4026912 | W14: 76435.6832 | X14: 0.1054669569 | Y14: 0.1117049516 | AA14: 10.8546606 | AB14: 10.54669569 | AC14: 11.17049516 | AE14: Pembrokeshire | AF14: 163 | AG14: 13.40460526 | AH14: 11.6 | AI14: 15.4 | CL14: 2018 | CM14: Abertawe Bro Morgannwg | CN14: Bay Health | CO14: W98023 | CP14: 7401 | CQ14: 528 | CR14: 153 | CS14: 236 | CT14: 34 | CU14: 345 | CV14: 39 | CW14: 141 | FL14: Smoking | FM14: 2013/14 | FN14: Aneurin Bevan UHB | FO14: - | FP14: - | FQ14: 21.73821385
A15: ABMU | B15: =SUM(B4:B14) -> 84303 | C15: =SUM(C4:C14) -> 551878 | D15: =B15/C15 -> 0.1527565875 | E15: =1-D15 -> 0.8472434125 | F15: 168609.8416 | G15: 1047.646103 | H15: 1103763.683 | I15: =(F15-G15)/H15 -> 0.1518098467 | J15: =(F15+G15)/H15 -> 0.1537081626 | L15: =D15*100 -> 15.27565875 | M15: =I15*100 -> 15.18098467 | N15: =J15*100 -> 15.37081626 | P15: ABMU | Q15: =SUM(Q4:Q14) -> 55011 | R15: =SUM(R4:R14) -> 551878 | S15: =Q15/R15 -> 0.09967963934 | T15: =1-S15 -> 0.9003203607 | U15: =2*Q15+$N$1^2 -> 110025.8416 | V15: =$N$1*(SQRT($N$1^2+(4*Q15*T15))) -> 872.395835 | W15: =2*(R15+$N$1^2) -> 1103763.683 | X15: =(U15-V15)/W15 -> 0.09889204313 | Y15: =(U15+V15)/W15 -> 0.1004728087 | AA15: =S15*100 -> 9.967963934 | AB15: =X15*100 -> 9.889204313 | AC15: =Y15*100 -> 10.04728087 | AE15: Carmarthenshire | AF15: 267 | AG15: 14.01574803 | AH15: 12.5 | AI15: 15.6 | CL15: 2018 | CM15: Abertawe Bro Morgannwg | CN15: Bay Health | CO15: W98033 | CP15: 7686 | CQ15: 477 | CR15: 103 | CS15: 341 | CT15: 63 | CU15: 430 | CV15: 89 | CW15: 245 | FL15: Smoking | FM15: 2013/14 | FN15: Aneurin Bevan UHB | FO15: Caerphilly North | FP15: - | FQ15: 23.1945066
A16: Blaenau Gwent East | B16: 6686 | C16: 34644 | D16: =B16/C16 -> 0.1929915714 | E16: =1-D16 -> 0.8070084286 | F16: 13375.8416 | G16: 287.9697943 | H16: 69295.6832 | I16: =(F16-G16)/H16 -> 0.188869944 | J16: =(F16+G16)/H16 -> 0.1971812783 | L16: =D16*100 -> 19.29915714 | M16: =I16*100 -> 18.8869944 | N16: 19.71812783 | P16: Blaenau Gwent East | Q16: 4560 | R16: 34644 | S16: =Q16/R16 -> 0.1316245237 | T16: =1-S16 -> 0.8683754763 | U16: =2*Q16+$AC$1^2 -> 9123.8416 | V16: =$AC$1*(SQRT($AC$1^2+(4*Q16*T16))) -> 246.7032799 | W16: =2*(R16+$AC$1^2) -> 69295.6832 | X16: =(U16-V16)/W16 -> 0.1281052139 | Y16: =(U16+V16)/W16 -> 0.1352255212 | AA16: =S16*100 -> 13.16245237 | AB16: =X16*100 -> 12.81052139 | AC16: 13.52255212 | AE16: ABM UHB | AF16: 759 | AG16: 13.07268343 | AH16: 12.2 | AI16: 14 | CL16: 2018 | CM16: Abertawe Bro Morgannwg | CN16: Bay Health | CO16: W98045 | CP16: 6394 | CQ16: 361 | CR16: 102 | CS16: 254 | CT16: 91 | CU16: 308 | CV16: 77 | CW16: 159 | FL16: Smoking | FM16: 2013/14 | FN16: Aneurin Bevan UHB | FO16: Caerphilly East | FP16: - | FQ16: 19.21496917
A17: Blaenau Gwent West | B17: 6709 | C17: 38381 | D17: 0.1748000313 | E17: 0.8251999687 | F17: 13421.8416 | G17: 291.69718 | H17: 76769.6832 | I17: 0.1710329374 | J17: 0.1786322179 | L17: 17.48000313 | M17: 17.10329374 | N17: 17.86322179 | P17: Blaenau Gwent West | Q17: 4638 | R17: 38381 | S17: 0.1208410411 | T17: 0.8791589589 | U17: 9279.8416 | V17: 250.3434781 | W17: 76769.6832 | X17: 0.1176180198 | Y17: 0.1241399558 | AA17: 12.08410411 | AB17: 11.76180198 | AC17: 12.41399558 | AE17: Swansea | AF17: 357 | AG17: 13.49206349 | AH17: 12.2 | AI17: 14.8 | CL17: 2018 | CM17: Abertawe Bro Morgannwg | CN17: Bay Health | CO17: W98049 | CP17: 9301 | CQ17: 589 | CR17: 110 | CS17: 285 | CT17: 79 | CU17: 381 | CV17: 117 | CW17: 195 | FL17: Smoking | FM17: 2013/14 | FN17: Aneurin Bevan UHB | FO17: Caerphilly South | FP17: - | FQ17: 22.85694638
A18: Caerphilly East | B18: 10407 | C18: 65983 | D18: 0.1577224437 | E18: 0.8422775563 | F18: 20817.8416 | G18: 367.0288889 | H18: 131973.6832 | I18: 0.1549612939 | J18: 0.1605234466 | L18: 15.77224437 | M18: 15.49612939 | N18: 16.05234466 | P18: Caerphilly East | Q18: 7442 | R18: 65983 | S18: 0.1127866269 | T18: 0.8872133731 | U18: 14887.8416 | V18: 318.549203 | W18: 131973.6832 | X18: 0.1103954368 | Y18: 0.1152229023 | AA18: 11.27866269 | AB18: 11.03954368 | AC18: 11.52229023 | AE18: Neath Port Talbot | AF18: 178 | AG18: 11.81938911 | AH18: 10.3 | AI18: 13.5 | CL18: 2018 | CM18: Abertawe Bro Morgannwg | CN18: Bay Health | CO18: W98053 | CP18: 9959 | CQ18: 424 | CR18: 2 | CS18: 4 | CT18: 1 | CU18: 53 | CV18: 3 | CW18: 1 | FL18: Smoking | FM18: 2013/14 | FN18: Aneurin Bevan UHB | FO18: Blaenau Gwent East | FP18: - | FQ18: 25.86873308
A19: Caerphilly North | B19: 11111 | C19: 66744 | D19: 0.1664718926 | E19: 0.8335281074 | F19: 22225.8416 | G19: 377.2639282 | H19: 133495.6832 | I19: 0.16366505 | J19: 0.1693171269 | L19: 16.64718926 | M19: 16.366505 | N19: 16.93171269 | P19: Caerphilly North | Q19: 8266 | R19: 66744 | S19: 0.1238463382 | T19: 0.8761536618 | U19: 16535.8416 | V19: 333.6204791 | W19: 133495.6832 | X19: 0.1213688767 | Y19: 0.126367098 | AA19: 12.38463382 | AB19: 12.13688767 | AC19: 12.6367098 | AE19: Bridgend | AF19: 224 | AG19: 13.54292624 | AH19: 12 | AI19: 15.3 | CL19: 2018 | CM19: Abertawe Bro Morgannwg | CN19: Bay Health | CO19: W98055 | CP19: 3698 | CQ19: 271 | CR19: 43 | CS19: 143 | CT19: 46 | CU19: 179 | CV19: 58 | CW19: 93 | FL19: Smoking | FM19: 2013/14 | FN19: Aneurin Bevan UHB | FO19: Blaenau Gwent West | FP19: - | FQ19: 23.7088792
A20: Caerphilly South | B20: 8847 | C20: 56516 | D20: 0.156539741 | E20: 0.843460259 | F20: 17697.8416 | G20: 338.6447437 | H20: 113039.6832 | I20: 0.1535672816 | J20: 0.1595588897 | L20: 15.6539741 | M20: 15.35672816 | N20: 15.95588897 | P20: Caerphilly South | Q20: 5876 | R20: 56516 | S20: 0.103970557 | T20: 0.896029443 | U20: 11755.8416 | V20: 284.4642584 | W20: 113039.6832 | X20: 0.1014809757 | Y20: 0.1065139738 | AA20: 10.3970557 | AB20: 10.14809757 | AC20: 10.65139738 | AE20: Cardiff and Vale UHB | AF20: 526 | AG20: 9.95646413 | AH20: 9.2 | AI20: 10.8 | CM20: 2018 | CN20: Abertawe Bro Morgannwg | CO20: Bay Health | CP20: =SUM(CP12:CP19) -> 74663 | CQ20: =SUM(CQ12:CQ19) -> 4836 | CR20: =SUM(CR12:CR19) -> 973 | CS20: =SUM(CS12:CS19) -> 2331 | CT20: =SUM(CT12:CT19) -> 559 | CU20: =SUM(CU12:CU19) -> 3193 | CV20: =SUM(CV12:CV19) -> 692 | CW20: =SUM(CW12:CW19) -> 1479 | FL20: Smoking | FM20: 2013/14 | FN20: Aneurin Bevan UHB | FO20: Torfaen North | FP20: - | FQ20: 22.58318736
A21: Monmouthshire North | B21: 9227 | C21: 52762 | D21: 0.1748796482 | E21: 0.8251203518 | F21: 18457.8416 | G21: 342.06006 | H21: 105531.6832 | I21: 0.1716620165 | J21: 0.1781446206 | L21: 17.48796482 | M21: 17.16620165 | N21: 17.81446206 | P21: Monmouthshire North | Q21: 6023 | R21: 52762 | S21: 0.1141541261 | T21: 0.8858458739 | U21: 12049.8416 | V21: 286.358887 | W21: 105531.6832 | X21: 0.1114687301 | Y21: 0.1168957048 | AA21: 11.41541261 | AB21: 11.14687301 | AC21: 11.68957048 | AE21: Vale of Glamorgan | AF21: 103 | AG21: 7.82674772 | AH21: 6.5 | AI21: 9.4 | FL21: Smoking | FM21: 2013/14 | FN21: Aneurin Bevan UHB | FO21: Torfaen South | FP21: - | FQ21: 22.79616469
A22: Monmouthshire South | B22: 7478 | C22: 47412 | D22: 0.157723783 | E22: 0.842276217 | F22: 14959.8416 | G22: 311.1280553 | H22: 94831.6832 | I22: 0.154470669 | J22: 0.161032359 | L22: 15.7723783 | M22: 15.4470669 | N22: 16.1032359 | P22: Monmouthshire South | Q22: 4757 | R22: 47412 | S22: 0.100333249 | T22: 0.899666751 | U22: 9517.8416 | V22: 256.4733249 | W22: 94831.6832 | X22: 0.09766111876 | Y22: 0.1030701406 | AA22: 10.0333249 | AB22: 9.766111876 | AC22: 10.30701406 | AE22: Cardiff | AF22: 423 | AG22: 10.6629695 | AH22: 9.7 | AI22: 11.7 | CL22: 2018 | CM22: Abertawe Bro Morgannwg | CN22: Bridgend East Network | CO22: W95010 | CP22: 18094 | CQ22: 1280 | CR22: 266 | CS22: 674 | CT22: 139 | CU22: 1146 | CV22: 132 | CW22: 447 | FL22: Smoking | FM22: 2013/14 | FN22: Aneurin Bevan UHB | FO22: Monmouthshire North | FP22: - | FQ22: 15.26488004
A23: Newport North | B23: 8742 | C23: 56899 | D23: 0.1536406615 | E23: 0.8463593385 | F23: 17487.8416 | G23: 337.2073622 | H23: 113805.6832 | I23: 0.1507010349 | J23: 0.1566270547 | L23: 15.36406615 | M23: 15.07010349 | N23: 15.66270547 | P23: Newport North | Q23: 5314 | R23: 56899 | S23: 0.093393557 | T23: 0.906606443 | U23: 10631.8416 | V23: 272.1131477 | W23: 113805.6832 | X23: 0.09102997461 | Y23: 0.09581204067 | AA23: 9.3393557 | AB23: 9.102997461 | AC23: 9.581204067 | AE23: Cwm Taf UHB | AF23: 483 | AG23: 14.35790725 | AH23: 13.2 | AI23: 15.6 | CL23: 2018 | CM23: Abertawe Bro Morgannwg | CN23: Bridgend East Network | CO23: W95017 | CP23: 7770 | CQ23: 561 | CR23: 171 | CS23: 302 | CT23: 42 | CU23: 520 | CV23: 54 | CW23: 194 | FL23: Smoking | FM23: 2013/14 | FN23: Aneurin Bevan UHB | FO23: Monmouthshire South | FP23: - | FQ23: 16.97139086
A24: Newport East | B24: 6648 | C24: 49951 | D24: =B24/C24 -> 0.1330904286 | E24: =1-D24 -> 0.8669095714 | F24: 13299.8416 | G24: 297.6148892 | H24: 99909.6832 | I24: =(F24-G24)/H24 -> 0.1301398052 | J24: =(F24+G24)/H24 -> 0.1360974838 | L24: =D24*100 -> 13.30904286 | M24: =I24*100 -> 13.01398052 | N24: 13.60974838 | P24: Newport East | Q24: 5351 | R24: 49951 | S24: 0.1071249825 | T24: 0.8928750175 | U24: 10705.8416 | V24: 270.9832977 | W24: 99909.6832 | X24: 0.1044429125 | Y24: 0.1098674778 | AA24: 10.71249825 | AB24: 10.44429125 | AC24: 10.98674778 | AE24: Rhondda Cynon Taf | AF24: 374 | AG24: 13.64465524 | AH24: 12.4 | AI24: 15 | CL24: 2018 | CM24: Abertawe Bro Morgannwg | CN24: Bridgend East Network | CO24: W95018 | CP24: 11739 | CQ24: 787 | CR24: 203 | CS24: 426 | CT24: 61 | CU24: 675 | CV24: 137 | CW24: 269 | FL24: Smoking | FM24: 2013/14 | FN24: Aneurin Bevan UHB | FO24: Newport Central | FP24: - | FQ24: 19.53420116
A25: Newport West | B25: 6989 | C25: 49578 | D25: 0.140969785 | E25: 0.859030215 | F25: 13981.8416 | G25: 303.7613684 | H25: 99163.6832 | I25: 0.1379343706 | J25: 0.1440608346 | L25: 14.0969785 | M25: 13.79343706 | N25: 14.40608346 | P25: Newport West | Q25: 5440 | R25: 49578 | S25: 0.1097260882 | T25: 0.8902739118 | U25: 10883.8416 | V25: 272.8289158 | W25: 99163.6832 | X25: 0.1070050279 | Y25: 0.1125076253 | AA25: 10.97260882 | AB25: 10.70050279 | AC25: 11.25076253 | AE25: Merthyr Tydfil | AF25: 109 | AG25: 17.49598716 | AH25: 14.7 | AI25: 20.7 | CL25: 2018 | CM25: Abertawe Bro Morgannwg | CN25: Bridgend East Network | CO25: W95035 | CP25: 19100 | CQ25: 1542 | CR25: 408 | CS25: 713 | CT25: 125 | CU25: 1118 | CV25: 218 | CW25: 461 | FL25: Smoking | FM25: 2013/14 | FN25: Aneurin Bevan UHB | FO25: Newport East | FP25: - | FQ25: 25.37013915
A26: Torfaen North | B26: 8680 | C26: 49451 | D26: 0.1755272896 | E26: 0.8244727104 | F26: 17363.8416 | G26: 331.6371786 | H26: 98909.6832 | I26: 0.172199565 | J26: 0.1789054237 | L26: 17.55272896 | M26: 17.2199565 | N26: 17.89054237 | P26: Torfaen North | Q26: 5999 | R26: 49451 | S26: 0.1213120058 | T26: 0.8786879942 | U26: 12001.8416 | V26: 284.6311346 | W26: 98909.6832 | X26: 0.1184637347 | Y26: 0.1242191092 | AA26: 12.13120058 | AB26: 11.84637347 | AC26: 12.42191092 | AE26: Aneurin Bevan UHB | AF26: 764 | AG26: 11.83762008 | AH26: 11.1 | AI26: 12.6 | CL26: 2018 | CM26: Abertawe Bro Morgannwg | CN26: Bridgend East Network | CO26: W95070 | CP26: 14789 | CQ26: 1074 | CR26: 313 | CS26: 538 | CT26: 85 | CU26: 900 | CV26: 179 | CW26: 400 | FL26: Smoking | FM26: 2013/14 | FN26: Aneurin Bevan UHB | FO26: Newport West | FP26: - | FQ26: 24.63291752
A27: Torfaen South | B27: 7399 | C27: 45864 | D27: 0.1613247863 | E27: 0.8386752137 | F27: 14801.8416 | G27: 308.818344 | H27: 91735.6832 | I27: 0.1579867588 | J27: 0.1647195444 | L27: 16.13247863 | M27: 15.79867588 | N27: 16.47195444 | P27: Torfaen South | Q27: 4384 | R27: 45864 | S27: 0.09558695273 | T27: 0.9044130473 | U27: 8771.8416 | V27: 246.8637608 | W27: 91735.6832 | X27: 0.0929297907 | Y27: 0.09831185692 | AA27: 9.558695273 | AB27: 9.29297907 | AC27: 9.831185692 | AE27: Caerphilly | AF27: 265 | AG27: 13.55498721 | AH27: 12.1 | AI27: 15.1 | CM27: 2018 | CN27: Abertawe Bro Morgannwg | CO27: Bridgend East Network | CP27: =SUM(CP22:CP26) -> 71492 | CQ27: =SUM(CQ22:CQ26) -> 5244 | CR27: 1361 | CS27: 2653 | CT27: 452 | CU27: 4359 | CV27: 720 | CW27: 1771 | FL27: Smoking | FM27: 2013/14 | FN27: Betsi Cadwaladr UHB | FO27: - | FP27: - | FQ27: 20.43805139
A28: Aneurin Bevan | B28: =SUM(B16:B27) -> 98923 | C28: =SUM(C16:C27) -> 614185 | D28: =B28/C28 -> 0.1610638488 | E28: =1-D28 -> 0.8389361512 | F28: 197849.8416 | G28: 1129.280097 | H28: 1228377.683 | I28: =(F28-G28)/H28 -> 0.1601466424 | J28: =(F28+G28)/H28 -> 0.1619852953 | L28: =D28*100 -> 16.10638488 | M28: =I28*100 -> 16.01466424 | N28: =J28*100 -> 16.19852953 | P28: Aneurin Bevan | Q28: =SUM(Q16:Q27) -> 68050 | R28: =SUM(R16:R27) -> 614185 | S28: =Q28/R28 -> 0.1107972354 | T28: =1-S28 -> 0.8892027646 | U28: =2*Q28+$N$1^2 -> 136103.8416 | V28: =$N$1*(SQRT($N$1^2+(4*Q28*T28))) -> 964.2818233 | W28: =2*(R28+$N$1^2) -> 1228377.683 | X28: =(U28-V28)/W28 -> 0.1100146654 | Y28: =(U28+V28)/W28 -> 0.1115846741 | AA28: =S28*100 -> 11.07972354 | AB28: =X28*100 -> 11.00146654 | AC28: =Y28*100 -> 11.15846741 | AE28: Blaenau Gwent | AF28: 109 | AG28: 15.13888889 | AH28: 12.7 | AI28: 17.9 | FL28: Smoking | FM28: 2013/14 | FN28: Betsi Cadwaladr UHB | FO28: Anglesey | FP28: - | FQ28: 21.70069067
A29: Anglesey | B29: 11455 | C29: 65585 | D29: =B29/C29 -> 0.1746588397 | E29: =1-D29 -> 0.8253411603 | F29: 22913.8416 | G29: 381.1732573 | H29: 131177.6832 | I29: =(F29-G29)/H29 -> 0.171772117 | J29: =(F29+G29)/H29 -> 0.1775836734 | L29: =D29*100 -> 17.46588397 | M29: =I29*100 -> 17.1772117 | N29: 17.75836734 | P29: Anglesey | Q29: 6112 | R29: 65585 | S29: =Q29/R29 -> 0.09319204086 | T29: =1-S29 -> 0.9068079591 | U29: =2*Q29+$AC$1^2 -> 12227.8416 | V29: =$AC$1*(SQRT($AC$1^2+(4*Q29*T29))) -> 291.8589569 | W29: =2*(R29+$AC$1^2) -> 131177.6832 | X29: =(U29-V29)/W29 -> 0.0909909548 | Y29: =(U29+V29)/W29 -> 0.09544078117 | AA29: =S29*100 -> 9.319204086 | AB29: =X29*100 -> 9.09909548 | AC29: 9.544078117 | AE29: Torfaen | AF29: 120 | AG29: 11.36363636 | AH29: 9.6 | AI29: 13.4 | CL29: 2018 | CM29: Abertawe Bro Morgannwg | CN29: Bridgend North Network | CO29: W95009 | CP29: 9225 | CQ29: 713 | CR29: 303 | CS29: 517 | CT29: 39 | CU29: 678 | CV29: 150 | CW29: 239 | FL29: Smoking | FM29: 2013/14 | FN29: Betsi Cadwaladr UHB | FO29: Arfon | FP29: - | FQ29: 19.76018816
A30: Conwy East | B30: 9383 | C30: 52874 | D30: 0.177459621 | E30: 0.822540379 | F30: 18769.8416 | G30: 344.3995365 | H30: 105755.6832 | I30: 0.1742264955 | J30: 0.1807396119 | L30: 17.7459621 | M30: 17.42264955 | N30: 18.07396119 | P30: Conwy East | Q30: 4111 | R30: 52874 | S30: 0.07775087945 | T30: 0.9222491206 | U30: 8225.8416 | V30: 241.4009247 | W30: 105755.6832 | X30: 0.07549892766 | Y30: 0.08006418443 | AA30: 7.775087945 | AB30: 7.549892766 | AC30: 8.006418443 | AE30: Monmouthshire | AF30: 69 | AG30: 7.976878613 | AH30: 6.4 | AI30: 10 | CL30: 2018 | CM30: Abertawe Bro Morgannwg | CN30: Bridgend North Network | CO30: W95012 | CP30: 6541 | CQ30: 665 | CR30: 329 | CS30: 310 | CT30: 34 | CU30: 479 | CV30: 104 | CW30: 178 | FL30: Smoking | FM30: 2013/14 | FN30: Betsi Cadwaladr UHB | FO30: Dwyfor | FP30: - | FQ30: 19.79972803
A31: Conwy West | B31: 11246 | C31: 63914 | D31: 0.1759551898 | E31: 0.8240448102 | F31: 22495.8416 | G31: 377.3836005 | H31: 127835.6832 | I31: 0.1730225665 | J31: 0.1789267646 | L31: 17.59551898 | M31: 17.30225665 | N31: 17.89267646 | P31: Conwy West | Q31: 4877 | R31: 63914 | S31: 0.07630566073 | T31: 0.9236943393 | U31: 9757.8416 | V31: 263.1315203 | W31: 127835.6832 | X31: 0.07427276831 | Y31: 0.07838948304 | AA31: 7.630566073 | AB31: 7.427276831 | AC31: 7.838948304 | AE31: Newport | AF31: 201 | AG31: 10.81808396 | AH31: 9.5 | AI31: 12.3 | CL31: 2018 | CM31: Abertawe Bro Morgannwg | CN31: Bridgend North Network | CO31: W95031 | CP31: 7626 | CQ31: 642 | CR31: 302 | CS31: 359 | CT31: 28 | CU31: 599 | CV31: 92 | CW31: 187 | FL31: Smoking | FM31: 2013/14 | FN31: Betsi Cadwaladr UHB | FO31: Meirionnydd | FP31: - | FQ31: 20.0666428
A32: Central & South Denbighshire | B32: 7172 | C32: 42012 | D32: 0.1707131296 | E32: 0.8292868704 | F32: 14347.8416 | G32: 302.3386457 | H32: 84031.6832 | I32: 0.1671453245 | J32: 0.1743411495 | L32: 17.07131296 | M32: 16.71453245 | N32: 17.43411495 | P32: Central & South Denbighshire | Q32: 2663 | R32: 42012 | S32: 0.06338665143 | T32: 0.9366133486 | U32: 5329.8416 | V32: 195.8102486 | W32: 84031.6832 | X32: 0.06109637646 | Y32: 0.06575676743 | AA32: 6.338665143 | AB32: 6.109637646 | AC32: 6.575676743 | CL32: 2018 | CM32: Abertawe Bro Morgannwg | CN32: Bridgend North Network | CO32: W95037 | CP32: 10442 | CQ32: 763 | CR32: 247 | CS32: 388 | CT32: 98 | CU32: 728 | CV32: 143 | CW32: 269 | FL32: Smoking | FM32: 2013/14 | FN32: Betsi Cadwaladr UHB | FO32: Conwy East | FP32: - | FQ32: 20.93014224
A33: North Denbighshire | B33: 10382 | C33: 60412 | D33: 0.1718532742 | E33: 0.8281467258 | F33: 20767.8416 | G33: 363.500053 | H33: 120831.6832 | I33: 0.1688658223 | J33: 0.1748824571 | L33: 17.18532742 | M33: 16.88658223 | N33: 17.48824571 | P33: North Denbighshire | Q33: 4265 | R33: 60412 | S33: 0.07059855658 | T33: 0.9294014434 | U33: 8533.8416 | V33: 246.8310903 | W33: 120831.6832 | X33: 0.06858309253 | Y33: 0.07266862844 | AA33: 7.059855658 | AB33: 6.858309253 | AC33: 7.266862844 | CL33: 2018 | CM33: Abertawe Bro Morgannwg | CN33: Bridgend North Network | CO33: W95064 | CP33: 6128 | CQ33: 474 | CR33: 158 | CS33: 250 | CT33: 32 | CU33: 449 | CV33: 94 | CW33: 150 | FL33: Smoking | FM33: 2013/14 | FN33: Betsi Cadwaladr UHB | FO33: Conwy West | FP33: - | FQ33: 19.09400439
A34: North East Flintshire | B34: 9540 | C34: 62129 | D34: 0.1535514816 | E34: 0.8464485184 | F34: 19083.8416 | G34: 352.2786744 | H34: 124265.6832 | I34: 0.1507380191 | J34: 0.1564077851 | L34: 15.35514816 | M34: 15.07380191 | N34: 15.64077851 | P34: North East Flintshire | Q34: 5915 | R34: 62129 | S34: 0.0952051377 | T34: 0.9047948623 | U34: 11833.8416 | V34: 286.7988915 | W34: 124265.6832 | X34: 0.09292221643 | Y34: 0.09753811494 | AA34: 9.52051377 | AB34: 9.292221643 | AC34: 9.753811494 | CL34: 2018 | CM34: Abertawe Bro Morgannwg | CN34: Bridgend North Network | CO34: W95067 | CP34: 4331 | CQ34: 276 | CR34: 122 | CS34: 142 | CT34: 40 | CU34: 270 | CV34: 29 | CW34: 88 | FL34: Smoking | FM34: 2013/14 | FN34: Betsi Cadwaladr UHB | FO34: Central & South Denbighshire | FP34: - | FQ34: 17.20368965
A35: North West Flintshire | B35: 6632 | C35: 39417 | D35: =B35/C35 -> 0.1682522769 | E35: =1-D35 -> 0.8317477231 | F35: 13267.8416 | G35: 291.1668578 | H35: 78841.6832 | I35: =(F35-G35)/H35 -> 0.1645915487 | J35: =(F35+G35)/H35 -> 0.1719776634 | L35: =D35*100 -> 16.82522769 | M35: =I35*100 -> 16.45915487 | N35: 17.19776634 | P35: North West Flintshire | Q35: 3557 | R35: 39417 | S35: 0.09024025167 | T35: 0.9097597483 | U35: 7117.8416 | V35: 223.0261539 | W35: 78841.6832 | X35: 0.08745139838 | Y35: 0.09310896795 | AA35: 9.024025167 | AB35: 8.745139838 | AC35: 9.310896795 | CL35: 2018 | CM35: Abertawe Bro Morgannwg | CN35: Bridgend North Network | CO35: W95079 | CP35: 4398 | CQ35: 308 | CR35: 71 | CS35: 139 | CT35: 19 | CU35: 260 | CV35: 31 | CW35: 86 | FL35: Smoking | FM35: 2013/14 | FN35: Betsi Cadwaladr UHB | FO35: North Denbighshire | FP35: - | FQ35: 24.26032551
A36: South Flintshire | B36: 8198 | C36: 51096 | D36: 0.1604430875 | E36: 0.8395569125 | F36: =2*B36+$N$1^2 -> 16399.8416 | G36: =$N$1*(SQRT($N$1^2+(4*B36*E36))) -> 325.2335901 | H36: =2*(C36+$N$1^2) -> 102199.6832 | I36: 0.1572862802 | J36: 0.1636509495 | L36: 16.04430875 | M36: 15.72862802 | N36: 16.36509495 | P36: South Flintshire | Q36: 4677 | R36: 51096 | S36: 0.09153358384 | T36: 0.9084664162 | U36: 9357.8416 | V36: 255.5484599 | W36: 102199.6832 | X36: 0.08906380974 | Y36: 0.09406477358 | AA36: 9.153358384 | AB36: 8.906380974 | AC36: 9.406477358 | CL36: 2018 | CM36: Abertawe Bro Morgannwg | CN36: Bridgend North Network | CO36: W95645 | CP36: 3124 | CQ36: 288 | CR36: 87 | CS36: 142 | CT36: 35 | CU36: 230 | CV36: 28 | CW36: 92 | FL36: Smoking | FM36: 2013/14 | FN36: Betsi Cadwaladr UHB | FO36: South Wrexham | FP36: - | FQ36: 21.1776626
A37: Arfon | B37: 8975 | C37: 68519 | D37: =B37/C37 -> 0.130985566 | E37: =1-D37 -> 0.869014434 | F37: 17953.8416 | G37: 346.2131249 | H37: 137045.6832 | I37: =(F37-G37)/H37 -> 0.1284799934 | J37: =(F37+G37)/H37 -> 0.1335325148 | L37: =D37*100 -> 13.0985566 | M37: =I37*100 -> 12.84799934 | N37: 13.35325148 | P37: Arfon | Q37: 4270 | R37: 68519 | S37: 0.06231848101 | T37: 0.937681519 | U37: 8543.8416 | V37: 248.0731509 | W37: 137045.6832 | X37: 0.06053286945 | Y37: 0.06415316809 | AA37: 6.231848101 | AB37: 6.053286945 | AC37: 6.415316809 | CM37: 2018 | CN37: Abertawe Bro Morgannwg | CO37: Bridgend North Network | CP37: =SUM(CP29:CP36) -> 51815 | CQ37: =SUM(CQ29:CQ36) -> 4129 | CR37: 1619 | CS37: 2247 | CT37: 325 | CU37: 3693 | CV37: 671 | CW37: 1289 | FL37: Smoking | FM37: 2013/14 | FN37: Betsi Cadwaladr UHB | FO37: Deeside, Hawarden & Saltney | FP37: - | FQ37: 19.16652217
A38: Dwyfor | B38: 4776 | C38: 24916 | D38: 0.1916840584 | E38: 0.8083159416 | F38: 9555.8416 | G38: 243.5918828 | H38: 49839.6832 | I38: 0.1868440792 | J38: 0.1966190965 | L38: 19.16840584 | M38: 18.68440792 | N38: 19.66190965 | P38: Dwyfor | Q38: 2098 | R38: 24916 | S38: 0.08420292182 | T38: 0.9157970782 | U38: 4199.8416 | V38: 171.8687632 | W38: 49839.6832 | X38: 0.08081858829 | Y38: 0.08771545248 | AA38: 8.420292182 | AB38: 8.081858829 | AC38: 8.771545248 | FL38: Smoking | FM38: 2013/14 | FN38: Betsi Cadwaladr UHB | FO38: Holywell & Flint | FP38: - | FQ38: 21.23410286
A39: Meirionnydd | B39: 5891 | C39: 31331 | D39: 0.1880246401 | E39: 0.8119753599 | F39: 11785.8416 | G39: 271.1412526 | H39: 62669.6832 | I39: 0.1837363739 | J39: 0.1923894017 | L39: 18.80246401 | M39: 18.37363739 | N39: 19.23894017 | P39: Meirionnydd | Q39: 2932 | R39: 31331 | S39: 0.09358143692 | T39: 0.9064185631 | U39: 5867.8416 | V39: 202.120751 | W39: 62669.6832 | X39: 0.09040608728 | Y39: 0.09685643905 | AA39: 9.358143692 | AB39: 9.040608728 | AC39: 9.685643905 | CL39: 2018 | CM39: Abertawe Bro Morgannwg | CN39: Bridgend West Network | CO39: W95034 | CP39: 10910 | CQ39: 891 | CR39: 234 | CS39: 465 | CT39: 70 | CU39: 711 | CV39: 98 | CW39: 290 | FL39: Smoking | FM39: 2013/14 | FN39: Betsi Cadwaladr UHB | FO39: Mold, Buckley & Caergwle | FP39: - | FQ39: 16.47178028
A40: South Wrexham | B40: 9147 | C40: 53451 | D40: 0.1711286973 | E40: 0.8288713027 | F40: 18297.8416 | G40: 341.3472933 | H40: 106909.6832 | I40: 0.1679594754 | J40: 0.1743451887 | L40: 17.11286973 | M40: 16.79594754 | N40: 17.43451887 | P40: South Wrexham | Q40: 4855 | R40: 53451 | S40: 0.09083085443 | T40: 0.9091691456 | U40: 9713.8416 | V40: 260.4655379 | W40: 106909.6832 | X40: 0.08842394607 | Y40: 0.0932965737 | AA40: 9.083085443 | AB40: 8.842394607 | AC40: 9.32965737 | CL40: 2018 | CM40: Abertawe Bro Morgannwg | CN40: Bridgend West Network | CO40: W95041 | CP40: 15210 | CQ40: 1231 | CR40: 430 | CS40: 869 | CT40: 201 | CU40: 1098 | CV40: 300 | CW40: 616 | FL40: Smoking | FM40: 2013/14 | FN40: Betsi Cadwaladr UHB | FO40: West & North Wrexham | FP40: - | FQ40: 20.77897328
A41: West & North Wrexham | B41: 6809 | C41: 41850 | D41: 0.1627001195 | E41: 0.8372998805 | F41: 13621.8416 | G41: 296.0089385 | H41: 83707.6832 | I41: 0.1591948571 | J41: 0.1662673008 | L41: 16.27001195 | M41: 15.91948571 | N41: 16.62673008 | P41: North & West Wrexham | Q41: 4189 | R41: 41850 | S41: 0.1000955795 | T41: 0.8999044205 | U41: 8381.8416 | V41: 240.7103448 | W41: 83707.6832 | X41: 0.09725667877 | Y41: 0.1030078915 | AA41: 10.00955795 | AB41: 9.725667877 | AC41: 10.30078915 | CL41: 2018 | CM41: Abertawe Bro Morgannwg | CN41: Bridgend West Network | CO41: W95063 | CP41: 8445 | CQ41: 688 | CR41: 182 | CS41: 361 | CT41: 35 | CU41: 452 | CV41: 104 | CW41: 212 | FL41: Smoking | FM41: 2013/14 | FN41: Betsi Cadwaladr UHB | FO41: Wrexham Town | FP41: - | FQ41: 23.21918202
A42: Wrexham Town | B42: 8106 | C42: 51859 | D42: 0.1563084518 | E42: 0.8436915482 | F42: 16215.8416 | G42: 324.1990277 | H42: 103725.6832 | I42: 0.1532083673 | J42: 0.1594594523 | L42: 15.63084518 | M42: 15.32083673 | N42: 15.94594523 | P42: Central Wrexham | Q42: 5069 | R42: 51859 | S42: 0.09774581076 | T42: 0.9022541892 | U42: 10141.8416 | V42: 265.1290163 | W42: 103725.6832 | X42: 0.09521954717 | Y42: 0.1003316661 | AA42: 9.774581076 | AB42: 9.521954717 | AC42: 10.03316661 | CM42: 2018 | CN42: Abertawe Bro Morgannwg | CO42: Bridgend West Network | CP42: =SUM(CP39:CP41) -> 34565 | CQ42: =SUM(CQ39:CQ41) -> 2810 | CR42: 846 | CS42: 1695 | CT42: 306 | CU42: 2261 | CV42: 502 | CW42: 1118 | FL42: Smoking | FM42: 2013/14 | FN42: Cardiff & Vale UHB | FO42: - | FP42: - | FQ42: 19.45600846
A43: Betsi Cadwaladr | B43: =SUM(B29:B42) -> 117712 | C43: =SUM(C29:C42) -> 709365 | D43: =B43/C43 -> 0.1659399604 | E43: =1-D43 -> 0.8340600396 | F43: 235427.8416 | G43: 1228.27954 | H43: 1418737.683 | I43: =(F43-G43)/H43 -> 0.1650760143 | J43: =(F43+G43)/H43 -> 0.1668075247 | L43: =D43*100 -> 16.59399604 | M43: =I43*100 -> 16.50760143 | N43: =J43*100 -> 16.68075247 | P43: Betsi Cadwaladr | Q43: =SUM(Q29:Q42) -> 59590 | R43: =SUM(R29:R42) -> 709365 | S43: =Q43/R43 -> 0.08400470844 | T43: =1-S43 -> 0.9159952916 | U43: =2*Q43+$N$1^2 -> 119183.8416 | V43: =$N$1*(SQRT($N$1^2+(4*Q43*T43))) -> 915.8475775 | W43: =2*(R43+$N$1^2) -> 1418737.683 | X43: =(U43-V43)/W43 -> 0.08336142433 | Y43: =(U43+V43)/W43 -> 0.0846524982 | AA43: =S43*100 -> 8.400470844 | AB43: =X43*100 -> 8.336142433 | AC43: =Y43*100 -> 8.46524982 | FL43: Smoking | FM43: 2013/14 | FN43: Cardiff & Vale UHB | FO43: Cardiff North | FP43: - | FQ43: 13.90993231
A44: Cardiff East | B44: 7735 | C44: 57589 | D44: =B44/C44 -> 0.1343138447 | E44: =1-D44 -> 0.8656861553 | F44: 15473.8416 | G44: 320.7950103 | H44: 115185.6832 | I44: =(F44-G44)/H44 -> 0.1315532119 | J44: =(F44+G44)/H44 -> 0.137123262 | L44: =D44*100 -> 13.43138447 | M44: =I44*100 -> 13.15532119 | N44: 13.7123262 | P44: Cardiff East | Q44: 5521 | R44: 57589 | S44: =Q44/R44 -> 0.09586900276 | T44: =1-S44 -> 0.9041309972 | U44: =2*Q44+$AC$1^2 -> 11045.8416 | V44: =$AC$1*(SQRT($AC$1^2+(4*Q44*T44))) -> 276.9825409 | W44: =2*(R44+$AC$1^2) -> 115185.6832 | X44: =(U44-V44)/W44 -> 0.09349129822 | Y44: =(U44+V44)/W44 -> 0.09830062058 | AA44: =S44*100 -> 9.586900276 | AB44: =X44*100 -> 9.349129822 | AC44: 9.830062058 | CL44: 2018 | CM44: Abertawe Bro Morgannwg | CN44: City Health | CO44: W98015 | CP44: 4986 | CQ44: 392 | CR44: 219 | CS44: 153 | CT44: 11 | CU44: 244 | CV44: 40 | CW44: 73 | FL44: Smoking | FM44: 2013/14 | FN44: Cardiff & Vale UHB | FO44: Cardiff East | FP44: - | FQ44: 24.91487458
A45: Cardiff North | B45: 12547 | C45: 101806 | D45: 0.1232442096 | E45: 0.8767557904 | F45: 25097.8416 | G45: 411.1632539 | H45: 203619.6832 | I45: 0.1212391551 | J45: 0.1252776964 | L45: 12.32442096 | M45: 12.12391551 | N45: 12.52776964 | P45: Cardiff North | Q45: 7369 | R45: 101806 | S45: 0.07238276722 | T45: 0.9276172328 | U45: 14741.8416 | V45: 324.1195717 | W45: 203619.6832 | X45: 0.07080711355 | Y45: 0.07399069154 | AA45: 7.238276722 | AB45: 7.080711355 | AC45: 7.399069154 | CL45: 2018 | CM45: Abertawe Bro Morgannwg | CN45: City Health | CO45: W98020 | CP45: 4392 | CQ45: 274 | CR45: 116 | CS45: 187 | CT45: 25 | CU45: 347 | CV45: 92 | CW45: 114 | FL45: Smoking | FM45: 2013/14 | FN45: Cardiff & Vale UHB | FO45: Cardiff South East | FP45: - | FQ45: 22.19132022
A46: Cardiff South East | B46: 5263 | C46: 64245 | D46: 0.08192077204 | E46: 0.918079228 | F46: 10529.8416 | G46: 272.5122249 | H46: 128497.6832 | I46: 0.07982501411 | J46: 0.08406652599 | L46: 8.192077204 | M46: 7.982501411 | N46: 8.406652599 | P46: Cardiff South East | Q46: 4747 | R46: 64245 | S46: 0.0738890186 | T46: 0.9261109814 | U46: 9497.8416 | V46: 259.9409085 | W46: 128497.6832 | X46: 0.07189157393 | Y46: 0.07593741977 | AA46: 7.38890186 | AB46: 7.189157393 | AC46: 7.593741977 | CL46: 2018 | CM46: Abertawe Bro Morgannwg | CN46: City Health | CO46: W98024 | CP46: 6119 | CQ46: 505 | CR46: 139 | CS46: 273 | CT46: 93 | CU46: 413 | CV46: 57 | CW46: 181 | FL46: Smoking | FM46: 2013/14 | FN46: Cardiff & Vale UHB | FO46: Cardiff South West | FP46: - | FQ46: 23.79882075
A47: Cardiff South West | B47: 8028 | C47: 66258 | D47: 0.1211627275 | E47: 0.8788372725 | F47: 16059.8416 | G47: 329.2862072 | H47: 132523.6832 | I47: 0.1186999562 | J47: 0.1236694258 | L47: 12.11627275 | M47: 11.86999562 | N47: 12.36694258 | P47: Cardiff South West | Q47: 5315 | R47: 66258 | S47: 0.08021672855 | T47: 0.9197832715 | U47: 10633.8416 | V47: 274.1088832 | W47: 132523.6832 | X47: 0.07817268934 | Y47: 0.08230944251 | AA47: 8.021672855 | AB47: 7.817268934 | AC47: 8.230944251 | CL47: 2018 | CM47: Abertawe Bro Morgannwg | CN47: City Health | CO47: W98027 | CP47: 10467 | CQ47: 821 | CR47: 200 | CS47: 315 | CT47: 27 | CU47: 574 | CV47: 88 | CW47: 257 | FL47: Smoking | FM47: 2013/14 | FN47: Cardiff & Vale UHB | FO47: Cardiff West | FP47: - | FQ47: 15.13283561
A48: Cardiff West | B48: 7422 | C48: 56577 | D48: 0.1311840501 | E48: 0.8688159499 | F48: 14847.8416 | G48: 314.805835 | H48: 113161.6832 | I48: 0.1284271792 | J48: 0.133991003 | L48: 13.11840501 | M48: 12.84271792 | N48: 13.3991003 | P48: Cardiff West | Q48: 3867 | R48: 56577 | S48: 0.06834932923 | T48: 0.9316506708 | U48: 7737.8416 | V48: 235.3193188 | W48: 113161.6832 | X48: 0.06629914004 | Y48: 0.07045813294 | AA48: 6.834932923 | AB48: 6.629914004 | AC48: 7.045813294 | CL48: 2018 | CM48: Abertawe Bro Morgannwg | CN48: City Health | CO48: W98039 | CP48: 4316 | CQ48: 303 | CR48: 95 | CS48: 158 | CT48: 14 | CU48: 260 | CV48: 39 | CW48: 75 | FL48: Smoking | FM48: 2013/14 | FN48: Cardiff & Vale UHB | FO48: City & Cardiff South | FP48: - | FQ48: 22.82400958
A49: City & Cardiff South | B49: 3836 | C49: 40313 | D49: 0.09515540893 | E49: 0.9048445911 | F49: 7675.8416 | G49: 230.9789691 | H49: 80633.6832 | I49: 0.09232943772 | J49: 0.09805853156 | L49: 9.515540893 | M49: 9.232943772 | N49: 9.805853156 | P49: City & Cardiff South | Q49: 2686 | R49: 40313 | S49: 0.06662863096 | T49: 0.933371369 | U49: 5375.8416 | V49: 196.3131889 | W49: 80633.6832 | X49: 0.0642352948 | Y49: 0.06910455492 | AA49: 6.662863096 | AB49: 6.42352948 | AC49: 6.910455492 | CL49: 2018 | CM49: Abertawe Bro Morgannwg | CN49: City Health | CO49: W98056 | CP49: 5248 | CQ49: 402 | CR49: 117 | CS49: 183 | CT49: 64 | CU49: 349 | CV49: 40 | CW49: 93 | FL49: Smoking | FM49: 2013/14 | FN49: Cardiff & Vale UHB | FO49: Central Vale | FP49: - | FQ49: 23.23323421
A50: Central Vale | B50: 9713 | C50: 63630 | D50: 0.152648122 | E50: 0.847351878 | F50: 19429.8416 | G50: 355.647694 | H50: 127267.6832 | I50: 0.1498746062 | J50: 0.1554635772 | L50: 15.2648122 | M50: 14.98746062 | N50: 15.54635772 | P50: Central Vale | Q50: 6362 | R50: 63630 | S50: 0.09998428414 | T50: 0.9000157159 | U50: 12727.8416 | V50: 296.6500083 | W50: 127267.6832 | X50: 0.09767751938 | Y50: 0.1023393471 | AA50: 9.998428414 | AB50: 9.767751938 | AC50: 10.23393471 | CL50: 2018 | CM50: Abertawe Bro Morgannwg | CN50: City Health | CO50: W98057 | CP50: 7816 | CQ50: 531 | CR50: 214 | CS50: 246 | CT50: 73 | CU50: 446 | CV50: 63 | CW50: 137 | FL50: Smoking | FM50: 2013/14 | FN50: Cardiff & Vale UHB | FO50: Eastern Vale | FP50: - | FQ50: 14.50998779
A51: Eastern Vale | B51: 5337 | C51: 36819 | D51: 0.1449523344 | E51: 0.8550476656 | F51: 10677.8416 | G51: 264.8350895 | H51: 73645.6832 | I51: 0.1413933045 | J51: 0.1485854461 | L51: 14.49523344 | M51: 14.13933045 | N51: 14.85854461 | P51: Eastern Vale | Q51: 2443 | R51: 36819 | S51: 0.06635161194 | T51: 0.9336483881 | U51: 4889.8416 | V51: 187.2539077 | W51: 73645.6832 | X51: 0.06385422048 | Y51: 0.06893948548 | AA51: 6.635161194 | AB51: 6.385422048 | AC51: 6.893948548 | CL51: 2018 | CM51: Abertawe Bro Morgannwg | CN51: City Health | CO51: W98608 | CP51: 6780 | CQ51: 391 | CR51: 181 | CS51: 213 | CT51: 39 | CU51: 485 | CV51: 36 | CW51: 122 | FL51: Smoking | FM51: 2013/14 | FN51: Cardiff & Vale UHB | FO51: Western Vale | FP51: - | FQ51: 14.24075475
A52: Western Vale | B52: 4107 | C52: 28344 | D52: 0.1448983912 | E52: 0.8551016088 | F52: 8217.8416 | G52: 232.3360788 | H52: 56695.6832 | I52: 0.1408485633 | J52: 0.1490444634 | L52: 14.48983912 | M52: 14.08485633 | N52: 14.90444634 | P52: Western Vale | Q52: 1798 | R52: 28344 | S52: 0.06343494214 | T52: 0.9365650579 | U52: 3599.8416 | V52: 160.9065399 | W52: 56695.6832 | X52: 0.06065602998 | Y52: 0.06633217782 | AA52: 6.343494214 | AB52: 6.065602998 | AC52: 6.633217782 | CL52: 2018 | CM52: Abertawe Bro Morgannwg | CN52: City Health | CO52: W98610 | CP52: 1479 | CQ52: 81 | CR52: 30 | CS52: 49 | CT52: 6 | CU52: 81 | CV52: 12 | CW52: 30 | FL52: Smoking | FM52: 2013/14 | FN52: Cwm Taf UHB | FO52: - | FP52: - | FQ52: 22.09450832
A53: Cardiff & Vale | B53: =SUM(B44:B52) -> 63988 | C53: =SUM(C44:C52) -> 515581 | D53: =B53/C53 -> 0.12410853 | E53: =1-D53 -> 0.87589147 | F53: 127979.8416 | G53: 928.0346772 | H53: 1031169.683 | I53: =(F53-G53)/H53 -> 0.1232113482 | J53: =(F53+G53)/H53 -> 0.1250113132 | L53: =D53*100 -> 12.410853 | M53: =I53*100 -> 12.32113482 | N53: =J53*100 -> 12.50113132 | P53: Cardiff & Vale | Q53: =SUM(Q44:Q52) -> 40108 | R53: =SUM(R44:R52) -> 515581 | S53: =Q53/R53 -> 0.07779185036 | T53: =1-S53 -> 0.9222081496 | U53: =2*Q53+$N$1^2 -> 80219.8416 | V53: =$N$1*(SQRT($N$1^2+(4*Q53*T53))) -> 753.9137884 | W53: =2*(R53+$N$1^2) -> 1031169.683 | X53: =(U53-V53)/W53 -> 0.07706387136 | Y53: =(U53+V53)/W53 -> 0.07852612107 | AA53: =S53*100 -> 7.779185036 | AB53: =X53*100 -> 7.706387136 | AC53: =Y53*100 -> 7.852612107 | CM53: 2018 | CN53: Abertawe Bro Morgannwg | CO53: City Health | CP53: =SUM(CP44:CP52) -> 51603 | CQ53: =SUM(CQ44:CQ52) -> 3700 | CR53: 1311 | CS53: 1777 | CT53: 352 | CU53: 3199 | CV53: 467 | CW53: 1082 | FL53: Smoking | FM53: 2013/14 | FN53: Cwm Taf UHB | FO53: North Cynon | FP53: - | FQ53: 22.8359397
A54: North Merthyr Tydfil | B54: 5619 | C54: 32299 | D54: =B54/C54 -> 0.1739682343 | E54: =1-D54 -> 0.8260317657 | F54: 11241.8416 | G54: 267.0907726 | H54: 64605.6832 | I54: =(F54-G54)/H54 -> 0.1698728391 | J54: =(F54+G54)/H54 -> 0.1781411759 | L54: =D54*100 -> 17.39682343 | M54: =I54*100 -> 16.98728391 | N54: 17.81411759 | P54: North Merthyr Tydfil | Q54: 4263 | R54: 32299 | S54: =Q54/R54 -> 0.1319855104 | T54: =1-S54 -> 0.8680144896 | U54: =2*Q54+$AC$1^2 -> 8529.8416 | V54: =$AC$1*(SQRT($AC$1^2+(4*Q54*T54))) -> 238.4863751 | W54: =2*(R54+$AC$1^2) -> 64605.6832 | X54: =(U54-V54)/W54 -> 0.1283378615 | Y54: =(U54+V54)/W54 -> 0.1357206911 | AA54: =S54*100 -> 13.19855104 | AB54: =X54*100 -> 12.83378615 | AC54: 13.57206911 | FL54: Smoking | FM54: 2013/14 | FN54: Cwm Taf UHB | FO54: North Rhondda | FP54: - | FQ54: 23.52640841
A55: South Merthyr Tydfil | B55: 4719 | C55: 28518 | D55: 0.1654744372 | E55: 0.8345255628 | F55: 9441.8416 | G55: 246.0275986 | H55: 57043.6832 | I55: 0.161206526 | J55: 0.1698324627 | L55: 16.54744372 | M55: 16.1206526 | N55: 16.98324627 | P55: South Merthyr Tydfil | Q55: 3408 | R55: 28518 | S55: 0.1195034715 | T55: 0.8804965285 | U55: 6819.8416 | V55: 214.7678018 | W55: 57043.6832 | X55: 0.1157897497 | Y55: 0.1233196913 | AA55: 11.95034715 | AB55: 11.57897497 | AC55: 12.33196913 | CL55: 2018 | CM55: Abertawe Bro Morgannwg | CN55: Cwmtawe | CO55: W98005 | CP55: 10793 | CQ55: 783 | CR55: 216 | CS55: 345 | CT55: 49 | CU55: 608 | CV55: 144 | CW55: 190 | FL55: Smoking | FM55: 2013/14 | FN55: Cwm Taf UHB | FO55: North Taf Ely | FP55: - | FQ55: 20.91332351
A56: North Cynon | B56: 7175 | C56: 40687 | D56: 0.1763462531 | E56: 0.8236537469 | F56: 14353.8416 | G56: 301.3732108 | H56: 81381.6832 | I56: 0.1726736022 | J56: 0.180080016 | L56: 17.63462531 | M56: 17.26736022 | N56: 18.0080016 | P56: North Cynon | Q56: 4371 | R56: 40687 | S56: 0.1074298916 | T56: 0.8925701084 | U56: 8745.8416 | V56: 244.878743 | W56: 81381.6832 | X56: 0.1044579385 | Y56: 0.1104759694 | AA56: 10.74298916 | AB56: 10.44579385 | AC56: 11.04759694 | CL56: 2018 | CM56: Abertawe Bro Morgannwg | CN56: Cwmtawe | CO56: W98022 | CP56: 10983 | CQ56: 692 | CR56: 214 | CS56: 421 | CT56: 77 | CU56: 718 | CV56: 126 | CW56: 241 | FL56: Smoking | FM56: 2013/14 | FN56: Cwm Taf UHB | FO56: South Cynon | FP56: - | FQ56: 25.45266072
A57: North Rhondda | B57: 6576 | C57: 35569 | D57: 0.1848800922 | E57: 0.8151199078 | F57: 13155.8416 | G57: 287.0229491 | H57: 71145.6832 | I57: 0.1808798239 | J57: 0.1889484217 | L57: 18.48800922 | M57: 18.08798239 | N57: 18.89484217 | P57: North Rhondda | Q57: 4230 | R57: 35569 | S57: 0.1189237819 | T57: 0.8810762181 | U57: 8463.8416 | V57: 239.3420132 | W57: 71145.6832 | X57: 0.1156008238 | Y57: 0.1223290468 | AA57: 11.89237819 | AB57: 11.56008238 | AC57: 12.23290468 | CL57: 2018 | CM57: Abertawe Bro Morgannwg | CN57: Cwmtawe | CO57: W98026 | CP57: 6564 | CQ57: 462 | CR57: 144 | CS57: 251 | CT57: 41 | CU57: 476 | CV57: 79 | CW57: 163 | FL57: Smoking | FM57: 2013/14 | FN57: Cwm Taf UHB | FO57: South Rhondda | FP57: - | FQ57: 25.39777366
A58: North Taf Ely | B58: 7312 | C58: 46905 | D58: 0.155889564 | E58: 0.844110436 | F58: 14627.8416 | G58: 307.9906832 | H58: 93817.6832 | I58: 0.1526348811 | J58: 0.1592006088 | L58: 15.5889564 | M58: 15.26348811 | N58: 15.92006088 | P58: North Taf Ely | Q58: 5883 | R58: 46905 | S58: 0.1254237288 | T58: 0.8745762712 | U58: 11769.8416 | V58: 281.206183 | W58: 93817.6832 | X58: 0.1224570361 | Y58: 0.1284517734 | AA58: 12.54237288 | AB58: 12.24570361 | AC58: 12.84517734 | CL58: 2018 | CM58: Abertawe Bro Morgannwg | CN58: Cwmtawe | CO58: W98029 | CP58: 7599 | CQ58: 452 | CR58: 156 | CS58: 322 | CT58: 58 | CU58: 494 | CV58: 91 | CW58: 190 | FL58: Smoking | FM58: 2013/14 | FN58: Cwm Taf UHB | FO58: South Taf Ely | FP58: - | FQ58: 16.47405287
A59: South Cynon | B59: 3844 | C59: 21018 | D59: 0.1828908555 | E59: 0.8171091445 | F59: 7691.8416 | G59: 219.7273804 | H59: 42043.6832 | I59: 0.1777226363 | J59: 0.1881749737 | L59: 18.28908555 | M59: 17.77226363 | N59: 18.81749737 | P59: South Cynon | Q59: 3257 | R59: 21018 | S59: 0.1549624132 | T59: 0.8450375868 | U59: 6517.8416 | V59: 205.6878881 | W59: 42043.6832 | X59: 0.1501332241 | Y59: 0.1599177088 | AA59: 15.49624132 | AB59: 15.01332241 | AC59: 15.99177088 | CL59: 2018 | CM59: Abertawe Bro Morgannwg | CN59: Cwmtawe | CO59: W98044 | CP59: 6837 | CQ59: 538 | CR59: 123 | CS59: 217 | CT59: 41 | CU59: 380 | CV59: 59 | CW59: 136 | FL59: Smoking | FM59: 2013/14 | FN59: Cwm Taf UHB | FO59: North Merthyr Tydfil | FP59: - | FQ59: 25.36994107
A60: South Rhondda | B60: 9365 | C60: 53421 | D60: 0.1753055914 | E60: 0.8246944086 | F60: 18733.8416 | G60: 344.5192426 | H60: 106849.6832 | I60: 0.1721046035 | J60: 0.1785532748 | L60: 17.53055914 | M60: 17.21046035 | N60: 17.85532748 | P60: South Rhondda | Q60: 8209 | R60: 53421 | S60: 0.1536661612 | T60: 0.8463338388 | U60: 16421.8416 | V60: 326.7623893 | W60: 106849.6832 | X60: 0.1506329147 | Y60: 0.1567492152 | AA60: 15.36661612 | AB60: 15.06329147 | AC60: 15.67492152 | CM60: 2018 | CN60: Abertawe Bro Morgannwg | CO60: Cwmtawe | CP60: =SUM(CP55:CP59) -> 42776 | CQ60: =SUM(CQ55:CQ59) -> 2927 | CR60: 853 | CS60: 1556 | CT60: 266 | CU60: 2676 | CV60: 499 | CW60: 920 | FL60: Smoking | FM60: 2013/14 | FN60: Cwm Taf UHB | FO60: South Merthyr Tydfil | FP60: - | FQ60: 21.10322464
A61: South Taf Ely | B61: 7067 | C61: 48580 | D61: 0.1454713874 | E61: 0.8545286126 | F61: 14137.8416 | G61: 304.6501865 | H61: 97167.6832 | I61: 0.1423641169 | J61: 0.1486347241 | L61: 14.54713874 | M61: 14.23641169 | N61: 14.86347241 | P61: South Taf Ely | Q61: 4142 | R61: 48580 | S61: 0.08526142445 | T61: 0.9147385755 | U61: 8287.8416 | V61: 241.3207393 | W61: 97167.6832 | X61: 0.0828106691 | Y61: 0.08777776786 | AA61: 8.526142445 | AB61: 8.28106691 | AC61: 8.777776786 | FL61: Smoking | FM61: 2013/14 | FN61: Hywel Dda UHB | FO61: - | FP61: - | FQ61: 18.94832524
A62: Cwm Taf | B62: =SUM(B54:B61) -> 51677 | C62: =SUM(C54:C61) -> 306997 | D62: =B62/C62 -> 0.1683306352 | E62: =1-D62 -> 0.8316693648 | F62: 103357.8416 | G62: 812.6712919 | H62: 614001.6832 | I62: =(F62-G62)/H62 -> 0.1670112202 | J62: =(F62+G62)/H62 -> 0.1696583507 | L62: =D62*100 -> 16.83306352 | M62: =I62*100 -> 16.70112202 | N62: =J62*100 -> 16.96583507 | P62: Cwm Taf | Q62: =SUM(Q54:Q61) -> 37763 | R62: =SUM(R54:R61) -> 306997 | S62: =Q62/R62 -> 0.1230077167 | T62: =1-S62 -> 0.8769922833 | U62: =2*Q62+$N$1^2 -> 75529.8416 | V62: =$N$1*(SQRT($N$1^2+(4*Q62*T62))) -> 713.3842131 | W62: =2*(R62+$N$1^2) -> 614001.6832 | X62: =(U62-V62)/W62 -> 0.1218505738 | Y62: =(U62+V62)/W62 -> 0.1241742945 | AA62: =S62*100 -> 12.30077167 | AB62: =X62*100 -> 12.18505738 | AC62: =Y62*100 -> 12.41742945 | CL62: 2018 | CM62: Abertawe Bro Morgannwg | CN62: Llwchwr | CO62: W98008 | CP62: 8462 | CQ62: 749 | CR62: 180 | CS62: 324 | CT62: 48 | CU62: 482 | CV62: 101 | CW62: 146 | FL62: Smoking | FM62: 2013/14 | FN62: Hywel Dda UHB | FO62: North Ceredigion | FP62: - | FQ62: 16.77520088
A63: Amman/Gwendraeth | B63: 9638 | C63: 59739 | D63: =B63/C63 -> 0.1613351412 | E63: =1-D63 -> 0.8386648588 | F63: 19279.8416 | G63: 352.4516516 | H63: 119485.6832 | I63: =(F63-G63)/H63 -> 0.1584071785 | J63: =(F63+G63)/H63 -> 0.1643066577 | L63: =D63*100 -> 16.13351412 | M63: =I63*100 -> 15.84071785 | N63: 16.43066577 | P63: Amman/Gwendraeth | Q63: 7112 | R63: 59739 | S63: =Q63/R63 -> 0.1190512061 | T63: =1-S63 -> 0.8809487939 | U63: =2*Q63+$AC$1^2 -> 14227.8416 | V63: =$AC$1*(SQRT($AC$1^2+(4*Q63*T63))) -> 310.3062745 | W63: =2*(R63+$AC$1^2) -> 119485.6832 | X63: =(U63-V63)/W63 -> 0.1164786856 | Y63: =(U63+V63)/W63 -> 0.1216727183 | AA63: =S63*100 -> 11.90512061 | AB63: =X63*100 -> 11.64786856 | AC63: 12.16727183 | CL63: 2018 | CM63: Abertawe Bro Morgannwg | CN63: Llwchwr | CO63: W98012 | CP63: 14066 | CQ63: 1059 | CR63: 230 | CS63: 574 | CT63: 141 | CU63: 918 | CV63: 162 | CW63: 363 | FL63: Smoking | FM63: 2013/14 | FN63: Hywel Dda UHB | FO63: South Ceredigion | FP63: - | FQ63: 18.62638493
A64: Llanelli | B64: 9576 | C64: 61492 | D64: 0.1557275743 | E64: 0.8442724257 | F64: 19155.8416 | G64: 352.4887268 | H64: 122991.6832 | I64: 0.152883125 | J64: 0.1586150366 | L64: 15.57275743 | M64: 15.2883125 | N64: 15.86150366 | P64: Llanelli | Q64: 6357 | R64: 61492 | S64: 0.1033793014 | T64: 0.8966206986 | U64: 12717.8416 | V64: 295.9737114 | W64: 122991.6832 | X64: 0.1009976249 | Y64: 0.105810531 | AA64: 10.33793014 | AB64: 10.09976249 | AC64: 10.5810531 | CL64: 2018 | CM64: Abertawe Bro Morgannwg | CN64: Llwchwr | CO64: W98013 | CP64: 9070 | CQ64: 713 | CR64: 152 | CS64: 311 | CT64: 66 | CU64: 489 | CV64: 86 | CW64: 179 | FL64: Smoking | FM64: 2013/14 | FN64: Hywel Dda UHB | FO64: North Pembrokeshire | FP64: - | FQ64: 20.30746229
A65: Taf / Teifi / Tywi | B65: 9387 | C65: 58146 | D65: 0.161438448 | E65: 0.838561552 | F65: 18777.8416 | G65: 347.8111027 | H65: 116299.6832 | I65: 0.1584701694 | J65: 0.16445146 | L65: 16.1438448 | M65: 15.84701694 | N65: 16.445146 | P65: Taf / Teifi / Tywi | Q65: 5946 | R65: 58146 | S65: 0.1022598287 | T65: 0.8977401713 | U65: 11895.8416 | V65: 286.4263141 | W65: 116299.6832 | X65: 0.09982327524 | Y65: 0.1047489346 | AA65: 10.22598287 | AB65: 9.982327524 | AC65: 10.47489346 | CL65: 2018 | CM65: Abertawe Bro Morgannwg | CN65: Llwchwr | CO65: W98034 | CP65: 11092 | CQ65: 924 | CR65: 227 | CS65: 395 | CT65: 78 | CU65: 626 | CV65: 140 | CW65: 244 | FL65: Smoking | FM65: 2013/14 | FN65: Hywel Dda UHB | FO65: South Pembrokeshire | FP65: - | FQ65: 19.44642459
A66: North Ceredigion | B66: 7059 | C66: 46678 | D66: 0.151227559 | E66: 0.848772441 | F66: 14121.8416 | G66: 303.4506678 | H66: 93363.6832 | I66: 0.1480060604 | J66: 0.1545064609 | L66: 15.1227559 | M66: 14.80060604 | N66: 15.45064609 | P66: North Ceredigion | Q66: 4122 | R66: 46678 | S66: 0.08830712541 | T66: 0.9116928746 | U66: 8247.8416 | V66: 240.3365532 | W66: 93363.6832 | X66: 0.08576680752 | Y66: 0.09091520238 | AA66: 8.830712541 | AB66: 8.576680752 | AC66: 9.091520238 | CL66: 2018 | CM66: Abertawe Bro Morgannwg | CN66: Llwchwr | CO66: W98787 | CP66: 4897 | CQ66: 339 | CR66: 73 | CS66: 147 | CT66: 21 | CU66: 257 | CV66: 38 | CW66: 91 | FL66: Smoking | FM66: 2013/14 | FN66: Hywel Dda UHB | FO66: Taf / Teifi / Tywi | FP66: - | FQ66: 16.75294129
A67: South Ceredigion | B67: 8734 | C67: 48187 | D67: 0.181252205 | E67: 0.818747795 | F67: 17471.8416 | G67: 331.5101991 | H67: 96381.6832 | I67: 0.1778380584 | J67: 0.1847171704 | L67: 18.1252205 | M67: 17.78380584 | N67: 18.47171704 | P67: South Ceredigion | Q67: 4027 | R67: 48187 | S67: 0.08357025754 | T67: 0.9164297425 | U67: 8057.8416 | V67: 238.1677601 | W67: 96381.6832 | X67: 0.08113236437 | Y67: 0.08607454326 | AA67: 8.357025754 | AB67: 8.113236437 | AC67: 8.607454326 | CM67: 2018 | CN67: Abertawe Bro Morgannwg | CO67: Llwchwr | CP67: =SUM(CP62:CP66) -> 47587 | CQ67: =SUM(CQ62:CQ66) -> 3784 | CR67: 862 | CS67: 1751 | CT67: 354 | CU67: 2772 | CV67: 527 | CW67: 1023 | FL67: Smoking | FM67: 2013/14 | FN67: Hywel Dda UHB | FO67: Amman/Gwendraeth | FP67: - | FQ67: 19.31485566
A68: North Pembrokeshire | B68: 11026 | C68: 65336 | D68: 0.168758418 | E68: 0.831241582 | F68: =2*B68+$N$1^2 -> 22055.8416 | G68: =$N$1*(SQRT($N$1^2+(4*B68*E68))) -> 375.3024886 | H68: =2*(C68+$N$1^2) -> 130679.6832 | I68: 0.1659059663 | J68: 0.1716498199 | L68: 16.8758418 | M68: 16.59059663 | N68: 17.16498199 | P68: North Pembrokeshire | Q68: 5339 | R68: 65336 | S68: 0.08171605241 | T68: 0.9182839476 | U68: 10681.8416 | V68: 274.5029758 | W68: 130679.6832 | X68: 0.07964006622 | Y68: 0.08384122388 | AA68: 8.171605241 | AB68: 7.964006622 | AC68: 8.384122388 | FL68: Smoking | FM68: 2013/14 | FN68: Hywel Dda UHB | FO68: Llanelli | FP68: - | FQ68: 20.71308109
A69: South Pembrokeshire | B69: 9822 | C69: 54299 | D69: 0.1808873092 | E69: 0.8191126908 | F69: 19647.8416 | G69: 351.6282663 | H69: 108605.6832 | I69: 0.1776722246 | J69: 0.1841475444 | L69: 18.08873092 | M69: 17.76722246 | N69: 18.41475444 | P69: South Pembrokeshire | Q69: 5197 | R69: 54299 | S69: 0.09571078657 | T69: 0.9042892134 | U69: 10397.8416 | V69: 268.7574254 | W69: 108605.6832 | X69: 0.09326477102 | Y69: 0.09821400419 | AA69: 9.571078657 | AB69: 9.326477102 | AC69: 9.821400419 | CL69: 2018 | CM69: Abertawe Bro Morgannwg | CN69: Neath | CO69: W00144 | CP69: 5548 | CQ69: 477 | CR69: 124 | CS69: 197 | CT69: 24 | CU69: 361 | CV69: 35 | CW69: 108 | FL69: Smoking | FM69: 2013/14 | FN69: Powys THB | FO69: - | FP69: - | FQ69: 18.10863659
A70: Hywel dda | B70: =SUM(B63:B69) -> 65242 | C70: =SUM(C63:C69) -> 393877 | D70: =B70/C70 -> 0.1656405426 | E70: =1-D70 -> 0.8343594574 | F70: 130487.8416 | G70: 914.5977477 | H70: 787761.6832 | I70: =(F70-G70)/H70 -> 0.1644827955 | J70: =(F70+G70)/H70 -> 0.1668048118 | L70: =D70*100 -> 16.56405426 | M70: =I70*100 -> 16.44827955 | N70: =J70*100 -> 16.68048118 | P70: Hywel dda | Q70: =SUM(Q63:Q69) -> 38100 | R70: =SUM(R63:R69) -> 393877 | S70: =Q70/R70 -> 0.09673070527 | T70: =1-S70 -> 0.9032692947 | U70: =2*Q70+$N$1^2 -> 76203.8416 | V70: =$N$1*(SQRT($N$1^2+(4*Q70*T70))) -> 727.2156865 | W70: =2*(R70+$N$1^2) -> 787761.6832 | X70: =(U70-V70)/W70 -> 0.0958114967 | Y70: =(U70+V70)/W70 -> 0.09765778017 | AA70: =S70*100 -> 9.673070527 | AB70: =X70*100 -> 9.58114967 | AC70: =Y70*100 -> 9.765778017 | CL70: 2018 | CM70: Abertawe Bro Morgannwg | CN70: Neath | CO70: W98002 | CP70: 9661 | CQ70: 828 | CR70: 216 | CS70: 422 | CT70: 75 | CU70: 668 | CV70: 94 | CW70: 255 | FL70: Smoking | FM70: 2013/14 | FN70: Powys tHB | FO70: North Powys | FP70: - | FQ70: 19.03519846
A71: Mid Powys | B71: 5484 | C71: 29492 | D71: =B71/C71 -> 0.1859487319 | E71: =1-D71 -> 0.8140512681 | F71: 10971.8416 | G71: 261.9433508 | H71: 58991.6832 | I71: =(F71-G71)/H71 -> 0.1815492908 | J71: =(F71+G71)/H71 -> 0.1904299783 | L71: =D71*100 -> 18.59487319 | M71: =I71*100 -> 18.15492908 | N71: 19.04299783 | P71: Mid Powys | Q71: 2680 | R71: 29492 | S71: =Q71/R71 -> 0.09087210091 | T71: =1-S71 -> 0.9091278991 | U71: =2*Q71+$AC$1^2 -> 5363.8416 | V71: =$AC$1*(SQRT($AC$1^2+(4*Q71*T71))) -> 193.5314429 | W71: =2*(R71+$AC$1^2) -> 58991.6832 | X71: =(U71-V71)/W71 -> 0.08764473018 | Y71: =(U71+V71)/W71 -> 0.09420604298 | AA71: =S71*100 -> 9.087210091 | AB71: =X71*100 -> 8.764473018 | AC71: 9.420604298 | CL71: 2018 | CM71: Abertawe Bro Morgannwg | CN71: Neath | CO71: W98006 | CP71: 10135 | CQ71: 887 | CR71: 264 | CS71: 396 | CT71: 75 | CU71: 670 | CV71: 123 | CW71: 288 | FL71: Smoking | FM71: 2013/14 | FN71: Powys tHB | FO71: Mid Powys | FP71: - | FQ71: 18.14854695
A72: North Powys | B72: 10176 | C72: 64306 | D72: 0.1582433987 | E72: 0.8417566013 | F72: 20355.8416 | G72: 362.8208422 | H72: 128619.6832 | I72: 0.1554429327 | J72: 0.161084695 | L72: 15.82433987 | M72: 15.54429327 | N72: 16.1084695 | P72: North Powys | Q72: 6542 | R72: 64306 | S72: 0.1017323422 | T72: 0.8982676578 | U72: =2*Q72+$AC$1^2 -> 13087.8416 | V72: =$AC$1*(SQRT($AC$1^2+(4*Q72*T72))) -> 300.5243762 | W72: =2*(R72+$AC$1^2) -> 128619.6832 | X72: 0.0994195982 | Y72: 0.104092668 | AA72: 10.17323422 | AB72: 9.94195982 | AC72: 10.4092668 | CL72: 2018 | CM72: Abertawe Bro Morgannwg | CN72: Neath | CO72: W98010 | CP72: 8691 | CQ72: 661 | CR72: 200 | CS72: 322 | CT72: 64 | CU72: 528 | CV72: 69 | CW72: 183 | FL72: Smoking | FM72: 2013/14 | FN72: Powys tHB | FO72: South Powys | FP72: - | FQ72: 16.77258885
A73: South Powys | B73: 8526 | C73: 45636 | D73: 0.1868261899 | E73: 0.8131738101 | F73: 17055.8416 | G73: 326.4228111 | H73: 91279.6832 | I73: 0.1832764773 | J73: 0.1904286233 | L73: 18.68261899 | M73: 18.32764773 | N73: 19.04286233 | P73: South Powys | Q73: 4508 | R73: 45636 | S73: 0.0987816636 | T73: 0.9012183364 | U73: =2*Q73+$AC$1^2 -> 9019.8416 | V73: =$AC$1*(SQRT($AC$1^2+(4*Q73*T73))) -> 249.8873991 | W73: =2*(R73+$AC$1^2) -> 91279.6832 | X73: 0.09607783346 | Y73: 0.1015530365 | AA73: 9.87816636 | AB73: 9.607783346 | AC73: 10.15530365 | CL73: 2018 | CM73: Abertawe Bro Morgannwg | CN73: Neath | CO73: W98036 | CP73: 8604 | CQ73: 592 | CR73: 154 | CS73: 337 | CT73: 54 | CU73: 551 | CV73: 51 | CW73: 191 | FL73: Smoking | FM73: 2013/14 | FN73: Wales | FO73: - | FP73: - | FQ73: 20.45283989
A74: Powys | B74: =SUM(B71:B73) -> 24186 | C74: =SUM(C71:C73) -> 139434 | D74: =B74/C74 -> 0.1734584104 | E74: =1-D74 -> 0.8265415896 | F74: 48375.8416 | G74: 554.256607 | H74: 278875.6832 | I74: =(F74-G74)/H74 -> 0.1714799385 | J74: =(F74+G74)/H74 -> 0.1754548753 | L74: =D74*100 -> 17.34584104 | M74: =I74*100 -> 17.14799385 | N74: =J74*100 -> 17.54548753 | P74: Powys | Q74: =SUM(Q71:Q73) -> 13730 | R74: =SUM(R71:R73) -> 139434 | S74: =Q74/R74 -> 0.0984695268 | T74: =1-S74 -> 0.9015304732 | U74: =2*Q74+$N$1^2 -> 27463.8416 | V74: =$N$1*(SQRT($N$1^2+(4*Q74*T74))) -> 436.1424801 | W74: =2*(R74+$N$1^2) -> 278875.6832 | X74: =(U74-V74)/W74 -> 0.09691665767 | Y74: =(U74+V74)/W74 -> 0.1000445208 | AA74: =S74*100 -> 9.84695268 | AB74: =X74*100 -> 9.691665767 | AC74: =Y74*100 -> 10.00445208 | CL74: 2018 | CM74: Abertawe Bro Morgannwg | CN74: Neath | CO74: W98040 | CP74: 6209 | CQ74: 515 | CR74: 166 | CS74: 270 | CT74: 65 | CU74: 488 | CV74: 93 | CW74: 152 | FL74: Fruit and vegetable consumption | FM74: 2014 | FN74: Abertawe Bro Morgannwg UHB | FO74: - | FP74: - | FQ74: 32.50825799
A75: Wales | B75: 506031 | C75: 3231317 | D75: 0.1566020913 | E75: 0.8433979087 | F75: 1012065.842 | G75: 2560.89267 | H75: 6462641.683 | I75: 0.1562062386 | J75: 0.1569987606 | L75: 15.66020913 | M75: 15.62062386 | N75: 15.69987606 | P75: Wales | Q75: 312352 | R75: 3231317 | S75: =Q75/R75 -> 0.0966639918 | T75: =1-S75 -> 0.9033360082 | U75: =2*Q75+$AC$1^2 -> 624707.8416 | V75: =$AC$1*(SQRT($AC$1^2+(4*Q75*T75))) -> 2082.253558 | W75: =2*(R75+$AC$1^2) -> 6462641.683 | X75: =(U75-V75)/W75 -> 0.0963422728 | Y75: =(U75+V75)/W75 -> 0.09698666983 | AA75: =S75*100 -> 9.66639918 | AB75: =X75*100 -> 9.63422728 | AC75: =Y75*100 -> 9.698666983 | CL75: 2018 | CM75: Abertawe Bro Morgannwg | CN75: Neath | CO75: W98048 | CP75: 5079 | CQ75: 362 | CR75: 83 | CS75: 127 | CT75: 10 | CU75: 283 | CV75: 20 | CW75: 75 | FL75: Fruit and vegetable consumption | FM75: 2014 | FN75: Abertawe Bro Morgannwg UHB | FO75: Bay Health | FP75: - | FQ75: 34.30586797
CL76: 2018 | CM76: Abertawe Bro Morgannwg | CN76: Neath | CO76: W98785 | CP76: 2549 | CQ76: 229 | CR76: 60 | CS76: 66 | CT76: 4 | CU76: 153 | CV76: 15 | CW76: 40 | FL76: Fruit and vegetable consumption | FM76: 2014 | FN76: Abertawe Bro Morgannwg UHB | FO76: City Health | FP76: - | FQ76: 30.87510247
CM77: 2018 | CN77: Abertawe Bro Morgannwg | CO77: Neath | CP77: =SUM(CP69:CP76) -> 56476 | CQ77: =SUM(CQ69:CQ76) -> 4551 | CR77: 1267 | CS77: 2137 | CT77: 371 | CU77: 3702 | CV77: 500 | CW77: 1292 | FL77: Fruit and vegetable consumption | FM77: 2014 | FN77: Abertawe Bro Morgannwg UHB | FO77: Cwmtawe | FP77: - | FQ77: 32.52076289
FL78: Fruit and vegetable consumption | FM78: 2014 | FN78: Abertawe Bro Morgannwg UHB | FO78: Llwchwr | FP78: - | FQ78: 34.02239566
A79: Health boards | CL79: 2018 | CM79: Abertawe Bro Morgannwg | CN79: Penderi | CO79: W98003 | CP79: 8375 | CQ79: 712 | CR79: 203 | CS79: 309 | CT79: 34 | CU79: 540 | CV79: 60 | CW79: 183 | FL79: Fruit and vegetable consumption | FM79: 2014 | FN79: Abertawe Bro Morgannwg UHB | FO79: Penderi | FP79: - | FQ79: 31.14268573
A80: Indicator | B80: Period | C80: Wales | D80: ABM | E80: AB | F80: BC | G80: CV | H80: CT | I80: HD | J80: Powys | CL80: 2018 | CM80: Abertawe Bro Morgannwg | CN80: Penderi | CO80: W98004 | CP80: 8205 | CQ80: 525 | CR80: 164 | CS80: 244 | CT80: 73 | CU80: 480 | CV80: 91 | CW80: 175 | FL80: Fruit and vegetable consumption | FM80: 2014 | FN80: Abertawe Bro Morgannwg UHB | FO80: Upper Valleys | FP80: - | FQ80: 32.6264803
A81: Hypertension | B81: 2017-18 | C81: =$L$75 -> 15.66020913 | D81: =$L$15 -> 15.27565875 | E81: =$L$28 -> 16.10638488 | F81: =$L$43 -> 16.59399604 | G81: =$L$53 -> 12.410853 | H81: =$L$62 -> 16.83306352 | I81: =$L$70 -> 16.56405426 | J81: =$L$74 -> 17.34584104 | CL81: 2018 | CM81: Abertawe Bro Morgannwg | CN81: Penderi | CO81: W98007 | CP81: 6491 | CQ81: 482 | CR81: 150 | CS81: 279 | CT81: 30 | CU81: 455 | CV81: 70 | CW81: 144 | FL81: Fruit and vegetable consumption | FM81: 2014 | FN81: Abertawe Bro Morgannwg UHB | FO81: Afan | FP81: - | FQ81: 30.38588176
A82: Adult obesity | B82: 2017-18 | C82: =$AA$75 -> 9.66639918 | D82: =$AA$15 -> 9.967963934 | E82: =$AA$28 -> 11.07972354 | F82: =$AA$43 -> 8.400470844 | G82: =$AA$53 -> 7.779185036 | H82: =$AA$62 -> 12.30077167 | I82: =$AA$70 -> 9.673070527 | J82: =$AA$74 -> 9.84695268 | CL82: 2018 | CM82: Abertawe Bro Morgannwg | CN82: Penderi | CO82: W98028 | CP82: 7749 | CQ82: 512 | CR82: 167 | CS82: 274 | CT82: 36 | CU82: 499 | CV82: 80 | CW82: 139 | FL82: Fruit and vegetable consumption | FM82: 2014 | FN82: Abertawe Bro Morgannwg UHB | FO82: Neath | FP82: - | FQ82: 32.46786695
A83: Child obesity | B83: 2016-17 | C83: =$AG$3 -> 12.35177271 | D83: =$AH$16 -> 12.2 | E83: =$AG$26 -> 11.83762008 | F83: =$AG$4 -> 12.7037136 | G83: =$AG$20 -> 9.95646413 | H83: =$AG$23 -> 14.35790725 | I83: =$AG$12 -> 13.27152318 | J83: =$AG$11 -> 11.34215501 | CL83: 2018 | CM83: Abertawe Bro Morgannwg | CN83: Penderi | CO83: W98043 | CP83: 5280 | CQ83: 337 | CR83: 160 | CS83: 204 | CT83: 26 | CU83: 342 | CV83: 52 | CW83: 142 | FL83: Fruit and vegetable consumption | FM83: 2014 | FN83: Abertawe Bro Morgannwg UHB | FO83: Bridgend East Network | FP83: - | FQ83: 33.9238336
CL84: 2018 | CM84: Abertawe Bro Morgannwg | CN84: Penderi | CO84: W98612 | CP84: 2114 | CQ84: 102 | CR84: 112 | CS84: 45 | CT84: 3 | CU84: 133 | CV84: 14 | CW84: 29 | FL84: Fruit and vegetable consumption | FM84: 2014 | FN84: Abertawe Bro Morgannwg UHB | FO84: Bridgend North Network | FP84: - | FQ84: 30.94789335
CM85: 2018 | CN85: Abertawe Bro Morgannwg | CO85: Penderi | CP85: =SUM(CP79:CP84) -> 38214 | CQ85: =SUM(CQ79:CQ84) -> 2670 | CR85: 956 | CS85: 1355 | CT85: 202 | CU85: 2449 | CV85: 367 | CW85: 812 | FL85: Fruit and vegetable consumption | FM85: 2014 | FN85: Abertawe Bro Morgannwg UHB | FO85: Bridgend West Network | FP85: - | FQ85: 32.80326458
A86: Local authorities | FL86: Fruit and vegetable consumption | FM86: 2014 | FN86: Aneurin Bevan UHB | FO86: - | FP86: - | FQ86: 32.17663374
CL87: 2018 | CM87: Abertawe Bro Morgannwg | CN87: Upper Valleys | CO87: W00143 | CP87: 3289 | CQ87: 235 | CR87: 98 | CS87: 131 | CT87: 13 | CU87: 207 | CV87: 39 | CW87: 83 | FL87: Fruit and vegetable consumption | FM87: 2014 | FN87: Aneurin Bevan UHB | FO87: Caerphilly North | FP87: - | FQ87: 30.66848946
A88: Indicator | B88: Period | C88: Wales | D88: Bridgend | E88: Neath Port Talbot | F88: Swansea | G88: Blaenau Gwent | H88: Caerphilly | I88: Monmouthshire | J88: Newport | K88: Torfaen | L88: Anglesey | M88: Conwy | N88: Denbighshire | O88: Flintshire | P88: Gwynedd | Q88: Wrexham | R88: Cardiff | S88: Vale of Glamorgan | T88: Merthyr Tydfil | U88: Rhondda Cynon Taf | V88: Carmarthenshire | W88: Ceredigion | X88: Pembrokeshire | Y88: Powys | CL88: 2018 | CM88: Abertawe Bro Morgannwg | CN88: Upper Valleys | CO88: W98001 | CP88: 12689 | CQ88: 790 | CR88: 293 | CS88: 497 | CT88: 131 | CU88: 748 | CV88: 114 | CW88: 257 | FL88: Fruit and vegetable consumption | FM88: 2014 | FN88: Aneurin Bevan UHB | FO88: Caerphilly East | FP88: - | FQ88: 32.87981278
A89: Hypertension | CL89: 2018 | CM89: Abertawe Bro Morgannwg | CN89: Upper Valleys | CO89: W98030 | CP89: 6067 | CQ89: 422 | CR89: 159 | CS89: 273 | CT89: 56 | CU89: 500 | CV89: 94 | CW89: 147 | FL89: Fruit and vegetable consumption | FM89: 2014 | FN89: Aneurin Bevan UHB | FO89: Caerphilly South | FP89: - | FQ89: 32.21883035
A90: Child obesity | B90: 2016-17 | C90: 12.35177271 | D90: =$AG$19 -> 13.54292624 | E90: =$AG$18 -> 11.81938911 | F90: =$AG$17 -> 13.49206349 | G90: =$AG$28 -> 15.13888889 | H90: =$AG$27 -> 13.55498721 | I90: =$AG$30 -> 7.976878613 | J90: =$AG$31 -> 10.81808396 | K90: =$AG$29 -> 11.36363636 | L90: =$AG$5 -> 14.15584416 | M90: =$AG$7 -> 14.43755536 | N90: =$AG$8 -> 12.1304791 | O90: =$AG$9 -> 10.92089728 | P90: =$AG$6 -> 12.99921691 | Q90: =$AG$10 -> 12.78287462 | R90: =$AG$22 -> 10.6629695 | S90: =$AG$21 -> 7.82674772 | T90: =$AG$25 -> 17.49598716 | U90: =$AG$24 -> 13.64465524 | V90: =$AG$15 -> 14.01574803 | W90: =$AG$13 -> 10.85626911 | X90: =$AG$14 -> 13.40460526 | Y90: =$AG$11 -> 11.34215501 | CL90: 2018 | CM90: Abertawe Bro Morgannwg | CN90: Upper Valleys | CO90: W98046 | CP90: 9549 | CQ90: 872 | CR90: 287 | CS90: 403 | CT90: 75 | CU90: 703 | CV90: 131 | CW90: 247 | FL90: Fruit and vegetable consumption | FM90: 2014 | FN90: Aneurin Bevan UHB | FO90: Blaenau Gwent East | FP90: - | FQ90: 29.74357816
A91: Adult obesity | CM91: 2018 | CN91: Abertawe Bro Morgannwg | CO91: Upper Valleys | CP91: =SUM(CP87:CP90) -> 31594 | CQ91: =SUM(CQ87:CQ90) -> 2319 | CR91: 837 | CS91: 1304 | CT91: 275 | CU91: 2158 | CV91: 378 | CW91: 734 | FL91: Fruit and vegetable consumption | FM91: 2014 | FN91: Aneurin Bevan UHB | FO91: Blaenau Gwent West | FP91: - | FQ91: 30.58873363
FL92: Fruit and vegetable consumption | FM92: 2014 | FN92: Aneurin Bevan UHB | FO92: Torfaen North | FP92: - | FQ92: 31.99935666
CL93: 2018 | CM93: Aneurin Bevan | CN93: Blaenau Gwent East | CO93: W93007 | CP93: 4946 | CQ93: 367 | CR93: 141 | CS93: 184 | CT93: 33 | CU93: 320 | CV93: 51 | CW93: 100 | FL93: Fruit and vegetable consumption | FM93: 2014 | FN93: Aneurin Bevan UHB | FO93: Torfaen South | FP93: - | FQ93: 32.38087475
A94: Regional Partnership Boards | CL94: 2018 | CM94: Aneurin Bevan | CN94: Blaenau Gwent East | CO94: W93009 | CP94: 5265 | CQ94: 312 | CR94: 192 | CS94: 228 | CT94: 5 | CU94: 395 | CV94: 52 | CW94: 89 | FL94: Fruit and vegetable consumption | FM94: 2014 | FN94: Aneurin Bevan UHB | FO94: Monmouthshire North | FP94: - | FQ94: 34.92154999
CL95: 2018 | CM95: Aneurin Bevan | CN95: Blaenau Gwent East | CO95: W93068 | CP95: 10333 | CQ95: 705 | CR95: 312 | CS95: 462 | CT95: 102 | CU95: 840 | CV95: 102 | CW95: 258 | FL95: Fruit and vegetable consumption | FM95: 2014 | FN95: Aneurin Bevan UHB | FO95: Monmouthshire South | FP95: - | FQ95: 35.02198524
A96: Indicator | B96: Period | C96: ABM | D96: Bridgend | E96: Neath | F96: Swansea | G96: AB | H96: Blaenau | I96: Caerphilly | J96: Monmouthshire | K96: Newport | L96: Torfaen | M96: BC | N96: Anglesey | O96: Conwy | P96: Denbighshire | Q96: Flintshire | R96: Gwynedd | S96: Wrexham | T96: CV | U96: Cardiff | V96: Vale | W96: CT | X96: Merthyr | Y96: Rhondda | Z96: HD | AA96: Carmarthenshire | AB96: Ceredigion | AC96: Pembrokeshire | AD96: Powys HB | AE96: Powys LA | CL96: 2018 | CM96: Aneurin Bevan | CN96: Blaenau Gwent East | CO96: W93075 | CP96: 7773 | CQ96: 532 | CR96: 298 | CS96: 337 | CT96: 34 | CU96: 576 | CV96: 91 | CW96: 149 | FL96: Fruit and vegetable consumption | FM96: 2014 | FN96: Aneurin Bevan UHB | FO96: Newport Central | FP96: - | FQ96: 33.0044083
A97: Child obesity | B97: 2016-17 | C97: =$AH$16 -> 12.2 | D97: =$AG$19 -> 13.54292624 | E97: =$AG$18 -> 11.81938911 | F97: =$AG$17 -> 13.49206349 | G97: =$AG$26 -> 11.83762008 | H97: =$AG$28 -> 15.13888889 | I97: =$AG$27 -> 13.55498721 | J97: =$AG$30 -> 7.976878613 | K97: =$AG$31 -> 10.81808396 | L97: =$AG$29 -> 11.36363636 | M97: =$AG$4 -> 12.7037136 | N97: =$AG$5 -> 14.15584416 | O97: =$AG$7 -> 14.43755536 | P97: =$AG$8 -> 12.1304791 | Q97: =$AG$9 -> 10.92089728 | R97: =$AG$6 -> 12.99921691 | S97: =$AG$10 -> 12.78287462 | T97: =$AG$20 -> 9.95646413 | U97: =$AG$22 -> 10.6629695 | V97: =$AG$21 -> 7.82674772 | W97: =$AG$23 -> 14.35790725 | X97: =$AG$25 -> 17.49598716 | Y97: =$AG$24 -> 13.64465524 | Z97: =$AG$12 -> 13.27152318 | AA97: =$AG$15 -> 14.01574803 | AB97: =$AG$13 -> 10.85626911 | AC97: =$AG$14 -> 13.40460526 | AD97: =$AG$11 -> 11.34215501 | AE97: =$AG$11 -> 11.34215501 | CL97: 2018 | CM97: Aneurin Bevan | CN97: Blaenau Gwent East | CO97: W93115 | CP97: 6327 | CQ97: 489 | CR97: 233 | CS97: 316 | CT97: 45 | CU97: 525 | CV97: 176 | CW97: 154 | FL97: Fruit and vegetable consumption | FM97: 2014 | FN97: Aneurin Bevan UHB | FO97: Newport East | FP97: - | FQ97: 31.24260022
CM98: 2018 | CN98: Aneurin Bevan | CO98: Blaenau Gwent East | CP98: =SUM(CP93:CP97) -> 34644 | CQ98: =SUM(CQ93:CQ97) -> 2405 | CR98: 1176 | CS98: 1527 | CT98: 219 | CU98: 2656 | CV98: 472 | CW98: 750 | FL98: Fruit and vegetable consumption | FM98: 2014 | FN98: Aneurin Bevan UHB | FO98: Newport West | FP98: - | FQ98: 31.4373767
FL99: Fruit and vegetable consumption | FM99: 2014 | FN99: Betsi Cadwaladr UHB | FO99: - | FP99: - | FQ99: 33.55324773
CL100: 2018 | CM100: Aneurin Bevan | CN100: Blaenau Gwent West | CO100: W93032 | CP100: 8596 | CQ100: 655 | CR100: 201 | CS100: 337 | CT100: 57 | CU100: 545 | CV100: 78 | CW100: 179 | FL100: Fruit and vegetable consumption | FM100: 2014 | FN100: Betsi Cadwaladr UHB | FO100: Anglesey | FP100: - | FQ100: 33.24599845
CL101: 2018 | CM101: Aneurin Bevan | CN101: Blaenau Gwent West | CO101: W93035 | CP101: 7085 | CQ101: 600 | CR101: 242 | CS101: 269 | CT101: 49 | CU101: 487 | CV101: 61 | CW101: 115 | FL101: Fruit and vegetable consumption | FM101: 2014 | FN101: Betsi Cadwaladr UHB | FO101: Arfon | FP101: - | FQ101: 33.30542747
A102: Clusters, by health board | CL102: 2018 | CM102: Aneurin Bevan | CN102: Blaenau Gwent West | CO102: W93063 | CP102: 5592 | CQ102: 407 | CR102: 169 | CS102: 293 | CT102: 44 | CU102: 438 | CV102: 139 | CW102: 153 | FL102: Fruit and vegetable consumption | FM102: 2014 | FN102: Betsi Cadwaladr UHB | FO102: Dwyfor | FP102: - | FQ102: 34.79374196
CL103: 2018 | CM103: Aneurin Bevan | CN103: Blaenau Gwent West | CO103: W93065 | CP103: 6715 | CQ103: 541 | CR103: 172 | CS103: 277 | CT103: 33 | CU103: 520 | CV103: 80 | CW103: 152 | FL103: Fruit and vegetable consumption | FM103: 2014 | FN103: Betsi Cadwaladr UHB | FO103: Meirionnydd | FP103: - | FQ103: 34.77839871
A104: Indicator | B104: Period | C104: ABM | D104: Bridgend East Network | E104: Bridgend North Network | F104: Bridgend West Network | G104: Afan | H104: Neath | I104: Upper Valleys | J104: BayHealth | K104: CityHealth | L104: Cwmtawe | M104: Llwchwr | N104: Penderi | O104: AB | P104: Blaenau Gwent East | Q104: Blaenau Gwent West | R104: Caerphilly East | S104: Caerphilly North | T104: Caerphilly South | U104: Monmouthshire North | V104: Monmouthshire South | W104: Newport Central | X104: Newport East | Y104: Newport West | Z104: Torfaen North | AA104: Torfaen South | AB104: BC | AC104: Anglesey | AD104: Conwy East | AE104: Conwy West | AF104: Central - South Denbighshire | AG104: North Denbighshire | AH104: Deeside Hawarden - Saltney | AI104: Holywell - Flint | AJ104: Mold Buckley - Caergwle | AK104: Arfon | AL104: Dwyfor | AM104: Meirionnydd | AN104: South Wrexham | AO104: West - North Wrexham | AP104: Wrexham Town | AQ104: CV | AR104: Cardiff East | AS104: Cardiff North | AT104: Cardiff South East | AU104: Cardiff South West | AV104: Cardiff West | AW104: City - Cardiff South | AX104: Central Vale | AY104: Eastern Vale | AZ104: Western Vale | BA104: CT | BB104: North Merthyr Tydfil | BC104: South Merthyr Tydfil | BD104: North Cynon | BE104: North Rhondda | BF104: North Taf Ely | BG104: South Cynon | BH104: South Rhondda | BI104: South Taf Ely | BJ104: HD | BK104: Amman-Gwendraeth | BL104: Llanelli | BM104: Taf - Teifi - Tywi | BN104: North Ceredigion | BO104: South Ceredigion | BP104: North Pembrokeshire | BQ104: South Pembrokeshire | BR104: Powys | BS104: Mid Powys | BT104: North Powys | BU104: South Powys | CL104: 2018 | CM104: Aneurin Bevan | CN104: Blaenau Gwent West | CO104: W93619 | CP104: 3499 | CQ104: 309 | CR104: 101 | CS104: 132 | CT104: 23 | CU104: 252 | CV104: 54 | CW104: 93 | FL104: Fruit and vegetable consumption | FM104: 2014 | FN104: Betsi Cadwaladr UHB | FO104: Conwy East | FP104: - | FQ104: 32.83009385
A105: Hypertension | B105: 2017-18 | C105: =$L$15 -> 15.27565875 | D105: 15.18491579 | E105: 18.42902634 | F105: 17.26312744 | G105: 17.01211516 | H105: 15.84035697 | I105: 17.49382794 | J105: 12.29658599 | K105: 13.0011821 | L105: 14.78866654 | M105: 15.22264484 | N105: 13.88496363 | O105: =$L$28 -> 16.10638488 | P105: 19.29915714 | Q105: 17.48000313 | R105: 15.77224437 | S105: 16.64718926 | T105: 15.6539741 | U105: 17.48796482 | V105: 15.7723783 | W105: 15.36406615 | X105: 13.30904286 | Y105: 14.0969785 | Z105: 17.55272896 | AA105: 16.13247863 | AB105: =$L$43 -> 16.59399604 | AC105: 17.46588397 | AD105: 17.7459621 | AE105: 17.59551898 | AF105: 17.07131296 | AG105: 17.18532742 | AH105: 15.35514816 | AI105: 16.82522769 | AJ105: 16.04430875 | AK105: 13.0985566 | AL105: 19.16840584 | AM105: 18.80246401 | AN105: 17.11286973 | AO105: 16.27001195 | AP105: 15.63084518 | AQ105: =$L$53 -> 12.410853 | AR105: 13.43138447 | AS105: 12.32442096 | AT105: 8.192077204 | AU105: 12.11627275 | AV105: 13.11840501 | AW105: 9.515540893 | AX105: 15.2648122 | AY105: 14.49523344 | AZ105: 14.48983912 | BA105: =$L$62 -> 16.83306352 | BB105: 17.39682343 | BC105: 16.54744372 | BD105: 17.63462531 | BE105: 18.48800922 | BF105: 15.5889564 | BG105: 18.28908555 | BH105: 17.53055914 | BI105: 14.54713874 | BJ105: =$L$70 -> 16.56405426 | BK105: 16.13351412 | BL105: 15.57275743 | BM105: 16.1438448 | BN105: 15.1227559 | BO105: 18.1252205 | BP105: 16.8758418 | BQ105: 18.08873092 | BR105: =$L$74 -> 17.34584104 | BS105: 18.59487319 | BT105: 15.82433987 | BU105: 18.68261899 | CL105: 2018 | CM105: Aneurin Bevan | CN105: Blaenau Gwent West | CO105: W93623 | CP105: 6894 | CQ105: 370 | CR105: 176 | CS105: 218 | CT105: 58 | CU105: 492 | CV105: 89 | CW105: 128 | FL105: Fruit and vegetable consumption | FM105: 2014 | FN105: Betsi Cadwaladr UHB | FO105: Conwy West | FP105: - | FQ105: 34.27062293
A106: Adult obesity | B106: 2017-18 | C106: =$AA$15 -> 9.967963934 | D106: 8.546410787 | E106: 10.15343047 | F106: 8.02256618 | G106: 13.30319222 | H106: 13.94928819 | I106: 10.84383111 | J106: 6.13824786 | K106: 8.813441079 | L106: 11.76828128 | M106: 9.357597663 | N106: 10.8546606 | O106: 11.07972354 | P106: 13.16245237 | Q106: 12.08410411 | R106: 11.27866269 | S106: 12.38463382 | T106: 10.3970557 | U106: 11.41541261 | V106: 10.0333249 | W106: 9.3393557 | X106: 10.71249825 | Y106: 10.97260882 | Z106: 12.13120058 | AA106: 9.558695273 | AB106: =AA43 -> 8.400470844 | AC106: 9.319204086 | AD106: 7.775087945 | AE106: 7.630566073 | AF106: 6.338665143 | AG106: 7.059855658 | AH106: 9.52051377 | AI106: 9.024025167 | AJ106: 9.153358384 | AK106: 6.231848101 | AL106: 8.420292182 | AM106: 9.358143692 | AN106: 9.083085443 | AO106: 10.00955795 | AP106: 9.774581076 | AQ106: 7.779185036 | AR106: 9.586900276 | AS106: 7.238276722 | AT106: 7.38890186 | AU106: 8.021672855 | AV106: 6.834932923 | AW106: 6.662863096 | AX106: 9.998428414 | AY106: 6.635161194 | AZ106: 6.343494214 | BA106: 12.30077167 | BB106: 13.19855104 | BC106: 11.95034715 | BD106: 10.74298916 | BE106: 11.89237819 | BF106: 12.54237288 | BG106: 15.49624132 | BH106: 15.36661612 | BI106: 8.526142445 | BJ106: =AA70 -> 9.673070527 | BK106: 11.90512061 | BL106: 10.33793014 | BM106: 10.22598287 | BN106: 8.830712541 | BO106: 8.357025754 | BP106: 8.171605241 | BQ106: 9.571078657 | BR106: 9.84695268 | BS106: 9.087210091 | BT106: 10.17323422 | BU106: 9.87816636 | CM106: 2018 | CN106: Aneurin Bevan | CO106: Blaenau Gwent West | CP106: =SUM(CP100:CP105) -> 38381 | CQ106: =SUM(CQ100:CQ105) -> 2882 | CR106: 1061 | CS106: 1526 | CT106: 264 | CU106: 2734 | CV106: 501 | CW106: 820 | FL106: Fruit and vegetable consumption | FM106: 2014 | FN106: Betsi Cadwaladr UHB | FO106: Central & South Denbighshire | FP106: - | FQ106: 34.87160694
A107: Child obesity | FL107: Fruit and vegetable consumption | FM107: 2014 | FN107: Betsi Cadwaladr UHB | FO107: North Denbighshire | FP107: - | FQ107: 32.00828632
B108: Significance testing by the comparison of the confidence intervals | CL108: 2018 | CM108: Aneurin Bevan | CN108: Caerphilly East | CO108: W93001 | CP108: 7279 | CQ108: 508 | CR108: 166 | CS108: 287 | CT108: 34 | CU108: 411 | CV108: 68 | CW108: 145 | FL108: Fruit and vegetable consumption | FM108: 2014 | FN108: Betsi Cadwaladr UHB | FO108: South Wrexham | FP108: - | FQ108: 33.32744121
CL109: 2018 | CM109: Aneurin Bevan | CN109: Caerphilly East | CO109: W93011 | CP109: 13083 | CQ109: 782 | CR109: 260 | CS109: 412 | CT109: 54 | CU109: 804 | CV109: 65 | CW109: 168 | FL109: Fruit and vegetable consumption | FM109: 2014 | FN109: Betsi Cadwaladr UHB | FO109: Deeside, Hawarden & Saltney | FP109: - | FQ109: 33.53335887
A110: Clusters, by local authority (PSB) | CL110: 2018 | CM110: Aneurin Bevan | CN110: Caerphilly East | CO110: W93012 | CP110: 7626 | CQ110: 469 | CR110: 137 | CS110: 238 | CT110: 44 | CU110: 412 | CV110: 59 | CW110: 128 | FL110: Fruit and vegetable consumption | FM110: 2014 | FN110: Betsi Cadwaladr UHB | FO110: Holywell & Flint | FP110: - | FQ110: 32.68550225
CL111: 2018 | CM111: Aneurin Bevan | CN111: Caerphilly East | CO111: W93014 | CP111: 6008 | CQ111: 393 | CR111: 124 | CS111: 201 | CT111: 27 | CU111: 425 | CV111: 52 | CW111: 114 | FL111: Fruit and vegetable consumption | FM111: 2014 | FN111: Betsi Cadwaladr UHB | FO111: Mold, Buckley & Caergwle | FP111: - | FQ111: 35.11504647
A112: Indicator | B112: Period | C112: Bridgend | D112: Bridgend East Network | E112: Bridgend North Network | F112: Bridgend West Network | G112: Neath Port Talbot | H112: Afan | I112: Neath | J112: Upper Valleys | K112: Swansea | L112: BayHealth | M112: CityHealth | N112: Cwmtawe | O112: Llwchwr | P112: Penderi | Q112: Blaenau Gwent | R112: Blaenau Gwent East | S112: Blaenau Gwent West | T112: Caerphilly | U112: Caerphilly East | V112: Caerphilly North | W112: Caerphilly South | X112: Monmouthshire | Y112: Monmouthshire North | Z112: Monmouthshire South | AA112: Newport | AB112: Newport Central | AC112: Newport East | AD112: Newport West | AE112: Torfaen | AF112: Torfaen North | AG112: Torfaen South | AH112: Anglesey LA | AI112: Anglesey Cluster | AJ112: Conwy | AK112: Conwy East | AL112: Conwy West | AM112: Denbighshire | AN112: Central - South Denbighshire | AO112: North Denbighshire | AP112: Flintshire | AQ112: Deeside Hawarden - Saltney | AR112: Holywell - Flint | AS112: Mold Buckley - Caergwle | AT112: Gwynedd | AU112: Arfon | AV112: Dwyfor | AW112: Meirionnydd | AX112: Wrexham | AY112: South Wrexham | AZ112: West - North Wrexham | BA112: Wrexham Town | BB112: Cardiff | BC112: Cardiff East | BD112: Cardiff North | BE112: Cardiff South East | BF112: Cardiff South West | BG112: Cardiff West | BH112: City - Cardiff South | BI112: Vale of Glamorgan | BJ112: Central Vale | BK112: Eastern Vale | BL112: Western Vale | BM112: Merthyr Tydfil | BN112: North Merthyr Tydfil | BO112: South Merthyr Tydfil | BP112: Rhondda Cynon Taf | BQ112: North Cynon | BR112: North Rhondda | BS112: North Taf Ely | BT112: South Cynon | BU112: South Rhondda | BV112: South Taf Ely | BW112: Carmarthenshire | BX112: Amman-Gwendraeth | BY112: Llanelli | BZ112: Taf - Teifi - Tywi | CA112: Ceredigion | CB112: North Ceredigion | CC112: South Ceredigion | CD112: Pembrokeshire | CE112: North Pembrokeshire | CF112: South Pembrokeshire | CG112: Powys | CH112: Mid Powys | CI112: North Powys | CJ112: South Powys | CL112: 2018 | CM112: Aneurin Bevan | CN112: Caerphilly East | CO112: W93059 | CP112: 8469 | CQ112: 609 | CR112: 116 | CS112: 228 | CT112: 37 | CU112: 417 | CV112: 51 | CW112: 147 | FL112: Fruit and vegetable consumption | FM112: 2014 | FN112: Betsi Cadwaladr UHB | FO112: West & North Wrexham | FP112: - | FQ112: 33.57325033
A113: Hypertension | CL113: 2018 | CM113: Aneurin Bevan | CN113: Caerphilly East | CO113: W93064 | CP113: 14068 | CQ113: 848 | CR113: 328 | CS113: 574 | CT113: 65 | CU113: 1003 | CV113: 86 | CW113: 263 | FL113: Fruit and vegetable consumption | FM113: 2014 | FN113: Betsi Cadwaladr UHB | FO113: Wrexham Town | FP113: - | FQ113: 32.80754033
A114: Adult obesity | CL114: 2018 | CM114: Aneurin Bevan | CN114: Caerphilly East | CO114: W93067 | CP114: 9450 | CQ114: 604 | CR114: 229 | CS114: 333 | CT114: 64 | CU114: 580 | CV114: 87 | CW114: 165 | FL114: Fruit and vegetable consumption | FM114: 2014 | FN114: Cardiff & Vale UHB | FO114: - | FP114: - | FQ114: 32.67992164
A115: Child obesity | CM115: 2018 | CN115: Aneurin Bevan | CO115: Caerphilly East | CP115: =SUM(CP108:CP114) -> 65983 | CQ115: =SUM(CQ108:CQ114) -> 4213 | CR115: 1360 | CS115: 2273 | CT115: 325 | CU115: 4052 | CV115: 468 | CW115: 1130 | FL115: Fruit and vegetable consumption | FM115: 2014 | FN115: Cardiff & Vale UHB | FO115: Cardiff North | FP115: - | FQ115: 34.4130805
FL116: Fruit and vegetable consumption | FM116: 2014 | FN116: Cardiff & Vale UHB | FO116: Cardiff East | FP116: - | FQ116: 30.74922198
CL117: 2018 | CM117: Aneurin Bevan | CN117: Caerphilly North | CO117: W93010 | CP117: 3078 | CQ117: 205 | CR117: 77 | CS117: 105 | CT117: 15 | CU117: 172 | CV117: 38 | CW117: 59 | FL117: Fruit and vegetable consumption | FM117: 2014 | FN117: Cardiff & Vale UHB | FO117: Cardiff South East | FP117: - | FQ117: 30.84200489
